Workbook

Sheet Index
A1: INDEX
A2: Summary by RZ
A3: Bill Impact Summary
A4: M-factor RR Calculation_2020
A5: Bill Impacts_2020
A6: Rate Rider Calculation_2020
A7: M-factor RR Calculation_2021
A8: Bill Impacts_2021
A9: Rate Rider Calculation_2021
A10: M-factor RR Calculation_2022
A11: Bill Impacts_2022
A12: Rate Rider Calculation_2022
A13: M-factor RR Calculation_2023
A14: Bill Impacts_2023
A15: Rate Rider Calculation_2023
A16: M-factor RR Calculation_2024
A17: Bill Impacts_2024
A18: Rate Rider Calculation_2024
A19: Revenue Proportions
A20: Weighted Averages
A21: Threshold Test_ERZ
A22: Threshold Test_PRZ
A23: Threshold Test_BRZ
A24: Threshold Test_HRZ
A25: Threshold Test_GRZ

Sheet Summary by RZ
H1: Back to Index | K1: Allocation of Multiple
B2: Capex | C2: 2020 | D2: 2021 | E2: 2022 | F2: 2023 | G2: 2024 | H2: 2020-2024 | K2: 2020 | L2: 2021 | M2: 2022 | N2: 2023 | O2: 2024 | Q2: 2020 | R2: 2021 | S2: 2022 | T2: 2023 | U2: 2024 | V2: 2020-2024
B3: Horizon | C3: 11863042.36 | D3: 10953468.2 | E3: 9264384.08 | F3: 3521255.2 | G3: 11814192.28 | H3: =SUM(C3:G3) -> 47416342.12 | J3: ='Weighted Averages'!C6 -> 0.1971950825 | K3: =$C$8*J3 -> 271039.4665 | L3: =$D$8*J3 -> 1507841.652 | M3: =$E$8*J3 -> 2083084.128 | N3: =$F$8*J3 -> 727924.5234 | O3: =$G$8*J3 -> 345669.6965 | Q3: =C3+K3 -> 12134081.83 | R3: =D3+L3 -> 12461309.85 | S3: =E3+M3 -> 11347468.21 | T3: =F3+N3 -> 4249179.723 | U3: =G3+O3 -> 12159861.98 | V3: =SUM(Q3:U3) -> 52351901.59
B4: Brampton | C4: 9696859.61 | D4: 2188554.71 | E4: 6646394.708 | F4: 3730434.13 | G4: 3765279.055 | H4: =SUM(C4:G4) -> 26027522.21 | J4: ='Weighted Averages'!D6 -> 0.1435830071 | K4: =$C$8*J4 -> 197351.0757 | L4: =$D$8*J4 -> 1097899.785 | M4: =$E$8*J4 -> 1516749.198 | N4: =$F$8*J4 -> 530021.2902 | O4: =$G$8*J4 -> 251691.3398 | Q4: =C4+K4 -> 9894210.686 | R4: 3286454.495 | S4: 8163143.906 | T4: 4260455.42 | U4: 4016970.395 | V4: =SUM(Q4:U4) -> 29621234.9
B5: PowerStream | C5: 23015002.75 | D5: 16054204.53 | E5: 15402786.1 | F5: 32752595.23 | G5: 23331582.86 | H5: 110556171.5 | J5: ='Weighted Averages'!E6 -> 0.3842444497 | K5: 528133.9135 | L5: 2938104.635 | M5: 4058993.28 | N5: 1418397.226 | O5: 673554.6376 | Q5: 23543136.66 | R5: 18992309.17 | S5: 19461779.38 | T5: 34170992.46 | U5: 24005137.5 | V5: 120173355.2
B6: Enersource | C6: 6591094.08 | D6: 5532703.447 | E6: 8810403.87 | F6: 7760536.93 | G6: 23132110.74 | H6: 51826849.07 | J6: ='Weighted Averages'!F6 -> 0.2212545621 | K6: 304108.5898 | L6: 1691811.176 | M6: 2337238.134 | N6: 816737.5151 | O6: 387844.3436 | Q6: 6895202.67 | R6: 7224514.623 | S6: 11147642 | T6: 8577274.445 | U6: 23519955.09 | V6: 57364588.83
B7: Guelph | C7: 133500.12 | D7: 1278753 | E7: 1336164.12 | F7: 612819.96 | G7: 745232.88 | H7: 4106470.08 | J7: ='Weighted Averages'!G6 -> 0.05372289863 | K7: 73840.71448 | L7: 410789.2713 | M7: 567505.6197 | N7: 198312.3255 | O7: 94172.62253 | Q7: 207340.8345 | R7: 1689542.271 | S7: 1903669.74 | T7: 811132.2855 | U7: 839405.5025 | V7: 5451090.634
B8: Multiple | C8: 1374473.76 | D8: 7646446.52 | E8: 10563570.36 | F8: 3691392.88 | G8: 1752932.64 | H8: 25028816.16 | V8: 0
C9: =SUM(C3:C8) -> 52673972.68 | D9: =SUM(D3:D8) -> 43654130.41 | E9: 52023703.24 | F9: 52069034.33 | G9: 64541330.46 | H9: 264962171.1 | K9: =SUM(K3:K8) -> 1374473.76 | L9: 7646446.52 | M9: 10563570.36 | N9: 3691392.88 | O9: 1752932.64 | Q9: =SUM(Q3:Q8) -> 52673972.68 | R9: =SUM(R3:R8) -> 43654130.41 | S9: 52023703.24 | T9: 52069034.33 | U9: 64541330.46 | V9: 264962171.1
V10: =V9-H9 -> 0
B11: CCA | C11: 2020 | D11: 2021 | E11: 2022 | F11: 2023 | G11: 2024 | H11: 2020-2024 | K11: 2020 | L11: 2021 | M11: 2022 | N11: 2023 | O11: 2024 | Q11: 2020 | R11: 2021 | S11: 2022 | T11: 2023 | U11: 2024 | V11: 2020-2024
B12: Horizon | C12: 1046318.549 | D12: 828852.0976 | E12: 765350.7264 | F12: 402823.8704 | G12: 1009545.576 | H12: =SUM(C12:G12) -> 4052890.819 | J12: 0.1971950825 | K12: =$C$17*J12 -> 49569.47958 | L12: =$D$17*J12 -> 1333489.181 | M12: =$E$17*J12 -> 787343.5807 | N12: =$F$17*J12 -> 168755.3269 | O12: =$G$17*J12 -> 79552.84087 | Q12: =C12+K12 -> 1095888.028 | R12: =D12+L12 -> 2162341.279 | S12: =E12+M12 -> 1552694.307 | T12: =F12+N12 -> 571579.1973 | U12: =G12+O12 -> 1089098.417 | V12: =SUM(Q12:U12) -> 6471601.228
B13: Brampton | C13: 823717.5592 | D13: 264206.2584 | E13: 547026.4046 | F13: 397205.9784 | G13: 684543.4364 | H13: =SUM(C13:G13) -> 2716699.637 | J13: 0.1435830071 | K13: =$C$17*J13 -> 36092.86221 | L13: =$D$17*J13 -> 970949.0937 | M13: =$E$17*J13 -> 573285.8931 | N13: =$F$17*J13 -> 122875.2614 | O13: =$G$17*J13 -> 57924.5485 | Q13: =C13+K13 -> 859810.4214 | R13: 1235155.352 | S13: 1120312.298 | T13: 520081.2398 | U13: 742467.9849 | V13: =SUM(Q13:U13) -> 4477827.296
B14: PowerStream | C14: 1980392.362 | D14: 1386281.02 | E14: 1362729.924 | F14: 2944754.36 | G14: 2618112.186 | H14: 10292269.85 | J14: 0.3842444497 | K14: 96588.60232 | L14: 2598370.153 | M14: 1534178.221 | N14: 328828.168 | O14: 155012.6767 | Q14: 2076980.964 | R14: 3984651.173 | S14: 2896908.145 | T14: 3273582.528 | U14: 2773124.863 | V14: 15005247.67
B15: Enersource | C15: 614444.6336 | D15: 569138.1574 | E15: 808018.9032 | F15: 679794.2024 | G15: 2365880.385 | H15: 5037276.281 | J15: 0.2212545621 | K15: 55617.37828 | L15: 1496186.219 | M15: 883406.2035 | N15: 189344.9141 | O15: 89258.96502 | Q15: 670062.0119 | R15: 2065324.376 | S15: 1691425.107 | T15: 869139.1164 | U15: 2455139.35 | V15: 7751089.961
B16: Guelph | C16: 10680.0096 | D16: 102300.24 | E16: 106893.1296 | F16: 49025.5968 | G16: 59538.6288 | H16: 328437.6048 | J16: 0.05372289863 | K16: 13504.47533 | L16: 363289.506 | M16: 214500.1734 | N16: 45974.90569 | O16: 21673.00093 | Q16: 24184.48493 | R16: 465589.746 | S16: 321393.303 | T16: 95000.50249 | U16: 81211.62973 | V16: 987379.6662
B17: Multiple | C17: 251372.7977 | D17: 6762284.152 | E17: 3992714.072 | F17: 855778.576 | G17: 403422.032 | H17: 12265571.63 | V17: 0
C18: =SUM(C12:C17) -> 4726925.911 | D18: =SUM(D12:D17) -> 9913061.925 | E18: 7582733.16 | F18: 5329382.584 | G18: 7141042.244 | H18: 34693145.82 | K18: =SUM(K12:K17) -> 251372.7977 | L18: 6762284.152 | M18: 3992714.072 | N18: 855778.576 | O18: 403422.032 | Q18: =SUM(Q12:Q17) -> 4726925.911 | R18: =SUM(R12:R17) -> 9913061.925 | S18: 7582733.16 | T18: 5329382.584 | U18: 7141042.244 | V18: 34693145.82
V19: =V18-H18 -> 0
B20: Depreciation | C20: 2020 | D20: 2021 | E20: 2022 | F20: 2023 | G20: 2024 | H20: 2020-2024 | K20: 2020 | L20: 2021 | M20: 2022 | N20: 2023 | O20: 2024 | Q20: 2020 | R20: 2021 | S20: 2022 | T20: 2023 | U20: 2024 | V20: 2020-2024
B21: Horizon | C21: 336465.4355 | D21: 273836.705 | E21: 244573.8877 | F21: 127160.278 | G21: 320959.3682 | H21: =SUM(C21:G21) -> 1302995.674 | J21: 0.1971950825 | K21: =$C$26*J21 -> 55274.90011 | L21: =$D$26*J21 -> 173567.4501 | M21: =$E$26*J21 -> 191395.7151 | N21: =$F$26*J21 -> 284607.4378 | O21: =$G$26*J21 -> 73041.02739 | Q21: =C21+K21 -> 391740.3356 | R21: =D21+L21 -> 447404.1551 | S21: =E21+M21 -> 435969.6028 | T21: =F21+N21 -> 411767.7158 | U21: =G21+O21 -> 394000.3956 | V21: =SUM(Q21:U21) -> 2080882.205
B22: Brampton | C22: 298417.4302 | D22: 98228.4699 | E22: 161680.0105 | F22: 126115.6908 | G22: 168594.7075 | H22: =SUM(C22:G22) -> 853036.309 | J22: 0.1435830071 | K22: =$C$26*J22 -> 40247.1313 | L22: =$D$26*J22 -> 126379.0968 | M22: =$E$26*J22 -> 139360.3328 | N22: =$F$26*J22 -> 207230.2781 | O22: =$G$26*J22 -> 53183.12316 | Q22: =C22+K22 -> 338664.5615 | R22: 224607.5667 | S22: 301040.3434 | T22: 333345.9689 | U22: 221777.8306 | V22: =SUM(Q22:U22) -> 1419436.271
B23: PowerStream | C23: 734029.5973 | D23: 587446.241 | E23: 418395.4443 | F23: 864322.6547 | G23: 735245.7948 | H23: 3339439.732 | J23: 0.3842444497 | K23: 107705.8987 | L23: 338204.83 | M23: 372944.0932 | N23: 554571.7822 | O23: 142324.0835 | Q23: 841735.496 | R23: 925651.071 | S23: 791339.5375 | T23: 1418894.437 | U23: 877569.8782 | V23: 4855190.42
B24: Enersource | C24: 213395.7715 | D24: 172565.2501 | E24: 263792.1822 | F24: 213053.7199 | G24: 757993.0305 | H24: 1620799.954 | J24: 0.2212545621 | K24: 62018.9087 | L24: 194744.1573 | M24: 214747.6225 | N24: 319331.9693 | O24: 81952.65483 | Q24: 275414.6802 | R24: 367309.4074 | S24: 478539.8047 | T24: 532385.6892 | U24: 839945.6853 | V24: 2493595.267
B25: Guelph | C25: 3188.892 | D25: 31730.10233 | E25: 33332.13133 | F25: 15333.12 | G25: 18636.21833 | H25: 102220.464 | J25: 0.05372289863 | K25: 15058.8332 | L25: 47285.89785 | M25: 52142.94633 | N25: 77537.10864 | O25: 19898.95317 | Q25: 18247.7252 | R25: 79016.00018 | S25: 85475.07766 | T25: 92870.22864 | U25: 38535.1715 | V25: 314144.2032
B26: Multiple | C26: 280305.672 | D26: 880181.432 | E26: 970590.71 | F26: 1443278.576 | G26: 370399.842 | H26: 3944756.232 | V26: 0
C27: =SUM(C21:C26) -> 1865802.799 | D27: =SUM(D21:D26) -> 2043988.2 | E27: 2092364.366 | F27: 2789264.039 | G27: 2371828.961 | H27: 11163248.37 | K27: =SUM(K21:K26) -> 280305.672 | L27: 880181.432 | M27: 970590.71 | N27: 1443278.576 | O27: 370399.842 | Q27: =SUM(Q21:Q26) -> 1865802.799 | R27: =SUM(R21:R26) -> 2043988.2 | S27: 2092364.366 | T27: 2789264.039 | U27: 2371828.961 | V27: 11163248.37
V28: =V27-H27 -> 0
B30: Rev Requirement | C30: ='M-factor RR Calculation_2020'!Y70 -> 4677990.968 | D30: ='M-factor RR Calculation_2021'!Y70 -> 2325042.158 | E30: ='M-factor RR Calculation_2022'!Y70 -> 3921546.841 | F30: ='M-factor RR Calculation_2023'!Y70 -> 5567146.539 | G30: ='M-factor RR Calculation_2024'!Y70 -> 5353934.808 | H30: =SUM(C30:G30) -> 21845661.31
B32: Return on Rate base - Total | C32: ='M-factor RR Calculation_2020'!Y71 -> 3176272.499 | D32: =+'M-factor RR Calculation_2021'!Y71 -> 2569972.603 | E32: =+'M-factor RR Calculation_2022'!Y71 -> 3150530.688 | F32: =+'M-factor RR Calculation_2023'!Y71 -> 3045566.059 | G32: =+'M-factor RR Calculation_2024'!Y71 -> 3887530.128 | H32: =SUM(C32:G32) -> 15829871.98
B33: Amortization | C33: ='M-factor RR Calculation_2020'!Y72 -> 1865802.799 | D33: =+'M-factor RR Calculation_2021'!Y72 -> 2043988.2 | E33: =+'M-factor RR Calculation_2022'!Y72 -> 2092364.366 | F33: =+'M-factor RR Calculation_2023'!Y72 -> 2789264.039 | G33: =+'M-factor RR Calculation_2024'!Y72 -> 2371828.961 | H33: =SUM(C33:G33) -> 11163248.37
B34: Incremental Grossed Up PILs | C34: ='M-factor RR Calculation_2020'!Y73 -> -364084.3291 | D34: =+'M-factor RR Calculation_2021'!Y73 -> -2288918.646 | E34: =+'M-factor RR Calculation_2022'!Y73 -> -1321348.213 | F34: =+'M-factor RR Calculation_2023'!Y73 -> -267683.559 | G34: =+'M-factor RR Calculation_2024'!Y73 -> -905424.281 | H34: -5147459.028
C35: =SUM(C32:C34) -> 4677990.968 | D35: =SUM(D32:D34) -> 2325042.158 | E35: =SUM(E32:E34) -> 3921546.841 | F35: 5567146.539 | G35: 5353934.808 | H35: 21845661.31
B36: Control Check | C36: =C35-C30 -> 0

Sheet Bill Impact Summary
B1: BILL IMPACT SUMMARY - CONVENTIONAL | F1: 2020 | G1: 2021 | H1: 2022 | I1: 2023 | J1: 2024 | K1: 2020-2024
B2: Enersource Rate Class | C2: Unit | D2: kWh | E2: kW | F2: MCM Rate Rider Incl HST | G2: MCM Rate Rider Incl HST | H2: MCM Rate Rider Incl HST | I2: MCM Rate Rider Incl HST | J2: MCM Rate Rider Incl HST | K2: TOTAL | M2: Avg. Annual Rider | N2: Avg. Annual % Increase vs. Total Bill | O2: 2019 Total Bill (Approved)
B3: Residential | C3: kWh | D3: 750 | F3: ='Bill Impacts_2020'!F4 -> 0.1264987074 | G3: ='Bill Impacts_2021'!F4 -> 0.05825319197 | H3: ='Bill Impacts_2022'!F4 -> 0.1709058949 | I3: ='Bill Impacts_2023'!F4 -> 0.2029847474 | J3: ='Bill Impacts_2024'!F4 -> 0.3945616702 | K3: =SUM(F3:J3) -> 0.9532042118 | M3: =K3/5 -> 0.1906408424 | N3: =M3/O3 -> 0.001752858058 | O3: =+'Bill Impacts_2020'!I4 -> 108.76
B4: General Service < 50 kW | C4: kWh | D4: 2000 | F4: ='Bill Impacts_2020'!F5 -> 0.3678634575 | G4: ='Bill Impacts_2021'!F5 -> 0.1694026845 | H4: ='Bill Impacts_2022'!F5 -> 0.49700139 | I4: ='Bill Impacts_2023'!F5 -> 0.5902880158 | J4: ='Bill Impacts_2024'!F5 -> 1.147401607 | K4: =SUM(F4:J4) -> 2.771957155 | M4: =K4/5 -> 0.554391431 | N4: =M4/O4 -> 0.001885108066 | O4: =+'Bill Impacts_2020'!I5 -> 294.09
B5: General Service 50 to 499 kW | C5: kW | D5: 100000 | E5: 230 | F5: ='Bill Impacts_2020'!F6 -> 6.533197624 | G5: ='Bill Impacts_2021'!F6 -> 3.008565252 | H5: ='Bill Impacts_2022'!F6 -> 8.826667162 | I5: ='Bill Impacts_2023'!F6 -> 10.48342309 | J5: ='Bill Impacts_2024'!F6 -> 20.37767357 | K5: 49.22952669 | M5: =K5/5 -> 9.845905339 | N5: 0.0006024248561 | O5: =+'Bill Impacts_2020'!I6 -> 16343.79
B6: General Service 500 to 4999 kW | C6: kW | D6: 400000 | E6: 2250 | F6: ='Bill Impacts_2020'!F7 -> 40.69527479 | G6: ='Bill Impacts_2021'!F7 -> 18.74034687 | H6: ='Bill Impacts_2022'!F7 -> 54.9812919 | I6: ='Bill Impacts_2023'!F7 -> 65.3012212 | J6: ='Bill Impacts_2024'!F7 -> 126.9324875 | K6: 306.6506222 | M6: =K6/5 -> 61.33012445 | N6: 0.0008124283192 | O6: =+'Bill Impacts_2020'!I7 -> 75489.89
B7: Large Use | C7: kW | D7: 3000000 | E7: 5000 | F7: ='Bill Impacts_2020'!F8 -> 163.6344658 | G7: ='Bill Impacts_2021'!F8 -> 75.35436643 | H7: ='Bill Impacts_2022'!F8 -> 221.0781073 | I7: ='Bill Impacts_2023'!F8 -> 262.5742301 | J7: ='Bill Impacts_2024'!F8 -> 510.3916827 | K7: 1233.032852 | M7: =K7/5 -> 246.6065705 | N7: 0.000543852282 | O7: =+'Bill Impacts_2020'!I8 -> 453444.03
B8: Unmetered | C8: kWh | D8: 300 | F8: ='Bill Impacts_2020'!F9 -> 0.07971716283 | G8: ='Bill Impacts_2021'!F9 -> 0.03671009203 | H8: ='Bill Impacts_2022'!F9 -> 0.1077017571 | I8: ='Bill Impacts_2023'!F9 -> 0.1279172609 | J8: ='Bill Impacts_2024'!F9 -> 0.2486455203 | K8: 0.6006917931 | M8: =K8/5 -> 0.1201383586 | N8: 0.002330521021 | O8: =+'Bill Impacts_2020'!I9 -> 51.55
B9: Street Lighting | C9: kW | D9: 33 | E9: 0.1 | F9: ='Bill Impacts_2020'!F10 -> 0.01526426479 | G9: ='Bill Impacts_2021'!F10 -> 0.007029258763 | H9: ='Bill Impacts_2022'!F10 -> 0.02062276278 | I9: ='Bill Impacts_2023'!F10 -> 0.02449363315 | J9: ='Bill Impacts_2024'!F10 -> 0.04761071426 | K9: 0.1150206338 | M9: =K9/5 -> 0.02300412675 | N9: 0.005652119595 | O9: =+'Bill Impacts_2020'!I10 -> 4.07
B12: Brampton Rate Class | C12: Unit | D12: kWh | E12: kW | F12: MCM Rate Rider Incl HST | G12: MCM Rate Rider Incl HST | H12: MCM Rate Rider Incl HST | I12: MCM Rate Rider Incl HST | J12: MCM Rate Rider Incl HST | K12: 2020-2024 Total | M12: Avg. Annual Rider | N12: Avg. Annual % Increase vs. Total Bill | O12: 2019 Total Bill (Approved)
B13: Residential | C13: kWh | D13: 750 | F13: ='Bill Impacts_2020'!F14 -> 0.3231990065 | G13: ='Bill Impacts_2021'!F14 -> 0.04329878443 | H13: ='Bill Impacts_2022'!F14 -> 0.2272681304 | I13: ='Bill Impacts_2023'!F14 -> 0.2027227048 | J13: ='Bill Impacts_2024'!F14 -> 0.1210895823 | K13: =SUM(F13:J13) -> 0.9175782084 | M13: =K13/5 -> 0.1835156417 | N13: =M13/O13 -> 0.001732096665 | O13: =+'Bill Impacts_2020'!I14 -> 105.95
B14: General Service < 50 kW | C14: kWh | D14: 2000 | F14: ='Bill Impacts_2020'!F15 -> 0.7960271826 | G14: ='Bill Impacts_2021'!F15 -> 0.1066433024 | H14: ='Bill Impacts_2022'!F15 -> 0.5597529878 | I14: ='Bill Impacts_2023'!F15 -> 0.4992985137 | J14: ='Bill Impacts_2024'!F15 -> 0.2982391564 | K14: 2.259961143 | M14: =K14/5 -> 0.4519922286 | N14: =M14/O14 -> 0.001652864143 | O14: =+'Bill Impacts_2020'!I15 -> 273.46
B15: General Service 50 to 699 kW | C15: kW | D15: 182500 | E15: 500 | F15: ='Bill Impacts_2020'!F16 -> 22.57676354 | G15: ='Bill Impacts_2021'!F16 -> 3.024595985 | H15: ='Bill Impacts_2022'!F16 -> 15.87560214 | I15: ='Bill Impacts_2023'!F16 -> 14.16100445 | J15: ='Bill Impacts_2024'!F16 -> 8.458599229 | K15: 64.09656535 | M15: =K15/5 -> 12.81931307 | N15: 0.0004503048 | O15: =+'Bill Impacts_2020'!I16 -> 28468.08
B16: General Service 700 to 4999 kW | C16: kW | D16: 627216 | E16: 1432 | F16: ='Bill Impacts_2020'!F17 -> 85.49945511 | G16: ='Bill Impacts_2021'!F17 -> 11.45431267 | H16: ='Bill Impacts_2022'!F17 -> 60.12178542 | I16: ='Bill Impacts_2023'!F17 -> 53.62850892 | J16: ='Bill Impacts_2024'!F17 -> 32.0331842 | K16: 242.7372463 | M16: =K16/5 -> 48.54744926 | N16: 0.000496698132 | O16: =+'Bill Impacts_2020'!I17 -> 97740.35
B17: Large Use | C17: kW | D17: 10220000 | E17: 20000 | F17: ='Bill Impacts_2020'!F18 -> 798.0906236 | G17: ='Bill Impacts_2021'!F18 -> 106.9197404 | H17: ='Bill Impacts_2022'!F18 -> 561.203965 | I17: ='Bill Impacts_2023'!F18 -> 500.5927824 | J17: ='Bill Impacts_2024'!F18 -> 299.0122443 | K17: 2265.819356 | M17: =K17/5 -> 453.1638711 | N17: 0.000298362037 | O17: =+'Bill Impacts_2020'!I18 -> 1518838.91
B18: Unmetered | C18: kWh | D18: 21296 | F18: ='Bill Impacts_2020'!F19 -> 6.173358113 | G18: ='Bill Impacts_2021'!F19 -> 0.8270412247 | H18: ='Bill Impacts_2022'!F19 -> 4.341002072 | I18: ='Bill Impacts_2023'!F19 -> 3.872164918 | J18: ='Bill Impacts_2024'!F19 -> 2.312907343 | K18: 17.52647367 | M18: =K18/5 -> 3.505294734 | N18: 0.0009207861445 | O18: =+'Bill Impacts_2020'!I19 -> 3806.85
B19: Street Lighting | C19: kW | D19: 2787508 | E19: 7922 | F19: ='Bill Impacts_2020'!F20 -> 1336.068536 | G19: ='Bill Impacts_2021'!F20 -> 178.9923309 | H19: ='Bill Impacts_2022'!F20 -> 939.5010261 | I19: ='Bill Impacts_2023'!F20 -> 838.0329826 | J19: ='Bill Impacts_2024'!F20 -> 500.5707867 | K19: 3793.165662 | M19: =K19/5 -> 758.6331324 | N19: 0.001351619178 | O19: =+'Bill Impacts_2020'!I20 -> 561277.2776
B20: Embedded Distributor | C20: kWh | D20: 1417701 | E20: 4000 | F20: ='Bill Impacts_2020'!F21 -> 60.79943834 | G20: ='Bill Impacts_2021'!F21 -> 8.145265676 | H20: ='Bill Impacts_2022'!F21 -> 42.75314715 | I20: ='Bill Impacts_2023'!F21 -> 38.13571931 | J20: ='Bill Impacts_2024'!F21 -> 22.77908795 | K20: 172.6126584 | M20: =K20/5 -> 34.52253168 | N20: 0.0001588549978 | O20: =+'Bill Impacts_2020'!I21 -> 217321.0297
B21: Distributed Generation | C21: kWh | D21: 156 | F21: ='Bill Impacts_2020'!F22 -> 1.519688949 | G21: ='Bill Impacts_2021'!F22 -> 0.2035918517 | H21: ='Bill Impacts_2022'!F22 -> 1.068619826 | I21: ='Bill Impacts_2023'!F22 -> 0.9532066868 | J21: ='Bill Impacts_2024'!F22 -> 0.5693659212 | K21: 4.314473234 | M21: =K21/5 -> 0.8628946469 | N21: 0.005987933064 | O21: =+'Bill Impacts_2020'!I22 -> 144.1055933
B24: Horizon Rate Class | C24: Unit | D24: kWh | E24: kW | F24: MCM Rate Rider Incl HST | G24: MCM Rate Rider Incl HST | H24: MCM Rate Rider Incl HST | I24: MCM Rate Rider Incl HST | J24: MCM Rate Rider Incl HST | K24: 2020-2024 Total | M24: Avg. Annual Rider | N24: Avg. Annual % Increase vs. Total Bill | O24: 2019 Total Bill (Approved)
B25: Residential | C25: kWh | D25: 750 | F25: ='Bill Impacts_2020'!F26 -> 0.2321232097 | G25: ='Bill Impacts_2021'!F26 -> 0.16435012 | H25: ='Bill Impacts_2022'!F26 -> 0.1939630163 | I25: ='Bill Impacts_2023'!F26 -> 0.1510864141 | J25: ='Bill Impacts_2024'!F26 -> 0.2338371836 | K25: =SUM(F25:J25) -> 0.9753599438 | M25: =K25/5 -> 0.1950719888 | N25: =M25/O25 -> 0.001794260382 | O25: =+'Bill Impacts_2020'!I26 -> 108.72
B26: General Service Less Than 50 Kw | C26: kWh | D26: 2000 | F26: ='Bill Impacts_2020'!F27 -> 0.5571826409 | G26: ='Bill Impacts_2021'!F27 -> 0.3945018424 | H26: ='Bill Impacts_2022'!F27 -> 0.4655838845 | I26: ='Bill Impacts_2023'!F27 -> 0.3626639805 | J26: ='Bill Impacts_2024'!F27 -> 0.5612968202 | K26: 2.341229168 | M26: =K26/5 -> 0.4682458337 | N26: =M26/O26 -> 0.0016808911 | O26: =+'Bill Impacts_2020'!I27 -> 278.57
B27: General Service 50 To 4,999 Kw | C27: kW | D27: 110000 | E27: 250 | F27: ='Bill Impacts_2020'!F28 -> 9.759851565 | G27: ='Bill Impacts_2021'!F28 -> 6.910264501 | H27: ='Bill Impacts_2022'!F28 -> 8.155368223 | I27: ='Bill Impacts_2023'!F28 -> 6.352578775 | J27: ='Bill Impacts_2024'!F28 -> 9.831917306 | K27: 41.00998037 | M27: =K27/5 -> 8.201996074 | N27: 0.0004934041942 | O27: =+'Bill Impacts_2020'!I28 -> 16623.28
B28: Large Use | C28: kW | D28: 2555000 | E28: 5000 | F28: ='Bill Impacts_2020'!F29 -> 294.1734249 | G28: ='Bill Impacts_2021'!F29 -> 208.2835135 | H28: ='Bill Impacts_2022'!F29 -> 245.8124066 | I28: ='Bill Impacts_2023'!F29 -> 191.4742086 | J28: ='Bill Impacts_2024'!F29 -> 296.3455712 | K28: 1236.089125 | M28: =K28/5 -> 247.2178249 | N28: 0.0006309253932 | O28: =+'Bill Impacts_2020'!I29 -> 391833.69
B29: Large Use With Dedicated Assets | C29: kW | D29: 10220000 | E29: 20000 | F29: ='Bill Impacts_2020'!F30 -> 117.3993706 | G29: ='Bill Impacts_2021'!F30 -> 83.12223785 | H29: ='Bill Impacts_2022'!F30 -> 98.09935019 | I29: ='Bill Impacts_2023'!F30 -> 76.4139439 | J29: ='Bill Impacts_2024'!F30 -> 118.2662355 | K29: 493.3011381 | M29: =K29/5 -> 98.66022761 | N29: 6.83106378e-05 | O29: =+'Bill Impacts_2020'!I30 -> 1444287.9
B30: Unmetered Scattered Load | C30: kWh | D30: 250 | F30: ='Bill Impacts_2020'!F31 -> 0.1120864897 | G30: ='Bill Impacts_2021'!F31 -> 0.07936056053 | H30: ='Bill Impacts_2022'!F31 -> 0.09365988718 | I30: ='Bill Impacts_2023'!F31 -> 0.07295584885 | J30: ='Bill Impacts_2024'!F31 -> 0.1129141248 | K30: 0.4709769111 | M30: =K30/5 -> 0.09419538222 | N30: 0.002421475121 | O30: =+'Bill Impacts_2020'!I31 -> 38.9
B31: Sentinel Lighting | C31: kW | D31: 97008 | E31: 216 | F31: ='Bill Impacts_2020'!F32 -> 31.25899088 | G31: ='Bill Impacts_2021'!F32 -> 22.13229305 | H31: ='Bill Impacts_2022'!F32 -> 26.12012889 | I31: ='Bill Impacts_2023'!F32 -> 20.34612931 | J31: ='Bill Impacts_2024'!F32 -> 31.48980405 | K31: 131.3473462 | M31: =K31/5 -> 26.26946924 | N31: 0.001211850133 | O31: =+'Bill Impacts_2020'!I32 -> 21677.16
B32: Street Lighting | C32: kW | D32: 1782038 | E32: 4974 | F32: ='Bill Impacts_2020'!F33 -> 240.8586608 | G32: ='Bill Impacts_2021'!F33 -> 170.5350786 | H32: ='Bill Impacts_2022'!F33 -> 201.2623917 | I32: ='Bill Impacts_2023'!F33 -> 156.772222 | J32: ='Bill Impacts_2024'!F33 -> 242.6371364 | K32: 1012.06549 | M32: =K32/5 -> 202.4130979 | N32: 0.0005471397657 | O32: =+'Bill Impacts_2020'!I33 -> 369947.7
B35: PowerStream Rate Class | C35: Unit | D35: kWh | E35: kW | F35: MCM Rate Rider Incl HST | G35: MCM Rate Rider Incl HST | H35: MCM Rate Rider Incl HST | I35: MCM Rate Rider Incl HST | J35: MCM Rate Rider Incl HST | K35: 2020-2024 Total | M35: Avg. Annual Rider | N35: Avg. Annual % Increase vs. Total Bill | O35: 2019 Total Bill (Approved)
B36: Residential | C36: kWh | D36: 750 | F36: ='Bill Impacts_2020'!F37 -> 0.3198833743 | G36: ='Bill Impacts_2021'!F37 -> 0.1779696377 | H36: ='Bill Impacts_2022'!F37 -> 0.2171054794 | I36: ='Bill Impacts_2023'!F37 -> 0.4908858917 | J36: ='Bill Impacts_2024'!F37 -> 0.2927938831 | K36: =SUM(F36:J36) -> 1.498638266 | M36: =K36/5 -> 0.2997276532 | N36: =M36/O36 -> 0.002803551148 | O36: =+'Bill Impacts_2020'!I37 -> 106.91
B37: General Service Less Than 50 Kw | C37: kWh | D37: 2000 | F37: ='Bill Impacts_2020'!F38 -> 0.6799193035 | G37: ='Bill Impacts_2021'!F38 -> 0.3782784661 | H37: ='Bill Impacts_2022'!F38 -> 0.4614625773 | I37: ='Bill Impacts_2023'!F38 -> 1.043388999 | J37: ='Bill Impacts_2024'!F38 -> 0.6223399811 | K37: 3.185389327 | M37: =K37/5 -> 0.6370778654 | N37: =M37/O37 -> 0.002322643426 | O37: =+'Bill Impacts_2020'!I38 -> 274.29
B38: General Service 50 To 4,999 Kw | C38: kW | D38: 80000 | E38: 250 | F38: ='Bill Impacts_2020'!F39 -> 13.34146946 | G38: ='Bill Impacts_2021'!F39 -> 7.42263174 | H38: ='Bill Impacts_2022'!F39 -> 9.054881734 | I38: ='Bill Impacts_2023'!F39 -> 20.47352148 | J38: ='Bill Impacts_2024'!F39 -> 12.21164013 | K38: 62.50414454 | M38: =K38/5 -> 12.50082891 | N38: 0.0009813137985 | O38: =+'Bill Impacts_2020'!I39 -> 12738.87
B39: Large Use | C39: kW | D39: 2800000 | E39: 7350 | F39: ='Bill Impacts_2020'!F40 -> 252.4467359 | G39: ='Bill Impacts_2021'!F40 -> 140.4507322 | H39: ='Bill Impacts_2022'!F40 -> 171.3360994 | I39: ='Bill Impacts_2023'!F40 -> 387.3991306 | J39: ='Bill Impacts_2024'!F40 -> 231.0681518 | K39: 1182.70085 | M39: =K39/5 -> 236.54017 | N39: 0.0005680738818 | O39: =+'Bill Impacts_2020'!I40 -> 416389.8
B40: Unmetered Scattered Load | C40: kWh | D40: 150 | E40: 0 | F40: ='Bill Impacts_2020'!F41 -> 0.1289695479 | G40: ='Bill Impacts_2021'!F41 -> 0.07175322494 | H40: ='Bill Impacts_2022'!F41 -> 0.08753188743 | I40: ='Bill Impacts_2023'!F41 -> 0.1979137917 | J40: ='Bill Impacts_2024'!F41 -> 0.1180476941 | K40: 0.604216146 | M40: =K40/5 -> 0.1208432292 | N40: 0.004077032025 | O40: =+'Bill Impacts_2020'!I41 -> 29.64
B41: Sentinel Lighting | C41: kW | D41: 180 | E41: 1 | F41: ='Bill Impacts_2020'!F42 -> 0.1573910818 | G41: ='Bill Impacts_2021'!F42 -> 0.08756576947 | H41: ='Bill Impacts_2022'!F42 -> 0.1068216388 | I41: ='Bill Impacts_2023'!F42 -> 0.2415288438 | J41: ='Bill Impacts_2024'!F42 -> 0.1440623356 | K41: 0.7373696694 | M41: =K41/5 -> 0.1474739339 | N41: 0.004144854802 | O41: =+'Bill Impacts_2020'!I42 -> 35.58
B42: Street Lighting | C42: kW | D42: 280 | E42: 1 | F42: ='Bill Impacts_2020'!F43 -> 0.08403136133 | G42: ='Bill Impacts_2021'!F43 -> 0.04675151051 | H42: ='Bill Impacts_2022'!F43 -> 0.05703225128 | I42: ='Bill Impacts_2023'!F43 -> 0.1289526529 | J42: ='Bill Impacts_2024'!F43 -> 0.07691512146 | K42: 0.3936828975 | M42: =K42/5 -> 0.0787365795 | N42: 0.001527975539 | O42: =+'Bill Impacts_2020'!I43 -> 51.53
B45: Guelph Rate Class | C45: Unit | D45: kWh | E45: kW | F45: MCM Rate Rider Incl HST | G45: MCM Rate Rider Incl HST | H45: MCM Rate Rider Incl HST | I45: MCM Rate Rider Incl HST | J45: MCM Rate Rider Incl HST | K45: 2020-2024 Total | M45: Avg. Annual Rider | N45: Avg. Annual % Increase vs. Total Bill | O45: 2019 Total Bill (Approved)
B46: Residential | C46: kWh | D46: 750 | F46: ='Bill Impacts_2020'!F47 -> 0.03171977891 | G46: ='Bill Impacts_2021'!F47 -> 0.068877777 | H46: ='Bill Impacts_2022'!F47 -> 0.1464290764 | I46: ='Bill Impacts_2023'!F47 -> 0.1524452376 | J46: ='Bill Impacts_2024'!F47 -> 0.08758403058 | K46: =SUM(F46:J46) -> 0.4870559005 | M46: =K46/5 -> 0.0974111801 | N46: =M46/O46 -> 0.0008669560351 | O46: =+'Bill Impacts_2020'!I47 -> 112.36
B47: General Service Less Than 50 Kw | C47: kWh | D47: 2000 | F47: ='Bill Impacts_2020'!F48 -> 0.04921884928 | G47: ='Bill Impacts_2021'!F48 -> 0.1068760578 | H47: ='Bill Impacts_2022'!F48 -> 0.2272106202 | I47: ='Bill Impacts_2023'!F48 -> 0.2365457589 | J47: ='Bill Impacts_2024'!F48 -> 0.13590212 | K47: 0.7557534062 | M47: =K47/5 -> 0.1511506812 | N47: =M47/O47 -> 0.0005787887468 | O47: =+'Bill Impacts_2020'!I48 -> 261.15
B48: General Service 50 To 999 Kw | C48: kW | D48: 189800 | E48: 500 | F48: ='Bill Impacts_2020'!F49 -> 1.849073398 | G48: ='Bill Impacts_2021'!F49 -> 4.015162448 | H48: ='Bill Impacts_2022'!F49 -> 8.535939375 | I48: ='Bill Impacts_2023'!F49 -> 8.886645594 | J48: ='Bill Impacts_2024'!F49 -> 5.105625151 | K48: 28.39244597 | M48: =K48/5 -> 5.678489193 | N48: 0.0001826080993 | O48: =+'Bill Impacts_2020'!I49 -> 31096.59
B49: General Service 1,000 To 4,999 Kw | C49: kW | D49: 489100 | E49: 1000 | F49: ='Bill Impacts_2020'!F50 -> 4.307685858 | G49: ='Bill Impacts_2021'!F50 -> 9.353905861 | H49: ='Bill Impacts_2022'!F50 -> 19.88571431 | I49: ='Bill Impacts_2023'!F50 -> 20.70273554 | J49: ='Bill Impacts_2024'!F50 -> 11.89429759 | K49: 66.14433915 | M49: =K49/5 -> 13.22886783 | N49: 0.000165942955 | O49: =+'Bill Impacts_2020'!I50 -> 79719.37
B50: Large Use | C50: kW | D50: 4215750 | E50: 7500 | F50: ='Bill Impacts_2020'!F51 -> 25.75757281 | G50: ='Bill Impacts_2021'!F51 -> 55.93117028 | H50: ='Bill Impacts_2022'!F51 -> 118.9055449 | I50: ='Bill Impacts_2023'!F51 -> 123.7908788 | J50: ='Bill Impacts_2024'!F51 -> 71.12130416 | K50: 395.5064709 | M50: =K50/5 -> 79.10129419 | N50: 0.0001251505408 | O50: =+'Bill Impacts_2020'!I51 -> 632049.16
B51: Unmetered Scattered Load | C51: kWh | D51: 750 | F51: ='Bill Impacts_2020'!F52 -> 0.02559655169 | G51: ='Bill Impacts_2021'!F52 -> 0.05558152167 | H51: ='Bill Impacts_2022'!F52 -> 0.1181622177 | I51: ='Bill Impacts_2023'!F52 -> 0.1230170114 | J51: ='Bill Impacts_2024'!F52 -> 0.07067669581 | K51: 0.3930339983 | M51: =K51/5 -> 0.07860679966 | N51: 0.0004155571984 | O51: =+'Bill Impacts_2020'!I52 -> 189.16
B52: Sentinel Lighting | C52: kW | D52: 140 | E52: 2 | F52: ='Bill Impacts_2020'!F53 -> 0.02879594541 | G52: ='Bill Impacts_2021'!F53 -> 0.06252883136 | H52: ='Bill Impacts_2022'!F53 -> 0.132931686 | I52: ='Bill Impacts_2023'!F53 -> 0.1383932956 | J52: ='Bill Impacts_2024'!F53 -> 0.07951079892 | K52: 0.4421605573 | M52: =K52/5 -> 0.08843211146 | N52: 0.001288909947 | O52: =+'Bill Impacts_2020'!I53 -> 68.61
B53: Street Lighting | C53: kW | D53: 800000 | E53: 2200 | F53: ='Bill Impacts_2020'!F54 -> 26.75083817 | G53: ='Bill Impacts_2021'!F54 -> 58.08799208 | H53: ='Bill Impacts_2022'!F54 -> 123.490789 | I53: ='Bill Impacts_2023'!F54 -> 128.5645115 | J53: ='Bill Impacts_2024'!F54 -> 73.86388899 | K53: 410.7580198 | M53: =K53/5 -> 82.15160396 | N53: 0.0005343004012 | O53: =+'Bill Impacts_2020'!I54 -> 153755.46

Sheet M-factor RR Calculation_2020
B1: 2020 Rates | H1: Back to Index
B2: M-factor Revenue Requirement_HRZ | G2: M-factor Revenue Requirement_BRZ | L2: M-factor Revenue Requirement_PRZ | Q2: M-factor Revenue Requirement_ERZ | V2: M-factor Revenue Requirement_GRZ
B5: Return on Rate Base | G5: Return on Rate Base | L5: Return on Rate Base | Q5: Return on Rate Base | V5: Return on Rate Base
B6: Incremental Capital | E6: ='Summary by RZ'!Q3 -> 12134081.83 | G6: Incremental Capital | J6: ='Summary by RZ'!Q4 -> 9894210.686 | L6: Incremental Capital | O6: ='Summary by RZ'!Q5 -> 23543136.66 | Q6: Incremental Capital | T6: ='Summary by RZ'!Q6 -> 6895202.67 | V6: Incremental Capital | Y6: ='Summary by RZ'!Q7 -> 207340.8345
B7: Depreciation Expense | E7: ='Summary by RZ'!Q21 -> 391740.3356 | G7: Depreciation Expense | J7: ='Summary by RZ'!Q22 -> 338664.5615 | L7: Depreciation Expense | O7: ='Summary by RZ'!Q23 -> 841735.496 | Q7: Depreciation Expense | T7: ='Summary by RZ'!Q24 -> 275414.6802 | V7: Depreciation Expense | Y7: ='Summary by RZ'!Q25 -> 18247.7252
B8: Incremental Capital to be included in Rate Base (avg NBV) | E8: =((E6)+(E6-E7))/2 -> 11938211.66 | G8: Incremental Capital to be included in Rate Base (avg NBV) | J8: =((J6)+(J6-J7))/2 -> 9724878.405 | L8: Incremental Capital to be included in Rate Base (avg NBV) | O8: =((O6)+(O6-O7))/2 -> 23122268.92 | Q8: Incremental Capital to be included in Rate Base (avg NBV) | T8: =((T6)+(T6-T7))/2 -> 6757495.33 | V8: Incremental Capital to be included in Rate Base (avg NBV) | Y8: =((Y6)+(Y6-Y7))/2 -> 198216.9719
B10: Deemed ShortTerm Debt % | C10: 0.04 | D10: E | E10: =E8*C10 -> 477528.4663 | G10: Deemed ShortTerm Debt % | H10: 0.04 | I10: E | J10: =J8*H10 -> 388995.1362 | L10: Deemed ShortTerm Debt % | M10: 0.04 | N10: E | O10: =O8*M10 -> 924890.7566 | Q10: Deemed ShortTerm Debt % | R10: 0.04 | S10: E | T10: =T8*R10 -> 270299.8132 | V10: Deemed ShortTerm Debt % | W10: 0.04 | X10: E | Y10: =Y8*W10 -> 7928.678875
B11: Deemed Long Term Debt % | C11: 0.56 | D11: F | E11: =E8*C11 -> 6685398.529 | G11: Deemed Long Term Debt % | H11: 0.56 | I11: F | J11: =J8*H11 -> 5445931.907 | L11: Deemed Long Term Debt % | M11: 0.56 | N11: F | O11: =O8*M11 -> 12948470.59 | Q11: Deemed Long Term Debt % | R11: 0.56 | S11: F | T11: =T8*R11 -> 3784197.385 | V11: Deemed Long Term Debt % | W11: 0.56 | X11: F | Y11: =Y8*W11 -> 111001.5043
B13: Short Term Interest | C13: 0.0282 | D13: I | E13: =E10*C13 -> 13466.30275 | G13: Short Term Interest | H13: 0.0216 | I13: I | J13: =J10*H13 -> 8402.294942 | L13: Short Term Interest | M13: 0.0176 | N13: I | O13: =O10*M13 -> 16278.07732 | Q13: Short Term Interest | R13: 0.0208 | S13: I | T13: =T10*R13 -> 5622.236114 | V13: Short Term Interest | W13: 0.0165 | X13: I | Y13: =Y10*W13 -> 130.8232014
B14: Long Term Interest | C14: 0.0374 | D14: J | E14: =E11*C14 -> 250033.905 | G14: Long Term Interest | H14: 0.0607 | I14: J | J14: =J11*H14 -> 330568.0667 | L14: Long Term Interest | M14: 0.0388 | N14: J | O14: =O11*M14 -> 502400.659 | Q14: Long Term Interest | R14: 0.0509 | S14: J | T14: =T11*R14 -> 192615.6469 | V14: Long Term Interest | W14: 0.0491 | X14: J | Y14: =Y11*W14 -> 5450.173859
B16: Return on Rate Base - Interest | E16: =SUM(E13:E14) -> 263500.2077 | G16: Return on Rate Base - Interest | J16: =SUM(J13:J14) -> 338970.3617 | L16: Return on Rate Base - Interest | O16: =SUM(O13:O14) -> 518678.7363 | Q16: Return on Rate Base - Interest | T16: =SUM(T13:T14) -> 198237.883 | V16: Return on Rate Base - Interest | Y16: =SUM(Y13:Y14) -> 5580.99706
B19: Deemed Equity % | C19: 0.4 | D19: N | E19: =E8*C19 -> 4775284.663 | G19: Deemed Equity % | H19: 0.4 | I19: N | J19: =J8*H19 -> 3889951.362 | L19: Deemed Equity % | M19: 0.4 | N19: N | O19: =O8*M19 -> 9248907.566 | Q19: Deemed Equity % | R19: 0.4 | S19: N | T19: =T8*R19 -> 2702998.132 | V19: Deemed Equity % | W19: 0.4 | X19: N | Y19: =Y8*W19 -> 79286.78875
B21: Return on Rate Base -Equity | C21: 0.0898 | D21: O | E21: =E19*C21 -> 428820.5628 | G21: Return on Rate Base -Equity | H21: 0.093 | I21: O | J21: =J19*H21 -> 361765.4767 | L21: Return on Rate Base -Equity | M21: 0.0878 | N21: O | O21: =O19*M21 -> 812054.0843 | Q21: Return on Rate Base -Equity | R21: 0.0893 | S21: O | T21: =T19*R21 -> 241377.7332 | V21: Return on Rate Base -Equity | W21: 0.0919 | X21: O | Y21: =Y19*W21 -> 7286.455886
B23: Return on Rate Base - Total | E23: =E16+E21 -> 692320.7705 | G23: Return on Rate Base - Total | J23: =J16+J21 -> 700735.8383 | L23: Return on Rate Base - Total | O23: =O16+O21 -> 1330732.821 | Q23: Return on Rate Base - Total | T23: =T16+T21 -> 439615.6162 | V23: Return on Rate Base - Total | Y23: =Y16+Y21 -> 12867.45295
B27: Amortization Expense | G27: Amortization Expense | L27: Amortization Expense | Q27: Amortization Expense | V27: Amortization Expense
B29: Amortization Expense - Incremental | D29: C | E29: =E7 -> 391740.3356 | G29: Amortization Expense - Incremental | I29: C | J29: =J7 -> 338664.5615 | L29: Amortization Expense - Incremental | N29: C | O29: =O7 -> 841735.496 | Q29: Amortization Expense - Incremental | S29: C | T29: =T7 -> 275414.6802 | V29: Amortization Expense - Incremental | X29: C | Y29: =Y7 -> 18247.7252
B32: Grossed up PIL's | G32: Grossed up PIL's | L32: Grossed up PIL's | Q32: Grossed up PIL's | V32: Grossed up PIL's
B34: Regulatory Taxable Income | D34: O | E34: =E21 -> 428820.5628 | G34: Regulatory Taxable Income | I34: O | J34: =J21 -> 361765.4767 | L34: Regulatory Taxable Income | N34: O | O34: =O21 -> 812054.0843 | Q34: Regulatory Taxable Income | S34: O | T34: =T21 -> 241377.7332 | V34: Regulatory Taxable Income | X34: O | Y34: =Y21 -> 7286.455886
B36: Add Back Amortization Expense | D36: S | E36: =E29 -> 391740.3356 | G36: Add Back Amortization Expense | I36: S | J36: =J29 -> 338664.5615 | L36: Add Back Amortization Expense | N36: S | O36: =O29 -> 841735.496 | Q36: Add Back Amortization Expense | S36: S | T36: =T29 -> 275414.6802 | V36: Add Back Amortization Expense | X36: S | Y36: =Y29 -> 18247.7252
B38: Deduct CCA | E38: ='Summary by RZ'!Q12 -> 1095888.028 | G38: Deduct CCA | J38: ='Summary by RZ'!Q13 -> 859810.4214 | L38: Deduct CCA | O38: ='Summary by RZ'!Q14 -> 2076980.964 | Q38: Deduct CCA | T38: ='Summary by RZ'!Q15 -> 670062.0119 | V38: Deduct CCA | Y38: ='Summary by RZ'!Q16 -> 24184.48493
B40: Incremental Taxable Income | E40: =E34+E36-E38 -> -275327.13 | G40: Incremental Taxable Income | J40: =J34+J36-J38 -> -159380.3832 | L40: Incremental Taxable Income | O40: =O34+O36-O38 -> -423191.3841 | Q40: Incremental Taxable Income | T40: =T34+T36-T38 -> -153269.5985 | V40: Incremental Taxable Income | Y40: =Y34+Y36-Y38 -> 1349.696159
B42: Current Tax Rate | C42: 0.265 | D42: X | G42: Current Tax Rate | H42: 0.265 | I42: X | L42: Current Tax Rate | M42: 0.265 | N42: X | Q42: Current Tax Rate | R42: 0.265 | S42: X | V42: Current Tax Rate | W42: 0.265 | X42: X
B44: PIL's Before Gross Up | E44: =E40*C42 -> -72961.68945 | G44: PIL's Before Gross Up | J44: =J40*H42 -> -42235.80155 | L44: PIL's Before Gross Up | O44: =O40*M42 -> -112145.7168 | Q44: PIL's Before Gross Up | T44: =T40*R42 -> -40616.4436 | V44: PIL's Before Gross Up | Y44: =Y40*W42 -> 357.6694821
B46: Incremental Grossed Up PIL's | E46: =E44/(1-C42) -> -99267.6047 | G46: Incremental Grossed Up PIL's | J46: =J44/(1-H42) -> -57463.67558 | L46: Incremental Grossed Up PIL's | O46: =O44/(1-M42) -> -152579.2065 | Q46: Incremental Grossed Up PIL's | T46: =T44/(1-R42) -> -55260.46748 | V46: Incremental Grossed Up PIL's | Y46: =Y44/(1-W42) -> 486.6251457
B49: Ontario Capital Tax | G49: Ontario Capital Tax | L49: Ontario Capital Tax | Q49: Ontario Capital Tax | V49: Ontario Capital Tax
B50: Incremental Capital CAPEX | G50: Incremental Capital CAPEX | L50: Incremental Capital CAPEX | Q50: Incremental Capital CAPEX | V50: Incremental Capital CAPEX
B52: Less : Available Capital Exemption (if any) | G52: Less : Available Capital Exemption (if any) | L52: Less : Available Capital Exemption (if any) | Q52: Less : Available Capital Exemption (if any) | V52: Less : Available Capital Exemption (if any)
B54: Incremental Capital CAPEX subject to OCT | G54: Incremental Capital CAPEX subject to OCT | L54: Incremental Capital CAPEX subject to OCT | Q54: Incremental Capital CAPEX subject to OCT | V54: Incremental Capital CAPEX subject to OCT
B56: Ontario Capital Tax Rate (F1.1 Z-Factor Tax Changes) | D56: AD | G56: Ontario Capital Tax Rate (F1.1 Z-Factor Tax Changes) | I56: AD | L56: Ontario Capital Tax Rate (F1.1 Z-Factor Tax Changes) | N56: AD | Q56: Ontario Capital Tax Rate (F1.1 Z-Factor Tax Changes) | S56: AD | V56: Ontario Capital Tax Rate (F1.1 Z-Factor Tax Changes) | X56: AD
B58: Incremental Ontario Capital Tax | G58: Incremental Ontario Capital Tax | L58: Incremental Ontario Capital Tax | Q58: Incremental Ontario Capital Tax | V58: Incremental Ontario Capital Tax
B61: Incremental Revenue Requirement | G61: Incremental Revenue Requirement | L61: Incremental Revenue Requirement | Q61: Incremental Revenue Requirement | V61: Incremental Revenue Requirement
B62: Return on Rate Base - Total | D62: Q | E62: =E23 -> 692320.7705 | G62: Return on Rate Base - Total | I62: Q | J62: =J23 -> 700735.8383 | L62: Return on Rate Base - Total | N62: Q | O62: =O23 -> 1330732.821 | Q62: Return on Rate Base - Total | S62: Q | T62: =T23 -> 439615.6162 | V62: Return on Rate Base - Total | X62: Q | Y62: =Y23 -> 12867.45295
B63: Amortization Expense - Total | E63: =E29 -> 391740.3356 | G63: Amortization Expense - Total | J63: =J29 -> 338664.5615 | L63: Amortization Expense - Total | O63: =O29 -> 841735.496 | Q63: Amortization Expense - Total | T63: =T29 -> 275414.6802 | V63: Amortization Expense - Total | Y63: =Y29 -> 18247.7252
B64: Incremental Grossed Up PIL's | D64: Z | E64: =E46 -> -99267.6047 | G64: Incremental Grossed Up PIL's | I64: Z | J64: =J46 -> -57463.67558 | L64: Incremental Grossed Up PIL's | N64: Z | O64: =O46 -> -152579.2065 | Q64: Incremental Grossed Up PIL's | S64: Z | T64: =T46 -> -55260.46748 | V64: Incremental Grossed Up PIL's | X64: Z | Y64: =Y46 -> 486.6251457
B67: Incremental Revenue Requirement | E67: =SUM(E62:E65) -> 984793.5014 | G67: Incremental Revenue Requirement | J67: =SUM(J62:J65) -> 981936.7243 | L67: Incremental Revenue Requirement | O67: =SUM(O62:O65) -> 2019889.11 | Q67: Incremental Revenue Requirement | T67: =SUM(T62:T65) -> 659769.8289 | V67: Incremental Revenue Requirement | Y67: =SUM(Y62:Y65) -> 31601.8033
Y70: =Y67+T67+O67+J67+E67 -> 4677990.968
Y71: =+Y62+T62+O62+J62+E62 -> 3176272.499
Y72: =+Y63+T63+O63+J63+E63 -> 1865802.799
Y73: =+Y64+T64+O64+J64+E64 -> -364084.3291

Sheet Bill Impacts_2020
H1: Back to Index
I2: internal use
B3: Enersource Rate Class | C3: Unit | D3: kWh | E3: kW | F3: MCM Rate Rider Incl HST | G3: % Increase vs. Total Bill | I3: 2019 Total Bill (Approved) | J3: Fixed Rate Rider | K3: Variable Rate Rider | L3: Taxes
B4: Residential | C4: kWh | D4: 750 | F4: =+(J4+D4*K4)*(1+L4) -> 0.1264987074 | G4: =+F4/I4 -> 0.001163099553 | I4: 108.76 | J4: ='Rate Rider Calculation_2020'!O4 -> 0.1204749594 | K4: ='Rate Rider Calculation_2020'!P4 -> 0 | L4: 0.05
B5: General Service < 50 kW | C5: kWh | D5: 2000 | F5: =+(J5+D5*K5)*(1+L5) -> 0.3678634575 | G5: =+F5/I5 -> 0.001250853336 | I5: 294.09 | J5: ='Rate Rider Calculation_2020'!O5 -> 0.2211771213 | K5: ='Rate Rider Calculation_2020'!P5+'Rate Rider Calculation_2020'!Q5 -> 6.458451432e-05 | L5: 0.05
B6: General Service 50 to 499 kW | C6: kW | D6: 100000 | E6: 230 | F6: =+(J6+E6*K6)*(1+L6) -> 6.533197624 | G6: 0.0003997357788 | I6: 16343.79 | J6: ='Rate Rider Calculation_2020'!O6 -> 0.3895439821 | K6: ='Rate Rider Calculation_2020'!P6+'Rate Rider Calculation_2020'!Q6 -> 0.02344368189 | L6: 0.13
B7: General Service 500 to 4999 kW | C7: kW | D7: 400000 | E7: 2250 | F7: =+(J7+E7*K7)*(1+L7) -> 40.69527479 | G7: 0.0005390824492 | I7: 75489.89 | J7: ='Rate Rider Calculation_2020'!O7 -> 8.870881763 | K7: ='Rate Rider Calculation_2020'!P7+'Rate Rider Calculation_2020'!Q7 -> 0.01206339367 | L7: 0.13
B8: Large Use | C8: kW | D8: 3000000 | E8: 5000 | F8: =+(J8+E8*K8)*(1+L8) -> 163.6344658 | G8: 0.0003608702617 | I8: 453444.03 | J8: ='Rate Rider Calculation_2020'!O8 -> 69.94338955 | K8: ='Rate Rider Calculation_2020'!P8+'Rate Rider Calculation_2020'!Q8 -> 0.01497317444 | L8: 0.13
B9: Unmetered | C9: kWh | D9: 300 | F9: =+(J9+D9*K9)*(1+L9) -> 0.07971716283 | G9: 0.001546404711 | I9: 51.55 | J9: ='Rate Rider Calculation_2020'!O9 -> 0.04565628358 | K9: ='Rate Rider Calculation_2020'!P9+'Rate Rider Calculation_2020'!Q9 -> 8.29662607e-05 | L9: 0.13
B10: Street Lighting | C10: kW | D10: 33 | E10: 0.1 | F10: 0.01526426479 | G10: 0.00375043361 | I10: 4.07 | J10: ='Rate Rider Calculation_2020'!O10 -> 0.007650780927 | K10: ='Rate Rider Calculation_2020'!P10+'Rate Rider Calculation_2020'!Q10 -> 0.05857418006 | L10: 0.13
I12: internal use
B13: Brampton Rate Class | C13: Unit | D13: kWh | E13: kW | F13: MCM Rate Rider Incl HST | G13: % Increase vs. Total Bill | I13: 2019 Total Bill (Approved) | J13: Fixed Rate Rider | K13: Variable Rate Rider | L13: Taxes
B14: Residential | C14: kWh | D14: 750 | F14: =+(J14+D14*K14)*(1+L14) -> 0.3231990065 | G14: =+F14/I14 -> 0.003050486139 | I14: 105.95 | J14: =+'Rate Rider Calculation_2020'!O16 -> 0.3078085776 | K14: ='Rate Rider Calculation_2020'!P16+'Rate Rider Calculation_2020'!Q16 -> 0 | L14: 0.05
B15: General Service < 50 kW | C15: kWh | D15: 2000 | F15: =+(J15+D15*K15)*(1+L15) -> 0.7960271826 | G15: =+F15/I15 -> 0.002910945596 | I15: 273.46 | J15: =+'Rate Rider Calculation_2020'!O17 -> 0.3249090541 | K15: ='Rate Rider Calculation_2020'!P17+'Rate Rider Calculation_2020'!Q17 -> 0.0002166060361 | L15: 0.05
B16: General Service 50 to 699 kW | C16: kW | D16: 182500 | E16: 500 | F16: =+(J16+E16*K16)*(1+L16) -> 22.57676354 | G16: 0.0007930553637 | I16: 28468.08 | J16: =+'Rate Rider Calculation_2020'!O18 -> 1.621125175 | K16: ='Rate Rider Calculation_2020'!P18+'Rate Rider Calculation_2020'!Q18 -> 0.03671662317 | L16: 0.13
B17: General Service 700 to 4999 kW | C17: kW | D17: 627216 | E17: 1432 | F17: =+(J17+E17*K17)*(1+L17) -> 85.49945511 | G17: 0.0008747610901 | I17: 97740.35 | J17: =+'Rate Rider Calculation_2020'!O19 -> 14.62673426 | K17: ='Rate Rider Calculation_2020'!P19+'Rate Rider Calculation_2020'!Q19 -> 0.04262325443 | L17: 0.13
B18: Large Use | C18: kW | D18: 10220000 | E18: 20000 | F18: =+(J18+E18*K18)*(1+L18) -> 798.0906236 | G18: 0.0005254610073 | I18: 1518838.91 | J18: =+'Rate Rider Calculation_2020'!O20 -> 60.86490276 | K18: ='Rate Rider Calculation_2020'!P20+'Rate Rider Calculation_2020'!Q20 -> 0.03227049927 | L18: 0.13
B19: Unmetered | C19: kWh | D19: 21296 | F19: =+(J19+D19*K19)*(1+L19) -> 6.173358113 | G19: 0.001621644697 | I19: 3806.85 | J19: =+'Rate Rider Calculation_2020'!O21 -> 0.01406039182 | K19: ='Rate Rider Calculation_2020'!P21+'Rate Rider Calculation_2020'!Q21 -> 0.000255873797 | L19: 0.13
B20: Street Lighting | C20: kW | D20: 2787508 | E20: 7922 | F20: =+(J20+E20*K20)*(1+L20) -> 1336.068536 | G20: 0.002380407312 | I20: 561277.2776 | J20: =+'Rate Rider Calculation_2020'!O22 -> 0.02976749619 | K20: ='Rate Rider Calculation_2020'!P22+'Rate Rider Calculation_2020'!Q22 -> 0.1492466257 | L20: 0.13
B21: Embedded Distributor | C21: kWh | D21: 1417701 | E21: 4000 | F21: =+(J21+D21*K21)*(1+L21) -> 60.79943834 | G21: 0.0002797678551 | I21: 217321.0297 | J21: =+'Rate Rider Calculation_2020'!O23 -> 53.80481269 | K21: ='Rate Rider Calculation_2020'!P23+'Rate Rider Calculation_2020'!Q23 -> 0 | L21: 0.13
B22: Distributed Generation | C22: kWh | D22: 156 | F22: 1.519688949 | G22: 0.01054566248 | I22: 144.1055933 | J22: =+'Rate Rider Calculation_2020'!O24 -> 1.344857477 | K22: ='Rate Rider Calculation_2020'!P24+'Rate Rider Calculation_2020'!Q24 -> 0 | L22: 0.13
I24: internal use
B25: Horizon Rate Class | C25: Unit | D25: kWh | E25: kW | F25: MCM Rate Rider Incl HST | G25: % Increase vs. Total Bill | I25: 2019 Total Bill (Approved) | J25: Fixed Rate Rider | K25: Variable Rate Rider | L25: Taxes
B26: Residential | C26: kWh | D26: 750 | F26: =+(J26+D26*K26)*(1+L26) -> 0.2321232097 | G26: =+F26/I26 -> 0.002135055277 | I26: 108.72 | J26: ='Rate Rider Calculation_2020'!O31 -> 0.2210697235 | K26: ='Rate Rider Calculation_2020'!P31+'Rate Rider Calculation_2020'!Q31 -> 0 | L26: 0.05
B27: General Service Less Than 50 Kw | C27: kWh | D27: 2000 | F27: =+(J27+D27*K27)*(1+L27) -> 0.5571826409 | G27: =+F27/I27 -> 0.002000153071 | I27: 278.57 | J27: ='Rate Rider Calculation_2020'!O32 -> 0.3501512587 | K27: ='Rate Rider Calculation_2020'!P32+'Rate Rider Calculation_2020'!Q32 -> 9.02494377e-05 | L27: 0.05
B28: General Service 50 To 4,999 Kw | C28: kW | D28: 110000 | E28: 250 | F28: =+(J28+E28*K28)*(1+L28) -> 9.759851565 | G28: 0.0005871194833 | I28: 16623.28 | J28: ='Rate Rider Calculation_2020'!O33 -> 3.224140462 | K28: ='Rate Rider Calculation_2020'!P33+'Rate Rider Calculation_2020'!Q33 -> 0.02165158528 | L28: 0.13
B29: Large Use | C29: kW | D29: 2555000 | E29: 5000 | F29: =+(J29+E29*K29)*(1+L29) -> 294.1734249 | G29: 0.0007507609283 | I29: 391833.69 | J29: ='Rate Rider Calculation_2020'!O34 -> 201.0266482 | K29: ='Rate Rider Calculation_2020'!P34+'Rate Rider Calculation_2020'!Q34 -> 0.01186076326 | L29: 0.13
B30: Large Use With Dedicated Assets | C30: kW | D30: 10220000 | E30: 20000 | F30: =+(J30+E30*K30)*(1+L30) -> 117.3993706 | G30: 8.12852968e-05 | I30: 1444287.9 | J30: ='Rate Rider Calculation_2020'!O35 -> 47.65708495 | K30: ='Rate Rider Calculation_2020'!P35+'Rate Rider Calculation_2020'!Q35 -> 0.002811808169 | L30: 0.13
B31: Unmetered Scattered Load | C31: kWh | D31: 250 | F31: =+(J31+D31*K31)*(1+L31) -> 0.1120864897 | G31: 0.002881400764 | I31: 38.9 | J31: ='Rate Rider Calculation_2020'!O36 -> 0.07145437132 | K31: ='Rate Rider Calculation_2020'!P36+'Rate Rider Calculation_2020'!Q36 -> 0.00011094885 | L31: 0.13
B32: Sentinel Lighting | C32: kW | D32: 97008 | E32: 216 | F32: =+(J32+E32*K32)*(1+L32) -> 31.25899088 | G32: 0.001442024272 | I32: 21677.16 | J32: ='Rate Rider Calculation_2020'!O37 -> 0.04661507654 | K32: ='Rate Rider Calculation_2020'!P37+'Rate Rider Calculation_2020'!Q37 -> 0.1278528181 | L32: 0.13
B33: Street Lighting | C33: kW | D33: 1782038 | E33: 4974 | F33: =+(J33+E33*K33)*(1+L33) -> 240.8586608 | G33: =+F33/I33 -> 0.000651061382 | I33: 369947.7 | J33: ='Rate Rider Calculation_2020'!O38 -> 0.01614554161 | K33: ='Rate Rider Calculation_2020'!P38+'Rate Rider Calculation_2020'!Q38 -> 0.04284943945 | L33: 0.13
I35: internal use
B36: PowerStream Rate Class | C36: Unit | D36: kWh | E36: kW | F36: MCM Rate Rider Incl HST | G36: % Increase vs. Total Bill | I36: 2019 Total Bill (Approved) | J36: Fixed Rate Rider | K36: Variable Rate Rider | L36: Taxes
B37: Residential | C37: kWh | D37: 750 | F37: =+(J37+D37*K37)*(1+L37) -> 0.3198833743 | G37: =+F37/I37 -> 0.002992080949 | I37: 106.91 | J37: ='Rate Rider Calculation_2020'!O44 -> 0.2719099352 | K37: ='Rate Rider Calculation_2020'!P44+'Rate Rider Calculation_2020'!Q44 -> 4.365452992e-05 | L37: 0.05
B38: General Service Less Than 50 Kw | C38: kWh | D38: 2000 | F38: =+(J38+D38*K38)*(1+L38) -> 0.6799193035 | G38: =+F38/I38 -> 0.002478833729 | I38: 274.29 | J38: ='Rate Rider Calculation_2020'!O45 -> 0.2847245452 | K38: ='Rate Rider Calculation_2020'!P45+'Rate Rider Calculation_2020'!Q45 -> 0.0001814088243 | L38: 0.05
B39: General Service 50 To 4,999 Kw | C39: kW | D39: 80000 | E39: 250 | F39: =+(J39+E39*K39)*(1+L39) -> 13.34146946 | G39: 0.001047303996 | I39: 12738.87 | J39: ='Rate Rider Calculation_2020'!O46 -> 1.396459907 | K39: ='Rate Rider Calculation_2020'!P46+'Rate Rider Calculation_2020'!Q46 -> 0.04164060094 | L39: 0.13
B40: Large Use | C40: kW | D40: 2800000 | E40: 7350 | F40: =+(J40+E40*K40)*(1+L40) -> 252.4467359 | G40: 0.0006062750239 | I40: 416389.8 | J40: ='Rate Rider Calculation_2020'!O47 -> 60.16447912 | K40: ='Rate Rider Calculation_2020'!P47+'Rate Rider Calculation_2020'!Q47 -> 0.02220948462 | L40: 0.13
B41: Unmetered Scattered Load | C41: kWh | D41: 150 | E41: 0 | F41: =+(J41+D41*K41)*(1+L41) -> 0.1289695479 | G41: =+F41/I41 -> 0.00435119932 | I41: 29.64 | J41: ='Rate Rider Calculation_2020'!O48 -> 0.08517483838 | K41: ='Rate Rider Calculation_2020'!P48+'Rate Rider Calculation_2020'!Q48 -> 0.0001930500323 | L41: 0.13
B42: Sentinel Lighting | C42: kW | D42: 180 | E42: 1 | F42: =+(J42+E42*K42)*(1+L42) -> 0.1573910818 | G42: 0.004423582962 | I42: 35.58 | J42: ='Rate Rider Calculation_2020'!O49 -> 0.04152030846 | K42: ='Rate Rider Calculation_2020'!P49+'Rate Rider Calculation_2020'!Q49 -> 0.09776383471 | L42: 0.13
B43: Street Lighting | C43: kW | D43: 280 | E43: 1 | F43: =+(J43+E43*K43)*(1+L43) -> 0.08403136133 | G43: 0.001630726981 | I43: 51.53 | J43: ='Rate Rider Calculation_2020'!O50 -> 0.01173821805 | K43: ='Rate Rider Calculation_2020'!P50+'Rate Rider Calculation_2020'!Q50 -> 0.06262581853 | L43: 0.13
I45: internal use
B46: Guelph Rate Class | C46: Unit | D46: kWh | E46: kW | F46: MCM Rate Rider Incl HST | G46: % Increase vs. Total Bill | I46: 2019 Total Bill (Approved) | J46: Fixed Rate Rider | K46: Variable Rate Rider | L46: Taxes
B47: Residential | C47: kWh | D47: 750 | F47: =+(J47+D47*K47)*(1+L47) -> 0.03171977891 | G47: =+F47/I47 -> 0.0002823049031 | I47: 112.36 | J47: =+'Rate Rider Calculation_2020'!O56 -> 0.03020931325 | K47: ='Rate Rider Calculation_2020'!P56+'Rate Rider Calculation_2020'!Q56 -> 0 | L47: 0.05
B48: General Service Less Than 50 Kw | C48: kWh | D48: 2000 | F48: =+(J48+D48*K48)*(1+L48) -> 0.04921884928 | G48: =+F48/I48 -> 0.0001884696507 | I48: 261.15 | J48: =+'Rate Rider Calculation_2020'!O57 -> 0.01751354437 | K48: ='Rate Rider Calculation_2020'!P57+'Rate Rider Calculation_2020'!Q57 -> 1.468077509e-05 | L48: 0.05
B49: General Service 50 To 999 Kw | C49: kW | D49: 189800 | E49: 500 | F49: =+(J49+E49*K49)*(1+L49) -> 1.849073398 | G49: 5.946225608e-05 | I49: 31096.59 | J49: =+'Rate Rider Calculation_2020'!O58 -> 0.1898782502 | K49: ='Rate Rider Calculation_2020'!P58+'Rate Rider Calculation_2020'!Q58 -> 0.002892939779 | L49: 0.13
B50: General Service 1,000 To 4,999 Kw | C50: kW | D50: 489100 | E50: 1000 | F50: =+(J50+E50*K50)*(1+L50) -> 4.307685858 | G50: 5.403562343e-05 | I50: 79719.37 | J50: =+'Rate Rider Calculation_2020'!O59 -> 0.6006401342 | K50: ='Rate Rider Calculation_2020'!P59+'Rate Rider Calculation_2020'!Q59 -> 0.003211471244 | L50: 0.13
B51: Large Use | C51: kW | D51: 4215750 | E51: 7500 | F51: =+(J51+E51*K51)*(1+L51) -> 25.75757281 | G51: =+F51/I51 -> 4.075248325e-05 | I51: 632049.16 | J51: =+'Rate Rider Calculation_2020'!O60 -> 1.154642961 | K51: ='Rate Rider Calculation_2020'!P60+'Rate Rider Calculation_2020'!Q60 -> 0.002885289234 | L51: 0.13
B52: Unmetered Scattered Load | C52: kWh | D52: 750 | F52: =+(J52+D52*K52)*(1+L52) -> 0.02559655169 | G52: 0.0001353169364 | I52: 189.16 | J52: =+'Rate Rider Calculation_2020'!O61 -> 0.005127932708 | K52: ='Rate Rider Calculation_2020'!P61+'Rate Rider Calculation_2020'!Q61 -> 2.336517726e-05 | L52: 0.13
B53: Sentinel Lighting | C53: kW | D53: 140 | E53: 2 | F53: =+(J53+E53*K53)*(1+L53) -> 0.02879594541 | G53: 0.0004197047866 | I53: 68.61 | J53: =+'Rate Rider Calculation_2020'!O62 -> 0.007929686264 | K53: ='Rate Rider Calculation_2020'!P62+'Rate Rider Calculation_2020'!Q62 -> 0.008776725633 | L53: 0.13
B54: Street Lighting | C54: kW | D54: 800000 | E54: 2200 | F54: 26.75083817 | G54: 0.0001739830129 | I54: 153755.46 | J54: =+'Rate Rider Calculation_2020'!O63 -> 0.0004548972564 | K54: ='Rate Rider Calculation_2020'!P63+'Rate Rider Calculation_2020'!Q63 -> 0.01076038783 | L54: 0.13

Sheet Rate Rider Calculation_2020
H1: Back to Index
A2: Enersource Rate Class | C2: Service Charge % Revenue | D2: Distribution Volumetric Rate % Revenue kWh | E2: Distribution Volumetric Rate % Revenue kW | F2: Service Charge Revenue | G2: Distribution Volumetric Rate Revenue kWh | H2: Distribution Volumetric Rate Revenue kW | I2: Total Revenue by Rate Class | K2: Billed Customers or Connections | L2: Billed kWh | M2: Billed kW | O2: Service Charge Rate Rider | P2: Distribution Volumetric Rate kWh Rate Rider | Q2: Distribution Volumetric Rate kW Rate Rider
C3: From Sheet 8 | D3: From Sheet 8 | E3: From Sheet 8 | F3: Col C * Col Itotal | G3: Col D* Col Itotal | H3: Col E* Col Itotal | I3: Col Itotal | K3: From Sheet 4 | L3: From Sheet 4 | M3: From Sheet 4 | O3: Col F / Col K / 12 | P3: Col G / Col L | Q3: Col H / Col M
A4: RESIDENTIAL | C4: ='Revenue Proportions'!P7 -> 0.4021608098 | D4: ='Revenue Proportions'!Q7 -> 0 | E4: ='Revenue Proportions'!R7 -> 0 | F4: =C4*$I$12 -> 265333.5687 | G4: =D4*$I$12 -> 0 | H4: =E4*$I$12 -> 0 | I4: =SUM(F4:H4) -> 265333.5687 | K4: ='Revenue Proportions'!G7 -> 183533 | L4: ='Revenue Proportions'!H7 -> 1490532667 | M4: ='Revenue Proportions'!I7 -> 0 | O4: =F4/K4/12 -> 0.1204749594 | P4: =IF(ISERROR(G4/L4),0,G4/L4) -> 0 | Q4: =IF(ISERROR(H4/M4),0,H4/M4) -> 0
A5: GENERAL SERVICE LESS THAN 50 kW | C5: ='Revenue Proportions'!P8 -> 0.07444603184 | D5: ='Revenue Proportions'!Q8 -> 0.06711464909 | E5: ='Revenue Proportions'!R8 -> 0 | F5: =C5*$I$12 -> 49117.24569 | G5: =D5*$I$12 -> 44280.22055 | H5: 0 | I5: =SUM(F5:H5) -> 93397.46624 | K5: ='Revenue Proportions'!G8 -> 18506 | L5: ='Revenue Proportions'!H8 -> 685616684 | M5: ='Revenue Proportions'!I8 -> 0 | O5: 0.2211771213 | P5: 6.458451432e-05 | Q5: =IF(ISERROR(H5/M5),0,H5/M5) -> 0
A6: GENERAL SERVICE 50 TO 499 kW | C6: ='Revenue Proportions'!P9 -> 0.02646280644 | D6: ='Revenue Proportions'!Q9 -> 0 | E6: ='Revenue Proportions'!R9 -> 0.2029087669 | F6: 17459.36128 | G6: 0 | H6: 133873.0824 | I6: 151332.4437 | K6: ='Revenue Proportions'!G9 -> 3735 | M6: ='Revenue Proportions'!I9 -> 5710412 | O6: 0.3895439821 | P6: 0 | Q6: =IF(ISERROR(H6/M6),0,H6/M6) -> 0.02344368189
A7: GENERAL SERVICE 500 TO 4,999 kW | C7: ='Revenue Proportions'!P10 -> 0.07712292312 | D7: ='Revenue Proportions'!Q10 -> 0 | E7: ='Revenue Proportions'!R10 -> 0.08384747717 | F7: 50883.37779 | G7: 0 | H7: 55320.03567 | I7: 106203.4135 | K7: ='Revenue Proportions'!G10 -> 478 | L7: ='Revenue Proportions'!H10 -> 2037760513 | M7: ='Revenue Proportions'!I10 -> 4585777.203 | O7: 8.870881763 | P7: 0 | Q7: 0.01206339367
A8: LARGE USE | C8: ='Revenue Proportions'!P11 -> 0.01144927479 | D8: ='Revenue Proportions'!Q11 -> 0 | E8: ='Revenue Proportions'!R11 -> 0.03978723226 | F8: 7553.886072 | G8: 0 | H8: 26250.41542 | I8: 33804.30149 | K8: ='Revenue Proportions'!G11 -> 9 | L8: ='Revenue Proportions'!H11 -> 977049362 | M8: ='Revenue Proportions'!I11 -> 1753163 | O8: 69.94338955 | P8: 0 | Q8: 0.01497317444
A9: UNMETERED SCATTERED LOAD | C9: ='Revenue Proportions'!P12 -> 0.002582555959 | D9: ='Revenue Proportions'!Q12 -> 0.00143828703 | E9: ='Revenue Proportions'!R12 -> 0 | F9: 1703.892503 | G9: 948.938388 | H9: 0 | I9: 2652.830891 | K9: ='Revenue Proportions'!G12 -> 3110 | L9: ='Revenue Proportions'!H12 -> 11437642 | M9: ='Revenue Proportions'!I12 -> 0 | O9: 0.04565628358 | P9: 8.29662607e-05 | Q9: 0
A10: STREET LIGHTING | C10: ='Revenue Proportions'!P13 -> 0.007077214813 | D10: ='Revenue Proportions'!Q13 -> 0 | E10: ='Revenue Proportions'!R13 -> 0.003601970762 | F10: 4669.332806 | G10: 0 | H10: 2376.471633 | I10: 7045.804439 | K10: ='Revenue Proportions'!G13 -> 50859 | L10: ='Revenue Proportions'!H13 -> 13289944 | M10: ='Revenue Proportions'!I13 -> 40572 | O10: 0.007650780927 | P10: 0 | Q10: 0.05857418006
A11: Total | C11: =SUM(C4:C10) -> 0.6013016168 | D11: 0.06855293612 | E11: 0.3301454471 | F11: 396720.6648 | G11: 45229.15893 | H11: 217820.0051 | I11: 659769.8289 | K11: =SUM(K4:K10) -> 260230 | L11: =SUM(L4:L10) -> 5215686812 | M11: =SUM(M4:M10) -> 12089924.2
I12: ='M-factor RR Calculation_2020'!T67 -> 659769.8289
A14: Brampton Rate Class | C14: Service Charge % Revenue | D14: Distribution Volumetric Rate % Revenue kWh | E14: Distribution Volumetric Rate % Revenue kW | F14: Service Charge Revenue | G14: Distribution Volumetric Rate Revenue kWh | H14: Distribution Volumetric Rate Revenue kW | I14: Total Revenue by Rate Class | K14: Billed Customers or Connections | L14: Billed kWh | M14: Billed kW | O14: Service Charge Rate Rider | P14: Distribution Volumetric Rate kWh Rate Rider | Q14: Distribution Volumetric Rate kW Rate Rider
C15: From Sheet 8 | D15: From Sheet 8 | E15: From Sheet 8 | F15: Col C * Col Itotal | G15: Col D* Col Itotal | H15: Col E* Col Itotal | I15: Col Itotal | K15: From Sheet 4 | L15: From Sheet 4 | M15: From Sheet 4 | O15: Col F / Col K / 12 | P15: Col G / Col L | Q15: Col H / Col M
A16: RESIDENTIAL | C16: ='Revenue Proportions'!P20 -> 0.5765143424 | D16: ='Revenue Proportions'!Q20 -> 0 | E16: ='Revenue Proportions'!R20 -> 0 | F16: =C16*$I$27 -> 566100.6049 | G16: =D16*$I$27 -> 0 | H16: =E16*$I$27 -> 0 | I16: =SUM(F16:H16) -> 566100.6049 | K16: ='Revenue Proportions'!G20 -> 153261 | L16: ='Revenue Proportions'!H20 -> 1385125813 | M16: ='Revenue Proportions'!I20 -> 0 | O16: =F16/K16/12 -> 0.3078085776 | P16: =IF(ISERROR(G16/L16),0,G16/L16) -> 0 | Q16: 0
A17: GENERAL SERVICE LESS THAN 50 kW | C17: ='Revenue Proportions'!P21 -> 0.03757011295 | D17: ='Revenue Proportions'!Q21 -> 0.0760565388 | E17: ='Revenue Proportions'!R21 -> 0 | F17: =C17*$I$27 -> 36891.47364 | G17: =D17*$I$27 -> 74682.70857 | H17: =E17*$I$27 -> 0 | I17: =SUM(F17:H17) -> 111574.1822 | K17: ='Revenue Proportions'!G21 -> 9462 | L17: ='Revenue Proportions'!H21 -> 344785906.8 | M17: ='Revenue Proportions'!I21 -> 0 | O17: =F17/K17/12 -> 0.3249090541 | P17: 0.0002166060361 | Q17: 0
A18: GENERAL SERVICE 50 TO 699 KW | C18: ='Revenue Proportions'!P22 -> 0.03151987402 | D18: ='Revenue Proportions'!Q22 -> 0 | E18: ='Revenue Proportions'!R22 -> 0.1188918616 | F18: 30950.52185 | G18: 0 | H18: 116744.2852 | I18: 147694.807 | K18: ='Revenue Proportions'!G22 -> 1591 | L18: ='Revenue Proportions'!H22 -> 1131688196 | M18: ='Revenue Proportions'!I22 -> 3179603 | O18: =F18/K18/12 -> 1.621125175 | P18: 0 | Q18: 0.03671662317
A19: GENERAL SERVICE 700 TO 4,999 KW | C19: ='Revenue Proportions'!P23 -> 0.01876870955 | D19: ='Revenue Proportions'!Q23 -> 0 | E19: ='Revenue Proportions'!R23 -> 0.08770726142 | F19: 18429.68517 | G19: 0 | H19: 86122.98098 | I19: 104552.6662 | K19: ='Revenue Proportions'!G23 -> 105 | L19: ='Revenue Proportions'!H23 -> 875091030.3 | M19: ='Revenue Proportions'!I23 -> 2020563.238 | O19: 14.62673426 | P19: 0 | Q19: 0.04262325443
A20: LARGE USE | C20: ='Revenue Proportions'!P24 -> 0.004462887364 | D20: ='Revenue Proportions'!Q24 -> 0 | E20: ='Revenue Proportions'!R24 -> 0.02161990293 | F20: 4382.272999 | G20: 0 | H20: 21229.37666 | I20: 25611.64966 | K20: ='Revenue Proportions'!G24 -> 6 | L20: ='Revenue Proportions'!H24 -> 350379704.8 | M20: ='Revenue Proportions'!I24 -> 657857.0874 | O20: 60.86490276 | P20: 0 | Q20: 0.03227049927
A21: UNMETERED SCATTERED LOAD | C21: ='Revenue Proportions'!P25 -> 0.000267365126 | D21: ='Revenue Proportions'!Q25 -> 0.001541244921 | E21: ='Revenue Proportions'!R25 -> 0 | F21: 262.535636 | G21: 1513.404989 | H21: 0 | I21: 1775.940625 | K21: ='Revenue Proportions'!G25 -> 1556 | L21: ='Revenue Proportions'!H25 -> 5914654.047 | M21: ='Revenue Proportions'!I25 -> 0 | O21: 0.01406039182 | P21: 0.000255873797 | Q21: 0
A22: STREET LIGHTING | C22: ='Revenue Proportions'!P26 -> 0.007246154362 | D22: ='Revenue Proportions'!Q26 -> 0 | E22: ='Revenue Proportions'!R26 -> 0.01502320324 | F22: 7115.265078 | G22: 0 | H22: 14751.83497 | I22: 21867.10005 | K22: ='Revenue Proportions'!G26 -> 19919 | L22: ='Revenue Proportions'!H26 -> 34968321 | M22: ='Revenue Proportions'!I26 -> 98842 | O22: 0.02976749619 | P22: 0 | Q22: 0.1492466257
A23: EMBEDDED DISTRIBUTOR | C23: ='Revenue Proportions'!P27 -> 0.000657534988 | D23: ='Revenue Proportions'!Q27 -> 0 | E23: ='Revenue Proportions'!R27 -> 0 | F23: 645.6577523 | G23: 0 | H23: 0 | I23: 645.6577523 | K23: ='Revenue Proportions'!G27 -> 1 | L23: ='Revenue Proportions'!H27 -> 3402773 | M23: ='Revenue Proportions'!I27 -> 0 | O23: 53.80481269 | P23: 0 | Q23: 0
A24: DISTRIBUTED GENERATION [DGEN] | C24: ='Revenue Proportions'!P28 -> 0.0021530063 | D24: ='Revenue Proportions'!Q28 -> 0 | E24: ='Revenue Proportions'!R28 -> 0 | F24: 2114.115953 | G24: 0 | H24: 0 | I24: 2114.115953 | K24: ='Revenue Proportions'!G28 -> 131 | L24: ='Revenue Proportions'!H28 -> 277418 | M24: ='Revenue Proportions'!I28 -> 0 | O24: 1.344857477 | P24: 0 | Q24: 0
A25: STANDBY POWER | C25: ='Revenue Proportions'!P29 -> 0 | D25: ='Revenue Proportions'!Q29 -> 0 | E25: ='Revenue Proportions'!R29 -> 0 | F25: 0 | G25: 0 | H25: 0 | I25: 0 | K25: ='Revenue Proportions'!G29 -> 1 | L25: ='Revenue Proportions'!H29 -> 0 | M25: ='Revenue Proportions'!I29 -> 0 | O25: 0 | P25: 0 | Q25: 0
A26: Total | C26: =SUM(C16:C25) -> 0.679159987 | D26: 0.07759778372 | E26: 0.2432422292 | F26: 666892.133 | G26: 76196.11356 | H26: 238848.4778 | I26: 981936.7243 | K26: =SUM(K16:K25) -> 186033 | L26: =SUM(L16:L25) -> 4131633817 | M26: =SUM(M16:M25) -> 5956865.325
I27: ='M-factor RR Calculation_2020'!J67 -> 981936.7243
A29: Horizon Rate Class | C29: Service Charge % Revenue | D29: Distribution Volumetric Rate % Revenue kWh | E29: Distribution Volumetric Rate % Revenue kW | F29: Service Charge Revenue | G29: Distribution Volumetric Rate Revenue kWh | H29: Distribution Volumetric Rate Revenue kW | I29: Total Revenue by Rate Class | K29: Billed Customers or Connections | L29: Billed kWh | M29: Billed kW | O29: Service Charge Rate Rider | P29: Distribution Volumetric Rate kWh Rate Rider | Q29: Distribution Volumetric Rate kW Rate Rider
C30: From Sheet 8 | D30: From Sheet 8 | E30: From Sheet 8 | F30: Col C * Col Itotal | G30: Col D* Col Itotal | H30: Col E* Col Itotal | I30: Col Itotal | K30: From Sheet 4 | L30: From Sheet 4 | M30: From Sheet 4 | O30: Col F / Col K / 12 | P30: Col G / Col L | Q30: Col H / Col M
A31: RESIDENTIAL | C31: =+'Revenue Proportions'!P36 -> 0.6135452637 | D31: =+'Revenue Proportions'!Q36 -> 0 | E31: =+'Revenue Proportions'!R36 -> 0 | F31: =C31*$I$40 -> 604215.3885 | G31: =D31*$I$40 -> 0 | H31: =E31*$I$40 -> 0 | I31: =SUM(F31:H31) -> 604215.3885 | K31: ='Revenue Proportions'!G36 -> 227762 | L31: ='Revenue Proportions'!H36 -> 1652719193 | M31: ='Revenue Proportions'!I36 -> 0 | O31: =F31/K31/12 -> 0.2210697235 | P31: =IF(ISERROR(G31/L31),0,G31/L31) -> 0 | Q31: =IF(ISERROR(H31/M31),0,H31/M31) -> 0
A32: GENERAL SERVICE LESS THAN 50 kW | C32: =+'Revenue Proportions'!P37 -> 0.07982562709 | D32: =+'Revenue Proportions'!Q37 -> 0.05447927355 | E32: =+'Revenue Proportions'!R37 -> 0 | F32: =C32*$I$40 -> 78611.7588 | G32: =D32*$I$40 -> 53650.83455 | H32: =E32*$I$40 -> 0 | I32: 132262.5934 | K32: ='Revenue Proportions'!G37 -> 18709 | L32: ='Revenue Proportions'!H37 -> 594472784.8 | M32: ='Revenue Proportions'!I37 -> 0 | O32: 0.3501512587 | P32: =IF(ISERROR(G32/L32),0,G32/L32) -> 9.02494377e-05 | Q32: =IF(ISERROR(H32/M32),0,H32/M32) -> 0
A33: GENERAL SERVICE 50 TO 4,999 KW | C33: =+'Revenue Proportions'!P38 -> 0.09098893484 | D33: =+'Revenue Proportions'!Q38 -> 0 | E33: =+'Revenue Proportions'!R38 -> 0.111389565 | F33: 89605.31173 | G33: 0 | H33: 109695.7197 | I33: 199301.0314 | K33: ='Revenue Proportions'!G38 -> 2316 | L33: ='Revenue Proportions'!H38 -> 1840510488 | M33: ='Revenue Proportions'!I38 -> 5066405.912 | O33: 3.224140462 | P33: 0 | Q33: 0.02165158528
A34: LARGE USE | C34: =+'Revenue Proportions'!P39 -> 0.01469741489 | D34: =+'Revenue Proportions'!Q39 -> 0 | E34: =+'Revenue Proportions'!R39 -> 0.006859247021 | F34: 14473.91867 | G34: 0 | H34: 6754.94189 | I34: 21228.86056 | K34: ='Revenue Proportions'!G39 -> 6 | L34: ='Revenue Proportions'!H39 -> 242051739 | M34: ='Revenue Proportions'!I39 -> 569520 | O34: 201.0266482 | P34: 0 | Q34: 0.01186076326
A35: LARGE USE WITH DEDICATED ASSETS | C35: =+'Revenue Proportions'!P40 -> 0.002903578357 | D35: =+'Revenue Proportions'!Q40 -> 0 | E35: =+'Revenue Proportions'!R40 -> 0.006101481257 | F35: 2859.425097 | G35: 0 | H35: 6008.699091 | I35: 8868.124188 | K35: ='Revenue Proportions'!G40 -> 5 | L35: ='Revenue Proportions'!H40 -> 403775839 | M35: ='Revenue Proportions'!I40 -> 2136952 | O35: 47.65708495 | P35: 0 | Q35: 0.002811808169
A36: UNMETERED SCATTERED LOAD | C36: =+'Revenue Proportions'!P41 -> 0.002617302083 | D36: =+'Revenue Proportions'!Q41 -> 0.00118344063 | E36: =+'Revenue Proportions'!R41 -> 0 | F36: 2577.502082 | G36: 1165.444642 | H36: 0 | I36: 3742.946724 | K36: ='Revenue Proportions'!G41 -> 3006 | L36: ='Revenue Proportions'!H41 -> 10504341.79 | M36: ='Revenue Proportions'!I41 -> 0 | O36: 0.07145437132 | P36: 0.00011094885 | Q36: 0
A37: SENTINEL LIGHTING | C37: =+'Revenue Proportions'!P42 -> 0.0002147109895 | D37: =+'Revenue Proportions'!Q42 -> 0 | E37: =+'Revenue Proportions'!R42 -> 0.0001337218437 | F37: 211.4459872 | G37: 0 | H37: 131.6884026 | I37: =SUM(F37:H37) -> 343.1343898 | K37: ='Revenue Proportions'!G42 -> 378 | L37: ='Revenue Proportions'!H42 -> 363731 | M37: ='Revenue Proportions'!I42 -> 1030 | O37: 0.04661507654 | P37: 0 | Q37: 0.1278528181
A38: STREET LIGHTING | C38: =+'Revenue Proportions'!P43 -> 0.01028409585 | D38: =+'Revenue Proportions'!Q43 -> 0 | E38: =+'Revenue Proportions'!R43 -> 0.004776342969 | F38: 10127.71076 | G38: 0 | H38: 4703.711517 | I38: 14831.42227 | K38: ='Revenue Proportions'!G43 -> 52273 | L38: ='Revenue Proportions'!H43 -> 39610412.93 | M38: ='Revenue Proportions'!I43 -> 109773 | O38: 0.01614554161 | P38: 0 | Q38: 0.04284943945
A39: Total | C39: =SUM(C31:C38) -> 0.8150769278 | D39: 0.05566271418 | E39: 0.129260358 | F39: 802682.4616 | G39: 54816.2792 | H39: 127294.7606 | I39: 984793.5014 | K39: =SUM(K31:K38) -> 304455 | L39: =SUM(L31:L38) -> 4784008529 | M39: =SUM(M31:M38) -> 7883680.912
I40: ='M-factor RR Calculation_2020'!E67 -> 984793.5014
A42: PowerStream Rate Class | C42: Service Charge % Revenue | D42: Distribution Volumetric Rate % Revenue kWh | E42: Distribution Volumetric Rate % Revenue kW | F42: Service Charge Revenue | G42: Distribution Volumetric Rate Revenue kWh | H42: Distribution Volumetric Rate Revenue kW | I42: Total Revenue by Rate Class | K42: Billed Customers or Connections | L42: Billed kWh | M42: Billed kW | O42: Service Charge Rate Rider | P42: Distribution Volumetric Rate kWh Rate Rider | Q42: Distribution Volumetric Rate kW Rate Rider
C43: From Sheet 8 | D43: From Sheet 8 | E43: From Sheet 8 | F43: Col C * Col Itotal | G43: Col D* Col Itotal | H43: Col E* Col Itotal | I43: Col Itotal | K43: From Sheet 4 | L43: From Sheet 4 | M43: From Sheet 4 | O43: Col F / Col K / 12 | P43: Col G / Col L | Q43: Col H / Col M
A44: RESIDENTIAL | C44: ='Revenue Proportions'!P50 -> 0.4804828615 | D44: ='Revenue Proportions'!Q50 -> 0.06016245838 | E44: ='Revenue Proportions'!R50 -> 0 | F44: =C44*$I$52 -> 970522.0996 | G44: =D44*$I$52 -> 121521.4945 | H44: =E44*$I$52 -> 0 | I44: =SUM(F44:H44) -> 1092043.594 | K44: ='Revenue Proportions'!G50 -> 334683 | L44: ='Revenue Proportions'!H50 -> 2783708695 | M44: ='Revenue Proportions'!I50 -> 0 | O44: =(F44+G44)/K44/12 -> 0.2719099352 | P44: =IF(ISERROR(G44/L44),0,G44/L44) -> 4.365452992e-05 | Q44: =IF(ISERROR(H44/M44),0,H44/M44) -> 0
A45: GENERAL SERVICE LESS THAN 50 kW | C45: ='Revenue Proportions'!P51 -> 0.05518433769 | D45: ='Revenue Proportions'!Q51 -> 0.09426732524 | E45: ='Revenue Proportions'!R51 -> 0 | F45: =C45*$I$52 -> 111466.2427 | G45: =D45*$I$52 -> 190409.5437 | H45: =E45*$I$52 -> 0 | I45: 301875.7864 | K45: ='Revenue Proportions'!G51 -> 32624 | L45: ='Revenue Proportions'!H51 -> 1049615664 | M45: ='Revenue Proportions'!I51 -> 0 | O45: =F45/K45/12 -> 0.2847245452 | P45: 0.0001814088243 | Q45: 0
A46: GENERAL SERVICE 50 TO 4,999 KW | C46: ='Revenue Proportions'!P52 -> 0.04319860947 | D46: ='Revenue Proportions'!Q52 -> 0 | E46: ='Revenue Proportions'!R52 -> 0.2513596733 | F46: 87256.40084 | G46: 0 | H46: 507718.6668 | I46: 594975.0676 | K46: ='Revenue Proportions'!G52 -> 5207 | L46: ='Revenue Proportions'!H52 -> 4679965944 | M46: ='Revenue Proportions'!I52 -> 12192875.59 | O46: =F46/K46/12 -> 1.396459907 | P46: 0 | Q46: 0.04164060094
A47: LARGE USE | C47: ='Revenue Proportions'!P53 -> 0.0007148647377 | D47: ='Revenue Proportions'!Q53 -> 0 | E47: ='Revenue Proportions'!R53 -> 0.001131111182 | F47: 1443.947499 | G47: 0 | H47: 2284.719159 | I47: 3728.666658 | K47: ='Revenue Proportions'!G53 -> 2 | L47: ='Revenue Proportions'!H53 -> 53218181 | M47: ='Revenue Proportions'!I53 -> 102871.3272 | O47: 60.16447912 | P47: 0 | Q47: 0.02220948462
A48: UNMETERED SCATTERED LOAD | C48: ='Revenue Proportions'!P54 -> 0.001559544139 | D48: ='Revenue Proportions'!Q54 -> 0.001321871603 | E48: ='Revenue Proportions'!R54 -> 0 | F48: 3150.106223 | G48: 2670.034056 | H48: 0 | I48: 5820.140279 | K48: ='Revenue Proportions'!G54 -> 3082 | L48: ='Revenue Proportions'!H54 -> 13830787.93 | M48: ='Revenue Proportions'!I54 -> 0 | O48: 0.08517483838 | P48: 0.0001930500323 | Q48: 0
A49: SENTINEL LIGHTING | C49: ='Revenue Proportions'!P55 -> 4.242704029e-05 | D49: ='Revenue Proportions'!Q55 -> 0 | E49: ='Revenue Proportions'!R55 -> 3.85268736e-05 | F49: 85.69791666 | G49: 0 | H49: 77.82001243 | I49: 163.5179291 | K49: ='Revenue Proportions'!G55 -> 172 | L49: ='Revenue Proportions'!H55 -> 286385 | M49: ='Revenue Proportions'!I55 -> 796 | O49: 0.04152030846 | P49: 0 | Q49: 0.09776383471
A50: STREET LIGHTING | C50: ='Revenue Proportions'!P56 -> 0.006377061486 | D50: ='Revenue Proportions'!Q56 -> 0 | E50: ='Revenue Proportions'!R56 -> 0.004159327344 | F50: 12880.95705 | G50: 0 | H50: 8401.380007 | I50: 21282.33706 | K50: ='Revenue Proportions'!G56 -> 91446 | L50: ='Revenue Proportions'!H56 -> 48883953 | M50: ='Revenue Proportions'!I56 -> 134152.0192 | O50: 0.01173821805 | P50: 0 | Q50: 0.06262581853
A51: Total | C51: =SUM(C44:C50) -> 0.5875597061 | D51: 0.1557516552 | E51: 0.2566886387 | F51: 1186805.452 | G51: 314601.0723 | H51: 518482.586 | I51: 2019889.11 | K51: =SUM(K44:K50) -> 467216 | L51: =SUM(L44:L50) -> 8629509610 | M51: =SUM(M44:M50) -> 12430694.94
I52: ='M-factor RR Calculation_2020'!O67 -> 2019889.11
A54: Guelph Rate Class | C54: Service Charge % Revenue | D54: Distribution Volumetric Rate % Revenue kWh | E54: Distribution Volumetric Rate % Revenue kW | F54: Service Charge Revenue | G54: Distribution Volumetric Rate Revenue kWh | H54: Distribution Volumetric Rate Revenue kW | I54: Total Revenue by Rate Class | K54: Billed Customers or Connections | L54: Billed kWh | M54: Billed kW | O54: Service Charge Rate Rider | P54: Distribution Volumetric Rate kWh Rate Rider | Q54: Distribution Volumetric Rate kW Rate Rider
C55: From Sheet 8 | D55: From Sheet 8 | E55: From Sheet 8 | F55: Col C * Col Itotal | G55: Col D* Col Itotal | H55: Col E* Col Itotal | K55: From Sheet 4 | L55: From Sheet 4 | M55: From Sheet 4 | O55: Col F / Col K / 12 | P55: Col G / Col L | Q55: Col H / Col M
A56: RESIDENTIAL | C56: ='Revenue Proportions'!P63 -> 0.5840465345 | D56: ='Revenue Proportions'!Q63 -> 0 | E56: ='Revenue Proportions'!R63 -> 0 | F56: =C56*$I$65 -> 18456.9237 | G56: =D56*$I$65 -> 0 | H56: =E56*$I$65 -> 0 | I56: =SUM(F56:H56) -> 18456.9237 | K56: ='Revenue Proportions'!G63 -> 50914 | L56: ='Revenue Proportions'!H63 -> 384041745 | M56: ='Revenue Proportions'!I63 -> 0 | O56: =(F56+G56)/K56/12 -> 0.03020931325 | P56: =IF(ISERROR(G56/L56),0,G56/L56) -> 0 | Q56: =IF(ISERROR(H56/M56),0,H56/M56) -> 0
A57: GENERAL SERVICE LESS THAN 50 KW | C57: ='Revenue Proportions'!P64 -> 0.02749247886 | D57: ='Revenue Proportions'!Q64 -> 0.06606393443 | E57: ='Revenue Proportions'!R64 -> 0 | F57: =C57*$I$65 -> 868.8119091 | G57: =D57*$I$65 -> 2087.739461 | H57: =E57*$I$65 -> 0 | I57: 2956.55137 | K57: ='Revenue Proportions'!G64 -> 4134 | L57: ='Revenue Proportions'!H64 -> 142209076 | M57: ='Revenue Proportions'!I64 -> 0 | O57: =F57/K57/12 -> 0.01751354437 | P57: 1.468077509e-05 | Q57: 0
A58: GENERAL SERVICE 50 TO 999 KW | C58: ='Revenue Proportions'!P65 -> 0.04167469594 | D58: ='Revenue Proportions'!Q65 -> 0 | E58: ='Revenue Proportions'!R65 -> 0.1004689031 | F58: 1316.995544 | G58: 0 | H58: 3174.998515 | I58: 4491.994058 | K58: ='Revenue Proportions'!G65 -> 578 | L58: ='Revenue Proportions'!H65 -> 402350218 | M58: ='Revenue Proportions'!I65 -> 1097499 | O58: 0.1898782502 | P58: 0 | Q58: 0.002892939779
A59: GENERAL SERVICE 1,000 TO 4,999 KW | C59: ='Revenue Proportions'!P66 -> 0.009807361508 | D59: ='Revenue Proportions'!Q66 -> 0 | E59: ='Revenue Proportions'!R66 -> 0.1153853375 | F59: 309.9303092 | G59: 0 | H59: 3646.384737 | I59: 3956.315047 | K59: ='Revenue Proportions'!G66 -> 43 | L59: ='Revenue Proportions'!H66 -> 540417878 | M59: ='Revenue Proportions'!I66 -> 1135425 | O59: 0.6006401342 | P59: 0 | Q59: 0.003211471244
A60: LARGE USE | C60: ='Revenue Proportions'!P67 -> 0.00175378796 | D60: ='Revenue Proportions'!Q67 -> 0 | E60: ='Revenue Proportions'!R67 -> 0.03863693115 | F60: 55.42286213 | G60: 0 | H60: 1220.996698 | I60: 1276.41956 | K60: ='Revenue Proportions'!G67 -> 4 | L60: ='Revenue Proportions'!H67 -> 197428962 | M60: ='Revenue Proportions'!I67 -> 423180 | O60: 1.154642961 | P60: 0 | Q60: 0.002885289234
A61: UNMETERED SCATTERED LOAD | C61: ='Revenue Proportions'!P68 -> 0.00108848765 | D61: ='Revenue Proportions'!Q68 -> 0.001338746781 | E61: ='Revenue Proportions'!R68 -> 0 | F61: 34.39817261 | G61: 42.30681243 | H61: 0 | I61: 76.70498503 | K61: ='Revenue Proportions'!G68 -> 559 | L61: ='Revenue Proportions'!H68 -> 1810678 | M61: ='Revenue Proportions'!I68 -> 0 | O61: 0.005127932708 | P61: 2.336517726e-05 | Q61: 0
A62: SENTINEL LIGHTING | C62: ='Revenue Proportions'!P69 -> 0.0001053885501 | D62: ='Revenue Proportions'!Q69 -> 0 | E62: ='Revenue Proportions'!R69 -> 1.416416029e-05 | F62: 3.330468231 | G62: 0 | H62: 0.4476130073 | I62: 3.778081238 | K62: ='Revenue Proportions'!G69 -> 35 | L62: ='Revenue Proportions'!H69 -> 18189 | M62: ='Revenue Proportions'!I69 -> 51 | O62: 0.007929686264 | P62: 0 | Q62: 0.008776725633
A63: STREET LIGHTING | C63: ='Revenue Proportions'!P70 -> 0.002444558968 | D63: ='Revenue Proportions'!Q70 -> 0 | E63: ='Revenue Proportions'!R70 -> 0.009678688939 | F63: 77.25247167 | G63: 0 | H63: 305.864024 | I63: 383.1164957 | K63: ='Revenue Proportions'!G70 -> 14152 | L63: ='Revenue Proportions'!H70 -> 10182750 | M63: ='Revenue Proportions'!I70 -> 28425 | O63: 0.0004548972564 | P63: 0 | Q63: 0.01076038783
A64: Total | C64: =SUM(C56:C63) -> 0.6684132939 | D64: 0.06740268121 | E64: 0.2641840248 | F64: 21123.06544 | G64: 2130.046273 | H64: 8348.691587 | I64: 31601.8033 | K64: =SUM(K56:K63) -> 70419 | L64: =SUM(L56:L63) -> 1678459496 | M64: =SUM(M56:M63) -> 2684580
I65: ='M-factor RR Calculation_2020'!Y67 -> 31601.8033

Sheet M-factor RR Calculation_2021
B1: 2021 Rates | H1: Back to Index
B2: M-factor Revenue Requirement_HRZ | G2: M-factor Revenue Requirement_BRZ | L2: M-factor Revenue Requirement_PRZ | Q2: M-factor Revenue Requirement_ERZ | V2: M-factor Revenue Requirement_GRZ
B5: Return on Rate Base | G5: Return on Rate Base | L5: Return on Rate Base | Q5: Return on Rate Base | V5: Return on Rate Base
B6: Incremental Capital | E6: ='Summary by RZ'!R3 -> 12461309.85 | G6: Incremental Capital | J6: ='Summary by RZ'!R4 -> 3286454.495 | L6: Incremental Capital | O6: ='Summary by RZ'!R5 -> 18992309.17 | Q6: Incremental Capital | T6: ='Summary by RZ'!R6 -> 7224514.623 | V6: Incremental Capital | Y6: ='Summary by RZ'!R7 -> 1689542.271
B7: Depreciation Expense | E7: ='Summary by RZ'!R21 -> 447404.1551 | G7: Depreciation Expense | J7: ='Summary by RZ'!R22 -> 224607.5667 | L7: Depreciation Expense | O7: ='Summary by RZ'!R23 -> 925651.071 | Q7: Depreciation Expense | T7: ='Summary by RZ'!R24 -> 367309.4074 | V7: Depreciation Expense | Y7: ='Summary by RZ'!R25 -> 79016.00018
B8: Incremental Capital to be included in Rate Base (avg NBV) | E8: =((E6)+(E6-E7))/2 -> 12237607.77 | G8: Incremental Capital to be included in Rate Base (avg NBV) | J8: =((J6)+(J6-J7))/2 -> 3174150.712 | L8: Incremental Capital to be included in Rate Base (avg NBV) | O8: =((O6)+(O6-O7))/2 -> 18529483.63 | Q8: Incremental Capital to be included in Rate Base (avg NBV) | T8: =((T6)+(T6-T7))/2 -> 7040859.92 | V8: Incremental Capital to be included in Rate Base (avg NBV) | Y8: =((Y6)+(Y6-Y7))/2 -> 1650034.271
B10: Deemed ShortTerm Debt % | C10: 0.04 | D10: E | E10: =E8*C10 -> 489504.311 | G10: Deemed ShortTerm Debt % | H10: 0.04 | I10: E | J10: =J8*H10 -> 126966.0285 | L10: Deemed ShortTerm Debt % | M10: 0.04 | N10: E | O10: =O8*M10 -> 741179.3452 | Q10: Deemed ShortTerm Debt % | R10: 0.04 | S10: E | T10: =T8*R10 -> 281634.3968 | V10: Deemed ShortTerm Debt % | W10: 0.04 | X10: E | Y10: =Y8*W10 -> 66001.37085
B11: Deemed Long Term Debt % | C11: 0.56 | D11: F | E11: =E8*C11 -> 6853060.354 | G11: Deemed Long Term Debt % | H11: 0.56 | I11: F | J11: =J8*H11 -> 1777524.399 | L11: Deemed Long Term Debt % | M11: 0.56 | N11: F | O11: =O8*M11 -> 10376510.83 | Q11: Deemed Long Term Debt % | R11: 0.56 | S11: F | T11: =T8*R11 -> 3942881.555 | V11: Deemed Long Term Debt % | W11: 0.56 | X11: F | Y11: =Y8*W11 -> 924019.1919
B13: Short Term Interest | C13: 0.0282 | D13: I | E13: =E10*C13 -> 13804.02157 | G13: Short Term Interest | H13: 0.0216 | I13: I | J13: =J10*H13 -> 2742.466215 | L13: Short Term Interest | M13: 0.0176 | N13: I | O13: =O10*M13 -> 13044.75648 | Q13: Short Term Interest | R13: 0.0208 | S13: I | T13: =T10*R13 -> 5857.995453 | V13: Short Term Interest | W13: 0.0165 | X13: I | Y13: =Y10*W13 -> 1089.022619
B14: Long Term Interest | C14: 0.0374 | D14: J | E14: =E11*C14 -> 256304.4572 | G14: Long Term Interest | H14: 0.0607 | I14: J | J14: =J11*H14 -> 107895.731 | L14: Long Term Interest | M14: 0.0388 | N14: J | O14: =O11*M14 -> 402608.6203 | Q14: Long Term Interest | R14: 0.0509 | S14: J | T14: =T11*R14 -> 200692.6712 | V14: Long Term Interest | W14: 0.0491 | X14: J | Y14: =Y11*W14 -> 45369.34232
B16: Return on Rate Base - Interest | E16: =SUM(E13:E14) -> 270108.4788 | G16: Return on Rate Base - Interest | J16: =SUM(J13:J14) -> 110638.1972 | L16: Return on Rate Base - Interest | O16: =SUM(O13:O14) -> 415653.3768 | Q16: Return on Rate Base - Interest | T16: =SUM(T13:T14) -> 206550.6666 | V16: Return on Rate Base - Interest | Y16: =SUM(Y13:Y14) -> 46458.36494
B19: Deemed Equity % | C19: 0.4 | D19: N | E19: =E8*C19 -> 4895043.11 | G19: Deemed Equity % | H19: 0.4 | I19: N | J19: =J8*H19 -> 1269660.285 | L19: Deemed Equity % | M19: 0.4 | N19: N | O19: =O8*M19 -> 7411793.452 | Q19: Deemed Equity % | R19: 0.4 | S19: N | T19: =T8*R19 -> 2816343.968 | V19: Deemed Equity % | W19: 0.4 | X19: N | Y19: =Y8*W19 -> 660013.7085
B21: Return on Rate Base -Equity | C21: 0.0898 | D21: O | E21: =E19*C21 -> 439574.8713 | G21: Return on Rate Base -Equity | H21: 0.093 | I21: O | J21: =J19*H21 -> 118078.4065 | L21: Return on Rate Base -Equity | M21: 0.0878 | N21: O | O21: =O19*M21 -> 650755.4651 | Q21: Return on Rate Base -Equity | R21: 0.0893 | S21: O | T21: =T19*R21 -> 251499.5163 | V21: Return on Rate Base -Equity | W21: 0.0919 | X21: O | Y21: =Y19*W21 -> 60655.25981
B23: Return on Rate Base - Total | E23: =E16+E21 -> 709683.3501 | G23: Return on Rate Base - Total | J23: =J16+J21 -> 228716.6037 | L23: Return on Rate Base - Total | O23: =O16+O21 -> 1066408.842 | Q23: Return on Rate Base - Total | T23: =T16+T21 -> 458050.1829 | V23: Return on Rate Base - Total | Y23: =Y16+Y21 -> 107113.6248
B27: Amortization Expense | G27: Amortization Expense | L27: Amortization Expense | Q27: Amortization Expense | V27: Amortization Expense
B29: Amortization Expense - Incremental | D29: C | E29: =E7 -> 447404.1551 | G29: Amortization Expense - Incremental | I29: C | J29: =J7 -> 224607.5667 | L29: Amortization Expense - Incremental | N29: C | O29: =O7 -> 925651.071 | Q29: Amortization Expense - Incremental | S29: C | T29: =T7 -> 367309.4074 | V29: Amortization Expense - Incremental | X29: C | Y29: =Y7 -> 79016.00018
B32: Grossed up PIL's | G32: Grossed up PIL's | L32: Grossed up PIL's | Q32: Grossed up PIL's | V32: Grossed up PIL's
B34: Regulatory Taxable Income | D34: O | E34: =E21 -> 439574.8713 | G34: Regulatory Taxable Income | I34: O | J34: =J21 -> 118078.4065 | L34: Regulatory Taxable Income | N34: O | O34: =O21 -> 650755.4651 | Q34: Regulatory Taxable Income | S34: O | T34: =T21 -> 251499.5163 | V34: Regulatory Taxable Income | X34: O | Y34: =Y21 -> 60655.25981
B36: Add Back Amortization Expense | D36: S | E36: =E29 -> 447404.1551 | G36: Add Back Amortization Expense | I36: S | J36: =J29 -> 224607.5667 | L36: Add Back Amortization Expense | N36: S | O36: =O29 -> 925651.071 | Q36: Add Back Amortization Expense | S36: S | T36: =T29 -> 367309.4074 | V36: Add Back Amortization Expense | X36: S | Y36: =Y29 -> 79016.00018
B38: Deduct CCA | E38: ='Summary by RZ'!R12 -> 2162341.279 | G38: Deduct CCA | J38: ='Summary by RZ'!R13 -> 1235155.352 | L38: Deduct CCA | O38: ='Summary by RZ'!R14 -> 3984651.173 | Q38: Deduct CCA | T38: ='Summary by RZ'!R15 -> 2065324.376 | V38: Deduct CCA | Y38: ='Summary by RZ'!R16 -> 465589.746
B40: Incremental Taxable Income | E40: =E34+E36-E38 -> -1275362.252 | G40: Incremental Taxable Income | J40: =J34+J36-J38 -> -892469.3788 | L40: Incremental Taxable Income | O40: =O34+O36-O38 -> -2408244.637 | Q40: Incremental Taxable Income | T40: =T34+T36-T38 -> -1446515.452 | V40: Incremental Taxable Income | Y40: =Y34+Y36-Y38 -> -325918.486
B42: Current Tax Rate | C42: 0.265 | D42: X | G42: Current Tax Rate | H42: 0.265 | I42: X | L42: Current Tax Rate | M42: 0.265 | N42: X | Q42: Current Tax Rate | R42: 0.265 | S42: X | V42: Current Tax Rate | W42: 0.265 | X42: X
B44: PIL's Before Gross Up | E44: =E40*C42 -> -337970.9969 | G44: PIL's Before Gross Up | J44: =J40*H42 -> -236504.3854 | L44: PIL's Before Gross Up | O44: =O40*M42 -> -638184.8287 | Q44: PIL's Before Gross Up | T44: =T40*R42 -> -383326.5949 | V44: PIL's Before Gross Up | Y44: =Y40*W42 -> -86368.3988
B46: Incremental Grossed Up PIL's | E46: =E44/(1-C42) -> -459824.4855 | G46: Incremental Grossed Up PIL's | J46: =J44/(1-H42) -> -321774.674 | L46: Incremental Grossed Up PIL's | O46: =O44/(1-M42) -> -868278.6785 | Q46: Incremental Grossed Up PIL's | T46: =T44/(1-R42) -> -521532.7821 | V46: Incremental Grossed Up PIL's | Y46: =Y44/(1-W42) -> -117508.0256
B49: Ontario Capital Tax | G49: Ontario Capital Tax | L49: Ontario Capital Tax | Q49: Ontario Capital Tax | V49: Ontario Capital Tax
B50: Incremental Capital CAPEX | G50: Incremental Capital CAPEX | L50: Incremental Capital CAPEX | Q50: Incremental Capital CAPEX | V50: Incremental Capital CAPEX
B52: Less : Available Capital Exemption (if any) | G52: Less : Available Capital Exemption (if any) | L52: Less : Available Capital Exemption (if any) | Q52: Less : Available Capital Exemption (if any) | V52: Less : Available Capital Exemption (if any)
B54: Incremental Capital CAPEX subject to OCT | G54: Incremental Capital CAPEX subject to OCT | L54: Incremental Capital CAPEX subject to OCT | Q54: Incremental Capital CAPEX subject to OCT | V54: Incremental Capital CAPEX subject to OCT
B56: Ontario Capital Tax Rate (F1.1 Z-Factor Tax Changes) | D56: AD | G56: Ontario Capital Tax Rate (F1.1 Z-Factor Tax Changes) | I56: AD | L56: Ontario Capital Tax Rate (F1.1 Z-Factor Tax Changes) | N56: AD | Q56: Ontario Capital Tax Rate (F1.1 Z-Factor Tax Changes) | S56: AD | V56: Ontario Capital Tax Rate (F1.1 Z-Factor Tax Changes) | X56: AD
B58: Incremental Ontario Capital Tax | G58: Incremental Ontario Capital Tax | L58: Incremental Ontario Capital Tax | Q58: Incremental Ontario Capital Tax | V58: Incremental Ontario Capital Tax
B61: Incremental Revenue Requirement | G61: Incremental Revenue Requirement | L61: Incremental Revenue Requirement | Q61: Incremental Revenue Requirement | V61: Incremental Revenue Requirement
B62: Return on Rate Base - Total | D62: Q | E62: =E23 -> 709683.3501 | G62: Return on Rate Base - Total | I62: Q | J62: =J23 -> 228716.6037 | L62: Return on Rate Base - Total | N62: Q | O62: =O23 -> 1066408.842 | Q62: Return on Rate Base - Total | S62: Q | T62: =T23 -> 458050.1829 | V62: Return on Rate Base - Total | X62: Q | Y62: =Y23 -> 107113.6248
B63: Amortization Expense - Total | E63: =E29 -> 447404.1551 | G63: Amortization Expense - Total | J63: =J29 -> 224607.5667 | L63: Amortization Expense - Total | O63: =O29 -> 925651.071 | Q63: Amortization Expense - Total | T63: =T29 -> 367309.4074 | V63: Amortization Expense - Total | Y63: =Y29 -> 79016.00018
B64: Incremental Grossed Up PIL's | D64: Z | E64: =E46 -> -459824.4855 | G64: Incremental Grossed Up PIL's | I64: Z | J64: =J46 -> -321774.674 | L64: Incremental Grossed Up PIL's | N64: Z | O64: =O46 -> -868278.6785 | Q64: Incremental Grossed Up PIL's | S64: Z | T64: =T46 -> -521532.7821 | V64: Incremental Grossed Up PIL's | X64: Z | Y64: =Y46 -> -117508.0256
B67: Incremental Revenue Requirement | E67: =SUM(E62:E65) -> 697263.0196 | G67: Incremental Revenue Requirement | J67: =SUM(J62:J65) -> 131549.4964 | L67: Incremental Revenue Requirement | O67: =SUM(O62:O65) -> 1123781.234 | Q67: Incremental Revenue Requirement | T67: =SUM(T62:T65) -> 303826.8082 | V67: Incremental Revenue Requirement | Y67: =SUM(Y62:Y65) -> 68621.59936
Y70: =Y67+T67+O67+J67+E67 -> 2325042.158
Y71: =+Y62+T62+O62+J62+E62 -> 2569972.603
Y72: =+Y63+T63+O63+J63+E63 -> 2043988.2
Y73: =+Y64+T64+O64+J64+E64 -> -2288918.646

Sheet Bill Impacts_2021
H1: Back to Index
I2: internal use
B3: Enersource Rate Class | C3: Unit | D3: kWh | E3: kW | F3: MCM Rate Rider Incl HST | G3: % Increase vs. Total Bill | I3: 2019 Total Bill (Approved) | J3: Fixed Rate Rider | K3: Variable Rate Rider | L3: Taxes
B4: Residential | C4: kWh | D4: 750 | F4: =+(J4+D4*K4)*(1+L4) -> 0.05825319197 | G4: =+F4/I4 -> 0.0005356122837 | I4: 108.76 | J4: ='Rate Rider Calculation_2021'!O4 -> 0.05547923045 | K4: ='Rate Rider Calculation_2021'!P4 -> 0 | L4: 0.05
B5: General Service < 50 kW | C5: kWh | D5: 2000 | F5: =+(J5+D5*K5)*(1+L5) -> 0.1694026845 | G5: =+F5/I5 -> 0.0005760232733 | I5: 294.09 | J5: ='Rate Rider Calculation_2021'!O5 -> 0.1018530037 | K5: ='Rate Rider Calculation_2021'!P5+'Rate Rider Calculation_2021'!Q5 -> 2.974144313e-05 | L5: 0.05
B6: General Service 50 to 499 kW | C6: kW | D6: 100000 | E6: 230 | F6: =+(J6+E6*K6)*(1+L6) -> 3.008565252 | G6: 0.0001840800238 | I6: 16343.79 | J6: ='Rate Rider Calculation_2021'!O6 -> 0.1793866581 | K6: ='Rate Rider Calculation_2021'!P6+'Rate Rider Calculation_2021'!Q6 -> 0.01079591508 | L6: 0.13
B7: General Service 500 to 4999 kW | C7: kW | D7: 400000 | E7: 2250 | F7: =+(J7+E7*K7)*(1+L7) -> 18.74034687 | G7: 0.0002482497573 | I7: 75489.89 | J7: ='Rate Rider Calculation_2021'!O7 -> 4.085078726 | K7: ='Rate Rider Calculation_2021'!P7+'Rate Rider Calculation_2021'!Q7 -> 0.005555244016 | L7: 0.13
B8: Large Use | C8: kW | D8: 3000000 | E8: 5000 | F8: =+(J8+E8*K8)*(1+L8) -> 75.35436643 | G8: 0.0001661822881 | I8: 453444.03 | J8: ='Rate Rider Calculation_2021'!O8 -> 32.20922793 | K8: ='Rate Rider Calculation_2021'!P8+'Rate Rider Calculation_2021'!Q8 -> 0.006895210419 | L8: 0.13
B9: Unmetered | C9: kWh | D9: 300 | F9: =+(J9+D9*K9)*(1+L9) -> 0.03671009203 | G9: 0.0007121259366 | I9: 51.55 | J9: ='Rate Rider Calculation_2021'!O9 -> 0.02102491249 | K9: ='Rate Rider Calculation_2021'!P9+'Rate Rider Calculation_2021'!Q9 -> 3.82063154e-05 | L9: 0.13
B10: Street Lighting | C10: kW | D10: 33 | E10: 0.1 | F10: 0.007029258763 | G10: 0.001727090605 | I10: 4.07 | J10: ='Rate Rider Calculation_2021'!O10 -> 0.003523217109 | K10: ='Rate Rider Calculation_2021'!P10+'Rate Rider Calculation_2021'!Q10 -> 0.02697365867 | L10: 0.13
I12: internal use
B13: Brampton Rate Class | C13: Unit | D13: kWh | E13: kW | F13: MCM Rate Rider Incl HST | G13: % Increase vs. Total Bill | I13: 2019 Total Bill (Approved) | J13: Fixed Rate Rider | K13: Variable Rate Rider | L13: Taxes
B14: Residential | C14: kWh | D14: 750 | F14: =+(J14+D14*K14)*(1+L14) -> 0.04329878443 | G14: =+F14/I14 -> 0.0004086718681 | I14: 105.95 | J14: =+'Rate Rider Calculation_2021'!O16 -> 0.04123693755 | K14: ='Rate Rider Calculation_2021'!P16+'Rate Rider Calculation_2021'!Q16 -> 0 | L14: 0.05
B15: General Service < 50 kW | C15: kWh | D15: 2000 | F15: =+(J15+D15*K15)*(1+L15) -> 0.1066433024 | G15: =+F15/I15 -> 0.000389977702 | I15: 273.46 | J15: =+'Rate Rider Calculation_2021'!O17 -> 0.04352787852 | K15: ='Rate Rider Calculation_2021'!P17+'Rate Rider Calculation_2021'!Q17 -> 2.901858568e-05 | L15: 0.05
B16: General Service 50 to 699 kW | C16: kW | D16: 182500 | E16: 500 | F16: =+(J16+E16*K16)*(1+L16) -> 3.024595985 | G16: 0.0001062451695 | I16: 28468.08 | J16: =+'Rate Rider Calculation_2021'!O18 -> 0.2171812044 | K16: ='Rate Rider Calculation_2021'!P18+'Rate Rider Calculation_2021'!Q18 -> 0.004918904822 | L16: 0.13
B17: General Service 700 to 4999 kW | C17: kW | D17: 627216 | E17: 1432 | F17: =+(J17+E17*K17)*(1+L17) -> 11.45431267 | G17: 0.0001171912385 | I17: 97740.35 | J17: =+'Rate Rider Calculation_2021'!O19 -> 1.95953515 | K17: ='Rate Rider Calculation_2021'!P19+'Rate Rider Calculation_2021'!Q19 -> 0.005710212805 | L17: 0.13
B18: Large Use | C18: kW | D18: 10220000 | E18: 20000 | F18: =+(J18+E18*K18)*(1+L18) -> 106.9197404 | G18: 7.039570799e-05 | I18: 1518838.91 | J18: =+'Rate Rider Calculation_2021'!O20 -> 8.154035907 | K18: ='Rate Rider Calculation_2021'!P20+'Rate Rider Calculation_2021'!Q20 -> 0.004323260169 | L18: 0.13
B19: Unmetered | C19: kWh | D19: 21296 | F19: =+(J19+D19*K19)*(1+L19) -> 0.8270412247 | G19: 0.0002172508044 | I19: 3806.85 | J19: =+'Rate Rider Calculation_2021'!O21 -> 0.001883662579 | K19: ='Rate Rider Calculation_2021'!P21+'Rate Rider Calculation_2021'!Q21 -> 3.427926496e-05 | L19: 0.13
B20: Street Lighting | C20: kW | D20: 2787508 | E20: 7922 | F20: =+(J20+E20*K20)*(1+L20) -> 178.9923309 | G20: 0.0003189017942 | I20: 561277.2776 | J20: =+'Rate Rider Calculation_2021'!O22 -> 0.00398793429 | K20: ='Rate Rider Calculation_2021'!P22+'Rate Rider Calculation_2021'!Q22 -> 0.01999448433 | L20: 0.13
B21: Embedded Distributor | C21: kWh | D21: 1417701 | E21: 4000 | F21: =+(J21+D21*K21)*(1+L21) -> 8.145265676 | G21: 3.748033814e-05 | I21: 217321.0297 | J21: =+'Rate Rider Calculation_2021'!O23 -> 7.208199713 | K21: ='Rate Rider Calculation_2021'!P23+'Rate Rider Calculation_2021'!Q23 -> 0 | L21: 0.13
B22: Distributed Generation | C22: kWh | D22: 156 | F22: 0.2035918517 | G22: 0.001412796318 | I22: 144.1055933 | J22: =+'Rate Rider Calculation_2021'!O24 -> 0.1801697802 | K22: ='Rate Rider Calculation_2021'!P24+'Rate Rider Calculation_2021'!Q24 -> 0 | L22: 0.13
I24: internal use
B25: Horizon Rate Class | C25: Unit | D25: kWh | E25: kW | F25: MCM Rate Rider Incl HST | G25: % Increase vs. Total Bill | I25: 2019 Total Bill (Approved) | J25: Fixed Rate Rider | K25: Variable Rate Rider | L25: Taxes
B26: Residential | C26: kWh | D26: 750 | F26: =+(J26+D26*K26)*(1+L26) -> 0.16435012 | G26: =+F26/I26 -> 0.001511682487 | I26: 108.72 | J26: ='Rate Rider Calculation_2021'!O31 -> 0.1565239238 | K26: ='Rate Rider Calculation_2021'!P31+'Rate Rider Calculation_2021'!Q31 -> 0 | L26: 0.05
B27: General Service Less Than 50 Kw | C27: kWh | D27: 2000 | F27: =+(J27+D27*K27)*(1+L27) -> 0.3945018424 | G27: =+F27/I27 -> 0.001416167722 | I27: 278.57 | J27: ='Rate Rider Calculation_2021'!O32 -> 0.2479174808 | K27: ='Rate Rider Calculation_2021'!P32+'Rate Rider Calculation_2021'!Q32 -> 6.389927976e-05 | L27: 0.05
B28: General Service 50 To 4,999 Kw | C28: kW | D28: 110000 | E28: 250 | F28: =+(J28+E28*K28)*(1+L28) -> 6.910264501 | G28: 0.0004156980151 | I28: 16623.28 | J28: ='Rate Rider Calculation_2021'!O33 -> 2.282787114 | K28: ='Rate Rider Calculation_2021'!P33+'Rate Rider Calculation_2021'!Q33 -> 0.01532996482 | L28: 0.13
B29: Large Use | C29: kW | D29: 2555000 | E29: 5000 | F29: =+(J29+E29*K29)*(1+L29) -> 208.2835135 | G29: 0.0005315610137 | I29: 391833.69 | J29: ='Rate Rider Calculation_2021'!O34 -> 142.3328317 | K29: ='Rate Rider Calculation_2021'!P34+'Rate Rider Calculation_2021'!Q34 -> 0.008397772317 | L29: 0.13
B30: Large Use With Dedicated Assets | C30: kW | D30: 10220000 | E30: 20000 | F30: =+(J30+E30*K30)*(1+L30) -> 83.12223785 | G30: 5.755240202e-05 | I30: 1444287.9 | J30: ='Rate Rider Calculation_2021'!O35 -> 33.74263022 | K30: ='Rate Rider Calculation_2021'!P35+'Rate Rider Calculation_2021'!Q35 -> 0.001990843615 | L30: 0.13
B31: Unmetered Scattered Load | C31: kWh | D31: 250 | F31: =+(J31+D31*K31)*(1+L31) -> 0.07936056053 | G31: 0.002040117237 | I31: 38.9 | J31: ='Rate Rider Calculation_2021'!O36 -> 0.05059181507 | K31: ='Rate Rider Calculation_2021'!P36+'Rate Rider Calculation_2021'!Q36 -> 7.855507787e-05 | L31: 0.13
B32: Sentinel Lighting | C32: kW | D32: 97008 | E32: 216 | F32: =+(J32+E32*K32)*(1+L32) -> 22.13229305 | G32: 0.001020995972 | I32: 21677.16 | J32: ='Rate Rider Calculation_2021'!O37 -> 0.03300485734 | K32: ='Rate Rider Calculation_2021'!P37+'Rate Rider Calculation_2021'!Q37 -> 0.09052358884 | L32: 0.13
B33: Street Lighting | C33: kW | D33: 1782038 | E33: 4974 | F33: 170.5350786 | G33: 0.0004609707766 | I33: 369947.7 | J33: ='Rate Rider Calculation_2021'!O38 -> 0.01143152253 | K33: ='Rate Rider Calculation_2021'!P38+'Rate Rider Calculation_2021'!Q38 -> 0.03033867455 | L33: 0.13
I35: internal use
B36: PowerStream Rate Class | C36: Unit | D36: kWh | E36: kW | F36: MCM Rate Rider Incl HST | G36: % Increase vs. Total Bill | I36: 2019 Total Bill (Approved) | J36: Fixed Rate Rider | K36: Variable Rate Rider | L36: Taxes
B37: Residential | C37: kWh | D37: 750 | F37: =+(J37+D37*K37)*(1+L37) -> 0.1779696377 | G37: =+F37/I37 -> 0.00166466783 | I37: 106.91 | J37: ='Rate Rider Calculation_2021'!O44 -> 0.1512792366 | K37: ='Rate Rider Calculation_2021'!P44+'Rate Rider Calculation_2021'!Q44 -> 2.428754196e-05 | L37: 0.05
B38: General Service Less Than 50 Kw | C38: kWh | D38: 2000 | F38: =+(J38+D38*K38)*(1+L38) -> 0.3782784661 | G38: =+F38/I38 -> 0.001379118692 | I38: 274.29 | J38: ='Rate Rider Calculation_2021'!O45 -> 0.1584087459 | K38: ='Rate Rider Calculation_2021'!P45+'Rate Rider Calculation_2021'!Q45 -> 0.0001009282299 | L38: 0.05
B39: General Service 50 To 4,999 Kw | C39: kW | D39: 80000 | E39: 250 | F39: =+(J39+E39*K39)*(1+L39) -> 7.42263174 | G39: 0.000582675837 | I39: 12738.87 | J39: ='Rate Rider Calculation_2021'!O46 -> 0.7769314812 | K39: ='Rate Rider Calculation_2021'!P46+'Rate Rider Calculation_2021'!Q46 -> 0.02316707669 | L39: 0.13
B40: Large Use | C40: kW | D40: 2800000 | E40: 7350 | F40: =+(J40+E40*K40)*(1+L40) -> 140.4507322 | G40: 0.0003373058904 | I40: 416389.8 | J40: ='Rate Rider Calculation_2021'!O47 -> 33.47298239 | K40: ='Rate Rider Calculation_2021'!P47+'Rate Rider Calculation_2021'!Q47 -> 0.0123564219 | L40: 0.13
B41: Unmetered Scattered Load | C41: kWh | D41: 150 | E41: 0 | F41: =+(J41+D41*K41)*(1+L41) -> 0.07175322494 | G41: 0.002420824053 | I41: 29.64 | J41: ='Rate Rider Calculation_2021'!O48 -> 0.04738769298 | K41: ='Rate Rider Calculation_2021'!P48+'Rate Rider Calculation_2021'!Q48 -> 0.0001074049078 | L41: 0.13
B42: Sentinel Lighting | C42: kW | D42: 180 | E42: 1 | F42: =+(J42+E42*K42)*(1+L42) -> 0.08756576947 | G42: 0.002461095263 | I42: 35.58 | J42: ='Rate Rider Calculation_2021'!O49 -> 0.02310015102 | K42: ='Rate Rider Calculation_2021'!P49+'Rate Rider Calculation_2021'!Q49 -> 0.05439168036 | L42: 0.13
B43: Street Lighting | C43: kW | D43: 280 | E43: 1 | F43: 0.04675151051 | G43: 0.000907267815 | I43: 51.53 | J43: ='Rate Rider Calculation_2021'!O50 -> 0.006530650172 | K43: ='Rate Rider Calculation_2021'!P50+'Rate Rider Calculation_2021'!Q50 -> 0.03484236798 | L43: 0.13
I45: internal use
B46: Guelph Rate Class | C46: Unit | D46: kWh | E46: kW | F46: MCM Rate Rider Incl HST | G46: % Increase vs. Total Bill | I46: 2019 Total Bill (Approved) | J46: Fixed Rate Rider | K46: Variable Rate Rider | L46: Taxes
B47: Residential | C47: kWh | D47: 750 | F47: =+(J47+D47*K47)*(1+L47) -> 0.068877777 | G47: =+F47/I47 -> 0.0006130097633 | I47: 112.36 | J47: =+'Rate Rider Calculation_2021'!O56 -> 0.06559788286 | K47: ='Rate Rider Calculation_2021'!P56+'Rate Rider Calculation_2021'!Q56 -> 0 | L47: 0.05
B48: General Service Less Than 50 Kw | C48: kWh | D48: 2000 | F48: =+(J48+D48*K48)*(1+L48) -> 0.1068760578 | G48: =+F48/I48 -> 0.0004092516095 | I48: 261.15 | J48: =+'Rate Rider Calculation_2021'!O57 -> 0.03802971032 | K48: ='Rate Rider Calculation_2021'!P57+'Rate Rider Calculation_2021'!Q57 -> 3.18785057e-05 | L48: 0.05
B49: General Service 50 To 999 Kw | C49: kW | D49: 189800 | E49: 500 | F49: =+(J49+E49*K49)*(1+L49) -> 4.015162448 | G49: 0.0001291190593 | I49: 31096.59 | J49: =+'Rate Rider Calculation_2021'!O58 -> 0.4123103068 | K49: ='Rate Rider Calculation_2021'!P58+'Rate Rider Calculation_2021'!Q58 -> 0.006281861595 | L49: 0.13
B50: General Service 1,000 To 4,999 Kw | C50: kW | D50: 489100 | E50: 1000 | F50: =+(J50+E50*K50)*(1+L50) -> 9.353905861 | G50: 0.0001173354213 | I50: 79719.37 | J50: =+'Rate Rider Calculation_2021'!O59 -> 1.304257427 | K50: ='Rate Rider Calculation_2021'!P59+'Rate Rider Calculation_2021'!Q59 -> 0.006973535371 | L50: 0.13
B51: Large Use | C51: kW | D51: 4215750 | E51: 7500 | F51: =+(J51+E51*K51)*(1+L51) -> 55.93117028 | G51: 8.849180384e-05 | I51: 632049.16 | J51: =+'Rate Rider Calculation_2021'!O60 -> 2.507244473 | K51: ='Rate Rider Calculation_2021'!P60+'Rate Rider Calculation_2021'!Q60 -> 0.006265248853 | L51: 0.13
B52: Unmetered Scattered Load | C52: kWh | D52: 750 | F52: =+(J52+D52*K52)*(1+L52) -> 0.05558152167 | G52: 0.0002938333774 | I52: 189.16 | J52: =+'Rate Rider Calculation_2021'!O61 -> 0.01113502734 | K52: ='Rate Rider Calculation_2021'!P61+'Rate Rider Calculation_2021'!Q61 -> 5.07362133e-05 | L52: 0.13
B53: Sentinel Lighting | C53: kW | D53: 140 | E53: 2 | F53: =+(J53+E53*K53)*(1+L53) -> 0.06252883136 | G53: 0.0009113661472 | I53: 68.61 | J53: =+'Rate Rider Calculation_2021'!O62 -> 0.01721888301 | K53: ='Rate Rider Calculation_2021'!P62+'Rate Rider Calculation_2021'!Q62 -> 0.01905818299 | L53: 0.13
B54: Street Lighting | C54: kW | D54: 800000 | E54: 2200 | F54: 58.08799208 | G54: 0.0003777946623 | I54: 153755.46 | J54: =+'Rate Rider Calculation_2021'!O63 -> 0.0009877846837 | K54: ='Rate Rider Calculation_2021'!P63+'Rate Rider Calculation_2021'!Q63 -> 0.0233655977 | L54: 0.13

Sheet Rate Rider Calculation_2021
H1: Back to Index
A2: Enersource Rate Class | C2: Service Charge % Revenue | D2: Distribution Volumetric Rate % Revenue kWh | E2: Distribution Volumetric Rate % Revenue kW | F2: Service Charge Revenue | G2: Distribution Volumetric Rate Revenue kWh | H2: Distribution Volumetric Rate Revenue kW | I2: Total Revenue by Rate Class | K2: Billed Customers or Connections | L2: Billed kWh | M2: Billed kW | O2: Service Charge Rate Rider | P2: Distribution Volumetric Rate kWh Rate Rider | Q2: Distribution Volumetric Rate kW Rate Rider
C3: From Sheet 8 | D3: From Sheet 8 | E3: From Sheet 8 | F3: Col C * Col Itotal | G3: Col D* Col Itotal | H3: Col E* Col Itotal | I3: Col Itotal | K3: From Sheet 4 | L3: From Sheet 4 | M3: From Sheet 4 | O3: Col F / Col K / 12 | P3: Col G / Col L | Q3: Col H / Col M
A4: RESIDENTIAL | C4: ='Revenue Proportions'!P7 -> 0.4021608098 | D4: ='Revenue Proportions'!Q7 -> 0 | E4: ='Revenue Proportions'!R7 -> 0 | F4: =C4*$I$12 -> 122187.2352 | G4: =D4*$I$12 -> 0 | H4: =E4*$I$12 -> 0 | I4: =SUM(F4:H4) -> 122187.2352 | K4: ='Revenue Proportions'!G7 -> 183533 | L4: ='Revenue Proportions'!H7 -> 1490532667 | M4: ='Revenue Proportions'!I7 -> 0 | O4: =F4/K4/12 -> 0.05547923045 | P4: =IF(ISERROR(G4/L4),0,G4/L4) -> 0 | Q4: 0
A5: GENERAL SERVICE LESS THAN 50 kW | C5: ='Revenue Proportions'!P8 -> 0.07444603184 | D5: ='Revenue Proportions'!Q8 -> 0.06711464909 | E5: ='Revenue Proportions'!R8 -> 0 | F5: =C5*$I$12 -> 22618.70024 | G5: 20391.22961 | H5: 0 | I5: =SUM(F5:H5) -> 43009.92985 | K5: ='Revenue Proportions'!G8 -> 18506 | L5: ='Revenue Proportions'!H8 -> 685616684 | M5: ='Revenue Proportions'!I8 -> 0 | O5: 0.1018530037 | P5: 2.974144313e-05 | Q5: =IF(ISERROR(H5/M5),0,H5/M5) -> 0
A6: GENERAL SERVICE 50 TO 499 kW | C6: ='Revenue Proportions'!P9 -> 0.02646280644 | D6: ='Revenue Proportions'!Q9 -> 0 | E6: ='Revenue Proportions'!R9 -> 0.2029087669 | F6: 8040.110017 | G6: 0 | H6: 61649.123 | I6: 69689.23301 | K6: ='Revenue Proportions'!G9 -> 3735 | M6: ='Revenue Proportions'!I9 -> 5710412 | O6: 0.1793866581 | P6: 0 | Q6: 0.01079591508
A7: GENERAL SERVICE 500 TO 4,999 kW | C7: ='Revenue Proportions'!P10 -> 0.07712292312 | D7: ='Revenue Proportions'!Q10 -> 0 | E7: ='Revenue Proportions'!R10 -> 0.08384747717 | F7: 23432.01157 | G7: 0 | H7: 25475.11136 | I7: 48907.12294 | K7: ='Revenue Proportions'!G10 -> 478 | L7: ='Revenue Proportions'!H10 -> 2037760513 | M7: ='Revenue Proportions'!I10 -> 4585777.203 | O7: 4.085078726 | P7: 0 | Q7: 0.005555244016
A8: LARGE USE | C8: ='Revenue Proportions'!P11 -> 0.01144927479 | D8: ='Revenue Proportions'!Q11 -> 0 | E8: ='Revenue Proportions'!R11 -> 0.03978723226 | F8: 3478.596617 | G8: 0 | H8: 12088.42778 | I8: 15567.0244 | K8: ='Revenue Proportions'!G11 -> 9 | L8: ='Revenue Proportions'!H11 -> 977049362 | M8: ='Revenue Proportions'!I11 -> 1753163 | O8: 32.20922793 | P8: 0 | Q8: 0.006895210419
A9: UNMETERED SCATTERED LOAD | C9: ='Revenue Proportions'!P12 -> 0.002582555959 | D9: ='Revenue Proportions'!Q12 -> 0.00143828703 | E9: ='Revenue Proportions'!R12 -> 0 | F9: 784.6497341 | G9: 436.9901577 | H9: 0 | I9: 1221.639892 | K9: ='Revenue Proportions'!G12 -> 3110 | L9: ='Revenue Proportions'!H12 -> 11437642 | M9: ='Revenue Proportions'!I12 -> 0 | O9: 0.02102491249 | P9: 3.82063154e-05 | Q9: 0
A10: STREET LIGHTING | C10: ='Revenue Proportions'!P13 -> 0.007077214813 | D10: ='Revenue Proportions'!Q13 -> 0 | E10: ='Revenue Proportions'!R13 -> 0.003601970762 | F10: 2150.247587 | G10: 0 | H10: 1094.37528 | I10: 3244.622867 | K10: ='Revenue Proportions'!G13 -> 50859 | L10: ='Revenue Proportions'!H13 -> 13289944 | M10: ='Revenue Proportions'!I13 -> 40572 | O10: 0.003523217109 | P10: 0 | Q10: 0.02697365867
A11: Total | C11: =SUM(C4:C10) -> 0.6013016168 | D11: 0.06855293612 | E11: 0.3301454471 | F11: 182691.551 | G11: 20828.21977 | H11: 100307.0374 | I11: 303826.8082 | K11: =SUM(K4:K10) -> 260230 | L11: =SUM(L4:L10) -> 5215686812 | M11: =SUM(M4:M10) -> 12089924.2
I12: ='M-factor RR Calculation_2021'!T67 -> 303826.8082
A14: Brampton Rate Class | C14: Service Charge % Revenue | D14: Distribution Volumetric Rate % Revenue kWh | E14: Distribution Volumetric Rate % Revenue kW | F14: Service Charge Revenue | G14: Distribution Volumetric Rate Revenue kWh | H14: Distribution Volumetric Rate Revenue kW | I14: Total Revenue by Rate Class | K14: Billed Customers or Connections | L14: Billed kWh | M14: Billed kW | O14: Service Charge Rate Rider | P14: Distribution Volumetric Rate kWh Rate Rider | Q14: Distribution Volumetric Rate kW Rate Rider
C15: From Sheet 8 | D15: From Sheet 8 | E15: From Sheet 8 | F15: Col C * Col Itotal | G15: Col D* Col Itotal | H15: Col E* Col Itotal | I15: Col Itotal | K15: From Sheet 4 | L15: From Sheet 4 | M15: From Sheet 4 | O15: Col F / Col K / 12 | P15: Col G / Col L | Q15: Col H / Col M
A16: RESIDENTIAL | C16: ='Revenue Proportions'!P20 -> 0.5765143424 | D16: ='Revenue Proportions'!Q20 -> 0 | E16: ='Revenue Proportions'!R20 -> 0 | F16: =C16*$I$27 -> 75840.17143 | G16: =D16*$I$27 -> 0 | H16: =E16*$I$27 -> 0 | I16: =SUM(F16:H16) -> 75840.17143 | K16: ='Revenue Proportions'!G20 -> 153261 | L16: ='Revenue Proportions'!H20 -> 1385125813 | M16: ='Revenue Proportions'!I20 -> 0 | O16: =F16/K16/12 -> 0.04123693755 | P16: =IF(ISERROR(G16/L16),0,G16/L16) -> 0 | Q16: 0
A17: GENERAL SERVICE LESS THAN 50 kW | C17: ='Revenue Proportions'!P21 -> 0.03757011295 | D17: ='Revenue Proportions'!Q21 -> 0.0760565388 | E17: ='Revenue Proportions'!R21 -> 0 | F17: =C17*$I$27 -> 4942.329439 | G17: 10005.19938 | H17: 0 | I17: =SUM(F17:H17) -> 14947.52882 | K17: ='Revenue Proportions'!G21 -> 9462 | L17: ='Revenue Proportions'!H21 -> 344785906.8 | M17: ='Revenue Proportions'!I21 -> 0 | O17: =F17/K17/12 -> 0.04352787852 | P17: 2.901858568e-05 | Q17: 0
A18: GENERAL SERVICE 50 TO 699 KW | C18: ='Revenue Proportions'!P22 -> 0.03151987402 | D18: ='Revenue Proportions'!Q22 -> 0 | E18: ='Revenue Proportions'!R22 -> 0.1188918616 | F18: 4146.423555 | G18: 0 | H18: 15640.16453 | I18: 19786.58808 | K18: ='Revenue Proportions'!G22 -> 1591 | L18: ='Revenue Proportions'!H22 -> 1131688196 | M18: ='Revenue Proportions'!I22 -> 3179603 | O18: =F18/K18/12 -> 0.2171812044 | P18: 0 | Q18: 0.004918904822
A19: GENERAL SERVICE 700 TO 4,999 KW | C19: ='Revenue Proportions'!P23 -> 0.01876870955 | D19: ='Revenue Proportions'!Q23 -> 0 | E19: ='Revenue Proportions'!R23 -> 0.08770726142 | F19: 2469.01429 | G19: 0 | H19: 11537.84607 | I19: 14006.86036 | K19: ='Revenue Proportions'!G23 -> 105 | L19: ='Revenue Proportions'!H23 -> 875091030.3 | M19: ='Revenue Proportions'!I23 -> 2020563.238 | O19: 1.95953515 | P19: 0 | Q19: 0.005710212805
A20: LARGE USE | C20: ='Revenue Proportions'!P24 -> 0.004462887364 | D20: ='Revenue Proportions'!Q24 -> 0 | E20: ='Revenue Proportions'!R24 -> 0.02161990293 | F20: 587.0905853 | G20: 0 | H20: 2844.087343 | I20: 3431.177928 | K20: ='Revenue Proportions'!G24 -> 6 | L20: ='Revenue Proportions'!H24 -> 350379704.8 | M20: ='Revenue Proportions'!I24 -> 657857.0874 | O20: 8.154035907 | P20: 0 | Q20: 0.004323260169
A21: UNMETERED SCATTERED LOAD | C21: ='Revenue Proportions'!P25 -> 0.000267365126 | D21: ='Revenue Proportions'!Q25 -> 0.001541244921 | E21: ='Revenue Proportions'!R25 -> 0 | F21: 35.17174768 | G21: 202.7499932 | H21: 0 | I21: 237.9217409 | K21: ='Revenue Proportions'!G25 -> 1556 | L21: ='Revenue Proportions'!H25 -> 5914654.047 | M21: ='Revenue Proportions'!I25 -> 0 | O21: 0.001883662579 | P21: 3.427926496e-05 | Q21: 0
A22: STREET LIGHTING | C22: ='Revenue Proportions'!P26 -> 0.007246154362 | D22: ='Revenue Proportions'!Q26 -> 0 | E22: ='Revenue Proportions'!R26 -> 0.01502320324 | F22: 953.2279574 | G22: 0 | H22: 1976.29482 | I22: 2929.522778 | K22: ='Revenue Proportions'!G26 -> 19919 | L22: ='Revenue Proportions'!H26 -> 34968321 | M22: ='Revenue Proportions'!I26 -> 98842 | O22: 0.00398793429 | P22: 0 | Q22: 0.01999448433
A23: EMBEDDED DISTRIBUTOR | C23: ='Revenue Proportions'!P27 -> 0.000657534988 | D23: ='Revenue Proportions'!Q27 -> 0 | E23: ='Revenue Proportions'!R27 -> 0 | F23: 86.49839656 | G23: 0 | H23: 0 | I23: 86.49839656 | K23: ='Revenue Proportions'!G27 -> 1 | L23: ='Revenue Proportions'!H27 -> 3402773 | M23: ='Revenue Proportions'!I27 -> 0 | O23: 7.208199713 | P23: 0 | Q23: 0
A24: DISTRIBUTED GENERATION [DGEN] | C24: ='Revenue Proportions'!P28 -> 0.0021530063 | D24: ='Revenue Proportions'!Q28 -> 0 | E24: ='Revenue Proportions'!R28 -> 0 | F24: 283.2268945 | G24: 0 | H24: 0 | I24: 283.2268945 | K24: ='Revenue Proportions'!G28 -> 131 | L24: ='Revenue Proportions'!H28 -> 277418 | M24: ='Revenue Proportions'!I28 -> 0 | O24: 0.1801697802 | P24: 0 | Q24: 0
A25: STANDBY POWER | C25: ='Revenue Proportions'!P29 -> 0 | D25: ='Revenue Proportions'!Q29 -> 0 | E25: ='Revenue Proportions'!R29 -> 0 | F25: 0 | G25: 0 | H25: 0 | I25: 0 | K25: ='Revenue Proportions'!G29 -> 1 | L25: ='Revenue Proportions'!H29 -> 0 | M25: ='Revenue Proportions'!I29 -> 0 | O25: 0 | P25: 0 | Q25: 0
A26: Total | C26: =SUM(C16:C25) -> 0.679159987 | D26: 0.07759778372 | E26: 0.2432422292 | F26: 89343.15429 | G26: 10207.94937 | H26: 31998.39277 | I26: 131549.4964 | K26: =SUM(K16:K25) -> 186033 | L26: =SUM(L16:L25) -> 4131633817 | M26: =SUM(M16:M25) -> 5956865.325
I27: ='M-factor RR Calculation_2021'!J67 -> 131549.4964
A29: Horizon Rate Class | C29: Service Charge % Revenue | D29: Distribution Volumetric Rate % Revenue kWh | E29: Distribution Volumetric Rate % Revenue kW | F29: Service Charge Revenue | G29: Distribution Volumetric Rate Revenue kWh | H29: Distribution Volumetric Rate Revenue kW | I29: Total Revenue by Rate Class | K29: Billed Customers or Connections | L29: Billed kWh | M29: Billed kW | O29: Service Charge Rate Rider | P29: Distribution Volumetric Rate kWh Rate Rider | Q29: Distribution Volumetric Rate kW Rate Rider
C30: From Sheet 8 | D30: From Sheet 8 | E30: From Sheet 8 | F30: Col C * Col Itotal | G30: Col D* Col Itotal | H30: Col E* Col Itotal | I30: Col Itotal | K30: From Sheet 4 | L30: From Sheet 4 | M30: From Sheet 4 | O30: Col F / Col K / 12 | P30: Col G / Col L | Q30: Col H / Col M
A31: RESIDENTIAL | C31: =+'Revenue Proportions'!P36 -> 0.6135452637 | D31: =+'Revenue Proportions'!Q36 -> 0 | E31: =+'Revenue Proportions'!R36 -> 0 | F31: =C31*$I$40 -> 427802.4232 | G31: =D31*$I$40 -> 0 | H31: =E31*$I$40 -> 0 | I31: =SUM(F31:H31) -> 427802.4232 | K31: ='Revenue Proportions'!G36 -> 227762 | L31: ='Revenue Proportions'!H36 -> 1652719193 | M31: ='Revenue Proportions'!I36 -> 0 | O31: =F31/K31/12 -> 0.1565239238 | P31: =IF(ISERROR(G31/L31),0,G31/L31) -> 0 | Q31: 0
A32: GENERAL SERVICE LESS THAN 50 kW | C32: =+'Revenue Proportions'!P37 -> 0.07982562709 | D32: =+'Revenue Proportions'!Q37 -> 0.05447927355 | E32: =+'Revenue Proportions'!R37 -> 0 | F32: =C32*$I$40 -> 55659.45778 | G32: 37986.38278 | H32: 0 | I32: 93645.84057 | K32: ='Revenue Proportions'!G37 -> 18709 | L32: ='Revenue Proportions'!H37 -> 594472784.8 | M32: ='Revenue Proportions'!I37 -> 0 | O32: 0.2479174808 | P32: 6.389927976e-05 | Q32: 0
A33: GENERAL SERVICE 50 TO 4,999 KW | C33: =+'Revenue Proportions'!P38 -> 0.09098893484 | D33: =+'Revenue Proportions'!Q38 -> 0 | E33: =+'Revenue Proportions'!R38 -> 0.111389565 | F33: 63443.21946 | G33: 0 | H33: 77667.82442 | I33: 141111.0439 | K33: ='Revenue Proportions'!G38 -> 2316 | L33: ='Revenue Proportions'!H38 -> 1840510488 | M33: ='Revenue Proportions'!I38 -> 5066405.912 | O33: 2.282787114 | P33: 0 | Q33: 0.01532996482
A34: LARGE USE | C34: =+'Revenue Proportions'!P39 -> 0.01469741489 | D34: =+'Revenue Proportions'!Q39 -> 0 | E34: =+'Revenue Proportions'!R39 -> 0.006859247021 | F34: 10247.96389 | G34: 0 | H34: 4782.69929 | I34: 15030.66318 | K34: ='Revenue Proportions'!G39 -> 6 | L34: ='Revenue Proportions'!H39 -> 242051739 | M34: ='Revenue Proportions'!I39 -> 569520 | O34: 142.3328317 | P34: 0 | Q34: 0.008397772317
A35: LARGE USE WITH DEDICATED ASSETS | C35: =+'Revenue Proportions'!P40 -> 0.002903578357 | D35: =+'Revenue Proportions'!Q40 -> 0 | E35: =+'Revenue Proportions'!R40 -> 0.006101481257 | F35: 2024.557813 | G35: 0 | H35: 4254.337245 | I35: 6278.895058 | K35: ='Revenue Proportions'!G40 -> 5 | L35: ='Revenue Proportions'!H40 -> 403775839 | M35: ='Revenue Proportions'!I40 -> 2136952 | O35: 33.74263022 | P35: 0 | Q35: 0.001990843615
A36: UNMETERED SCATTERED LOAD | C36: =+'Revenue Proportions'!P41 -> 0.002617302083 | D36: =+'Revenue Proportions'!Q41 -> 0.00118344063 | E36: =+'Revenue Proportions'!R41 -> 0 | F36: 1824.947953 | G36: 825.1693875 | H36: 0 | I36: 2650.117341 | K36: ='Revenue Proportions'!G41 -> 3006 | L36: ='Revenue Proportions'!H41 -> 10504341.79 | M36: ='Revenue Proportions'!I41 -> 0 | O36: 0.05059181507 | P36: 7.855507787e-05 | Q36: 0
A37: SENTINEL LIGHTING | C37: =+'Revenue Proportions'!P42 -> 0.0002147109895 | D37: =+'Revenue Proportions'!Q42 -> 0 | E37: =+'Revenue Proportions'!R42 -> 0.0001337218437 | F37: 149.7100329 | G37: 0 | H37: 93.2392965 | I37: =SUM(F37:H37) -> 242.9493294 | K37: ='Revenue Proportions'!G42 -> 378 | L37: ='Revenue Proportions'!H42 -> 363731 | M37: ='Revenue Proportions'!I42 -> 1030 | O37: 0.03300485734 | P37: 0 | Q37: 0.09052358884
A38: STREET LIGHTING | C38: =+'Revenue Proportions'!P43 -> 0.01028409585 | D38: =+'Revenue Proportions'!Q43 -> 0 | E38: =+'Revenue Proportions'!R43 -> 0.004776342969 | F38: 7170.719724 | G38: 0 | H38: 3330.367321 | I38: 10501.08705 | K38: ='Revenue Proportions'!G43 -> 52273 | L38: ='Revenue Proportions'!H43 -> 39610412.93 | M38: ='Revenue Proportions'!I43 -> 109773 | O38: 0.01143152253 | P38: 0 | Q38: 0.03033867455
A39: Total | C39: =SUM(C31:C38) -> 0.8150769278 | D39: 0.05566271418 | E39: 0.129260358 | F39: 568322.9999 | G39: 38811.55217 | H39: 90128.46757 | I39: 697263.0196 | K39: =SUM(K31:K38) -> 304455 | L39: =SUM(L31:L38) -> 4784008529 | M39: =SUM(M31:M38) -> 7883680.912
I40: ='M-factor RR Calculation_2021'!E67 -> 697263.0196
A42: PowerStream Rate Class | C42: Service Charge % Revenue | D42: Distribution Volumetric Rate % Revenue kWh | E42: Distribution Volumetric Rate % Revenue kW | F42: Service Charge Revenue | G42: Distribution Volumetric Rate Revenue kWh | H42: Distribution Volumetric Rate Revenue kW | I42: Total Revenue by Rate Class | K42: Billed Customers or Connections | L42: Billed kWh | M42: Billed kW | O42: Service Charge Rate Rider | P42: Distribution Volumetric Rate kWh Rate Rider | Q42: Distribution Volumetric Rate kW Rate Rider
C43: From Sheet 8 | D43: From Sheet 8 | E43: From Sheet 8 | F43: Col C * Col Itotal | G43: Col D* Col Itotal | H43: Col E* Col Itotal | I43: Col Itotal | K43: From Sheet 4 | L43: From Sheet 4 | M43: From Sheet 4 | O43: Col F / Col K / 12 | P43: Col G / Col L | Q43: Col H / Col M
A44: RESIDENTIAL | C44: ='Revenue Proportions'!P50 -> 0.4804828615 | D44: ='Revenue Proportions'!Q50 -> 0.06016245838 | E44: ='Revenue Proportions'!R50 -> 0 | F44: =C44*$I$52 -> 539957.6232 | G44: =D44*$I$52 -> 67609.44174 | H44: =E44*$I$52 -> 0 | I44: =SUM(F44:H44) -> 607567.0649 | K44: ='Revenue Proportions'!G50 -> 334683 | L44: ='Revenue Proportions'!H50 -> 2783708695 | M44: ='Revenue Proportions'!I50 -> 0 | O44: =(F44+G44)/K44/12 -> 0.1512792366 | P44: =IF(ISERROR(G44/L44),0,G44/L44) -> 2.428754196e-05 | Q44: 0
A45: GENERAL SERVICE LESS THAN 50 kW | C45: ='Revenue Proportions'!P51 -> 0.05518433769 | D45: ='Revenue Proportions'!Q51 -> 0.09426732524 | E45: ='Revenue Proportions'!R51 -> 0 | F45: =C45*$I$52 -> 62015.12312 | G45: 105935.8511 | H45: 0 | I45: 167950.9742 | K45: ='Revenue Proportions'!G51 -> 32624 | L45: ='Revenue Proportions'!H51 -> 1049615664 | M45: ='Revenue Proportions'!I51 -> 0 | O45: =F45/K45/12 -> 0.1584087459 | P45: 0.0001009282299 | Q45: 0
A46: GENERAL SERVICE 50 TO 4,999 KW | C46: ='Revenue Proportions'!P52 -> 0.04319860947 | D46: ='Revenue Proportions'!Q52 -> 0 | E46: ='Revenue Proportions'!R52 -> 0.2513596733 | F46: 48545.78667 | G46: 0 | H46: 282473.2839 | I46: 331019.0706 | K46: ='Revenue Proportions'!G52 -> 5207 | L46: ='Revenue Proportions'!H52 -> 4679965944 | M46: ='Revenue Proportions'!I52 -> 12192875.59 | O46: =F46/K46/12 -> 0.7769314812 | P46: 0 | Q46: 0.02316707669
A47: LARGE USE | C47: ='Revenue Proportions'!P53 -> 0.0007148647377 | D47: ='Revenue Proportions'!Q53 -> 0 | E47: ='Revenue Proportions'!R53 -> 0.001131111182 | F47: 803.3515773 | G47: 0 | H47: 1271.12152 | I47: 2074.473098 | K47: ='Revenue Proportions'!G53 -> 2 | L47: ='Revenue Proportions'!H53 -> 53218181 | M47: ='Revenue Proportions'!I53 -> 102871.3272 | O47: 33.47298239 | P47: 0 | Q47: 0.0123564219
A48: UNMETERED SCATTERED LOAD | C48: ='Revenue Proportions'!P54 -> 0.001559544139 | D48: ='Revenue Proportions'!Q54 -> 0.001321871603 | E48: ='Revenue Proportions'!R54 -> 0 | F48: 1752.586437 | G48: 1485.494502 | H48: 0 | I48: 3238.080939 | K48: ='Revenue Proportions'!G54 -> 3082 | L48: ='Revenue Proportions'!H54 -> 13830787.93 | M48: ='Revenue Proportions'!I54 -> 0 | O48: 0.04738769298 | P48: 0.0001074049078 | Q48: 0
A49: SENTINEL LIGHTING | C49: ='Revenue Proportions'!P55 -> 4.242704029e-05 | D49: ='Revenue Proportions'!Q55 -> 0 | E49: ='Revenue Proportions'!R55 -> 3.85268736e-05 | F49: 47.67871171 | G49: 0 | H49: 43.29577757 | I49: 90.97448928 | K49: ='Revenue Proportions'!G55 -> 172 | L49: ='Revenue Proportions'!H55 -> 286385 | M49: ='Revenue Proportions'!I55 -> 796 | O49: 0.02310015102 | P49: 0 | Q49: 0.05439168036
A50: STREET LIGHTING | C50: ='Revenue Proportions'!P56 -> 0.006377061486 | D50: ='Revenue Proportions'!Q56 -> 0 | E50: ='Revenue Proportions'!R56 -> 0.004159327344 | F50: 7166.422028 | G50: 0 | H50: 4674.174016 | I50: 11840.59604 | K50: ='Revenue Proportions'!G56 -> 91446 | L50: ='Revenue Proportions'!H56 -> 48883953 | M50: ='Revenue Proportions'!I56 -> 134152.0192 | O50: 0.006530650172 | P50: 0 | Q50: 0.03484236798
A51: Total | C51: =SUM(C44:C50) -> 0.5875597061 | D51: 0.1557516552 | E51: 0.2566886387 | F51: 660288.5717 | G51: 175030.7874 | H51: 288461.8752 | I51: 1123781.234 | K51: =SUM(K44:K50) -> 467216 | L51: =SUM(L44:L50) -> 8629509610 | M51: =SUM(M44:M50) -> 12430694.94
I52: ='M-factor RR Calculation_2021'!O67 -> 1123781.234
A54: Guelph Rate Class | C54: Service Charge % Revenue | D54: Distribution Volumetric Rate % Revenue kWh | E54: Distribution Volumetric Rate % Revenue kW | F54: Service Charge Revenue | G54: Distribution Volumetric Rate Revenue kWh | H54: Distribution Volumetric Rate Revenue kW | I54: Total Revenue by Rate Class | K54: Billed Customers or Connections | L54: Billed kWh | M54: Billed kW | O54: Service Charge Rate Rider | P54: Distribution Volumetric Rate kWh Rate Rider | Q54: Distribution Volumetric Rate kW Rate Rider
C55: From Sheet 8 | D55: From Sheet 8 | E55: From Sheet 8 | F55: Col C * Col Itotal | G55: Col D* Col Itotal | H55: Col E* Col Itotal | K55: From Sheet 4 | L55: From Sheet 4 | M55: From Sheet 4 | O55: Col F / Col K / 12 | P55: Col G / Col L | Q55: Col H / Col M
A56: RESIDENTIAL | C56: ='Revenue Proportions'!P63 -> 0.5840465345 | D56: ='Revenue Proportions'!Q63 -> 0 | E56: ='Revenue Proportions'!R63 -> 0 | F56: =C56*$I$65 -> 40078.2073 | G56: =D56*$I$65 -> 0 | H56: =E56*$I$65 -> 0 | I56: =SUM(F56:H56) -> 40078.2073 | K56: ='Revenue Proportions'!G63 -> 50914 | L56: ='Revenue Proportions'!H63 -> 384041745 | M56: ='Revenue Proportions'!I63 -> 0 | O56: =(F56+G56)/K56/12 -> 0.06559788286 | P56: =IF(ISERROR(G56/L56),0,G56/L56) -> 0 | Q56: 0
A57: GENERAL SERVICE LESS THAN 50 KW | C57: ='Revenue Proportions'!P64 -> 0.02749247886 | D57: ='Revenue Proportions'!Q64 -> 0.06606393443 | E57: ='Revenue Proportions'!R64 -> 0 | F57: =C57*$I$65 -> 1886.57787 | G57: 4533.41284 | H57: 0 | I57: 6419.99071 | K57: ='Revenue Proportions'!G64 -> 4134 | L57: ='Revenue Proportions'!H64 -> 142209076 | M57: ='Revenue Proportions'!I64 -> 0 | O57: =F57/K57/12 -> 0.03802971032 | P57: 3.18785057e-05 | Q57: 0
A58: GENERAL SERVICE 50 TO 999 KW | C58: ='Revenue Proportions'!P65 -> 0.04167469594 | D58: ='Revenue Proportions'!Q65 -> 0 | E58: ='Revenue Proportions'!R65 -> 0.1004689031 | F58: 2859.784288 | G58: 0 | H58: 6894.336819 | I58: 9754.121107 | K58: ='Revenue Proportions'!G65 -> 578 | L58: ='Revenue Proportions'!H65 -> 402350218 | M58: ='Revenue Proportions'!I65 -> 1097499 | O58: 0.4123103068 | P58: 0 | Q58: 0.006281861595
A59: GENERAL SERVICE 1,000 TO 4,999 KW | C59: ='Revenue Proportions'!P66 -> 0.009807361508 | D59: ='Revenue Proportions'!Q66 -> 0 | E59: ='Revenue Proportions'!R66 -> 0.1153853375 | F59: 672.9968321 | G59: 0 | H59: 7917.926398 | I59: 8590.92323 | K59: ='Revenue Proportions'!G66 -> 43 | L59: ='Revenue Proportions'!H66 -> 540417878 | M59: ='Revenue Proportions'!I66 -> 1135425 | O59: 1.304257427 | P59: 0 | Q59: 0.006973535371
A60: LARGE USE | C60: ='Revenue Proportions'!P67 -> 0.00175378796 | D60: ='Revenue Proportions'!Q67 -> 0 | E60: ='Revenue Proportions'!R67 -> 0.03863693115 | F60: 120.3477347 | G60: 0 | H60: 2651.32801 | I60: 2771.675744 | K60: ='Revenue Proportions'!G67 -> 4 | L60: ='Revenue Proportions'!H67 -> 197428962 | M60: ='Revenue Proportions'!I67 -> 423180 | O60: 2.507244473 | P60: 0 | Q60: 0.006265248853
A61: UNMETERED SCATTERED LOAD | C61: ='Revenue Proportions'!P68 -> 0.00108848765 | D61: ='Revenue Proportions'!Q68 -> 0.001338746781 | E61: ='Revenue Proportions'!R68 -> 0 | F61: 74.69376342 | G61: 91.86694523 | H61: 0 | I61: 166.5607086 | K61: ='Revenue Proportions'!G68 -> 559 | L61: ='Revenue Proportions'!H68 -> 1810678 | M61: ='Revenue Proportions'!I68 -> 0 | O61: 0.01113502734 | P61: 5.07362133e-05 | Q61: 0
A62: SENTINEL LIGHTING | C62: ='Revenue Proportions'!P69 -> 0.0001053885501 | D62: ='Revenue Proportions'!Q69 -> 0 | E62: ='Revenue Proportions'!R69 -> 1.416416029e-05 | F62: 7.231930864 | G62: 0 | H62: 0.9719673325 | I62: 8.203898197 | K62: ='Revenue Proportions'!G69 -> 35 | L62: ='Revenue Proportions'!H69 -> 18189 | M62: ='Revenue Proportions'!I69 -> 51 | O62: 0.01721888301 | P62: 0 | Q62: 0.01905818299
A63: STREET LIGHTING | C63: ='Revenue Proportions'!P70 -> 0.002444558968 | D63: ='Revenue Proportions'!Q70 -> 0 | E63: ='Revenue Proportions'!R70 -> 0.009678688939 | F63: 167.7495461 | G63: 0 | H63: 664.1671146 | I63: 831.9166608 | K63: ='Revenue Proportions'!G70 -> 14152 | L63: ='Revenue Proportions'!H70 -> 10182750 | M63: ='Revenue Proportions'!I70 -> 28425 | O63: 0.0009877846837 | P63: 0 | Q63: 0.0233655977
A64: Total | C64: =SUM(C56:C63) -> 0.6684132939 | D64: 0.06740268121 | E64: 0.2641840248 | F64: 45867.58926 | G64: 4625.279785 | H64: 18128.73031 | I64: 68621.59936 | K64: =SUM(K56:K63) -> 70419 | L64: =SUM(L56:L63) -> 1678459496 | M64: =SUM(M56:M63) -> 2684580
I65: ='M-factor RR Calculation_2021'!Y67 -> 68621.59936

Sheet M-factor RR Calculation_2022
B1: 2022 Rates | H1: Back to Index
B2: M-factor Revenue Requirement_HRZ | G2: M-factor Revenue Requirement_BRZ | L2: M-factor Revenue Requirement_PRZ | Q2: M-factor Revenue Requirement_ERZ | V2: M-factor Revenue Requirement_GRZ
B5: Return on Rate Base | G5: Return on Rate Base | L5: Return on Rate Base | Q5: Return on Rate Base | V5: Return on Rate Base
B6: Incremental Capital | E6: ='Summary by RZ'!S3 -> 11347468.21 | G6: Incremental Capital | J6: ='Summary by RZ'!S4 -> 8163143.906 | L6: Incremental Capital | O6: ='Summary by RZ'!S5 -> 19461779.38 | Q6: Incremental Capital | T6: ='Summary by RZ'!S6 -> 11147642 | V6: Incremental Capital | Y6: ='Summary by RZ'!S7 -> 1903669.74
B7: Depreciation Expense | E7: ='Summary by RZ'!S21 -> 435969.6028 | G7: Depreciation Expense | J7: ='Summary by RZ'!S22 -> 301040.3434 | L7: Depreciation Expense | O7: ='Summary by RZ'!S23 -> 791339.5375 | Q7: Depreciation Expense | T7: ='Summary by RZ'!S24 -> 478539.8047 | V7: Depreciation Expense | Y7: ='Summary by RZ'!S25 -> 85475.07766
B8: Incremental Capital to be included in Rate Base (avg NBV) | E8: =((E6)+(E6-E7))/2 -> 11129483.41 | G8: Incremental Capital to be included in Rate Base (avg NBV) | J8: =((J6)+(J6-J7))/2 -> 8012623.735 | L8: Incremental Capital to be included in Rate Base (avg NBV) | O8: =((O6)+(O6-O7))/2 -> 19066109.61 | Q8: Incremental Capital to be included in Rate Base (avg NBV) | T8: =((T6)+(T6-T7))/2 -> 10908372.1 | V8: Incremental Capital to be included in Rate Base (avg NBV) | Y8: =((Y6)+(Y6-Y7))/2 -> 1860932.201
B10: Deemed ShortTerm Debt % | C10: 0.04 | D10: E | E10: =E8*C10 -> 445179.3363 | G10: Deemed ShortTerm Debt % | H10: 0.04 | I10: E | J10: =J8*H10 -> 320504.9494 | L10: Deemed ShortTerm Debt % | M10: 0.04 | N10: E | O10: =O8*M10 -> 762644.3844 | Q10: Deemed ShortTerm Debt % | R10: 0.04 | S10: E | T10: =T8*R10 -> 436334.8841 | V10: Deemed ShortTerm Debt % | W10: 0.04 | X10: E | Y10: =Y8*W10 -> 74437.28803
B11: Deemed Long Term Debt % | C11: 0.56 | D11: F | E11: =E8*C11 -> 6232510.708 | G11: Deemed Long Term Debt % | H11: 0.56 | I11: F | J11: =J8*H11 -> 4487069.291 | L11: Deemed Long Term Debt % | M11: 0.56 | N11: F | O11: =O8*M11 -> 10677021.38 | Q11: Deemed Long Term Debt % | R11: 0.56 | S11: F | T11: =T8*R11 -> 6108688.377 | V11: Deemed Long Term Debt % | W11: 0.56 | X11: F | Y11: =Y8*W11 -> 1042122.032
B13: Short Term Interest | C13: 0.0282 | D13: I | E13: =E10*C13 -> 12554.05728 | G13: Short Term Interest | H13: 0.0216 | I13: I | J13: =J10*H13 -> 6922.906907 | L13: Short Term Interest | M13: 0.0176 | N13: I | O13: =O10*M13 -> 13422.54117 | Q13: Short Term Interest | R13: 0.0208 | S13: I | T13: =T10*R13 -> 9075.765589 | V13: Short Term Interest | W13: 0.0165 | X13: I | Y13: =Y10*W13 -> 1228.215253
B14: Long Term Interest | C14: 0.0374 | D14: J | E14: =E11*C14 -> 233095.9005 | G14: Long Term Interest | H14: 0.0607 | I14: J | J14: =J11*H14 -> 272365.106 | L14: Long Term Interest | M14: 0.0388 | N14: J | O14: =O11*M14 -> 414268.4296 | Q14: Long Term Interest | R14: 0.0509 | S14: J | T14: =T11*R14 -> 310932.2384 | V14: Long Term Interest | W14: 0.0491 | X14: J | Y14: =Y11*W14 -> 51168.19179
B16: Return on Rate Base - Interest | E16: =SUM(E13:E14) -> 245649.9578 | G16: Return on Rate Base - Interest | J16: =SUM(J13:J14) -> 279288.0129 | L16: Return on Rate Base - Interest | O16: =SUM(O13:O14) -> 427690.9708 | Q16: Return on Rate Base - Interest | T16: =SUM(T13:T14) -> 320008.004 | V16: Return on Rate Base - Interest | Y16: =SUM(Y13:Y14) -> 52396.40705
B19: Deemed Equity % | C19: 0.4 | D19: N | E19: =E8*C19 -> 4451793.363 | G19: Deemed Equity % | H19: 0.4 | I19: N | J19: =J8*H19 -> 3205049.494 | L19: Deemed Equity % | M19: 0.4 | N19: N | O19: =O8*M19 -> 7626443.844 | Q19: Deemed Equity % | R19: 0.4 | S19: N | T19: =T8*R19 -> 4363348.841 | V19: Deemed Equity % | W19: 0.4 | X19: N | Y19: =Y8*W19 -> 744372.8803
B21: Return on Rate Base -Equity | C21: 0.0898 | D21: O | E21: =E19*C21 -> 399771.044 | G21: Return on Rate Base -Equity | H21: 0.093 | I21: O | J21: =J19*H21 -> 298069.6029 | L21: Return on Rate Base -Equity | M21: 0.0878 | N21: O | O21: =O19*M21 -> 669601.7695 | Q21: Return on Rate Base -Equity | R21: 0.0893 | S21: O | T21: =T19*R21 -> 389647.0515 | V21: Return on Rate Base -Equity | W21: 0.0919 | X21: O | Y21: =Y19*W21 -> 68407.8677
B23: Return on Rate Base - Total | E23: =E16+E21 -> 645421.0017 | G23: Return on Rate Base - Total | J23: =J16+J21 -> 577357.6158 | L23: Return on Rate Base - Total | O23: =O16+O21 -> 1097292.74 | Q23: Return on Rate Base - Total | T23: =T16+T21 -> 709655.0554 | V23: Return on Rate Base - Total | Y23: =Y16+Y21 -> 120804.2747
B27: Amortization Expense | G27: Amortization Expense | L27: Amortization Expense | Q27: Amortization Expense | V27: Amortization Expense
B29: Amortization Expense - Incremental | D29: C | E29: =E7 -> 435969.6028 | G29: Amortization Expense - Incremental | I29: C | J29: =J7 -> 301040.3434 | L29: Amortization Expense - Incremental | N29: C | O29: =O7 -> 791339.5375 | Q29: Amortization Expense - Incremental | S29: C | T29: =T7 -> 478539.8047 | V29: Amortization Expense - Incremental | X29: C | Y29: =Y7 -> 85475.07766
B32: Grossed up PIL's | G32: Grossed up PIL's | L32: Grossed up PIL's | Q32: Grossed up PIL's | V32: Grossed up PIL's
B34: Regulatory Taxable Income | D34: O | E34: =E21 -> 399771.044 | G34: Regulatory Taxable Income | I34: O | J34: =J21 -> 298069.6029 | L34: Regulatory Taxable Income | N34: O | O34: =O21 -> 669601.7695 | Q34: Regulatory Taxable Income | S34: O | T34: =T21 -> 389647.0515 | V34: Regulatory Taxable Income | X34: O | Y34: =Y21 -> 68407.8677
B36: Add Back Amortization Expense | D36: S | E36: =E29 -> 435969.6028 | G36: Add Back Amortization Expense | I36: S | J36: =J29 -> 301040.3434 | L36: Add Back Amortization Expense | N36: S | O36: =O29 -> 791339.5375 | Q36: Add Back Amortization Expense | S36: S | T36: =T29 -> 478539.8047 | V36: Add Back Amortization Expense | X36: S | Y36: =Y29 -> 85475.07766
B38: Deduct CCA | E38: ='Summary by RZ'!S12 -> 1552694.307 | G38: Deduct CCA | J38: ='Summary by RZ'!S13 -> 1120312.298 | L38: Deduct CCA | O38: ='Summary by RZ'!S14 -> 2896908.145 | Q38: Deduct CCA | T38: ='Summary by RZ'!S15 -> 1691425.107 | V38: Deduct CCA | Y38: ='Summary by RZ'!S16 -> 321393.303
B40: Incremental Taxable Income | E40: =E34+E36-E38 -> -716953.6603 | G40: Incremental Taxable Income | J40: =J34+J36-J38 -> -521202.3514 | L40: Incremental Taxable Income | O40: =O34+O36-O38 -> -1435966.838 | Q40: Incremental Taxable Income | T40: =T34+T36-T38 -> -823238.2505 | V40: Incremental Taxable Income | Y40: =Y34+Y36-Y38 -> -167510.3576
B42: Current Tax Rate | C42: 0.265 | D42: X | G42: Current Tax Rate | H42: 0.265 | I42: X | L42: Current Tax Rate | M42: 0.265 | N42: X | Q42: Current Tax Rate | R42: 0.265 | S42: X | V42: Current Tax Rate | W42: 0.265 | X42: X
B44: PIL's Before Gross Up | E44: =E40*C42 -> -189992.72 | G44: PIL's Before Gross Up | J44: =J40*H42 -> -138118.6231 | L44: PIL's Before Gross Up | O44: =O40*M42 -> -380531.2121 | Q44: PIL's Before Gross Up | T44: =T40*R42 -> -218158.1364 | V44: PIL's Before Gross Up | Y44: =Y40*W42 -> -44390.24476
B46: Incremental Grossed Up PIL's | E46: =E44/(1-C42) -> -258493.4966 | G46: Incremental Grossed Up PIL's | J46: =J44/(1-H42) -> -187916.4941 | L46: Incremental Grossed Up PIL's | O46: =O44/(1-M42) -> -517729.5402 | Q46: Incremental Grossed Up PIL's | T46: =T44/(1-R42) -> -296813.791 | V46: Incremental Grossed Up PIL's | Y46: =Y44/(1-W42) -> -60394.89084
B49: Ontario Capital Tax | G49: Ontario Capital Tax | L49: Ontario Capital Tax | Q49: Ontario Capital Tax | V49: Ontario Capital Tax
B50: Incremental Capital CAPEX | G50: Incremental Capital CAPEX | L50: Incremental Capital CAPEX | Q50: Incremental Capital CAPEX | V50: Incremental Capital CAPEX
B52: Less : Available Capital Exemption (if any) | G52: Less : Available Capital Exemption (if any) | L52: Less : Available Capital Exemption (if any) | Q52: Less : Available Capital Exemption (if any) | V52: Less : Available Capital Exemption (if any)
B54: Incremental Capital CAPEX subject to OCT | G54: Incremental Capital CAPEX subject to OCT | L54: Incremental Capital CAPEX subject to OCT | Q54: Incremental Capital CAPEX subject to OCT | V54: Incremental Capital CAPEX subject to OCT
B56: Ontario Capital Tax Rate (F1.1 Z-Factor Tax Changes) | D56: AD | G56: Ontario Capital Tax Rate (F1.1 Z-Factor Tax Changes) | I56: AD | L56: Ontario Capital Tax Rate (F1.1 Z-Factor Tax Changes) | N56: AD | Q56: Ontario Capital Tax Rate (F1.1 Z-Factor Tax Changes) | S56: AD | V56: Ontario Capital Tax Rate (F1.1 Z-Factor Tax Changes) | X56: AD
B58: Incremental Ontario Capital Tax | G58: Incremental Ontario Capital Tax | L58: Incremental Ontario Capital Tax | Q58: Incremental Ontario Capital Tax | V58: Incremental Ontario Capital Tax
B61: Incremental Revenue Requirement | G61: Incremental Revenue Requirement | L61: Incremental Revenue Requirement | Q61: Incremental Revenue Requirement | V61: Incremental Revenue Requirement
B62: Return on Rate Base - Total | D62: Q | E62: =E23 -> 645421.0017 | G62: Return on Rate Base - Total | I62: Q | J62: =J23 -> 577357.6158 | L62: Return on Rate Base - Total | N62: Q | O62: =O23 -> 1097292.74 | Q62: Return on Rate Base - Total | S62: Q | T62: =T23 -> 709655.0554 | V62: Return on Rate Base - Total | X62: Q | Y62: =Y23 -> 120804.2747
B63: Amortization Expense - Total | E63: =E29 -> 435969.6028 | G63: Amortization Expense - Total | J63: =J29 -> 301040.3434 | L63: Amortization Expense - Total | O63: =O29 -> 791339.5375 | Q63: Amortization Expense - Total | T63: =T29 -> 478539.8047 | V63: Amortization Expense - Total | Y63: =Y29 -> 85475.07766
B64: Incremental Grossed Up PIL's | D64: Z | E64: =E46 -> -258493.4966 | G64: Incremental Grossed Up PIL's | I64: Z | J64: =J46 -> -187916.4941 | L64: Incremental Grossed Up PIL's | N64: Z | O64: =O46 -> -517729.5402 | Q64: Incremental Grossed Up PIL's | S64: Z | T64: =T46 -> -296813.791 | V64: Incremental Grossed Up PIL's | X64: Z | Y64: =Y46 -> -60394.89084
B67: Incremental Revenue Requirement | E67: =SUM(E62:E65) -> 822897.108 | G67: Incremental Revenue Requirement | J67: =SUM(J62:J65) -> 690481.4651 | L67: Incremental Revenue Requirement | O67: =SUM(O62:O65) -> 1370902.738 | Q67: Incremental Revenue Requirement | T67: =SUM(T62:T65) -> 891381.0691 | V67: Incremental Revenue Requirement | Y67: =SUM(Y62:Y65) -> 145884.4616
Y70: =Y67+T67+O67+J67+E67 -> 3921546.841
Y71: =+Y62+T62+O62+J62+E62 -> 3150530.688
Y72: =+Y63+T63+O63+J63+E63 -> 2092364.366
Y73: =+Y64+T64+O64+J64+E64 -> -1321348.213

Sheet Bill Impacts_2022
H1: Back to Index
I2: internal use
B3: Enersource Rate Class | C3: Unit | D3: kWh | E3: kW | F3: MCM Rate Rider Incl HST | G3: % Increase vs. Total Bill | I3: 2019 Total Bill (Approved) | J3: Fixed Rate Rider | K3: Variable Rate Rider | L3: Taxes
B4: Residential | C4: kWh | D4: 750 | F4: =+(J4+D4*K4)*(1+L4) -> 0.1709058949 | G4: =+F4/I4 -> 0.001571403962 | I4: 108.76 | J4: ='Rate Rider Calculation_2022'!O4 -> 0.1627675189 | K4: ='Rate Rider Calculation_2022'!P4 -> 0 | L4: 0.05
B5: General Service < 50 kW | C5: kWh | D5: 2000 | F5: =+(J5+D5*K5)*(1+L5) -> 0.49700139 | G5: =+F5/I5 -> 0.001689963583 | I5: 294.09 | J5: ='Rate Rider Calculation_2022'!O5 -> 0.2988210286 | K5: ='Rate Rider Calculation_2022'!P5+'Rate Rider Calculation_2022'!Q5 -> 8.725681427e-05 | L5: 0.05
B6: General Service 50 to 499 kW | C6: kW | D6: 100000 | E6: 230 | F6: =+(J6+E6*K6)*(1+L6) -> 8.826667162 | G6: 0.0005400624434 | I6: 16343.79 | J6: ='Rate Rider Calculation_2022'!O6 -> 0.5262928313 | K6: ='Rate Rider Calculation_2022'!P6+'Rate Rider Calculation_2022'!Q6 -> 0.03167355238 | L6: 0.13
B7: General Service 500 to 4999 kW | C7: kW | D7: 400000 | E7: 2250 | F7: =+(J7+E7*K7)*(1+L7) -> 54.9812919 | G7: 0.0007283265601 | I7: 75489.89 | J7: ='Rate Rider Calculation_2022'!O7 -> 11.98499192 | K7: ='Rate Rider Calculation_2022'!P7+'Rate Rider Calculation_2022'!Q7 -> 0.01629823049 | L7: 0.13
B8: Large Use | C8: kW | D8: 3000000 | E8: 5000 | F8: =+(J8+E8*K8)*(1+L8) -> 221.0781073 | G8: 0.000487553243 | I8: 453444.03 | J8: ='Rate Rider Calculation_2022'!O8 -> 94.49691488 | K8: ='Rate Rider Calculation_2022'!P8+'Rate Rider Calculation_2022'!Q8 -> 0.02022948558 | L8: 0.13
B9: Unmetered | C9: kWh | D9: 300 | F9: =+(J9+D9*K9)*(1+L9) -> 0.1077017571 | G9: 0.002089267838 | I9: 51.55 | J9: ='Rate Rider Calculation_2022'!O9 -> 0.06168385563 | K9: ='Rate Rider Calculation_2022'!P9+'Rate Rider Calculation_2022'!Q9 -> 0.000112091446 | L9: 0.13
B10: Street Lighting | C10: kW | D10: 33 | E10: 0.1 | F10: 0.02062276278 | G10: 0.005067017882 | I10: 4.07 | J10: ='Rate Rider Calculation_2022'!O10 -> 0.01033657646 | K10: ='Rate Rider Calculation_2022'!P10+'Rate Rider Calculation_2022'!Q10 -> 0.0791365609 | L10: 0.13
I12: internal use
B13: Brampton Rate Class | C13: Unit | D13: kWh | E13: kW | F13: MCM Rate Rider Incl HST | G13: % Increase vs. Total Bill | I13: 2019 Total Bill (Approved) | J13: Fixed Rate Rider | K13: Variable Rate Rider | L13: Taxes
B14: Residential | C14: kWh | D14: 750 | F14: =+(J14+D14*K14)*(1+L14) -> 0.2272681304 | G14: =+F14/I14 -> 0.002145050782 | I14: 105.95 | J14: =+'Rate Rider Calculation_2022'!O16 -> 0.2164458385 | K14: ='Rate Rider Calculation_2022'!P16+'Rate Rider Calculation_2022'!Q16 -> 0 | L14: 0.05
B15: General Service < 50 kW | C15: kWh | D15: 2000 | F15: =+(J15+D15*K15)*(1+L15) -> 0.5597529878 | G15: =+F15/I15 -> 0.002046928208 | I15: 273.46 | J15: =+'Rate Rider Calculation_2022'!O17 -> 0.2284706073 | K15: ='Rate Rider Calculation_2022'!P17+'Rate Rider Calculation_2022'!Q17 -> 0.0001523137382 | L15: 0.05
B16: General Service 50 to 699 kW | C16: kW | D16: 182500 | E16: 500 | F16: =+(J16+E16*K16)*(1+L16) -> 15.87560214 | G16: 0.0005576632545 | I16: 28468.08 | J16: =+'Rate Rider Calculation_2022'!O18 -> 1.139948083 | K16: ='Rate Rider Calculation_2022'!P18+'Rate Rider Calculation_2022'!Q18 -> 0.02581851471 | L16: 0.13
B17: General Service 700 to 4999 kW | C17: kW | D17: 627216 | E17: 1432 | F17: =+(J17+E17*K17)*(1+L17) -> 60.12178542 | G17: 0.0006151173534 | I17: 97740.35 | J17: =+'Rate Rider Calculation_2022'!O19 -> 10.28527466 | K17: ='Rate Rider Calculation_2022'!P19+'Rate Rider Calculation_2022'!Q19 -> 0.02997195893 | L17: 0.13
B18: Large Use | C18: kW | D18: 10220000 | E18: 20000 | F18: =+(J18+E18*K18)*(1+L18) -> 561.203965 | G18: 0.0003694953832 | I18: 1518838.91 | J18: =+'Rate Rider Calculation_2022'!O20 -> 42.79918063 | K18: ='Rate Rider Calculation_2022'!P20+'Rate Rider Calculation_2022'!Q20 -> 0.02269207482 | L18: 0.13
B19: Unmetered | C19: kWh | D19: 21296 | F19: =+(J19+D19*K19)*(1+L19) -> 4.341002072 | G19: 0.001140313401 | I19: 3806.85 | J19: =+'Rate Rider Calculation_2022'!O21 -> 0.009887032128 | K19: ='Rate Rider Calculation_2022'!P21+'Rate Rider Calculation_2022'!Q21 -> 0.0001799261703 | L19: 0.13
B20: Street Lighting | C20: kW | D20: 2787508 | E20: 7922 | F20: =+(J20+E20*K20)*(1+L20) -> 939.5010261 | G20: 0.001673862569 | I20: 561277.2776 | J20: =+'Rate Rider Calculation_2022'!O22 -> 0.02093200496 | K20: ='Rate Rider Calculation_2022'!P22+'Rate Rider Calculation_2022'!Q22 -> 0.1049477285 | L20: 0.13
B21: Embedded Distributor | C21: kWh | D21: 1417701 | E21: 4000 | F21: =+(J21+D21*K21)*(1+L21) -> 42.75314715 | G21: 0.0001967280719 | I21: 217321.0297 | J21: =+'Rate Rider Calculation_2022'!O23 -> 37.83464349 | K21: ='Rate Rider Calculation_2022'!P23+'Rate Rider Calculation_2022'!Q23 -> 0 | L21: 0.13
B22: Distributed Generation | C22: kWh | D22: 156 | F22: 1.068619826 | G22: 0.007415533303 | I22: 144.1055933 | J22: =+'Rate Rider Calculation_2022'!O24 -> 0.9456812622 | K22: ='Rate Rider Calculation_2022'!P24+'Rate Rider Calculation_2022'!Q24 -> 0 | L22: 0.13
I24: internal use
B25: Horizon Rate Class | C25: Unit | D25: kWh | E25: kW | F25: MCM Rate Rider Incl HST | G25: % Increase vs. Total Bill | I25: 2019 Total Bill (Approved) | J25: Fixed Rate Rider | K25: Variable Rate Rider | L25: Taxes
B26: Residential | C26: kWh | D26: 750 | F26: =+(J26+D26*K26)*(1+L26) -> 0.1939630163 | G26: =+F26/I26 -> 0.001784060121 | I26: 108.72 | J26: ='Rate Rider Calculation_2022'!O31 -> 0.1847266822 | K26: ='Rate Rider Calculation_2022'!P31+'Rate Rider Calculation_2022'!Q31 -> 0 | L26: 0.05
B27: General Service Less Than 50 Kw | C27: kWh | D27: 2000 | F27: =+(J27+D27*K27)*(1+L27) -> 0.4655838845 | G27: =+F27/I27 -> 0.001671335336 | I27: 278.57 | J27: ='Rate Rider Calculation_2022'!O32 -> 0.2925876925 | K27: ='Rate Rider Calculation_2022'!P32+'Rate Rider Calculation_2022'!Q32 -> 7.541276539e-05 | L27: 0.05
B28: General Service 50 To 4,999 Kw | C28: kW | D28: 110000 | E28: 250 | F28: =+(J28+E28*K28)*(1+L28) -> 8.155368223 | G28: 0.0004905992213 | I28: 16623.28 | J28: ='Rate Rider Calculation_2022'!O33 -> 2.694103747 | K28: ='Rate Rider Calculation_2022'!P33+'Rate Rider Calculation_2022'!Q33 -> 0.01809214509 | L28: 0.13
B29: Large Use | C29: kW | D29: 2555000 | E29: 5000 | F29: =+(J29+E29*K29)*(1+L29) -> 245.8124066 | G29: 0.0006273386206 | I29: 391833.69 | J29: ='Rate Rider Calculation_2022'!O34 -> 167.978614 | K29: ='Rate Rider Calculation_2022'!P34+'Rate Rider Calculation_2022'!Q34 -> 0.009910897837 | L29: 0.13
B30: Large Use With Dedicated Assets | C30: kW | D30: 10220000 | E30: 20000 | F30: =+(J30+E30*K30)*(1+L30) -> 98.09935019 | G30: 6.792229596e-05 | I30: 1444287.9 | J30: ='Rate Rider Calculation_2022'!O35 -> 39.82243722 | K30: ='Rate Rider Calculation_2022'!P35+'Rate Rider Calculation_2022'!Q35 -> 0.002349557351 | L30: 0.13
B31: Unmetered Scattered Load | C31: kWh | D31: 250 | F31: =+(J31+D31*K31)*(1+L31) -> 0.09365988718 | G31: 0.002407709182 | I31: 38.9 | J31: ='Rate Rider Calculation_2022'!O36 -> 0.0597075381 | K31: ='Rate Rider Calculation_2022'!P36+'Rate Rider Calculation_2022'!Q36 -> 9.270927122e-05 | L31: 0.13
B32: Sentinel Lighting | C32: kW | D32: 97008 | E32: 216 | F32: =+(J32+E32*K32)*(1+L32) -> 26.12012889 | G32: 0.001204960839 | I32: 21677.16 | J32: ='Rate Rider Calculation_2022'!O37 -> 0.03895173112 | K32: ='Rate Rider Calculation_2022'!P37+'Rate Rider Calculation_2022'!Q37 -> 0.1068342897 | L32: 0.13
B33: Street Lighting | C33: kW | D33: 1782038 | E33: 4974 | F33: 201.2623917 | G33: 0.0005440293093 | I33: 369947.7 | J33: ='Rate Rider Calculation_2022'!O38 -> 0.01349127454 | K33: ='Rate Rider Calculation_2022'!P38+'Rate Rider Calculation_2022'!Q38 -> 0.03580515078 | L33: 0.13
I35: internal use
B36: PowerStream Rate Class | C36: Unit | D36: kWh | E36: kW | F36: MCM Rate Rider Incl HST | G36: % Increase vs. Total Bill | I36: 2019 Total Bill (Approved) | J36: Fixed Rate Rider | K36: Variable Rate Rider | L36: Taxes
B37: Residential | C37: kWh | D37: 750 | F37: =+(J37+D37*K37)*(1+L37) -> 0.2171054794 | G37: =+F37/I37 -> 0.002030731263 | I37: 106.91 | J37: ='Rate Rider Calculation_2022'!O44 -> 0.1845458113 | K37: ='Rate Rider Calculation_2022'!P44+'Rate Rider Calculation_2022'!Q44 -> 2.962841588e-05 | L37: 0.05
B38: General Service Less Than 50 Kw | C38: kWh | D38: 2000 | F38: =+(J38+D38*K38)*(1+L38) -> 0.4614625773 | G38: =+F38/I38 -> 0.001682389359 | I38: 274.29 | J38: ='Rate Rider Calculation_2022'!O45 -> 0.1932431124 | K38: ='Rate Rider Calculation_2022'!P45+'Rate Rider Calculation_2022'!Q45 -> 0.0001231225282 | L38: 0.05
B39: General Service 50 To 4,999 Kw | C39: kW | D39: 80000 | E39: 250 | F39: =+(J39+E39*K39)*(1+L39) -> 9.054881734 | G39: 0.0007108072956 | I39: 12738.87 | J39: ='Rate Rider Calculation_2022'!O46 -> 0.9477801034 | K39: ='Rate Rider Calculation_2022'!P46+'Rate Rider Calculation_2022'!Q46 -> 0.02826155829 | L39: 0.13
B40: Large Use | C40: kW | D40: 2800000 | E40: 7350 | F40: =+(J40+E40*K40)*(1+L40) -> 171.3360994 | G40: 0.0004114800589 | I40: 416389.8 | J40: ='Rate Rider Calculation_2022'!O47 -> 40.83375108 | K40: ='Rate Rider Calculation_2022'!P47+'Rate Rider Calculation_2022'!Q47 -> 0.01507362118 | L40: 0.13
B41: Unmetered Scattered Load | C41: kWh | D41: 150 | E41: 0 | F41: =+(J41+D41*K41)*(1+L41) -> 0.08753188743 | G41: 0.002953167592 | I41: 29.64 | J41: ='Rate Rider Calculation_2022'!O48 -> 0.05780833142 | K41: ='Rate Rider Calculation_2022'!P48+'Rate Rider Calculation_2022'!Q48 -> 0.0001310234391 | L41: 0.13
B42: Sentinel Lighting | C42: kW | D42: 180 | E42: 1 | F42: =+(J42+E42*K42)*(1+L42) -> 0.1068216388 | G42: 0.003002294513 | I42: 35.58 | J42: ='Rate Rider Calculation_2022'!O49 -> 0.02817991554 | K42: ='Rate Rider Calculation_2022'!P49+'Rate Rider Calculation_2022'!Q49 -> 0.06635250815 | L42: 0.13
B43: Street Lighting | C43: kW | D43: 280 | E43: 1 | F43: 0.05703225128 | G43: 0.00110677763 | I43: 51.53 | J43: ='Rate Rider Calculation_2022'!O50 -> 0.007966751825 | K43: ='Rate Rider Calculation_2022'!P50+'Rate Rider Calculation_2022'!Q50 -> 0.04250426701 | L43: 0.13
I45: internal use
B46: Guelph Rate Class | C46: Unit | D46: kWh | E46: kW | F46: MCM Rate Rider Incl HST | G46: % Increase vs. Total Bill | I46: 2019 Total Bill (Approved) | J46: Fixed Rate Rider | K46: Variable Rate Rider | L46: Taxes
B47: Residential | C47: kWh | D47: 750 | F47: =+(J47+D47*K47)*(1+L47) -> 0.1464290764 | G47: =+F47/I47 -> 0.001303213567 | I47: 112.36 | J47: =+'Rate Rider Calculation_2022'!O56 -> 0.1394562632 | K47: ='Rate Rider Calculation_2022'!P56+'Rate Rider Calculation_2022'!Q56 -> 0 | L47: 0.05
B48: General Service Less Than 50 Kw | C48: kWh | D48: 2000 | F48: =+(J48+D48*K48)*(1+L48) -> 0.2272106202 | G48: =+F48/I48 -> 0.0008700387525 | I48: 261.15 | J48: =+'Rate Rider Calculation_2022'!O57 -> 0.08084836067 | K48: ='Rate Rider Calculation_2022'!P57+'Rate Rider Calculation_2022'!Q57 -> 6.77713531e-05 | L48: 0.05
B49: General Service 50 To 999 Kw | C49: kW | D49: 189800 | E49: 500 | F49: =+(J49+E49*K49)*(1+L49) -> 8.535939375 | G49: 0.0002744976017 | I49: 31096.59 | J49: =+'Rate Rider Calculation_2022'!O58 -> 0.8765413176 | K49: ='Rate Rider Calculation_2022'!P58+'Rate Rider Calculation_2022'!Q58 -> 0.01335477467 | L49: 0.13
B50: General Service 1,000 To 4,999 Kw | C50: kW | D50: 489100 | E50: 1000 | F50: =+(J50+E50*K50)*(1+L50) -> 19.88571431 | G50: 0.0002494464558 | I50: 79719.37 | J50: =+'Rate Rider Calculation_2022'!O59 -> 2.772755142 | K50: ='Rate Rider Calculation_2022'!P59+'Rate Rider Calculation_2022'!Q59 -> 0.01482522212 | L50: 0.13
B51: Large Use | C51: kW | D51: 4215750 | E51: 7500 | F51: =+(J51+E51*K51)*(1+L51) -> 118.9055449 | G51: 0.0001881270515 | I51: 632049.16 | J51: =+'Rate Rider Calculation_2022'!O60 -> 5.330216921 | K51: ='Rate Rider Calculation_2022'!P60+'Rate Rider Calculation_2022'!Q60 -> 0.0133194572 | L51: 0.13
B52: Unmetered Scattered Load | C52: kWh | D52: 750 | F52: =+(J52+D52*K52)*(1+L52) -> 0.1181622177 | G52: 0.0006246680995 | I52: 189.16 | J52: =+'Rate Rider Calculation_2022'!O61 -> 0.02367224728 | K52: ='Rate Rider Calculation_2022'!P61+'Rate Rider Calculation_2022'!Q61 -> 0.0001078614493 | L52: 0.13
B53: Sentinel Lighting | C53: kW | D53: 140 | E53: 2 | F53: =+(J53+E53*K53)*(1+L53) -> 0.132931686 | G53: 0.001937497245 | I53: 68.61 | J53: =+'Rate Rider Calculation_2022'!O62 -> 0.03660607594 | K53: ='Rate Rider Calculation_2022'!P62+'Rate Rider Calculation_2022'!Q62 -> 0.0405162921 | L53: 0.13
B54: Street Lighting | C54: kW | D54: 800000 | E54: 2200 | F54: 123.490789 | G54: 0.0008031636017 | I54: 153755.46 | J54: =+'Rate Rider Calculation_2022'!O63 -> 0.00209995742 | K54: ='Rate Rider Calculation_2022'!P63+'Rate Rider Calculation_2022'!Q63 -> 0.04967353824 | L54: 0.13

Sheet Rate Rider Calculation_2022
H1: Back to Index
A2: Enersource Rate Class | C2: Service Charge % Revenue | D2: Distribution Volumetric Rate % Revenue kWh | E2: Distribution Volumetric Rate % Revenue kW | F2: Service Charge Revenue | G2: Distribution Volumetric Rate Revenue kWh | H2: Distribution Volumetric Rate Revenue kW | I2: Total Revenue by Rate Class | K2: Billed Customers or Connections | L2: Billed kWh | M2: Billed kW | O2: Service Charge Rate Rider | P2: Distribution Volumetric Rate kWh Rate Rider | Q2: Distribution Volumetric Rate kW Rate Rider
C3: From Sheet 8 | D3: From Sheet 8 | E3: From Sheet 8 | F3: Col C * Col Itotal | G3: Col D* Col Itotal | H3: Col E* Col Itotal | I3: Col Itotal | K3: From Sheet 4 | L3: From Sheet 4 | M3: From Sheet 4 | O3: Col F / Col K / 12 | P3: Col G / Col L | Q3: Col H / Col M
A4: RESIDENTIAL | C4: ='Revenue Proportions'!P7 -> 0.4021608098 | D4: ='Revenue Proportions'!Q7 -> 0 | E4: ='Revenue Proportions'!R7 -> 0 | F4: =C4*$I$12 -> 358478.5326 | G4: =D4*$I$12 -> 0 | H4: =E4*$I$12 -> 0 | I4: =SUM(F4:H4) -> 358478.5326 | K4: ='Revenue Proportions'!G7 -> 183533 | L4: ='Revenue Proportions'!H7 -> 1490532667 | M4: ='Revenue Proportions'!I7 -> 0 | O4: =F4/K4/12 -> 0.1627675189 | P4: =IF(ISERROR(G4/L4),0,G4/L4) -> 0 | Q4: 0
A5: GENERAL SERVICE LESS THAN 50 kW | C5: ='Revenue Proportions'!P8 -> 0.07444603184 | D5: ='Revenue Proportions'!Q8 -> 0.06711464909 | E5: ='Revenue Proportions'!R8 -> 0 | F5: =C5*$I$12 -> 66359.78346 | G5: 59824.72766 | H5: 0 | I5: =SUM(F5:H5) -> 126184.5111 | K5: ='Revenue Proportions'!G8 -> 18506 | L5: ='Revenue Proportions'!H8 -> 685616684 | M5: ='Revenue Proportions'!I8 -> 0 | O5: 0.2988210286 | P5: 8.725681427e-05 | Q5: =IF(ISERROR(H5/M5),0,H5/M5) -> 0
A6: GENERAL SERVICE 50 TO 499 kW | C6: ='Revenue Proportions'!P9 -> 0.02646280644 | D6: ='Revenue Proportions'!Q9 -> 0 | E6: ='Revenue Proportions'!R9 -> 0.2029087669 | F6: 23588.4447 | G6: 0 | H6: 180869.0336 | I6: 204457.4783 | K6: ='Revenue Proportions'!G9 -> 3735 | M6: ='Revenue Proportions'!I9 -> 5710412 | O6: 0.5262928313 | P6: 0 | Q6: 0.03167355238
A7: GENERAL SERVICE 500 TO 4,999 kW | C7: ='Revenue Proportions'!P10 -> 0.07712292312 | D7: ='Revenue Proportions'!Q10 -> 0 | E7: ='Revenue Proportions'!R10 -> 0.08384747717 | F7: 68745.91367 | G7: 0 | H7: 74740.05385 | I7: 143485.9675 | K7: ='Revenue Proportions'!G10 -> 478 | L7: ='Revenue Proportions'!H10 -> 2037760513 | M7: ='Revenue Proportions'!I10 -> 4585777.203 | O7: 11.98499192 | P7: 0 | Q7: 0.01629823049
A8: LARGE USE | C8: ='Revenue Proportions'!P11 -> 0.01144927479 | D8: ='Revenue Proportions'!Q11 -> 0 | E8: ='Revenue Proportions'!R11 -> 0.03978723226 | F8: 10205.66681 | G8: 0 | H8: 35465.58563 | I8: 45671.25243 | K8: ='Revenue Proportions'!G11 -> 9 | L8: ='Revenue Proportions'!H11 -> 977049362 | M8: ='Revenue Proportions'!I11 -> 1753163 | O8: 94.49691488 | P8: 0 | Q8: 0.02022948558
A9: UNMETERED SCATTERED LOAD | C9: ='Revenue Proportions'!P12 -> 0.002582555959 | D9: ='Revenue Proportions'!Q12 -> 0.00143828703 | E9: ='Revenue Proportions'!R12 -> 0 | F9: 2302.041492 | G9: 1282.061831 | H9: 0 | I9: 3584.103323 | K9: ='Revenue Proportions'!G12 -> 3110 | L9: ='Revenue Proportions'!H12 -> 11437642 | M9: ='Revenue Proportions'!I12 -> 0 | O9: 0.06168385563 | P9: 0.000112091446 | Q9: 0
A10: STREET LIGHTING | C10: ='Revenue Proportions'!P13 -> 0.007077214813 | D10: ='Revenue Proportions'!Q13 -> 0 | E10: ='Revenue Proportions'!R13 -> 0.003601970762 | F10: 6308.495306 | G10: 0 | H10: 3210.728549 | I10: 9519.223855 | K10: ='Revenue Proportions'!G13 -> 50859 | L10: ='Revenue Proportions'!H13 -> 13289944 | M10: ='Revenue Proportions'!I13 -> 40572 | O10: 0.01033657646 | P10: 0 | Q10: 0.0791365609
A11: Total | C11: =SUM(C4:C10) -> 0.6013016168 | D11: 0.06855293612 | E11: 0.3301454471 | F11: 535988.8781 | G11: 61106.78949 | H11: 294285.4016 | I11: 891381.0691 | K11: =SUM(K4:K10) -> 260230 | L11: =SUM(L4:L10) -> 5215686812 | M11: =SUM(M4:M10) -> 12089924.2
I12: ='M-factor RR Calculation_2022'!T67 -> 891381.0691
A14: Brampton Rate Class | C14: Service Charge % Revenue | D14: Distribution Volumetric Rate % Revenue kWh | E14: Distribution Volumetric Rate % Revenue kW | F14: Service Charge Revenue | G14: Distribution Volumetric Rate Revenue kWh | H14: Distribution Volumetric Rate Revenue kW | I14: Total Revenue by Rate Class | K14: Billed Customers or Connections | L14: Billed kWh | M14: Billed kW | O14: Service Charge Rate Rider | P14: Distribution Volumetric Rate kWh Rate Rider | Q14: Distribution Volumetric Rate kW Rate Rider
C15: From Sheet 8 | D15: From Sheet 8 | E15: From Sheet 8 | F15: Col C * Col Itotal | G15: Col D* Col Itotal | H15: Col E* Col Itotal | I15: Col Itotal | K15: From Sheet 4 | L15: From Sheet 4 | M15: From Sheet 4 | O15: Col F / Col K / 12 | P15: Col G / Col L | Q15: Col H / Col M
A16: RESIDENTIAL | C16: ='Revenue Proportions'!P20 -> 0.5765143424 | D16: ='Revenue Proportions'!Q20 -> 0 | E16: ='Revenue Proportions'!R20 -> 0 | F16: =C16*$I$27 -> 398072.4678 | G16: =D16*$I$27 -> 0 | H16: =E16*$I$27 -> 0 | I16: =SUM(F16:H16) -> 398072.4678 | K16: ='Revenue Proportions'!G20 -> 153261 | L16: ='Revenue Proportions'!H20 -> 1385125813 | M16: ='Revenue Proportions'!I20 -> 0 | O16: =F16/K16/12 -> 0.2164458385 | P16: =IF(ISERROR(G16/L16),0,G16/L16) -> 0 | Q16: 0
A17: GENERAL SERVICE LESS THAN 50 kW | C17: ='Revenue Proportions'!P21 -> 0.03757011295 | D17: ='Revenue Proportions'!Q21 -> 0.0760565388 | E17: ='Revenue Proportions'!R21 -> 0 | F17: =C17*$I$27 -> 25941.46663 | G17: 52515.63034 | H17: 0 | I17: =SUM(F17:H17) -> 78457.09698 | K17: ='Revenue Proportions'!G21 -> 9462 | L17: ='Revenue Proportions'!H21 -> 344785906.8 | M17: ='Revenue Proportions'!I21 -> 0 | O17: =F17/K17/12 -> 0.2284706073 | P17: 0.0001523137382 | Q17: 0
A18: GENERAL SERVICE 50 TO 699 KW | C18: ='Revenue Proportions'!P22 -> 0.03151987402 | D18: ='Revenue Proportions'!Q22 -> 0 | E18: ='Revenue Proportions'!R22 -> 0.1188918616 | F18: 21763.88879 | G18: 0 | H18: 82092.62682 | I18: 103856.5156 | K18: ='Revenue Proportions'!G22 -> 1591 | L18: ='Revenue Proportions'!H22 -> 1131688196 | M18: ='Revenue Proportions'!I22 -> 3179603 | O18: =F18/K18/12 -> 1.139948083 | P18: 0 | Q18: 0.02581851471
A19: GENERAL SERVICE 700 TO 4,999 KW | C19: ='Revenue Proportions'!P23 -> 0.01876870955 | D19: ='Revenue Proportions'!Q23 -> 0 | E19: ='Revenue Proportions'!R23 -> 0.08770726142 | F19: 12959.44607 | G19: 0 | H19: 60560.23837 | I19: 73519.68444 | K19: ='Revenue Proportions'!G23 -> 105 | L19: ='Revenue Proportions'!H23 -> 875091030.3 | M19: ='Revenue Proportions'!I23 -> 2020563.238 | O19: 10.28527466 | P19: 0 | Q19: 0.02997195893
A20: LARGE USE | C20: ='Revenue Proportions'!P24 -> 0.004462887364 | D20: ='Revenue Proportions'!Q24 -> 0 | E20: ='Revenue Proportions'!R24 -> 0.02161990293 | F20: 3081.541006 | G20: 0 | H20: 14928.14225 | I20: 18009.68325 | K20: ='Revenue Proportions'!G24 -> 6 | L20: ='Revenue Proportions'!H24 -> 350379704.8 | M20: ='Revenue Proportions'!I24 -> 657857.0874 | O20: 42.79918063 | P20: 0 | Q20: 0.02269207482
A21: UNMETERED SCATTERED LOAD | C21: ='Revenue Proportions'!P25 -> 0.000267365126 | D21: ='Revenue Proportions'!Q25 -> 0.001541244921 | E21: ='Revenue Proportions'!R25 -> 0 | F21: 184.6106639 | G21: 1064.201051 | H21: 0 | I21: 1248.811715 | K21: ='Revenue Proportions'!G25 -> 1556 | L21: ='Revenue Proportions'!H25 -> 5914654.047 | M21: ='Revenue Proportions'!I25 -> 0 | O21: 0.009887032128 | P21: 0.0001799261703 | Q21: 0
A22: STREET LIGHTING | C22: ='Revenue Proportions'!P26 -> 0.007246154362 | D22: ='Revenue Proportions'!Q26 -> 0 | E22: ='Revenue Proportions'!R26 -> 0.01502320324 | F22: 5003.33528 | G22: 0 | H22: 10373.24338 | I22: 15376.57866 | K22: ='Revenue Proportions'!G26 -> 19919 | L22: ='Revenue Proportions'!H26 -> 34968321 | M22: ='Revenue Proportions'!I26 -> 98842 | O22: 0.02093200496 | P22: 0 | Q22: 0.1049477285
A23: EMBEDDED DISTRIBUTOR | C23: ='Revenue Proportions'!P27 -> 0.000657534988 | D23: ='Revenue Proportions'!Q27 -> 0 | E23: ='Revenue Proportions'!R27 -> 0 | F23: 454.0157219 | G23: 0 | H23: 0 | I23: 454.0157219 | K23: ='Revenue Proportions'!G27 -> 1 | L23: ='Revenue Proportions'!H27 -> 3402773 | M23: ='Revenue Proportions'!I27 -> 0 | O23: 37.83464349 | P23: 0 | Q23: 0
A24: DISTRIBUTED GENERATION [DGEN] | C24: ='Revenue Proportions'!P28 -> 0.0021530063 | D24: ='Revenue Proportions'!Q28 -> 0 | E24: ='Revenue Proportions'!R28 -> 0 | F24: 1486.610944 | G24: 0 | H24: 0 | I24: 1486.610944 | K24: ='Revenue Proportions'!G28 -> 131 | L24: ='Revenue Proportions'!H28 -> 277418 | M24: ='Revenue Proportions'!I28 -> 0 | O24: 0.9456812622 | P24: 0 | Q24: 0
A25: STANDBY POWER | C25: ='Revenue Proportions'!P29 -> 0 | D25: ='Revenue Proportions'!Q29 -> 0 | E25: ='Revenue Proportions'!R29 -> 0 | F25: 0 | G25: 0 | H25: 0 | I25: 0 | K25: ='Revenue Proportions'!G29 -> 1 | L25: ='Revenue Proportions'!H29 -> 0 | M25: ='Revenue Proportions'!I29 -> 0 | O25: 0 | P25: 0 | Q25: 0
A26: Total | C26: =SUM(C16:C25) -> 0.679159987 | D26: 0.07759778372 | E26: 0.2432422292 | F26: 468947.3829 | G26: 53579.83139 | H26: 167954.2508 | I26: 690481.4651 | K26: =SUM(K16:K25) -> 186033 | L26: =SUM(L16:L25) -> 4131633817 | M26: =SUM(M16:M25) -> 5956865.325
I27: ='M-factor RR Calculation_2022'!J67 -> 690481.4651
A29: Horizon Rate Class | C29: Service Charge % Revenue | D29: Distribution Volumetric Rate % Revenue kWh | E29: Distribution Volumetric Rate % Revenue kW | F29: Service Charge Revenue | G29: Distribution Volumetric Rate Revenue kWh | H29: Distribution Volumetric Rate Revenue kW | I29: Total Revenue by Rate Class | K29: Billed Customers or Connections | L29: Billed kWh | M29: Billed kW | O29: Service Charge Rate Rider | P29: Distribution Volumetric Rate kWh Rate Rider | Q29: Distribution Volumetric Rate kW Rate Rider
C30: From Sheet 8 | D30: From Sheet 8 | E30: From Sheet 8 | F30: Col C * Col Itotal | G30: Col D* Col Itotal | H30: Col E* Col Itotal | I30: Col Itotal | K30: From Sheet 4 | L30: From Sheet 4 | M30: From Sheet 4 | O30: Col F / Col K / 12 | P30: Col G / Col L | Q30: Col H / Col M
A31: RESIDENTIAL | C31: =+'Revenue Proportions'!P36 -> 0.6135452637 | D31: =+'Revenue Proportions'!Q36 -> 0 | E31: =+'Revenue Proportions'!R36 -> 0 | F31: =C31*$I$40 -> 504884.6231 | G31: =D31*$I$40 -> 0 | H31: =E31*$I$40 -> 0 | I31: =SUM(F31:H31) -> 504884.6231 | K31: ='Revenue Proportions'!G36 -> 227762 | L31: ='Revenue Proportions'!H36 -> 1652719193 | M31: ='Revenue Proportions'!I36 -> 0 | O31: =F31/K31/12 -> 0.1847266822 | P31: =IF(ISERROR(G31/L31),0,G31/L31) -> 0 | Q31: 0
A32: GENERAL SERVICE LESS THAN 50 kW | C32: =+'Revenue Proportions'!P37 -> 0.07982562709 | D32: =+'Revenue Proportions'!Q37 -> 0.05447927355 | E32: =+'Revenue Proportions'!R37 -> 0 | F32: =C32*$I$40 -> 65688.27767 | G32: 44830.83665 | H32: 0 | I32: 110519.1143 | K32: ='Revenue Proportions'!G37 -> 18709 | L32: ='Revenue Proportions'!H37 -> 594472784.8 | M32: ='Revenue Proportions'!I37 -> 0 | O32: 0.2925876925 | P32: 7.541276539e-05 | Q32: 0
A33: GENERAL SERVICE 50 TO 4,999 KW | C33: =+'Revenue Proportions'!P38 -> 0.09098893484 | D33: =+'Revenue Proportions'!Q38 -> 0 | E33: =+'Revenue Proportions'!R38 -> 0.111389565 | F33: 74874.53134 | G33: 0 | H33: 91662.15086 | I33: 166536.6822 | K33: ='Revenue Proportions'!G38 -> 2316 | L33: ='Revenue Proportions'!H38 -> 1840510488 | M33: ='Revenue Proportions'!I38 -> 5066405.912 | O33: 2.694103747 | P33: 0 | Q33: 0.01809214509
A34: LARGE USE | C34: =+'Revenue Proportions'!P39 -> 0.01469741489 | D34: =+'Revenue Proportions'!Q39 -> 0 | E34: =+'Revenue Proportions'!R39 -> 0.006859247021 | F34: 12094.46021 | G34: 0 | H34: 5644.454536 | I34: 17738.91474 | K34: ='Revenue Proportions'!G39 -> 6 | L34: ='Revenue Proportions'!H39 -> 242051739 | M34: ='Revenue Proportions'!I39 -> 569520 | O34: 167.978614 | P34: 0 | Q34: 0.009910897837
A35: LARGE USE WITH DEDICATED ASSETS | C35: =+'Revenue Proportions'!P40 -> 0.002903578357 | D35: =+'Revenue Proportions'!Q40 -> 0 | E35: =+'Revenue Proportions'!R40 -> 0.006101481257 | F35: 2389.346233 | G35: 0 | H35: 5020.891281 | I35: 7410.237514 | K35: ='Revenue Proportions'!G40 -> 5 | L35: ='Revenue Proportions'!H40 -> 403775839 | M35: ='Revenue Proportions'!I40 -> 2136952 | O35: 39.82243722 | P35: 0 | Q35: 0.002349557351
A36: UNMETERED SCATTERED LOAD | C36: =+'Revenue Proportions'!P41 -> 0.002617302083 | D36: =+'Revenue Proportions'!Q41 -> 0.00118344063 | E36: =+'Revenue Proportions'!R41 -> 0 | F36: 2153.770314 | G36: 973.8498722 | H36: 0 | I36: 3127.620187 | K36: ='Revenue Proportions'!G41 -> 3006 | L36: ='Revenue Proportions'!H41 -> 10504341.79 | M36: ='Revenue Proportions'!I41 -> 0 | O36: 0.0597075381 | P36: 9.270927122e-05 | Q36: 0
A37: SENTINEL LIGHTING | C37: =+'Revenue Proportions'!P42 -> 0.0002147109895 | D37: =+'Revenue Proportions'!Q42 -> 0 | E37: =+'Revenue Proportions'!R42 -> 0.0001337218437 | F37: 176.6850523 | G37: 0 | H37: 110.0393184 | I37: =SUM(F37:H37) -> 286.7243708 | K37: ='Revenue Proportions'!G42 -> 378 | L37: ='Revenue Proportions'!H42 -> 363731 | M37: ='Revenue Proportions'!I42 -> 1030 | O37: 0.03895173112 | P37: 0 | Q37: 0.1068342897
A38: STREET LIGHTING | C38: =+'Revenue Proportions'!P43 -> 0.01028409585 | D38: =+'Revenue Proportions'!Q43 -> 0 | E38: =+'Revenue Proportions'!R43 -> 0.004776342969 | F38: 8462.75273 | G38: 0 | H38: 3930.438816 | I38: 12393.19155 | K38: ='Revenue Proportions'!G43 -> 52273 | L38: ='Revenue Proportions'!H43 -> 39610412.93 | M38: ='Revenue Proportions'!I43 -> 109773 | O38: 0.01349127454 | P38: 0 | Q38: 0.03580515078
A39: Total | C39: =SUM(C31:C38) -> 0.8150769278 | D39: 0.05566271418 | E39: 0.129260358 | F39: 670724.4466 | G39: 45804.68652 | H39: 106367.9748 | I39: 822897.108 | K39: =SUM(K31:K38) -> 304455 | L39: =SUM(L31:L38) -> 4784008529 | M39: =SUM(M31:M38) -> 7883680.912
I40: ='M-factor RR Calculation_2022'!E67 -> 822897.108
A42: PowerStream Rate Class | C42: Service Charge % Revenue | D42: Distribution Volumetric Rate % Revenue kWh | E42: Distribution Volumetric Rate % Revenue kW | F42: Service Charge Revenue | G42: Distribution Volumetric Rate Revenue kWh | H42: Distribution Volumetric Rate Revenue kW | I42: Total Revenue by Rate Class | K42: Billed Customers or Connections | L42: Billed kWh | M42: Billed kW | O42: Service Charge Rate Rider | P42: Distribution Volumetric Rate kWh Rate Rider | Q42: Distribution Volumetric Rate kW Rate Rider
C43: From Sheet 8 | D43: From Sheet 8 | E43: From Sheet 8 | F43: Col C * Col Itotal | G43: Col D* Col Itotal | H43: Col E* Col Itotal | I43: Col Itotal | K43: From Sheet 4 | L43: From Sheet 4 | M43: From Sheet 4 | O43: Col F / Col K / 12 | P43: Col G / Col L | Q43: Col H / Col M
A44: RESIDENTIAL | C44: ='Revenue Proportions'!P50 -> 0.4804828615 | D44: ='Revenue Proportions'!Q50 -> 0.06016245838 | E44: ='Revenue Proportions'!R50 -> 0 | F44: =C44*$I$52 -> 658695.2702 | G44: =D44*$I$52 -> 82476.87889 | H44: =E44*$I$52 -> 0 | I44: =SUM(F44:H44) -> 741172.1491 | K44: ='Revenue Proportions'!G50 -> 334683 | L44: ='Revenue Proportions'!H50 -> 2783708695 | M44: ='Revenue Proportions'!I50 -> 0 | O44: =(F44+G44)/K44/12 -> 0.1845458113 | P44: =IF(ISERROR(G44/L44),0,G44/L44) -> 2.962841588e-05 | Q44: 0
A45: GENERAL SERVICE LESS THAN 50 kW | C45: ='Revenue Proportions'!P51 -> 0.05518433769 | D45: ='Revenue Proportions'!Q51 -> 0.09426732524 | E45: ='Revenue Proportions'!R51 -> 0 | F45: =C45*$I$52 -> 75652.3596 | G45: 129231.3342 | H45: 0 | I45: 204883.6938 | K45: ='Revenue Proportions'!G51 -> 32624 | L45: ='Revenue Proportions'!H51 -> 1049615664 | M45: ='Revenue Proportions'!I51 -> 0 | O45: =F45/K45/12 -> 0.1932431124 | P45: 0.0001231225282 | Q45: 0
A46: GENERAL SERVICE 50 TO 4,999 KW | C46: ='Revenue Proportions'!P52 -> 0.04319860947 | D46: ='Revenue Proportions'!Q52 -> 0 | E46: ='Revenue Proportions'!R52 -> 0.2513596733 | F46: 59221.09198 | G46: 0 | H46: 344589.6642 | I46: 403810.7562 | K46: ='Revenue Proportions'!G52 -> 5207 | L46: ='Revenue Proportions'!H52 -> 4679965944 | M46: ='Revenue Proportions'!I52 -> 12192875.59 | O46: =F46/K46/12 -> 0.9477801034 | P46: 0 | Q46: 0.02826155829
A47: LARGE USE | C47: ='Revenue Proportions'!P53 -> 0.0007148647377 | D47: ='Revenue Proportions'!Q53 -> 0 | E47: ='Revenue Proportions'!R53 -> 0.001131111182 | F47: 980.0100259 | G47: 0 | H47: 1550.643416 | I47: 2530.653442 | K47: ='Revenue Proportions'!G53 -> 2 | L47: ='Revenue Proportions'!H53 -> 53218181 | M47: ='Revenue Proportions'!I53 -> 102871.3272 | O47: 40.83375108 | P47: 0 | Q47: 0.01507362118
A48: UNMETERED SCATTERED LOAD | C48: ='Revenue Proportions'!P54 -> 0.001559544139 | D48: ='Revenue Proportions'!Q54 -> 0.001321871603 | E48: ='Revenue Proportions'!R54 -> 0 | F48: 2137.983329 | G48: 1812.1574 | H48: 0 | I48: 3950.140729 | K48: ='Revenue Proportions'!G54 -> 3082 | L48: ='Revenue Proportions'!H54 -> 13830787.93 | M48: ='Revenue Proportions'!I54 -> 0 | O48: 0.05780833142 | P48: 0.0001310234391 | Q48: 0
A49: SENTINEL LIGHTING | C49: ='Revenue Proportions'!P55 -> 4.242704029e-05 | D49: ='Revenue Proportions'!Q55 -> 0 | E49: ='Revenue Proportions'!R55 -> 3.85268736e-05 | F49: 58.16334568 | G49: 0 | H49: 52.81659649 | I49: 110.9799422 | K49: ='Revenue Proportions'!G55 -> 172 | L49: ='Revenue Proportions'!H55 -> 286385 | M49: ='Revenue Proportions'!I55 -> 796 | O49: 0.02817991554 | P49: 0 | Q49: 0.06635250815
A50: STREET LIGHTING | C50: ='Revenue Proportions'!P56 -> 0.006377061486 | D50: ='Revenue Proportions'!Q56 -> 0 | E50: ='Revenue Proportions'!R56 -> 0.004159327344 | F50: 8742.331048 | G50: 0 | H50: 5702.033242 | I50: 14444.36429 | K50: ='Revenue Proportions'!G56 -> 91446 | L50: ='Revenue Proportions'!H56 -> 48883953 | M50: ='Revenue Proportions'!I56 -> 134152.0192 | O50: 0.007966751825 | P50: 0 | Q50: 0.04250426701
A51: Total | C51: =SUM(C44:C50) -> 0.5875597061 | D51: 0.1557516552 | E51: 0.2566886387 | F51: 805487.2095 | G51: 213520.3705 | H51: 351895.1575 | I51: 1370902.738 | K51: =SUM(K44:K50) -> 467216 | L51: =SUM(L44:L50) -> 8629509610 | M51: =SUM(M44:M50) -> 12430694.94
I52: ='M-factor RR Calculation_2022'!O67 -> 1370902.738
A54: Guelph Rate Class | C54: Service Charge % Revenue | D54: Distribution Volumetric Rate % Revenue kWh | E54: Distribution Volumetric Rate % Revenue kW | F54: Service Charge Revenue | G54: Distribution Volumetric Rate Revenue kWh | H54: Distribution Volumetric Rate Revenue kW | I54: Total Revenue by Rate Class | K54: Billed Customers or Connections | L54: Billed kWh | M54: Billed kW | O54: Service Charge Rate Rider | P54: Distribution Volumetric Rate kWh Rate Rider | Q54: Distribution Volumetric Rate kW Rate Rider
C55: From Sheet 8 | D55: From Sheet 8 | E55: From Sheet 8 | F55: Col C * Col Itotal | G55: Col D* Col Itotal | H55: Col E* Col Itotal | K55: From Sheet 4 | L55: From Sheet 4 | M55: From Sheet 4 | O55: Col F / Col K / 12 | P55: Col G / Col L | Q55: Col H / Col M
A56: RESIDENTIAL | C56: ='Revenue Proportions'!P63 -> 0.5840465345 | D56: ='Revenue Proportions'!Q63 -> 0 | E56: ='Revenue Proportions'!R63 -> 0 | F56: =C56*$I$65 -> 85203.31422 | G56: =D56*$I$65 -> 0 | H56: =E56*$I$65 -> 0 | I56: =SUM(F56:H56) -> 85203.31422 | K56: ='Revenue Proportions'!G63 -> 50914 | L56: ='Revenue Proportions'!H63 -> 384041745 | M56: ='Revenue Proportions'!I63 -> 0 | O56: =(F56+G56)/K56/12 -> 0.1394562632 | P56: =IF(ISERROR(G56/L56),0,G56/L56) -> 0 | Q56: 0
A57: GENERAL SERVICE LESS THAN 50 KW | C57: ='Revenue Proportions'!P64 -> 0.02749247886 | D57: ='Revenue Proportions'!Q64 -> 0.06606393443 | E57: ='Revenue Proportions'!R64 -> 0 | F57: =C57*$I$65 -> 4010.725476 | G57: 9637.701504 | H57: 0 | I57: 13648.42698 | K57: ='Revenue Proportions'!G64 -> 4134 | L57: ='Revenue Proportions'!H64 -> 142209076 | M57: ='Revenue Proportions'!I64 -> 0 | O57: =F57/K57/12 -> 0.08084836067 | P57: 6.77713531e-05 | Q57: 0
A58: GENERAL SERVICE 50 TO 999 KW | C58: ='Revenue Proportions'!P65 -> 0.04167469594 | D58: ='Revenue Proportions'!Q65 -> 0 | E58: ='Revenue Proportions'!R65 -> 0.1004689031 | F58: 6079.690579 | G58: 0 | H58: 14656.85184 | I58: 20736.54242 | K58: ='Revenue Proportions'!G65 -> 578 | L58: ='Revenue Proportions'!H65 -> 402350218 | M58: ='Revenue Proportions'!I65 -> 1097499 | O58: 0.8765413176 | P58: 0 | Q58: 0.01335477467
A59: GENERAL SERVICE 1,000 TO 4,999 KW | C59: ='Revenue Proportions'!P66 -> 0.009807361508 | D59: ='Revenue Proportions'!Q66 -> 0 | E59: ='Revenue Proportions'!R66 -> 0.1153853375 | F59: 1430.741653 | G59: 0 | H59: 16832.92783 | I59: 18263.66948 | K59: ='Revenue Proportions'!G66 -> 43 | L59: ='Revenue Proportions'!H66 -> 540417878 | M59: ='Revenue Proportions'!I66 -> 1135425 | O59: 2.772755142 | P59: 0 | Q59: 0.01482522212
A60: LARGE USE | C60: ='Revenue Proportions'!P67 -> 0.00175378796 | D60: ='Revenue Proportions'!Q67 -> 0 | E60: ='Revenue Proportions'!R67 -> 0.03863693115 | F60: 255.8504122 | G60: 0 | H60: 5636.527898 | I60: 5892.37831 | K60: ='Revenue Proportions'!G67 -> 4 | L60: ='Revenue Proportions'!H67 -> 197428962 | M60: ='Revenue Proportions'!I67 -> 423180 | O60: 5.330216921 | P60: 0 | Q60: 0.0133194572
A61: UNMETERED SCATTERED LOAD | C61: ='Revenue Proportions'!P68 -> 0.00108848765 | D61: ='Revenue Proportions'!Q68 -> 0.001338746781 | E61: ='Revenue Proportions'!R68 -> 0 | F61: 158.7934348 | G61: 195.3023533 | H61: 0 | I61: 354.0957881 | K61: ='Revenue Proportions'!G68 -> 559 | L61: ='Revenue Proportions'!H68 -> 1810678 | M61: ='Revenue Proportions'!I68 -> 0 | O61: 0.02367224728 | P61: 0.0001078614493 | Q61: 0
A62: SENTINEL LIGHTING | C62: ='Revenue Proportions'!P69 -> 0.0001053885501 | D62: ='Revenue Proportions'!Q69 -> 0 | E62: ='Revenue Proportions'!R69 -> 1.416416029e-05 | F62: 15.37455189 | G62: 0 | H62: 2.066330897 | I62: 17.44088279 | K62: ='Revenue Proportions'!G69 -> 35 | L62: ='Revenue Proportions'!H69 -> 18189 | M62: ='Revenue Proportions'!I69 -> 51 | O62: 0.03660607594 | P62: 0 | Q62: 0.0405162921
A63: STREET LIGHTING | C63: ='Revenue Proportions'!P70 -> 0.002444558968 | D63: ='Revenue Proportions'!Q70 -> 0 | E63: ='Revenue Proportions'!R70 -> 0.009678688939 | F63: 356.6231689 | G63: 0 | H63: 1411.970325 | I63: 1768.593493 | K63: ='Revenue Proportions'!G70 -> 14152 | L63: ='Revenue Proportions'!H70 -> 10182750 | M63: ='Revenue Proportions'!I70 -> 28425 | O63: 0.00209995742 | P63: 0 | Q63: 0.04967353824
A64: Total | C64: =SUM(C56:C63) -> 0.6684132939 | D64: 0.06740268121 | E64: 0.2641840248 | F64: 97511.1135 | G64: 9833.003857 | H64: 38540.34422 | I64: 145884.4616 | K64: =SUM(K56:K63) -> 70419 | L64: =SUM(L56:L63) -> 1678459496 | M64: =SUM(M56:M63) -> 2684580
I65: ='M-factor RR Calculation_2022'!Y67 -> 145884.4616

Sheet M-factor RR Calculation_2023
B1: 2023 Rates | H1: Back to Index
B2: M-factor Revenue Requirement_HRZ | G2: M-factor Revenue Requirement_BRZ | L2: M-factor Revenue Requirement_PRZ | Q2: M-factor Revenue Requirement_ERZ | V2: M-factor Revenue Requirement_GRZ
B5: Return on Rate Base | G5: Return on Rate Base | L5: Return on Rate Base | Q5: Return on Rate Base | V5: Return on Rate Base
B6: Incremental Capital | E6: ='Summary by RZ'!T3 -> 4249179.723 | G6: Incremental Capital | J6: ='Summary by RZ'!T4 -> 4260455.42 | L6: Incremental Capital | O6: ='Summary by RZ'!T5 -> 34170992.46 | Q6: Incremental Capital | T6: ='Summary by RZ'!T6 -> 8577274.445 | V6: Incremental Capital | Y6: ='Summary by RZ'!T7 -> 811132.2855
B7: Depreciation Expense | E7: ='Summary by RZ'!T21 -> 411767.7158 | G7: Depreciation Expense | J7: ='Summary by RZ'!T22 -> 333345.9689 | L7: Depreciation Expense | O7: ='Summary by RZ'!T23 -> 1418894.437 | Q7: Depreciation Expense | T7: ='Summary by RZ'!T24 -> 532385.6892 | V7: Depreciation Expense | Y7: ='Summary by RZ'!T25 -> 92870.22864
B8: Incremental Capital to be included in Rate Base (avg NBV) | E8: =((E6)+(E6-E7))/2 -> 4043295.865 | G8: Incremental Capital to be included in Rate Base (avg NBV) | J8: =((J6)+(J6-J7))/2 -> 4093782.436 | L8: Incremental Capital to be included in Rate Base (avg NBV) | O8: =((O6)+(O6-O7))/2 -> 33461545.24 | Q8: Incremental Capital to be included in Rate Base (avg NBV) | T8: =((T6)+(T6-T7))/2 -> 8311081.6 | V8: Incremental Capital to be included in Rate Base (avg NBV) | Y8: =((Y6)+(Y6-Y7))/2 -> 764697.1712
B10: Deemed ShortTerm Debt % | C10: 0.04 | D10: E | E10: =E8*C10 -> 161731.8346 | G10: Deemed ShortTerm Debt % | H10: 0.04 | I10: E | J10: =J8*H10 -> 163751.2974 | L10: Deemed ShortTerm Debt % | M10: 0.04 | N10: E | O10: =O8*M10 -> 1338461.81 | Q10: Deemed ShortTerm Debt % | R10: 0.04 | S10: E | T10: =T8*R10 -> 332443.264 | V10: Deemed ShortTerm Debt % | W10: 0.04 | X10: E | Y10: =Y8*W10 -> 30587.88685
B11: Deemed Long Term Debt % | C11: 0.56 | D11: F | E11: =E8*C11 -> 2264245.685 | G11: Deemed Long Term Debt % | H11: 0.56 | I11: F | J11: =J8*H11 -> 2292518.164 | L11: Deemed Long Term Debt % | M11: 0.56 | N11: F | O11: =O8*M11 -> 18738465.33 | Q11: Deemed Long Term Debt % | R11: 0.56 | S11: F | T11: =T8*R11 -> 4654205.696 | V11: Deemed Long Term Debt % | W11: 0.56 | X11: F | Y11: =Y8*W11 -> 428230.4159
B13: Short Term Interest | C13: 0.0282 | D13: I | E13: =E10*C13 -> 4560.837736 | G13: Short Term Interest | H13: 0.0216 | I13: I | J13: =J10*H13 -> 3537.028024 | L13: Short Term Interest | M13: 0.0176 | N13: I | O13: =O10*M13 -> 23556.92785 | Q13: Short Term Interest | R13: 0.0208 | S13: I | T13: =T10*R13 -> 6914.819891 | V13: Short Term Interest | W13: 0.0165 | X13: I | Y13: =Y10*W13 -> 504.700133
B14: Long Term Interest | C14: 0.0374 | D14: J | E14: =E11*C14 -> 84682.78861 | G14: Long Term Interest | H14: 0.0607 | I14: J | J14: =J11*H14 -> 139155.8526 | L14: Long Term Interest | M14: 0.0388 | N14: J | O14: =O11*M14 -> 727052.4549 | Q14: Long Term Interest | R14: 0.0509 | S14: J | T14: =T11*R14 -> 236899.0699 | V14: Long Term Interest | W14: 0.0491 | X14: J | Y14: =Y11*W14 -> 21026.11342
B16: Return on Rate Base - Interest | E16: =SUM(E13:E14) -> 89243.62634 | G16: Return on Rate Base - Interest | J16: =SUM(J13:J14) -> 142692.8806 | L16: Return on Rate Base - Interest | O16: =SUM(O13:O14) -> 750609.3828 | Q16: Return on Rate Base - Interest | T16: =SUM(T13:T14) -> 243813.8898 | V16: Return on Rate Base - Interest | Y16: =SUM(Y13:Y14) -> 21530.81355
B19: Deemed Equity % | C19: 0.4 | D19: N | E19: =E8*C19 -> 1617318.346 | G19: Deemed Equity % | H19: 0.4 | I19: N | J19: =J8*H19 -> 1637512.974 | L19: Deemed Equity % | M19: 0.4 | N19: N | O19: =O8*M19 -> 13384618.1 | Q19: Deemed Equity % | R19: 0.4 | S19: N | T19: =T8*R19 -> 3324432.64 | V19: Deemed Equity % | W19: 0.4 | X19: N | Y19: =Y8*W19 -> 305878.8685
B21: Return on Rate Base -Equity | C21: 0.0898 | D21: O | E21: =E19*C21 -> 145235.1875 | G21: Return on Rate Base -Equity | H21: 0.093 | I21: O | J21: =J19*H21 -> 152288.7066 | L21: Return on Rate Base -Equity | M21: 0.0878 | N21: O | O21: =O19*M21 -> 1175169.469 | Q21: Return on Rate Base -Equity | R21: 0.0893 | S21: O | T21: =T19*R21 -> 296871.8348 | V21: Return on Rate Base -Equity | W21: 0.0919 | X21: O | Y21: =Y19*W21 -> 28110.26801
B23: Return on Rate Base - Total | E23: =E16+E21 -> 234478.8138 | G23: Return on Rate Base - Total | J23: =J16+J21 -> 294981.5872 | L23: Return on Rate Base - Total | O23: =O16+O21 -> 1925778.852 | Q23: Return on Rate Base - Total | T23: =T16+T21 -> 540685.7246 | V23: Return on Rate Base - Total | Y23: =Y16+Y21 -> 49641.08157
B27: Amortization Expense | G27: Amortization Expense | L27: Amortization Expense | Q27: Amortization Expense | V27: Amortization Expense
B29: Amortization Expense - Incremental | D29: C | E29: =E7 -> 411767.7158 | G29: Amortization Expense - Incremental | I29: C | J29: =J7 -> 333345.9689 | L29: Amortization Expense - Incremental | N29: C | O29: =O7 -> 1418894.437 | Q29: Amortization Expense - Incremental | S29: C | T29: =T7 -> 532385.6892 | V29: Amortization Expense - Incremental | X29: C | Y29: =Y7 -> 92870.22864
B32: Grossed up PIL's | G32: Grossed up PIL's | L32: Grossed up PIL's | Q32: Grossed up PIL's | V32: Grossed up PIL's
B34: Regulatory Taxable Income | D34: O | E34: =E21 -> 145235.1875 | G34: Regulatory Taxable Income | I34: O | J34: =J21 -> 152288.7066 | L34: Regulatory Taxable Income | N34: O | O34: =O21 -> 1175169.469 | Q34: Regulatory Taxable Income | S34: O | T34: =T21 -> 296871.8348 | V34: Regulatory Taxable Income | X34: O | Y34: =Y21 -> 28110.26801
B36: Add Back Amortization Expense | D36: S | E36: =E29 -> 411767.7158 | G36: Add Back Amortization Expense | I36: S | J36: =J29 -> 333345.9689 | L36: Add Back Amortization Expense | N36: S | O36: =O29 -> 1418894.437 | Q36: Add Back Amortization Expense | S36: S | T36: =T29 -> 532385.6892 | V36: Add Back Amortization Expense | X36: S | Y36: =Y29 -> 92870.22864
B38: Deduct CCA | E38: ='Summary by RZ'!T12 -> 571579.1973 | G38: Deduct CCA | J38: ='Summary by RZ'!T13 -> 520081.2398 | L38: Deduct CCA | O38: ='Summary by RZ'!T14 -> 3273582.528 | Q38: Deduct CCA | T38: ='Summary by RZ'!T15 -> 869139.1164 | V38: Deduct CCA | Y38: ='Summary by RZ'!T16 -> 95000.50249
B40: Incremental Taxable Income | E40: =E34+E36-E38 -> -14576.29396 | G40: Incremental Taxable Income | J40: =J34+J36-J38 -> -34446.56426 | L40: Incremental Taxable Income | O40: =O34+O36-O38 -> -679518.6222 | Q40: Incremental Taxable Income | T40: =T34+T36-T38 -> -39881.5925 | V40: Incremental Taxable Income | Y40: =Y34+Y36-Y38 -> 25979.99416
B42: Current Tax Rate | C42: 0.265 | D42: X | G42: Current Tax Rate | H42: 0.265 | I42: X | L42: Current Tax Rate | M42: 0.265 | N42: X | Q42: Current Tax Rate | R42: 0.265 | S42: X | V42: Current Tax Rate | W42: 0.265 | X42: X
B44: PIL's Before Gross Up | E44: =E40*C42 -> -3862.717899 | G44: PIL's Before Gross Up | J44: =J40*H42 -> -9128.339529 | L44: PIL's Before Gross Up | O44: =O40*M42 -> -180072.4349 | Q44: PIL's Before Gross Up | T44: =T40*R42 -> -10568.62201 | V44: PIL's Before Gross Up | Y44: =Y40*W42 -> 6884.698453
B46: Incremental Grossed Up PIL's | E46: =E44/(1-C42) -> -5255.398502 | G46: Incremental Grossed Up PIL's | J46: =J44/(1-H42) -> -12419.50956 | L46: Incremental Grossed Up PIL's | O46: =O44/(1-M42) -> -244996.51 | Q46: Incremental Grossed Up PIL's | T46: =T44/(1-R42) -> -14379.07757 | V46: Incremental Grossed Up PIL's | Y46: =Y44/(1-W42) -> 9366.93667
B49: Ontario Capital Tax | G49: Ontario Capital Tax | L49: Ontario Capital Tax | Q49: Ontario Capital Tax | V49: Ontario Capital Tax
B50: Incremental Capital CAPEX | G50: Incremental Capital CAPEX | L50: Incremental Capital CAPEX | Q50: Incremental Capital CAPEX | V50: Incremental Capital CAPEX
B52: Less : Available Capital Exemption (if any) | G52: Less : Available Capital Exemption (if any) | L52: Less : Available Capital Exemption (if any) | Q52: Less : Available Capital Exemption (if any) | V52: Less : Available Capital Exemption (if any)
B54: Incremental Capital CAPEX subject to OCT | G54: Incremental Capital CAPEX subject to OCT | L54: Incremental Capital CAPEX subject to OCT | Q54: Incremental Capital CAPEX subject to OCT | V54: Incremental Capital CAPEX subject to OCT
B56: Ontario Capital Tax Rate (F1.1 Z-Factor Tax Changes) | D56: AD | G56: Ontario Capital Tax Rate (F1.1 Z-Factor Tax Changes) | I56: AD | L56: Ontario Capital Tax Rate (F1.1 Z-Factor Tax Changes) | N56: AD | Q56: Ontario Capital Tax Rate (F1.1 Z-Factor Tax Changes) | S56: AD | V56: Ontario Capital Tax Rate (F1.1 Z-Factor Tax Changes) | X56: AD
B58: Incremental Ontario Capital Tax | G58: Incremental Ontario Capital Tax | L58: Incremental Ontario Capital Tax | Q58: Incremental Ontario Capital Tax | V58: Incremental Ontario Capital Tax
B61: Incremental Revenue Requirement | G61: Incremental Revenue Requirement | L61: Incremental Revenue Requirement | Q61: Incremental Revenue Requirement | V61: Incremental Revenue Requirement
B62: Return on Rate Base - Total | D62: Q | E62: =E23 -> 234478.8138 | G62: Return on Rate Base - Total | I62: Q | J62: =J23 -> 294981.5872 | L62: Return on Rate Base - Total | N62: Q | O62: =O23 -> 1925778.852 | Q62: Return on Rate Base - Total | S62: Q | T62: =T23 -> 540685.7246 | V62: Return on Rate Base - Total | X62: Q | Y62: =Y23 -> 49641.08157
B63: Amortization Expense - Total | E63: =E29 -> 411767.7158 | G63: Amortization Expense - Total | J63: =J29 -> 333345.9689 | L63: Amortization Expense - Total | O63: =O29 -> 1418894.437 | Q63: Amortization Expense - Total | T63: =T29 -> 532385.6892 | V63: Amortization Expense - Total | Y63: =Y29 -> 92870.22864
B64: Incremental Grossed Up PIL's | D64: Z | E64: =E46 -> -5255.398502 | G64: Incremental Grossed Up PIL's | I64: Z | J64: =J46 -> -12419.50956 | L64: Incremental Grossed Up PIL's | N64: Z | O64: =O46 -> -244996.51 | Q64: Incremental Grossed Up PIL's | S64: Z | T64: =T46 -> -14379.07757 | V64: Incremental Grossed Up PIL's | X64: Z | Y64: =Y46 -> 9366.93667
B67: Incremental Revenue Requirement | E67: =SUM(E62:E65) -> 640991.1312 | G67: Incremental Revenue Requirement | J67: =SUM(J62:J65) -> 615908.0465 | L67: Incremental Revenue Requirement | O67: =SUM(O62:O65) -> 3099676.778 | Q67: Incremental Revenue Requirement | T67: =SUM(T62:T65) -> 1058692.336 | V67: Incremental Revenue Requirement | Y67: =SUM(Y62:Y65) -> 151878.2469
Y70: =Y67+T67+O67+J67+E67 -> 5567146.539
Y71: =+Y62+T62+O62+J62+E62 -> 3045566.059
Y72: =+Y63+T63+O63+J63+E63 -> 2789264.039
Y73: =+Y64+T64+O64+J64+E64 -> -267683.559

Sheet Bill Impacts_2023
H1: Back to Index
I2: internal use
B3: Enersource Rate Class | C3: Unit | D3: kWh | E3: kW | F3: MCM Rate Rider Incl HST | G3: % Increase vs. Total Bill | I3: 2019 Total Bill (Approved) | J3: Fixed Rate Rider | K3: Variable Rate Rider | L3: Taxes
B4: Residential | C4: kWh | D4: 750 | F4: =+(J4+D4*K4)*(1+L4) -> 0.2029847474 | G4: =+F4/I4 -> 0.001866354794 | I4: 108.76 | J4: ='Rate Rider Calculation_2023'!O4 -> 0.193318807 | K4: ='Rate Rider Calculation_2023'!P4 -> 0 | L4: 0.05
B5: General Service < 50 kW | C5: kWh | D5: 2000 | F5: =+(J5+D5*K5)*(1+L5) -> 0.5902880158 | G5: =+F5/I5 -> 0.002007167928 | I5: 294.09 | J5: ='Rate Rider Calculation_2023'!O5 -> 0.3549094139 | K5: ='Rate Rider Calculation_2023'!P5+'Rate Rider Calculation_2023'!Q5 -> 0.0001036348244 | L5: 0.05
B6: General Service 50 to 499 kW | C6: kW | D6: 100000 | E6: 230 | F6: =+(J6+E6*K6)*(1+L6) -> 10.48342309 | G6: 0.0006414315826 | I6: 16343.79 | J6: ='Rate Rider Calculation_2023'!O6 -> 0.6250774292 | K6: ='Rate Rider Calculation_2023'!P6+'Rate Rider Calculation_2023'!Q6 -> 0.03761864406 | L6: 0.13
B7: General Service 500 to 4999 kW | C7: kW | D7: 400000 | E7: 2250 | F7: =+(J7+E7*K7)*(1+L7) -> 65.3012212 | G7: 0.0008650326713 | I7: 75489.89 | J7: ='Rate Rider Calculation_2023'!O7 -> 14.234562 | K7: ='Rate Rider Calculation_2023'!P7+'Rate Rider Calculation_2023'!Q7 -> 0.01935739081 | L7: 0.13
B8: Large Use | C8: kW | D8: 3000000 | E8: 5000 | F8: =+(J8+E8*K8)*(1+L8) -> 262.5742301 | G8: 0.0005790664618 | I8: 453444.03 | J8: ='Rate Rider Calculation_2023'!O8 -> 112.2338841 | K8: ='Rate Rider Calculation_2023'!P8+'Rate Rider Calculation_2023'!Q8 -> 0.02402653825 | L8: 0.13
B9: Unmetered | C9: kWh | D9: 300 | F9: =+(J9+D9*K9)*(1+L9) -> 0.1279172609 | G9: 0.002481421162 | I9: 51.55 | J9: ='Rate Rider Calculation_2023'!O9 -> 0.07326184892 | K9: ='Rate Rider Calculation_2023'!P9+'Rate Rider Calculation_2023'!Q9 -> 0.0001331308898 | L9: 0.13
B10: Street Lighting | C10: kW | D10: 33 | E10: 0.1 | F10: 0.02449363315 | G10: 0.006018091684 | I10: 4.07 | J10: ='Rate Rider Calculation_2023'!O10 -> 0.01227674073 | K10: ='Rate Rider Calculation_2023'!P10+'Rate Rider Calculation_2023'!Q10 -> 0.09399040818 | L10: 0.13
I12: internal use
B13: Brampton Rate Class | C13: Unit | D13: kWh | E13: kW | F13: MCM Rate Rider Incl HST | G13: % Increase vs. Total Bill | I13: 2019 Total Bill (Approved) | J13: Fixed Rate Rider | K13: Variable Rate Rider | L13: Taxes
B14: Residential | C14: kWh | D14: 750 | F14: =+(J14+D14*K14)*(1+L14) -> 0.2027227048 | G14: =+F14/I14 -> 0.001913380885 | I14: 105.95 | J14: =+'Rate Rider Calculation_2023'!O16 -> 0.1930692427 | K14: ='Rate Rider Calculation_2023'!P16+'Rate Rider Calculation_2023'!Q16 -> 0 | L14: 0.05
B15: General Service < 50 kW | C15: kWh | D15: 2000 | F15: =+(J15+D15*K15)*(1+L15) -> 0.4992985137 | G15: =+F15/I15 -> 0.001825855751 | I15: 273.46 | J15: =+'Rate Rider Calculation_2023'!O17 -> 0.2037953117 | K15: ='Rate Rider Calculation_2023'!P17+'Rate Rider Calculation_2023'!Q17 -> 0.0001358635411 | L15: 0.05
B16: General Service 50 to 699 kW | C16: kW | D16: 182500 | E16: 500 | F16: =+(J16+E16*K16)*(1+L16) -> 14.16100445 | G16: 0.0004974344759 | I16: 28468.08 | J16: =+'Rate Rider Calculation_2023'!O18 -> 1.016831345 | K16: ='Rate Rider Calculation_2023'!P18+'Rate Rider Calculation_2023'!Q18 -> 0.02303006201 | L16: 0.13
B17: General Service 700 to 4999 kW | C17: kW | D17: 627216 | E17: 1432 | F17: =+(J17+E17*K17)*(1+L17) -> 53.62850892 | G17: 0.0005486834139 | I17: 97740.35 | J17: =+'Rate Rider Calculation_2023'!O19 -> 9.174443836 | K17: ='Rate Rider Calculation_2023'!P19+'Rate Rider Calculation_2023'!Q19 -> 0.02673492571 | L17: 0.13
B18: Large Use | C18: kW | D18: 10220000 | E18: 20000 | F18: =+(J18+E18*K18)*(1+L18) -> 500.5927824 | G18: 0.0003295891217 | I18: 1518838.91 | J18: =+'Rate Rider Calculation_2023'!O20 -> 38.17678109 | K18: ='Rate Rider Calculation_2023'!P20+'Rate Rider Calculation_2023'!Q20 -> 0.02024128406 | L18: 0.13
B19: Unmetered | C19: kWh | D19: 21296 | F19: =+(J19+D19*K19)*(1+L19) -> 3.872164918 | G19: 0.001017157208 | I19: 3806.85 | J19: =+'Rate Rider Calculation_2023'!O21 -> 0.00881921232 | K19: ='Rate Rider Calculation_2023'!P21+'Rate Rider Calculation_2023'!Q21 -> 0.0001604937737 | L19: 0.13
B20: Street Lighting | C20: kW | D20: 2787508 | E20: 7922 | F20: =+(J20+E20*K20)*(1+L20) -> 838.0329826 | G20: 0.001493081969 | I20: 561277.2776 | J20: =+'Rate Rider Calculation_2023'!O22 -> 0.01867130536 | K20: ='Rate Rider Calculation_2023'!P22+'Rate Rider Calculation_2023'!Q22 -> 0.09361315794 | L20: 0.13
B21: Embedded Distributor | C21: kWh | D21: 1417701 | E21: 4000 | F21: =+(J21+D21*K21)*(1+L21) -> 38.13571931 | G21: 0.0001754810355 | I21: 217321.0297 | J21: =+'Rate Rider Calculation_2023'!O23 -> 33.74842417 | K21: ='Rate Rider Calculation_2023'!P23+'Rate Rider Calculation_2023'!Q23 -> 0 | L21: 0.13
B22: Distributed Generation | C22: kWh | D22: 156 | F22: 0.9532066868 | G22: 0.006614640452 | I22: 144.1055933 | J22: =+'Rate Rider Calculation_2023'!O24 -> 0.8435457405 | K22: ='Rate Rider Calculation_2023'!P24+'Rate Rider Calculation_2023'!Q24 -> 0 | L22: 0.13
I24: internal use
B25: Horizon Rate Class | C25: Unit | D25: kWh | E25: kW | F25: MCM Rate Rider Incl HST | G25: % Increase vs. Total Bill | I25: 2019 Total Bill (Approved) | J25: Fixed Rate Rider | K25: Variable Rate Rider | L25: Taxes
B26: Residential | C26: kWh | D26: 750 | F26: =+(J26+D26*K26)*(1+L26) -> 0.1510864141 | G26: =+F26/I26 -> 0.001389683721 | I26: 108.72 | J26: ='Rate Rider Calculation_2023'!O31 -> 0.143891823 | K26: ='Rate Rider Calculation_2023'!P31+'Rate Rider Calculation_2023'!Q31 -> 0 | L26: 0.05
B27: General Service Less Than 50 Kw | C27: kWh | D27: 2000 | F27: =+(J27+D27*K27)*(1+L27) -> 0.3626639805 | G27: =+F27/I27 -> 0.001301877376 | I27: 278.57 | J27: ='Rate Rider Calculation_2023'!O32 -> 0.2279095578 | K27: ='Rate Rider Calculation_2023'!P32+'Rate Rider Calculation_2023'!Q32 -> 5.874235469e-05 | L27: 0.05
B28: General Service 50 To 4,999 Kw | C28: kW | D28: 110000 | E28: 250 | F28: =+(J28+E28*K28)*(1+L28) -> 6.352578775 | G28: 0.0003821495382 | I28: 16623.28 | J28: ='Rate Rider Calculation_2023'!O33 -> 2.098557148 | K28: ='Rate Rider Calculation_2023'!P33+'Rate Rider Calculation_2023'!Q33 -> 0.01409277592 | L28: 0.13
B29: Large Use | C29: kW | D29: 2555000 | E29: 5000 | F29: =+(J29+E29*K29)*(1+L29) -> 191.4742086 | G29: 0.0004886619337 | I29: 391833.69 | J29: ='Rate Rider Calculation_2023'!O34 -> 130.8460083 | K29: ='Rate Rider Calculation_2023'!P34+'Rate Rider Calculation_2023'!Q34 -> 0.007720038816 | L29: 0.13
B30: Large Use With Dedicated Assets | C30: kW | D30: 10220000 | E30: 20000 | F30: =+(J30+E30*K30)*(1+L30) -> 76.4139439 | G30: 5.290769514e-05 | I30: 1444287.9 | J30: ='Rate Rider Calculation_2023'!O35 -> 31.01946626 | K30: ='Rate Rider Calculation_2023'!P35+'Rate Rider Calculation_2023'!Q35 -> 0.001830174647 | L30: 0.13
B31: Unmetered Scattered Load | C31: kWh | D31: 250 | F31: =+(J31+D31*K31)*(1+L31) -> 0.07295584885 | G31: 0.001875471693 | I31: 38.9 | J31: ='Rate Rider Calculation_2023'!O36 -> 0.04650885514 | K31: ='Rate Rider Calculation_2023'!P36+'Rate Rider Calculation_2023'!Q36 -> 7.221537182e-05 | L31: 0.13
B32: Sentinel Lighting | C32: kW | D32: 97008 | E32: 216 | F32: =+(J32+E32*K32)*(1+L32) -> 20.34612931 | G32: 0.0009385975519 | I32: 21677.16 | J32: ='Rate Rider Calculation_2023'!O37 -> 0.03034123458 | K32: ='Rate Rider Calculation_2023'!P37+'Rate Rider Calculation_2023'!Q37 -> 0.08321797653 | L32: 0.13
B33: Street Lighting | C33: kW | D33: 1782038 | E33: 4974 | F33: 156.772222 | G33: 0.0004237686084 | I33: 369947.7 | J33: ='Rate Rider Calculation_2023'!O38 -> 0.01050895336 | K33: ='Rate Rider Calculation_2023'!P38+'Rate Rider Calculation_2023'!Q38 -> 0.0278902233 | L33: 0.13
I35: internal use
B36: PowerStream Rate Class | C36: Unit | D36: kWh | E36: kW | F36: MCM Rate Rider Incl HST | G36: % Increase vs. Total Bill | I36: 2019 Total Bill (Approved) | J36: Fixed Rate Rider | K36: Variable Rate Rider | L36: Taxes
B37: Residential | C37: kWh | D37: 750 | F37: =+(J37+D37*K37)*(1+L37) -> 0.4908858917 | G37: =+F37/I37 -> 0.004591580692 | I37: 106.91 | J37: ='Rate Rider Calculation_2023'!O44 -> 0.4172669221 | K37: ='Rate Rider Calculation_2023'!P44+'Rate Rider Calculation_2023'!Q44 -> 6.699126798e-05 | L37: 0.05
B38: General Service Less Than 50 Kw | C38: kWh | D38: 2000 | F38: =+(J38+D38*K38)*(1+L38) -> 1.043388999 | G38: =+F38/I38 -> 0.003803962955 | I38: 274.29 | J38: ='Rate Rider Calculation_2023'!O45 -> 0.4369319367 | K38: ='Rate Rider Calculation_2023'!P45+'Rate Rider Calculation_2023'!Q45 -> 0.0002783859358 | L38: 0.05
B39: General Service 50 To 4,999 Kw | C39: kW | D39: 80000 | E39: 250 | F39: =+(J39+E39*K39)*(1+L39) -> 20.47352148 | G39: 0.001607169355 | I39: 12738.87 | J39: ='Rate Rider Calculation_2023'!O46 -> 2.142976228 | K39: ='Rate Rider Calculation_2023'!P46+'Rate Rider Calculation_2023'!Q46 -> 0.06390073749 | L39: 0.13
B40: Large Use | C40: kW | D40: 2800000 | E40: 7350 | F40: =+(J40+E40*K40)*(1+L40) -> 387.3991306 | G40: 0.0009303761298 | I40: 416389.8 | J40: ='Rate Rider Calculation_2023'!O47 -> 92.3270678 | K40: ='Rate Rider Calculation_2023'!P47+'Rate Rider Calculation_2023'!Q47 -> 0.03408217976 | L40: 0.13
B41: Unmetered Scattered Load | C41: kWh | D41: 150 | E41: 0 | F41: =+(J41+D41*K41)*(1+L41) -> 0.1979137917 | G41: 0.006677253431 | I41: 29.64 | J41: ='Rate Rider Calculation_2023'!O48 -> 0.1307074073 | K41: ='Rate Rider Calculation_2023'!P48+'Rate Rider Calculation_2023'!Q48 -> 0.000296250274 | L41: 0.13
B42: Sentinel Lighting | C42: kW | D42: 180 | E42: 1 | F42: =+(J42+E42*K42)*(1+L42) -> 0.2415288438 | G42: 0.006788331753 | I42: 35.58 | J42: ='Rate Rider Calculation_2023'!O49 -> 0.06371613933 | K42: ='Rate Rider Calculation_2023'!P49+'Rate Rider Calculation_2023'!Q49 -> 0.1500262003 | L42: 0.13
B43: Street Lighting | C43: kW | D43: 280 | E43: 1 | F43: 0.1289526529 | G43: 0.002502477255 | I43: 51.53 | J43: ='Rate Rider Calculation_2023'!O50 -> 0.01801320761 | K43: ='Rate Rider Calculation_2023'!P50+'Rate Rider Calculation_2023'!Q50 -> 0.09610418436 | L43: 0.13
I45: internal use
B46: Guelph Rate Class | C46: Unit | D46: kWh | E46: kW | F46: MCM Rate Rider Incl HST | G46: % Increase vs. Total Bill | I46: 2019 Total Bill (Approved) | J46: Fixed Rate Rider | K46: Variable Rate Rider | L46: Taxes
B47: Residential | C47: kWh | D47: 750 | F47: =+(J47+D47*K47)*(1+L47) -> 0.1524452376 | G47: =+F47/I47 -> 0.001356757188 | I47: 112.36 | J47: =+'Rate Rider Calculation_2023'!O56 -> 0.1451859406 | K47: ='Rate Rider Calculation_2023'!P56+'Rate Rider Calculation_2023'!Q56 -> 0 | L47: 0.05
B48: General Service Less Than 50 Kw | C48: kWh | D48: 2000 | F48: =+(J48+D48*K48)*(1+L48) -> 0.2365457589 | G48: =+F48/I48 -> 0.0009057850234 | I48: 261.15 | J48: =+'Rate Rider Calculation_2023'!O57 -> 0.08417008329 | K48: ='Rate Rider Calculation_2023'!P57+'Rate Rider Calculation_2023'!Q57 -> 7.055579591e-05 | L48: 0.05
B49: General Service 50 To 999 Kw | C49: kW | D49: 189800 | E49: 500 | F49: =+(J49+E49*K49)*(1+L49) -> 8.886645594 | G49: 0.0002857755655 | I49: 31096.59 | J49: =+'Rate Rider Calculation_2023'!O58 -> 0.9125547519 | K49: ='Rate Rider Calculation_2023'!P58+'Rate Rider Calculation_2023'!Q58 -> 0.01390346677 | L49: 0.13
B50: General Service 1,000 To 4,999 Kw | C50: kW | D50: 489100 | E50: 1000 | F50: =+(J50+E50*K50)*(1+L50) -> 20.70273554 | G50: 0.0002596951724 | I50: 79719.37 | J50: =+'Rate Rider Calculation_2023'!O59 -> 2.886676109 | K50: ='Rate Rider Calculation_2023'!P59+'Rate Rider Calculation_2023'!Q59 -> 0.01543432879 | L50: 0.13
B51: Large Use | C51: kW | D51: 4215750 | E51: 7500 | F51: =+(J51+E51*K51)*(1+L51) -> 123.7908788 | G51: 0.000195856409 | I51: 632049.16 | J51: =+'Rate Rider Calculation_2023'!O60 -> 5.549213348 | K51: ='Rate Rider Calculation_2023'!P60+'Rate Rider Calculation_2023'!Q60 -> 0.01386669826 | L51: 0.13
B52: Unmetered Scattered Load | C52: kWh | D52: 750 | F52: =+(J52+D52*K52)*(1+L52) -> 0.1230170114 | G52: 0.0006503331116 | I52: 189.16 | J52: =+'Rate Rider Calculation_2023'!O61 -> 0.02464484139 | K52: ='Rate Rider Calculation_2023'!P61+'Rate Rider Calculation_2023'!Q61 -> 0.0001122930273 | L52: 0.13
B53: Sentinel Lighting | C53: kW | D53: 140 | E53: 2 | F53: =+(J53+E53*K53)*(1+L53) -> 0.1383932956 | G53: 0.002017100942 | I53: 68.61 | J53: =+'Rate Rider Calculation_2023'!O62 -> 0.03811006723 | K53: ='Rate Rider Calculation_2023'!P62+'Rate Rider Calculation_2023'!Q62 -> 0.0421809379 | L53: 0.13
B54: Street Lighting | C54: kW | D54: 800000 | E54: 2200 | F54: 128.5645115 | G54: 0.000836162251 | I54: 153755.46 | J54: =+'Rate Rider Calculation_2023'!O63 -> 0.00218623593 | K54: ='Rate Rider Calculation_2023'!P63+'Rate Rider Calculation_2023'!Q63 -> 0.05171441717 | L54: 0.13

Sheet Rate Rider Calculation_2023
H1: Back to Index
A2: Enersource Rate Class | C2: Service Charge % Revenue | D2: Distribution Volumetric Rate % Revenue kWh | E2: Distribution Volumetric Rate % Revenue kW | F2: Service Charge Revenue | G2: Distribution Volumetric Rate Revenue kWh | H2: Distribution Volumetric Rate Revenue kW | I2: Total Revenue by Rate Class | K2: Billed Customers or Connections | L2: Billed kWh | M2: Billed kW | O2: Service Charge Rate Rider | P2: Distribution Volumetric Rate kWh Rate Rider | Q2: Distribution Volumetric Rate kW Rate Rider
C3: From Sheet 8 | D3: From Sheet 8 | E3: From Sheet 8 | F3: Col C * Col Itotal | G3: Col D* Col Itotal | H3: Col E* Col Itotal | I3: Col Itotal | K3: From Sheet 4 | L3: From Sheet 4 | M3: From Sheet 4 | O3: Col F / Col K / 12 | P3: Col G / Col L | Q3: Col H / Col M
A4: RESIDENTIAL | C4: ='Revenue Proportions'!P7 -> 0.4021608098 | D4: ='Revenue Proportions'!Q7 -> 0 | E4: ='Revenue Proportions'!R7 -> 0 | F4: =C4*$I$12 -> 425764.5673 | G4: =D4*$I$12 -> 0 | H4: =E4*$I$12 -> 0 | I4: =SUM(F4:H4) -> 425764.5673 | K4: ='Revenue Proportions'!G7 -> 183533 | L4: ='Revenue Proportions'!H7 -> 1490532667 | M4: ='Revenue Proportions'!I7 -> 0 | O4: =F4/K4/12 -> 0.193318807 | P4: =IF(ISERROR(G4/L4),0,G4/L4) -> 0 | Q4: 0
A5: GENERAL SERVICE LESS THAN 50 kW | C5: ='Revenue Proportions'!P8 -> 0.07444603184 | D5: ='Revenue Proportions'!Q8 -> 0.06711464909 | E5: ='Revenue Proportions'!R8 -> 0 | F5: =C5*$I$12 -> 78815.44337 | G5: 71053.76464 | H5: 0 | I5: =SUM(F5:H5) -> 149869.208 | K5: ='Revenue Proportions'!G8 -> 18506 | L5: ='Revenue Proportions'!H8 -> 685616684 | M5: ='Revenue Proportions'!I8 -> 0 | O5: 0.3549094139 | P5: 0.0001036348244 | Q5: =IF(ISERROR(H5/M5),0,H5/M5) -> 0
A6: GENERAL SERVICE 50 TO 499 kW | C6: ='Revenue Proportions'!P9 -> 0.02646280644 | D6: ='Revenue Proportions'!Q9 -> 0 | E6: ='Revenue Proportions'!R9 -> 0.2029087669 | F6: 28015.97038 | G6: 0 | H6: 214817.9565 | I6: 242833.9268 | K6: ='Revenue Proportions'!G9 -> 3735 | M6: ='Revenue Proportions'!I9 -> 5710412 | O6: 0.6250774292 | P6: 0 | Q6: 0.03761864406
A7: GENERAL SERVICE 500 TO 4,999 kW | C7: ='Revenue Proportions'!P10 -> 0.07712292312 | D7: ='Revenue Proportions'!Q10 -> 0 | E7: ='Revenue Proportions'!R10 -> 0.08384747717 | F7: 81649.44766 | G7: 0 | H7: 88768.6815 | I7: 170418.1292 | K7: ='Revenue Proportions'!G10 -> 478 | L7: ='Revenue Proportions'!H10 -> 2037760513 | M7: ='Revenue Proportions'!I10 -> 4585777.203 | O7: 14.234562 | P7: 0 | Q7: 0.01935739081
A8: LARGE USE | C8: ='Revenue Proportions'!P11 -> 0.01144927479 | D8: ='Revenue Proportions'!Q11 -> 0 | E8: ='Revenue Proportions'!R11 -> 0.03978723226 | F8: 12121.25948 | G8: 0 | H8: 42122.43787 | I8: 54243.69735 | K8: ='Revenue Proportions'!G11 -> 9 | L8: ='Revenue Proportions'!H11 -> 977049362 | M8: ='Revenue Proportions'!I11 -> 1753163 | O8: 112.2338841 | P8: 0 | Q8: 0.02402653825
A9: UNMETERED SCATTERED LOAD | C9: ='Revenue Proportions'!P12 -> 0.002582555959 | D9: ='Revenue Proportions'!Q12 -> 0.00143828703 | E9: ='Revenue Proportions'!R12 -> 0 | F9: 2734.132202 | G9: 1522.703456 | H9: 0 | I9: 4256.835658 | K9: ='Revenue Proportions'!G12 -> 3110 | L9: ='Revenue Proportions'!H12 -> 11437642 | M9: ='Revenue Proportions'!I12 -> 0 | O9: 0.07326184892 | P9: 0.0001331308898 | Q9: 0
A10: STREET LIGHTING | C10: ='Revenue Proportions'!P13 -> 0.007077214813 | D10: ='Revenue Proportions'!Q13 -> 0 | E10: ='Revenue Proportions'!R13 -> 0.003601970762 | F10: 7492.593084 | G10: 0 | H10: 3813.378841 | I10: 11305.97192 | K10: ='Revenue Proportions'!G13 -> 50859 | L10: ='Revenue Proportions'!H13 -> 13289944 | M10: ='Revenue Proportions'!I13 -> 40572 | O10: 0.01227674073 | P10: 0 | Q10: 0.09399040818
A11: Total | C11: =SUM(C4:C10) -> 0.6013016168 | D11: 0.06855293612 | E11: 0.3301454471 | F11: 636593.4135 | G11: 72576.46809 | H11: 349522.4547 | I11: 1058692.336 | K11: =SUM(K4:K10) -> 260230 | L11: =SUM(L4:L10) -> 5215686812 | M11: =SUM(M4:M10) -> 12089924.2
I12: ='M-factor RR Calculation_2023'!T67 -> 1058692.336
A14: Brampton Rate Class | C14: Service Charge % Revenue | D14: Distribution Volumetric Rate % Revenue kWh | E14: Distribution Volumetric Rate % Revenue kW | F14: Service Charge Revenue | G14: Distribution Volumetric Rate Revenue kWh | H14: Distribution Volumetric Rate Revenue kW | I14: Total Revenue by Rate Class | K14: Billed Customers or Connections | L14: Billed kWh | M14: Billed kW | O14: Service Charge Rate Rider | P14: Distribution Volumetric Rate kWh Rate Rider | Q14: Distribution Volumetric Rate kW Rate Rider
C15: From Sheet 8 | D15: From Sheet 8 | E15: From Sheet 8 | F15: Col C * Col Itotal | G15: Col D* Col Itotal | H15: Col E* Col Itotal | I15: Col Itotal | K15: From Sheet 4 | L15: From Sheet 4 | M15: From Sheet 4 | O15: Col F / Col K / 12 | P15: Col G / Col L | Q15: Col H / Col M
A16: RESIDENTIAL | C16: ='Revenue Proportions'!P20 -> 0.5765143424 | D16: ='Revenue Proportions'!Q20 -> 0 | E16: ='Revenue Proportions'!R20 -> 0 | F16: =C16*$I$27 -> 355079.8224 | G16: =D16*$I$27 -> 0 | H16: =E16*$I$27 -> 0 | I16: =SUM(F16:H16) -> 355079.8224 | K16: ='Revenue Proportions'!G20 -> 153261 | L16: ='Revenue Proportions'!H20 -> 1385125813 | M16: ='Revenue Proportions'!I20 -> 0 | O16: =F16/K16/12 -> 0.1930692427 | P16: =IF(ISERROR(G16/L16),0,G16/L16) -> 0 | Q16: 0
A17: GENERAL SERVICE LESS THAN 50 kW | C17: ='Revenue Proportions'!P21 -> 0.03757011295 | D17: ='Revenue Proportions'!Q21 -> 0.0760565388 | E17: ='Revenue Proportions'!R21 -> 0 | F17: =C17*$I$27 -> 23139.73487 | G17: 46843.83424 | H17: 0 | I17: =SUM(F17:H17) -> 69983.56911 | K17: ='Revenue Proportions'!G21 -> 9462 | L17: ='Revenue Proportions'!H21 -> 344785906.8 | M17: ='Revenue Proportions'!I21 -> 0 | O17: =F17/K17/12 -> 0.2037953117 | P17: 0.0001358635411 | Q17: 0
A18: GENERAL SERVICE 50 TO 699 KW | C18: ='Revenue Proportions'!P22 -> 0.03151987402 | D18: ='Revenue Proportions'!Q22 -> 0 | E18: ='Revenue Proportions'!R22 -> 0.1188918616 | F18: 19413.34403 | G18: 0 | H18: 73226.45426 | I18: 92639.79829 | K18: ='Revenue Proportions'!G22 -> 1591 | L18: ='Revenue Proportions'!H22 -> 1131688196 | M18: ='Revenue Proportions'!I22 -> 3179603 | O18: =F18/K18/12 -> 1.016831345 | P18: 0 | Q18: 0.02303006201
A19: GENERAL SERVICE 700 TO 4,999 KW | C19: ='Revenue Proportions'!P23 -> 0.01876870955 | D19: ='Revenue Proportions'!Q23 -> 0 | E19: ='Revenue Proportions'!R23 -> 0.08770726142 | F19: 11559.79923 | G19: 0 | H19: 54019.60805 | I19: 65579.40728 | K19: ='Revenue Proportions'!G23 -> 105 | L19: ='Revenue Proportions'!H23 -> 875091030.3 | M19: ='Revenue Proportions'!I23 -> 2020563.238 | O19: 9.174443836 | P19: 0 | Q19: 0.02673492571
A20: LARGE USE | C20: ='Revenue Proportions'!P24 -> 0.004462887364 | D20: ='Revenue Proportions'!Q24 -> 0 | E20: ='Revenue Proportions'!R24 -> 0.02161990293 | F20: 2748.728238 | G20: 0 | H20: 13315.87218 | I20: 16064.60042 | K20: ='Revenue Proportions'!G24 -> 6 | L20: ='Revenue Proportions'!H24 -> 350379704.8 | M20: ='Revenue Proportions'!I24 -> 657857.0874 | O20: 38.17678109 | P20: 0 | Q20: 0.02024128406
A21: UNMETERED SCATTERED LOAD | C21: ='Revenue Proportions'!P25 -> 0.000267365126 | D21: ='Revenue Proportions'!Q25 -> 0.001541244921 | E21: ='Revenue Proportions'!R25 -> 0 | F21: 164.6723324 | G21: 949.2651484 | H21: 0 | I21: 1113.937481 | K21: ='Revenue Proportions'!G25 -> 1556 | L21: ='Revenue Proportions'!H25 -> 5914654.047 | M21: ='Revenue Proportions'!I25 -> 0 | O21: 0.00881921232 | P21: 0.0001604937737 | Q21: 0
A22: STREET LIGHTING | C22: ='Revenue Proportions'!P26 -> 0.007246154362 | D22: ='Revenue Proportions'!Q26 -> 0 | E22: ='Revenue Proportions'!R26 -> 0.01502320324 | F22: 4462.964778 | G22: 0 | H22: 9252.911757 | I22: 13715.87654 | K22: ='Revenue Proportions'!G26 -> 19919 | L22: ='Revenue Proportions'!H26 -> 34968321 | M22: ='Revenue Proportions'!I26 -> 98842 | O22: 0.01867130536 | P22: 0 | Q22: 0.09361315794
A23: EMBEDDED DISTRIBUTOR | C23: ='Revenue Proportions'!P27 -> 0.000657534988 | D23: ='Revenue Proportions'!Q27 -> 0 | E23: ='Revenue Proportions'!R27 -> 0 | F23: 404.98109 | G23: 0 | H23: 0 | I23: 404.98109 | K23: ='Revenue Proportions'!G27 -> 1 | L23: ='Revenue Proportions'!H27 -> 3402773 | M23: ='Revenue Proportions'!I27 -> 0 | O23: 33.74842417 | P23: 0 | Q23: 0
A24: DISTRIBUTED GENERATION [DGEN] | C24: ='Revenue Proportions'!P28 -> 0.0021530063 | D24: ='Revenue Proportions'!Q28 -> 0 | E24: ='Revenue Proportions'!R28 -> 0 | F24: 1326.053904 | G24: 0 | H24: 0 | I24: 1326.053904 | K24: ='Revenue Proportions'!G28 -> 131 | L24: ='Revenue Proportions'!H28 -> 277418 | M24: ='Revenue Proportions'!I28 -> 0 | O24: 0.8435457405 | P24: 0 | Q24: 0
A25: STANDBY POWER | C25: ='Revenue Proportions'!P29 -> 0 | D25: ='Revenue Proportions'!Q29 -> 0 | E25: ='Revenue Proportions'!R29 -> 0 | F25: 0 | G25: 0 | H25: 0 | I25: 0 | K25: ='Revenue Proportions'!G29 -> 1 | L25: ='Revenue Proportions'!H29 -> 0 | M25: ='Revenue Proportions'!I29 -> 0 | O25: 0 | P25: 0 | Q25: 0
A26: Total | C26: =SUM(C16:C25) -> 0.679159987 | D26: 0.07759778372 | E26: 0.2432422292 | F26: 418300.1009 | G26: 47793.09939 | H26: 149814.8462 | I26: 615908.0465 | K26: =SUM(K16:K25) -> 186033 | L26: =SUM(L16:L25) -> 4131633817 | M26: =SUM(M16:M25) -> 5956865.325
I27: ='M-factor RR Calculation_2023'!J67 -> 615908.0465
A29: Horizon Rate Class | C29: Service Charge % Revenue | D29: Distribution Volumetric Rate % Revenue kWh | E29: Distribution Volumetric Rate % Revenue kW | F29: Service Charge Revenue | G29: Distribution Volumetric Rate Revenue kWh | H29: Distribution Volumetric Rate Revenue kW | I29: Total Revenue by Rate Class | K29: Billed Customers or Connections | L29: Billed kWh | M29: Billed kW | O29: Service Charge Rate Rider | P29: Distribution Volumetric Rate kWh Rate Rider | Q29: Distribution Volumetric Rate kW Rate Rider
C30: From Sheet 8 | D30: From Sheet 8 | E30: From Sheet 8 | F30: Col C * Col Itotal | G30: Col D* Col Itotal | H30: Col E* Col Itotal | I30: Col Itotal | K30: From Sheet 4 | L30: From Sheet 4 | M30: From Sheet 4 | O30: Col F / Col K / 12 | P30: Col G / Col L | Q30: Col H / Col M
A31: RESIDENTIAL | C31: =+'Revenue Proportions'!P36 -> 0.6135452637 | D31: =+'Revenue Proportions'!Q36 -> 0 | E31: =+'Revenue Proportions'!R36 -> 0 | F31: =C31*$I$40 -> 393277.0726 | G31: =D31*$I$40 -> 0 | H31: =E31*$I$40 -> 0 | I31: =SUM(F31:H31) -> 393277.0726 | K31: ='Revenue Proportions'!G36 -> 227762 | L31: ='Revenue Proportions'!H36 -> 1652719193 | M31: ='Revenue Proportions'!I36 -> 0 | O31: =F31/K31/12 -> 0.143891823 | P31: =IF(ISERROR(G31/L31),0,G31/L31) -> 0 | Q31: 0
A32: GENERAL SERVICE LESS THAN 50 kW | C32: =+'Revenue Proportions'!P37 -> 0.07982562709 | D32: =+'Revenue Proportions'!Q37 -> 0.05447927355 | E32: =+'Revenue Proportions'!R37 -> 0 | F32: =C32*$I$40 -> 51167.519 | G32: 34920.73118 | H32: 0 | I32: 86088.25018 | K32: ='Revenue Proportions'!G37 -> 18709 | L32: ='Revenue Proportions'!H37 -> 594472784.8 | M32: ='Revenue Proportions'!I37 -> 0 | O32: 0.2279095578 | P32: 5.874235469e-05 | Q32: 0
A33: GENERAL SERVICE 50 TO 4,999 KW | C33: =+'Revenue Proportions'!P38 -> 0.09098893484 | D33: =+'Revenue Proportions'!Q38 -> 0 | E33: =+'Revenue Proportions'!R38 -> 0.111389565 | F33: 58323.10027 | G33: 0 | H33: 71399.72324 | I33: 129722.8235 | K33: ='Revenue Proportions'!G38 -> 2316 | L33: ='Revenue Proportions'!H38 -> 1840510488 | M33: ='Revenue Proportions'!I38 -> 5066405.912 | O33: 2.098557148 | P33: 0 | Q33: 0.01409277592
A34: LARGE USE | C34: =+'Revenue Proportions'!P39 -> 0.01469741489 | D34: =+'Revenue Proportions'!Q39 -> 0 | E34: =+'Revenue Proportions'!R39 -> 0.006859247021 | F34: 9420.912595 | G34: 0 | H34: 4396.716507 | I34: 13817.6291 | K34: ='Revenue Proportions'!G39 -> 6 | L34: ='Revenue Proportions'!H39 -> 242051739 | M34: ='Revenue Proportions'!I39 -> 569520 | O34: 130.8460083 | P34: 0 | Q34: 0.007720038816
A35: LARGE USE WITH DEDICATED ASSETS | C35: =+'Revenue Proportions'!P40 -> 0.002903578357 | D35: =+'Revenue Proportions'!Q40 -> 0 | E35: =+'Revenue Proportions'!R40 -> 0.006101481257 | F35: 1861.167976 | G35: 0 | H35: 3910.995373 | I35: 5772.163348 | K35: ='Revenue Proportions'!G40 -> 5 | L35: ='Revenue Proportions'!H40 -> 403775839 | M35: ='Revenue Proportions'!I40 -> 2136952 | O35: 31.01946626 | P35: 0 | Q35: 0.001830174647
A36: UNMETERED SCATTERED LOAD | C36: =+'Revenue Proportions'!P41 -> 0.002617302083 | D36: =+'Revenue Proportions'!Q41 -> 0.00118344063 | E36: =+'Revenue Proportions'!R41 -> 0 | F36: 1677.667423 | G36: 758.5749483 | H36: 0 | I36: 2436.242371 | K36: ='Revenue Proportions'!G41 -> 3006 | L36: ='Revenue Proportions'!H41 -> 10504341.79 | M36: ='Revenue Proportions'!I41 -> 0 | O36: 0.04650885514 | P36: 7.221537182e-05 | Q36: 0
A37: SENTINEL LIGHTING | C37: =+'Revenue Proportions'!P42 -> 0.0002147109895 | D37: =+'Revenue Proportions'!Q42 -> 0 | E37: =+'Revenue Proportions'!R42 -> 0.0001337218437 | F37: 137.6278401 | G37: 0 | H37: 85.71451583 | I37: =SUM(F37:H37) -> 223.3423559 | K37: ='Revenue Proportions'!G42 -> 378 | L37: ='Revenue Proportions'!H42 -> 363731 | M37: ='Revenue Proportions'!I42 -> 1030 | O37: 0.03034123458 | P37: 0 | Q37: 0.08321797653
A38: STREET LIGHTING | C38: =+'Revenue Proportions'!P43 -> 0.01028409585 | D38: =+'Revenue Proportions'!Q43 -> 0 | E38: =+'Revenue Proportions'!R43 -> 0.004776342969 | F38: 6592.014229 | G38: 0 | H38: 3061.593483 | I38: 9653.607712 | K38: ='Revenue Proportions'!G43 -> 52273 | L38: ='Revenue Proportions'!H43 -> 39610412.93 | M38: ='Revenue Proportions'!I43 -> 109773 | O38: 0.01050895336 | P38: 0 | Q38: 0.0278902233
A39: Total | C39: =SUM(C31:C38) -> 0.8150769278 | D39: 0.05566271418 | E39: 0.129260358 | F39: 522457.0819 | G39: 35679.30613 | H39: 82854.74312 | I39: 640991.1312 | K39: =SUM(K31:K38) -> 304455 | L39: =SUM(L31:L38) -> 4784008529 | M39: =SUM(M31:M38) -> 7883680.912
I40: ='M-factor RR Calculation_2023'!E67 -> 640991.1312
A42: PowerStream Rate Class | C42: Service Charge % Revenue | D42: Distribution Volumetric Rate % Revenue kWh | E42: Distribution Volumetric Rate % Revenue kW | F42: Service Charge Revenue | G42: Distribution Volumetric Rate Revenue kWh | H42: Distribution Volumetric Rate Revenue kW | I42: Total Revenue by Rate Class | K42: Billed Customers or Connections | L42: Billed kWh | M42: Billed kW | O42: Service Charge Rate Rider | P42: Distribution Volumetric Rate kWh Rate Rider | Q42: Distribution Volumetric Rate kW Rate Rider
C43: From Sheet 8 | D43: From Sheet 8 | E43: From Sheet 8 | F43: Col C * Col Itotal | G43: Col D* Col Itotal | H43: Col E* Col Itotal | I43: Col Itotal | K43: From Sheet 4 | L43: From Sheet 4 | M43: From Sheet 4 | O43: Col F / Col K / 12 | P43: Col G / Col L | Q43: Col H / Col M
A44: RESIDENTIAL | C44: ='Revenue Proportions'!P50 -> 0.4804828615 | D44: ='Revenue Proportions'!Q50 -> 0.06016245838 | E44: ='Revenue Proportions'!R50 -> 0 | F44: =C44*$I$52 -> 1489341.568 | G44: =D44*$I$52 -> 186484.1752 | H44: =E44*$I$52 -> 0 | I44: =SUM(F44:H44) -> 1675825.743 | K44: ='Revenue Proportions'!G50 -> 334683 | L44: ='Revenue Proportions'!H50 -> 2783708695 | M44: ='Revenue Proportions'!I50 -> 0 | O44: =(F44+G44)/K44/12 -> 0.4172669221 | P44: =IF(ISERROR(G44/L44),0,G44/L44) -> 6.699126798e-05 | Q44: 0
A45: GENERAL SERVICE LESS THAN 50 kW | C45: ='Revenue Proportions'!P51 -> 0.05518433769 | D45: ='Revenue Proportions'!Q51 -> 0.09426732524 | E45: ='Revenue Proportions'!R51 -> 0 | F45: =C45*$I$52 -> 171053.6101 | G45: 292198.239 | H45: 0 | I45: 463251.849 | K45: ='Revenue Proportions'!G51 -> 32624 | L45: ='Revenue Proportions'!H51 -> 1049615664 | M45: ='Revenue Proportions'!I51 -> 0 | O45: =F45/K45/12 -> 0.4369319367 | P45: 0.0002783859358 | Q45: 0
A46: GENERAL SERVICE 50 TO 4,999 KW | C46: ='Revenue Proportions'!P52 -> 0.04319860947 | D46: ='Revenue Proportions'!Q52 -> 0 | E46: ='Revenue Proportions'!R52 -> 0.2513596733 | F46: 133901.7266 | G46: 0 | H46: 779133.7423 | I46: 913035.469 | K46: ='Revenue Proportions'!G52 -> 5207 | L46: ='Revenue Proportions'!H52 -> 4679965944 | M46: ='Revenue Proportions'!I52 -> 12192875.59 | O46: =F46/K46/12 -> 2.142976228 | P46: 0 | Q46: 0.06390073749
A47: LARGE USE | C47: ='Revenue Proportions'!P53 -> 0.0007148647377 | D47: ='Revenue Proportions'!Q53 -> 0 | E47: ='Revenue Proportions'!R53 -> 0.001131111182 | F47: 2215.849627 | G47: 0 | H47: 3506.079065 | I47: 5721.928692 | K47: ='Revenue Proportions'!G53 -> 2 | L47: ='Revenue Proportions'!H53 -> 53218181 | M47: ='Revenue Proportions'!I53 -> 102871.3272 | O47: 92.3270678 | P47: 0 | Q47: 0.03408217976
A48: UNMETERED SCATTERED LOAD | C48: ='Revenue Proportions'!P54 -> 0.001559544139 | D48: ='Revenue Proportions'!Q54 -> 0.001321871603 | E48: ='Revenue Proportions'!R54 -> 0 | F48: 4834.082752 | G48: 4097.374712 | H48: 0 | I48: 8931.457464 | K48: ='Revenue Proportions'!G54 -> 3082 | L48: ='Revenue Proportions'!H54 -> 13830787.93 | M48: ='Revenue Proportions'!I54 -> 0 | O48: 0.1307074073 | P48: 0.000296250274 | Q48: 0
A49: SENTINEL LIGHTING | C49: ='Revenue Proportions'!P55 -> 4.242704029e-05 | D49: ='Revenue Proportions'!Q55 -> 0 | E49: ='Revenue Proportions'!R55 -> 3.85268736e-05 | F49: 131.5101116 | G49: 0 | H49: 119.4208554 | I49: 250.930967 | K49: ='Revenue Proportions'!G55 -> 172 | L49: ='Revenue Proportions'!H55 -> 286385 | M49: ='Revenue Proportions'!I55 -> 796 | O49: 0.06371613933 | P49: 0 | Q49: 0.1500262003
A50: STREET LIGHTING | C50: ='Revenue Proportions'!P56 -> 0.006377061486 | D50: ='Revenue Proportions'!Q56 -> 0 | E50: ='Revenue Proportions'!R56 -> 0.004159327344 | F50: 19766.8294 | G50: 0 | H50: 12892.57038 | I50: 32659.39978 | K50: ='Revenue Proportions'!G56 -> 91446 | L50: ='Revenue Proportions'!H56 -> 48883953 | M50: ='Revenue Proportions'!I56 -> 134152.0192 | O50: 0.01801320761 | P50: 0 | Q50: 0.09610418436
A51: Total | C51: =SUM(C44:C50) -> 0.5875597061 | D51: 0.1557516552 | E51: 0.2566886387 | F51: 1821245.177 | G51: 482779.7889 | H51: 795651.8126 | I51: 3099676.778 | K51: =SUM(K44:K50) -> 467216 | L51: =SUM(L44:L50) -> 8629509610 | M51: =SUM(M44:M50) -> 12430694.94
I52: ='M-factor RR Calculation_2023'!O67 -> 3099676.778
A54: Guelph Rate Class | C54: Service Charge % Revenue | D54: Distribution Volumetric Rate % Revenue kWh | E54: Distribution Volumetric Rate % Revenue kW | F54: Service Charge Revenue | G54: Distribution Volumetric Rate Revenue kWh | H54: Distribution Volumetric Rate Revenue kW | I54: Total Revenue by Rate Class | K54: Billed Customers or Connections | L54: Billed kWh | M54: Billed kW | O54: Service Charge Rate Rider | P54: Distribution Volumetric Rate kWh Rate Rider | Q54: Distribution Volumetric Rate kW Rate Rider
C55: From Sheet 8 | D55: From Sheet 8 | E55: From Sheet 8 | F55: Col C * Col Itotal | G55: Col D* Col Itotal | H55: Col E* Col Itotal | K55: From Sheet 4 | L55: From Sheet 4 | M55: From Sheet 4 | O55: Col F / Col K / 12 | P55: Col G / Col L | Q55: Col H / Col M
A56: RESIDENTIAL | C56: ='Revenue Proportions'!P63 -> 0.5840465345 | D56: ='Revenue Proportions'!Q63 -> 0 | E56: ='Revenue Proportions'!R63 -> 0 | F56: =C56*$I$65 -> 88703.96375 | G56: =D56*$I$65 -> 0 | H56: =E56*$I$65 -> 0 | I56: =SUM(F56:H56) -> 88703.96375 | K56: ='Revenue Proportions'!G63 -> 50914 | L56: ='Revenue Proportions'!H63 -> 384041745 | M56: ='Revenue Proportions'!I63 -> 0 | O56: =(F56+G56)/K56/12 -> 0.1451859406 | P56: =IF(ISERROR(G56/L56),0,G56/L56) -> 0 | Q56: 0
A57: GENERAL SERVICE LESS THAN 50 KW | C57: ='Revenue Proportions'!P64 -> 0.02749247886 | D57: ='Revenue Proportions'!Q64 -> 0.06606393443 | E57: ='Revenue Proportions'!R64 -> 0 | F57: =C57*$I$65 -> 4175.509492 | G57: 10033.67454 | H57: 0 | I57: 14209.18403 | K57: ='Revenue Proportions'!G64 -> 4134 | L57: ='Revenue Proportions'!H64 -> 142209076 | M57: ='Revenue Proportions'!I64 -> 0 | O57: =F57/K57/12 -> 0.08417008329 | P57: 7.055579591e-05 | Q57: 0
A58: GENERAL SERVICE 50 TO 999 KW | C58: ='Revenue Proportions'!P65 -> 0.04167469594 | D58: ='Revenue Proportions'!Q65 -> 0 | E58: ='Revenue Proportions'!R65 -> 0.1004689031 | F58: 6329.479759 | G58: 0 | H58: 15259.04088 | I58: 21588.52063 | K58: ='Revenue Proportions'!G65 -> 578 | L58: ='Revenue Proportions'!H65 -> 402350218 | M58: ='Revenue Proportions'!I65 -> 1097499 | O58: 0.9125547519 | P58: 0 | Q58: 0.01390346677
A59: GENERAL SERVICE 1,000 TO 4,999 KW | C59: ='Revenue Proportions'!P66 -> 0.009807361508 | D59: ='Revenue Proportions'!Q66 -> 0 | E59: ='Revenue Proportions'!R66 -> 0.1153853375 | F59: 1489.524872 | G59: 0 | H59: 17524.52277 | I59: 19014.04764 | K59: ='Revenue Proportions'!G66 -> 43 | L59: ='Revenue Proportions'!H66 -> 540417878 | M59: ='Revenue Proportions'!I66 -> 1135425 | O59: 2.886676109 | P59: 0 | Q59: 0.01543432879
A60: LARGE USE | C60: ='Revenue Proportions'!P67 -> 0.00175378796 | D60: ='Revenue Proportions'!Q67 -> 0 | E60: ='Revenue Proportions'!R67 -> 0.03863693115 | F60: 266.3622407 | G60: 0 | H60: 5868.109368 | I60: 6134.471608 | K60: ='Revenue Proportions'!G67 -> 4 | L60: ='Revenue Proportions'!H67 -> 197428962 | M60: ='Revenue Proportions'!I67 -> 423180 | O60: 5.549213348 | P60: 0 | Q60: 0.01386669826
A61: UNMETERED SCATTERED LOAD | C61: ='Revenue Proportions'!P68 -> 0.00108848765 | D61: ='Revenue Proportions'!Q68 -> 0.001338746781 | E61: ='Revenue Proportions'!R68 -> 0 | F61: 165.317596 | G61: 203.3265141 | H61: 0 | I61: 368.6441101 | K61: ='Revenue Proportions'!G68 -> 559 | L61: ='Revenue Proportions'!H68 -> 1810678 | M61: ='Revenue Proportions'!I68 -> 0 | O61: 0.02464484139 | P61: 0.0001122930273 | Q61: 0
A62: SENTINEL LIGHTING | C62: ='Revenue Proportions'!P69 -> 0.0001053885501 | D62: ='Revenue Proportions'!Q69 -> 0 | E62: ='Revenue Proportions'!R69 -> 1.416416029e-05 | F62: 16.00622824 | G62: 0 | H62: 2.151227833 | I62: 18.15745607 | K62: ='Revenue Proportions'!G69 -> 35 | L62: ='Revenue Proportions'!H69 -> 18189 | M62: ='Revenue Proportions'!I69 -> 51 | O62: 0.03811006723 | P62: 0 | Q62: 0.0421809379
A63: STREET LIGHTING | C63: ='Revenue Proportions'!P70 -> 0.002444558968 | D63: ='Revenue Proportions'!Q70 -> 0 | E63: ='Revenue Proportions'!R70 -> 0.009678688939 | F63: 371.2753305 | G63: 0 | H63: 1469.982308 | I63: 1841.257639 | K63: ='Revenue Proportions'!G70 -> 14152 | L63: ='Revenue Proportions'!H70 -> 10182750 | M63: ='Revenue Proportions'!I70 -> 28425 | O63: 0.00218623593 | P63: 0 | Q63: 0.05171441717
A64: Total | C64: =SUM(C56:C63) -> 0.6684132939 | D64: 0.06740268121 | E64: 0.2641840248 | F64: 101517.4393 | G64: 10237.00106 | H64: 40123.80655 | I64: 151878.2469 | K64: =SUM(K56:K63) -> 70419 | L64: =SUM(L56:L63) -> 1678459496 | M64: =SUM(M56:M63) -> 2684580
I65: ='M-factor RR Calculation_2023'!Y67 -> 151878.2469

Sheet M-factor RR Calculation_2024
B1: 2024 Rates | H1: Back to Index
B2: M-factor Revenue Requirement_HRZ | G2: M-factor Revenue Requirement_BRZ | L2: M-factor Revenue Requirement_PRZ | Q2: M-factor Revenue Requirement_ERZ | V2: M-factor Revenue Requirement_GRZ
B5: Return on Rate Base | G5: Return on Rate Base | L5: Return on Rate Base | Q5: Return on Rate Base | V5: Return on Rate Base
B6: Incremental Capital | E6: ='Summary by RZ'!U3 -> 12159861.98 | G6: Incremental Capital | J6: ='Summary by RZ'!U4 -> 4016970.395 | L6: Incremental Capital | O6: ='Summary by RZ'!U5 -> 24005137.5 | Q6: Incremental Capital | T6: ='Summary by RZ'!U6 -> 23519955.09 | V6: Incremental Capital | Y6: ='Summary by RZ'!U7 -> 839405.5025
B7: Depreciation Expense | E7: ='Summary by RZ'!U21 -> 394000.3956 | G7: Depreciation Expense | J7: ='Summary by RZ'!U22 -> 221777.8306 | L7: Depreciation Expense | O7: ='Summary by RZ'!U23 -> 877569.8782 | Q7: Depreciation Expense | T7: ='Summary by RZ'!U24 -> 839945.6853 | V7: Depreciation Expense | Y7: ='Summary by RZ'!U25 -> 38535.1715
B8: Incremental Capital to be included in Rate Base (avg NBV) | E8: =((E6)+(E6-E7))/2 -> 11962861.78 | G8: Incremental Capital to be included in Rate Base (avg NBV) | J8: =((J6)+(J6-J7))/2 -> 3906081.479 | L8: Incremental Capital to be included in Rate Base (avg NBV) | O8: =((O6)+(O6-O7))/2 -> 23566352.56 | Q8: Incremental Capital to be included in Rate Base (avg NBV) | T8: =((T6)+(T6-T7))/2 -> 23099982.24 | V8: Incremental Capital to be included in Rate Base (avg NBV) | Y8: =((Y6)+(Y6-Y7))/2 -> 820137.9168
B10: Deemed ShortTerm Debt % | C10: 0.04 | D10: E | E10: =E8*C10 -> 478514.4711 | G10: Deemed ShortTerm Debt % | H10: 0.04 | I10: E | J10: =J8*H10 -> 156243.2592 | L10: Deemed ShortTerm Debt % | M10: 0.04 | N10: E | O10: =O8*M10 -> 942654.1024 | Q10: Deemed ShortTerm Debt % | R10: 0.04 | S10: E | T10: =T8*R10 -> 923999.2897 | V10: Deemed ShortTerm Debt % | W10: 0.04 | X10: E | Y10: =Y8*W10 -> 32805.51667
B11: Deemed Long Term Debt % | C11: 0.56 | D11: F | E11: =E8*C11 -> 6699202.596 | G11: Deemed Long Term Debt % | H11: 0.56 | I11: F | J11: =J8*H11 -> 2187405.628 | L11: Deemed Long Term Debt % | M11: 0.56 | N11: F | O11: =O8*M11 -> 13197157.43 | Q11: Deemed Long Term Debt % | R11: 0.56 | S11: F | T11: =T8*R11 -> 12935990.06 | V11: Deemed Long Term Debt % | W11: 0.56 | X11: F | Y11: =Y8*W11 -> 459277.2334
B13: Short Term Interest | C13: 0.0282 | D13: I | E13: =E10*C13 -> 13494.10809 | G13: Short Term Interest | H13: 0.0216 | I13: I | J13: =J10*H13 -> 3374.854398 | L13: Short Term Interest | M13: 0.0176 | N13: I | O13: =O10*M13 -> 16590.7122 | Q13: Short Term Interest | R13: 0.0208 | S13: I | T13: =T10*R13 -> 19219.18523 | V13: Short Term Interest | W13: 0.0165 | X13: I | Y13: =Y10*W13 -> 541.2910251
B14: Long Term Interest | C14: 0.0374 | D14: J | E14: =E11*C14 -> 250550.1771 | G14: Long Term Interest | H14: 0.0607 | I14: J | J14: =J11*H14 -> 132775.5216 | L14: Long Term Interest | M14: 0.0388 | N14: J | O14: =O11*M14 -> 512049.7084 | Q14: Long Term Interest | R14: 0.0509 | S14: J | T14: =T11*R14 -> 658441.8939 | V14: Long Term Interest | W14: 0.0491 | X14: J | Y14: =Y11*W14 -> 22550.51216
B16: Return on Rate Base - Interest | E16: =SUM(E13:E14) -> 264044.2852 | G16: Return on Rate Base - Interest | J16: =SUM(J13:J14) -> 136150.376 | L16: Return on Rate Base - Interest | O16: =SUM(O13:O14) -> 528640.4206 | Q16: Return on Rate Base - Interest | T16: =SUM(T13:T14) -> 677661.0791 | V16: Return on Rate Base - Interest | Y16: =SUM(Y13:Y14) -> 23091.80318
B19: Deemed Equity % | C19: 0.4 | D19: N | E19: =E8*C19 -> 4785144.711 | G19: Deemed Equity % | H19: 0.4 | I19: N | J19: =J8*H19 -> 1562432.592 | L19: Deemed Equity % | M19: 0.4 | N19: N | O19: =O8*M19 -> 9426541.024 | Q19: Deemed Equity % | R19: 0.4 | S19: N | T19: =T8*R19 -> 9239992.897 | V19: Deemed Equity % | W19: 0.4 | X19: N | Y19: =Y8*W19 -> 328055.1667
B21: Return on Rate Base -Equity | C21: 0.0898 | D21: O | E21: =E19*C21 -> 429705.9951 | G21: Return on Rate Base -Equity | H21: 0.093 | I21: O | J21: =J19*H21 -> 145306.231 | L21: Return on Rate Base -Equity | M21: 0.0878 | N21: O | O21: =O19*M21 -> 827650.3019 | Q21: Return on Rate Base -Equity | R21: 0.0893 | S21: O | T21: =T19*R21 -> 825131.3657 | V21: Return on Rate Base -Equity | W21: 0.0919 | X21: O | Y21: =Y19*W21 -> 30148.26982
B23: Return on Rate Base - Total | E23: =E16+E21 -> 693750.2803 | G23: Return on Rate Base - Total | J23: =J16+J21 -> 281456.6071 | L23: Return on Rate Base - Total | O23: =O16+O21 -> 1356290.723 | Q23: Return on Rate Base - Total | T23: =T16+T21 -> 1502792.445 | V23: Return on Rate Base - Total | Y23: =Y16+Y21 -> 53240.07301
B27: Amortization Expense | G27: Amortization Expense | L27: Amortization Expense | Q27: Amortization Expense | V27: Amortization Expense
B29: Amortization Expense - Incremental | D29: C | E29: =E7 -> 394000.3956 | G29: Amortization Expense - Incremental | I29: C | J29: =J7 -> 221777.8306 | L29: Amortization Expense - Incremental | N29: C | O29: =O7 -> 877569.8782 | Q29: Amortization Expense - Incremental | S29: C | T29: =T7 -> 839945.6853 | V29: Amortization Expense - Incremental | X29: C | Y29: =Y7 -> 38535.1715
B32: Grossed up PIL's | G32: Grossed up PIL's | L32: Grossed up PIL's | Q32: Grossed up PIL's | V32: Grossed up PIL's
B34: Regulatory Taxable Income | D34: O | E34: =E21 -> 429705.9951 | G34: Regulatory Taxable Income | I34: O | J34: =J21 -> 145306.231 | L34: Regulatory Taxable Income | N34: O | O34: =O21 -> 827650.3019 | Q34: Regulatory Taxable Income | S34: O | T34: =T21 -> 825131.3657 | V34: Regulatory Taxable Income | X34: O | Y34: =Y21 -> 30148.26982
B36: Add Back Amortization Expense | D36: S | E36: =E29 -> 394000.3956 | G36: Add Back Amortization Expense | I36: S | J36: =J29 -> 221777.8306 | L36: Add Back Amortization Expense | N36: S | O36: =O29 -> 877569.8782 | Q36: Add Back Amortization Expense | S36: S | T36: =T29 -> 839945.6853 | V36: Add Back Amortization Expense | X36: S | Y36: =Y29 -> 38535.1715
B38: Deduct CCA | E38: ='Summary by RZ'!U12 -> 1089098.417 | G38: Deduct CCA | J38: ='Summary by RZ'!U13 -> 742467.9849 | L38: Deduct CCA | O38: ='Summary by RZ'!U14 -> 2773124.863 | Q38: Deduct CCA | T38: ='Summary by RZ'!U15 -> 2455139.35 | V38: Deduct CCA | Y38: ='Summary by RZ'!U16 -> 81211.62973
B40: Incremental Taxable Income | E40: =E34+E36-E38 -> -265392.0262 | G40: Incremental Taxable Income | J40: =J34+J36-J38 -> -375383.9232 | L40: Incremental Taxable Income | O40: =O34+O36-O38 -> -1067904.683 | Q40: Incremental Taxable Income | T40: =T34+T36-T38 -> -790062.2986 | V40: Incremental Taxable Income | Y40: =Y34+Y36-Y38 -> -12528.18841
B42: Current Tax Rate | C42: 0.265 | D42: X | G42: Current Tax Rate | H42: 0.265 | I42: X | L42: Current Tax Rate | M42: 0.265 | N42: X | Q42: Current Tax Rate | R42: 0.265 | S42: X | V42: Current Tax Rate | W42: 0.265 | X42: X
B44: PIL's Before Gross Up | E44: =E40*C42 -> -70328.88694 | G44: PIL's Before Gross Up | J44: =J40*H42 -> -99476.73965 | L44: PIL's Before Gross Up | O44: =O40*M42 -> -282994.7409 | Q44: PIL's Before Gross Up | T44: =T40*R42 -> -209366.5091 | V44: PIL's Before Gross Up | Y44: =Y40*W42 -> -3319.969929
B46: Incremental Grossed Up PIL's | E46: =E44/(1-C42) -> -95685.56047 | G46: Incremental Grossed Up PIL's | J46: =J44/(1-H42) -> -135342.5029 | L46: Incremental Grossed Up PIL's | O46: =O44/(1-M42) -> -385026.8584 | Q46: Incremental Grossed Up PIL's | T46: =T44/(1-R42) -> -284852.3934 | V46: Incremental Grossed Up PIL's | Y46: =Y44/(1-W42) -> -4516.96589
B49: Ontario Capital Tax | G49: Ontario Capital Tax | L49: Ontario Capital Tax | Q49: Ontario Capital Tax | V49: Ontario Capital Tax
B50: Incremental Capital CAPEX | G50: Incremental Capital CAPEX | L50: Incremental Capital CAPEX | Q50: Incremental Capital CAPEX | V50: Incremental Capital CAPEX
B52: Less : Available Capital Exemption (if any) | G52: Less : Available Capital Exemption (if any) | L52: Less : Available Capital Exemption (if any) | Q52: Less : Available Capital Exemption (if any) | V52: Less : Available Capital Exemption (if any)
B54: Incremental Capital CAPEX subject to OCT | G54: Incremental Capital CAPEX subject to OCT | L54: Incremental Capital CAPEX subject to OCT | Q54: Incremental Capital CAPEX subject to OCT | V54: Incremental Capital CAPEX subject to OCT
B56: Ontario Capital Tax Rate (F1.1 Z-Factor Tax Changes) | D56: AD | G56: Ontario Capital Tax Rate (F1.1 Z-Factor Tax Changes) | I56: AD | L56: Ontario Capital Tax Rate (F1.1 Z-Factor Tax Changes) | N56: AD | Q56: Ontario Capital Tax Rate (F1.1 Z-Factor Tax Changes) | S56: AD | V56: Ontario Capital Tax Rate (F1.1 Z-Factor Tax Changes) | X56: AD
B58: Incremental Ontario Capital Tax | G58: Incremental Ontario Capital Tax | L58: Incremental Ontario Capital Tax | Q58: Incremental Ontario Capital Tax | V58: Incremental Ontario Capital Tax
B61: Incremental Revenue Requirement | G61: Incremental Revenue Requirement | L61: Incremental Revenue Requirement | Q61: Incremental Revenue Requirement | V61: Incremental Revenue Requirement
B62: Return on Rate Base - Total | D62: Q | E62: =E23 -> 693750.2803 | G62: Return on Rate Base - Total | I62: Q | J62: =J23 -> 281456.6071 | L62: Return on Rate Base - Total | N62: Q | O62: =O23 -> 1356290.723 | Q62: Return on Rate Base - Total | S62: Q | T62: =T23 -> 1502792.445 | V62: Return on Rate Base - Total | X62: Q | Y62: =Y23 -> 53240.07301
B63: Amortization Expense - Total | E63: =E29 -> 394000.3956 | G63: Amortization Expense - Total | J63: =J29 -> 221777.8306 | L63: Amortization Expense - Total | O63: =O29 -> 877569.8782 | Q63: Amortization Expense - Total | T63: =T29 -> 839945.6853 | V63: Amortization Expense - Total | Y63: =Y29 -> 38535.1715
B64: Incremental Grossed Up PIL's | D64: Z | E64: =E46 -> -95685.56047 | G64: Incremental Grossed Up PIL's | I64: Z | J64: =J46 -> -135342.5029 | L64: Incremental Grossed Up PIL's | N64: Z | O64: =O46 -> -385026.8584 | Q64: Incremental Grossed Up PIL's | S64: Z | T64: =T46 -> -284852.3934 | V64: Incremental Grossed Up PIL's | X64: Z | Y64: =Y46 -> -4516.96589
B67: Incremental Revenue Requirement | E67: =SUM(E62:E65) -> 992065.1154 | G67: Incremental Revenue Requirement | J67: =SUM(J62:J65) -> 367891.9348 | L67: Incremental Revenue Requirement | O67: =SUM(O62:O65) -> 1848833.742 | Q67: Incremental Revenue Requirement | T67: =SUM(T62:T65) -> 2057885.737 | V67: Incremental Revenue Requirement | Y67: =SUM(Y62:Y65) -> 87258.27862
Y70: =Y67+T67+O67+J67+E67 -> 5353934.808
Y71: =+Y62+T62+O62+J62+E62 -> 3887530.128
Y72: =+Y63+T63+O63+J63+E63 -> 2371828.961
Y73: =+Y64+T64+O64+J64+E64 -> -905424.281

Sheet Bill Impacts_2024
H1: Back to Index
I2: internal use
B3: Enersource Rate Class | C3: Unit | D3: kWh | E3: kW | F3: MCM Rate Rider Incl HST | G3: % Increase vs. Total Bill | I3: 2019 Total Bill (Approved) | J3: Fixed Rate Rider | K3: Variable Rate Rider | L3: Taxes
B4: Residential | C4: kWh | D4: 750 | F4: =+(J4+D4*K4)*(1+L4) -> 0.3945616702 | G4: =+F4/I4 -> 0.003627819696 | I4: 108.76 | J4: ='Rate Rider Calculation_2024'!O4 -> 0.3757730192 | K4: ='Rate Rider Calculation_2024'!P4 -> 0 | L4: 0.05
B5: General Service < 50 kW | C5: kWh | D5: 2000 | F5: =+(J5+D5*K5)*(1+L5) -> 1.147401607 | G5: =+F5/I5 -> 0.003901532209 | I5: 294.09 | J5: ='Rate Rider Calculation_2024'!O5 -> 0.6898727759 | K5: ='Rate Rider Calculation_2024'!P5+'Rate Rider Calculation_2024'!Q5 -> 0.0002014453299 | L5: 0.05
B6: General Service 50 to 499 kW | C6: kW | D6: 100000 | E6: 230 | F6: =+(J6+E6*K6)*(1+L6) -> 20.37767357 | G6: 0.001246814452 | I6: 16343.79 | J6: ='Rate Rider Calculation_2024'!O6 -> 1.215025255 | K6: ='Rate Rider Calculation_2024'!P6+'Rate Rider Calculation_2024'!Q6 -> 0.07312310517 | L6: 0.13
B7: General Service 500 to 4999 kW | C7: kW | D7: 400000 | E7: 2250 | F7: =+(J7+E7*K7)*(1+L7) -> 126.9324875 | G7: 0.001681450158 | I7: 75489.89 | J7: ='Rate Rider Calculation_2024'!O7 -> 27.66913589 | K7: ='Rate Rider Calculation_2024'!P7+'Rate Rider Calculation_2024'!Q7 -> 0.03762688846 | L7: 0.13
B8: Large Use | C8: kW | D8: 3000000 | E8: 5000 | F8: =+(J8+E8*K8)*(1+L8) -> 510.3916827 | G8: 0.001125589155 | I8: 453444.03 | J8: ='Rate Rider Calculation_2024'!O8 -> 218.1601787 | K8: ='Rate Rider Calculation_2024'!P8+'Rate Rider Calculation_2024'!Q8 -> 0.04670277536 | L8: 0.13
B9: Unmetered | C9: kWh | D9: 300 | F9: =+(J9+D9*K9)*(1+L9) -> 0.2486455203 | G9: 0.004823385456 | I9: 51.55 | J9: ='Rate Rider Calculation_2024'!O9 -> 0.1424063524 | K9: ='Rate Rider Calculation_2024'!P9+'Rate Rider Calculation_2024'!Q9 -> 0.0002587797699 | L9: 0.13
B10: Street Lighting | C10: kW | D10: 33 | E10: 0.1 | F10: 0.04761071426 | G10: 0.01169796419 | I10: 4.07 | J10: ='Rate Rider Calculation_2024'!O10 -> 0.02386352369 | K10: ='Rate Rider Calculation_2024'!P10+'Rate Rider Calculation_2024'!Q10 -> 0.1826985176 | L10: 0.13
I12: internal use
B13: Brampton Rate Class | C13: Unit | D13: kWh | E13: kW | F13: MCM Rate Rider Incl HST | G13: % Increase vs. Total Bill | I13: 2019 Total Bill (Approved) | J13: Fixed Rate Rider | K13: Variable Rate Rider | L13: Taxes
B14: Residential | C14: kWh | D14: 750 | F14: =+(J14+D14*K14)*(1+L14) -> 0.1210895823 | G14: =+F14/I14 -> 0.001142893651 | I14: 105.95 | J14: =+'Rate Rider Calculation_2024'!O16 -> 0.1153234117 | K14: ='Rate Rider Calculation_2024'!P16+'Rate Rider Calculation_2024'!Q16 -> 0 | L14: 0.05
B15: General Service < 50 kW | C15: kWh | D15: 2000 | F15: =+(J15+D15*K15)*(1+L15) -> 0.2982391564 | G15: =+F15/I15 -> 0.001090613459 | I15: 273.46 | J15: =+'Rate Rider Calculation_2024'!O17 -> 0.1217302679 | K15: ='Rate Rider Calculation_2024'!P17+'Rate Rider Calculation_2024'!Q17 -> 8.115351196e-05 | L15: 0.05
B16: General Service 50 to 699 kW | C16: kW | D16: 182500 | E16: 500 | F16: =+(J16+E16*K16)*(1+L16) -> 8.458599229 | G16: 0.0002971257362 | I16: 28468.08 | J16: =+'Rate Rider Calculation_2024'!O18 -> 0.6073699684 | K16: ='Rate Rider Calculation_2024'!P18+'Rate Rider Calculation_2024'!Q18 -> 0.01375623215 | L16: 0.13
B17: General Service 700 to 4999 kW | C17: kW | D17: 627216 | E17: 1432 | F17: =+(J17+E17*K17)*(1+L17) -> 32.0331842 | G17: 0.0003277375639 | I17: 97740.35 | J17: =+'Rate Rider Calculation_2024'!O19 -> 5.480045134 | K17: ='Rate Rider Calculation_2024'!P19+'Rate Rider Calculation_2024'!Q19 -> 0.01596920774 | L17: 0.13
B18: Large Use | C18: kW | D18: 10220000 | E18: 20000 | F18: =+(J18+E18*K18)*(1+L18) -> 299.0122443 | G18: 0.000196868965 | I18: 1518838.91 | J18: =+'Rate Rider Calculation_2024'!O20 -> 22.80361482 | K18: ='Rate Rider Calculation_2024'!P20+'Rate Rider Calculation_2024'!Q20 -> 0.01209044954 | L18: 0.13
B19: Unmetered | C19: kWh | D19: 21296 | F19: =+(J19+D19*K19)*(1+L19) -> 2.312907343 | G19: 0.000607564612 | I19: 3806.85 | J19: =+'Rate Rider Calculation_2024'!O21 -> 0.005267859548 | K19: ='Rate Rider Calculation_2024'!P21+'Rate Rider Calculation_2024'!Q21 -> 9.586555214e-05 | L19: 0.13
B20: Street Lighting | C20: kW | D20: 2787508 | E20: 7922 | F20: =+(J20+E20*K20)*(1+L20) -> 500.5707867 | G20: 0.0008918422439 | I20: 561277.2776 | J20: =+'Rate Rider Calculation_2024'!O22 -> 0.01115267562 | K20: ='Rate Rider Calculation_2024'!P22+'Rate Rider Calculation_2024'!Q22 -> 0.05591666807 | L20: 0.13
B21: Embedded Distributor | C21: kWh | D21: 1417701 | E21: 4000 | F21: =+(J21+D21*K21)*(1+L21) -> 22.77908795 | G21: 0.0001048176883 | I21: 217321.0297 | J21: =+'Rate Rider Calculation_2024'!O23 -> 20.15848491 | K21: ='Rate Rider Calculation_2024'!P23+'Rate Rider Calculation_2024'!Q23 -> 0 | L21: 0.13
B22: Distributed Generation | C22: kWh | D22: 156 | F22: 0.5693659212 | G22: 0.003951032768 | I22: 144.1055933 | J22: =+'Rate Rider Calculation_2024'!O24 -> 0.503863647 | K22: ='Rate Rider Calculation_2024'!P24+'Rate Rider Calculation_2024'!Q24 -> 0 | L22: 0.13
I24: internal use
B25: Horizon Rate Class | C25: Unit | D25: kWh | E25: kW | F25: MCM Rate Rider Incl HST | G25: % Increase vs. Total Bill | I25: 2019 Total Bill (Approved) | J25: Fixed Rate Rider | K25: Variable Rate Rider | L25: Taxes
B26: Residential | C26: kWh | D26: 750 | F26: =+(J26+D26*K26)*(1+L26) -> 0.2338371836 | G26: =+F26/I26 -> 0.002150820306 | I26: 108.72 | J26: ='Rate Rider Calculation_2024'!O31 -> 0.2227020797 | K26: ='Rate Rider Calculation_2024'!P31+'Rate Rider Calculation_2024'!Q31 -> 0 | L26: 0.05
B27: General Service Less Than 50 Kw | C27: kWh | D27: 2000 | F27: =+(J27+D27*K27)*(1+L27) -> 0.5612968202 | G27: =+F27/I27 -> 0.002014921995 | I27: 278.57 | J27: ='Rate Rider Calculation_2024'!O32 -> 0.3527367397 | K27: ='Rate Rider Calculation_2024'!P32+'Rate Rider Calculation_2024'!Q32 -> 9.091583027e-05 | L27: 0.05
B28: General Service 50 To 4,999 Kw | C28: kW | D28: 110000 | E28: 250 | F28: =+(J28+E28*K28)*(1+L28) -> 9.831917306 | G28: 0.0005914547133 | I28: 16623.28 | J28: ='Rate Rider Calculation_2024'!O33 -> 3.247947184 | K28: ='Rate Rider Calculation_2024'!P33+'Rate Rider Calculation_2024'!Q33 -> 0.02181145836 | L28: 0.13
B29: Large Use | C29: kW | D29: 2555000 | E29: 5000 | F29: =+(J29+E29*K29)*(1+L29) -> 296.3455712 | G29: 0.0007563044699 | I29: 391833.69 | J29: ='Rate Rider Calculation_2024'!O34 -> 202.5110083 | K29: ='Rate Rider Calculation_2024'!P34+'Rate Rider Calculation_2024'!Q34 -> 0.01194834191 | L29: 0.13
B30: Large Use With Dedicated Assets | C30: kW | D30: 10220000 | E30: 20000 | F30: =+(J30+E30*K30)*(1+L30) -> 118.2662355 | G30: 8.188549908e-05 | I30: 1444287.9 | J30: ='Rate Rider Calculation_2024'!O35 -> 48.00897997 | K30: ='Rate Rider Calculation_2024'!P35+'Rate Rider Calculation_2024'!Q35 -> 0.002832570272 | L30: 0.13
B31: Unmetered Scattered Load | C31: kWh | D31: 250 | F31: =+(J31+D31*K31)*(1+L31) -> 0.1129141248 | G31: 0.002902676731 | I31: 38.9 | J31: ='Rate Rider Calculation_2024'!O36 -> 0.07198198305 | K31: ='Rate Rider Calculation_2024'!P36+'Rate Rider Calculation_2024'!Q36 -> 0.0001117680849 | L31: 0.13
B32: Sentinel Lighting | C32: kW | D32: 97008 | E32: 216 | F32: =+(J32+E32*K32)*(1+L32) -> 31.48980405 | G32: 0.001452672031 | I32: 21677.16 | J32: ='Rate Rider Calculation_2024'!O37 -> 0.04695927747 | K32: ='Rate Rider Calculation_2024'!P37+'Rate Rider Calculation_2024'!Q37 -> 0.1287968702 | L32: 0.13
B33: Street Lighting | C33: kW | D33: 1782038 | E33: 4974 | F33: 242.6371364 | G33: 0.0006558687523 | I33: 369947.7 | J33: ='Rate Rider Calculation_2024'!O38 -> 0.01626475863 | K33: ='Rate Rider Calculation_2024'!P38+'Rate Rider Calculation_2024'!Q38 -> 0.04316583531 | L33: 0.13
I35: internal use
B36: PowerStream Rate Class | C36: Unit | D36: kWh | E36: kW | F36: MCM Rate Rider Incl HST | G36: % Increase vs. Total Bill | I36: 2019 Total Bill (Approved) | J36: Fixed Rate Rider | K36: Variable Rate Rider | L36: Taxes
B37: Residential | C37: kWh | D37: 750 | F37: =+(J37+D37*K37)*(1+L37) -> 0.2927938831 | G37: =+F37/I37 -> 0.002738695006 | I37: 106.91 | J37: ='Rate Rider Calculation_2024'!O44 -> 0.2488830999 | K37: ='Rate Rider Calculation_2024'!P44+'Rate Rider Calculation_2024'!Q44 -> 3.995762318e-05 | L37: 0.05
B38: General Service Less Than 50 Kw | C38: kWh | D38: 2000 | F38: =+(J38+D38*K38)*(1+L38) -> 0.6223399811 | G38: =+F38/I38 -> 0.002268912396 | I38: 274.29 | J38: ='Rate Rider Calculation_2024'!O45 -> 0.2606124979 | K38: ='Rate Rider Calculation_2024'!P45+'Rate Rider Calculation_2024'!Q45 -> 0.000166046123 | L38: 0.05
B39: General Service 50 To 4,999 Kw | C39: kW | D39: 80000 | E39: 250 | F39: =+(J39+E39*K39)*(1+L39) -> 12.21164013 | G39: 0.0009586125087 | I39: 12738.87 | J39: ='Rate Rider Calculation_2024'!O46 -> 1.278199968 | K39: ='Rate Rider Calculation_2024'!P46+'Rate Rider Calculation_2024'!Q46 -> 0.03811424483 | L39: 0.13
B40: Large Use | C40: kW | D40: 2800000 | E40: 7350 | F40: =+(J40+E40*K40)*(1+L40) -> 231.0681518 | G40: 0.0005549323058 | I40: 416389.8 | J40: ='Rate Rider Calculation_2024'!O47 -> 55.06941868 | K40: ='Rate Rider Calculation_2024'!P47+'Rate Rider Calculation_2024'!Q47 -> 0.02032866278 | L40: 0.13
B41: Unmetered Scattered Load | C41: kWh | D41: 150 | E41: 0 | F41: =+(J41+D41*K41)*(1+L41) -> 0.1180476941 | G41: 0.003982715726 | I41: 29.64 | J41: ='Rate Rider Calculation_2024'!O48 -> 0.07796176256 | K41: ='Rate Rider Calculation_2024'!P48+'Rate Rider Calculation_2024'!Q48 -> 0.0001767014892 | L41: 0.13
B42: Sentinel Lighting | C42: kW | D42: 180 | E42: 1 | F42: =+(J42+E42*K42)*(1+L42) -> 0.1440623356 | G42: 0.004048969521 | I42: 35.58 | J42: ='Rate Rider Calculation_2024'!O49 -> 0.03800413938 | K42: ='Rate Rider Calculation_2024'!P49+'Rate Rider Calculation_2024'!Q49 -> 0.08948465314 | L42: 0.13
B43: Street Lighting | C43: kW | D43: 280 | E43: 1 | F43: 0.07691512146 | G43: 0.001492628012 | I43: 51.53 | J43: ='Rate Rider Calculation_2024'!O50 -> 0.0107441609 | K43: ='Rate Rider Calculation_2024'!P50+'Rate Rider Calculation_2024'!Q50 -> 0.05732231827 | L43: 0.13
I45: internal use
B46: Guelph Rate Class | C46: Unit | D46: kWh | E46: kW | F46: MCM Rate Rider Incl HST | G46: % Increase vs. Total Bill | I46: 2019 Total Bill (Approved) | J46: Fixed Rate Rider | K46: Variable Rate Rider | L46: Taxes
B47: Residential | C47: kWh | D47: 750 | F47: =+(J47+D47*K47)*(1+L47) -> 0.08758403058 | G47: =+F47/I47 -> 0.0007794947542 | I47: 112.36 | J47: =+'Rate Rider Calculation_2024'!O56 -> 0.08341336245 | K47: ='Rate Rider Calculation_2024'!P56+'Rate Rider Calculation_2024'!Q56 -> 0 | L47: 0.05
B48: General Service Less Than 50 Kw | C48: kWh | D48: 2000 | F48: =+(J48+D48*K48)*(1+L48) -> 0.13590212 | G48: =+F48/I48 -> 0.0005203986981 | I48: 261.15 | J48: =+'Rate Rider Calculation_2024'!O57 -> 0.04835805476 | K48: ='Rate Rider Calculation_2024'!P57+'Rate Rider Calculation_2024'!Q57 -> 4.053626786e-05 | L48: 0.05
B49: General Service 50 To 999 Kw | C49: kW | D49: 189800 | E49: 500 | F49: =+(J49+E49*K49)*(1+L49) -> 5.105625151 | G49: 0.0001641860137 | I49: 31096.59 | J49: =+'Rate Rider Calculation_2024'!O58 -> 0.5242880954 | K49: ='Rate Rider Calculation_2024'!P58+'Rate Rider Calculation_2024'!Q58 -> 0.007987928502 | L49: 0.13
B50: General Service 1,000 To 4,999 Kw | C50: kW | D50: 489100 | E50: 1000 | F50: =+(J50+E50*K50)*(1+L50) -> 11.89429759 | G50: 0.0001492021022 | I50: 79719.37 | J50: =+'Rate Rider Calculation_2024'!O59 -> 1.658475742 | K50: ='Rate Rider Calculation_2024'!P59+'Rate Rider Calculation_2024'!Q59 -> 0.008867451328 | L50: 0.13
B51: Large Use | C51: kW | D51: 4215750 | E51: 7500 | F51: =+(J51+E51*K51)*(1+L51) -> 71.12130416 | G51: 0.0001125249564 | I51: 632049.16 | J51: =+'Rate Rider Calculation_2024'!O60 -> 3.188177467 | K51: ='Rate Rider Calculation_2024'!P60+'Rate Rider Calculation_2024'!Q60 -> 0.007966803968 | L51: 0.13
B52: Unmetered Scattered Load | C52: kWh | D52: 750 | F52: =+(J52+D52*K52)*(1+L52) -> 0.07067669581 | G52: 0.0003736344672 | I52: 189.16 | J52: =+'Rate Rider Calculation_2024'!O61 -> 0.01415914708 | K52: ='Rate Rider Calculation_2024'!P61+'Rate Rider Calculation_2024'!Q61 -> 6.451546857e-05 | L52: 0.13
B53: Sentinel Lighting | C53: kW | D53: 140 | E53: 2 | F53: =+(J53+E53*K53)*(1+L53) -> 0.07951079892 | G53: 0.001158880614 | I53: 68.61 | J53: =+'Rate Rider Calculation_2024'!O62 -> 0.02189529398 | K53: ='Rate Rider Calculation_2024'!P62+'Rate Rider Calculation_2024'!Q62 -> 0.02423412245 | L53: 0.13
B54: Street Lighting | C54: kW | D54: 800000 | E54: 2200 | F54: 73.86388899 | G54: 0.0004803984781 | I54: 153755.46 | J54: =+'Rate Rider Calculation_2024'!O63 -> 0.00125605337 | K54: ='Rate Rider Calculation_2024'!P63+'Rate Rider Calculation_2024'!Q63 -> 0.02971137154 | L54: 0.13

Sheet Rate Rider Calculation_2024
H1: Back to Index
A2: Enersource Rate Class | C2: Service Charge % Revenue | D2: Distribution Volumetric Rate % Revenue kWh | E2: Distribution Volumetric Rate % Revenue kW | F2: Service Charge Revenue | G2: Distribution Volumetric Rate Revenue kWh | H2: Distribution Volumetric Rate Revenue kW | I2: Total Revenue by Rate Class | K2: Billed Customers or Connections | L2: Billed kWh | M2: Billed kW | O2: Service Charge Rate Rider | P2: Distribution Volumetric Rate kWh Rate Rider | Q2: Distribution Volumetric Rate kW Rate Rider
C3: From Sheet 8 | D3: From Sheet 8 | E3: From Sheet 8 | F3: Col C * Col Itotal | G3: Col D* Col Itotal | H3: Col E* Col Itotal | I3: Col Itotal | K3: From Sheet 4 | L3: From Sheet 4 | M3: From Sheet 4 | O3: Col F / Col K / 12 | P3: Col G / Col L | Q3: Col H / Col M
A4: RESIDENTIAL | C4: ='Revenue Proportions'!P7 -> 0.4021608098 | D4: ='Revenue Proportions'!Q7 -> 0 | E4: ='Revenue Proportions'!R7 -> 0 | F4: =C4*$I$12 -> 827600.9944 | G4: =D4*$I$12 -> 0 | H4: =E4*$I$12 -> 0 | I4: =SUM(F4:H4) -> 827600.9944 | K4: ='Revenue Proportions'!G7 -> 183533 | L4: ='Revenue Proportions'!H7 -> 1490532667 | M4: ='Revenue Proportions'!I7 -> 0 | O4: =F4/K4/12 -> 0.3757730192 | P4: =IF(ISERROR(G4/L4),0,G4/L4) -> 0 | Q4: 0
A5: GENERAL SERVICE LESS THAN 50 kW | C5: ='Revenue Proportions'!P8 -> 0.07444603184 | D5: ='Revenue Proportions'!Q8 -> 0.06711464909 | E5: ='Revenue Proportions'!R8 -> 0 | F5: =C5*$I$12 -> 153201.4271 | G5: 138114.2791 | H5: 0 | I5: =SUM(F5:H5) -> 291315.7062 | K5: ='Revenue Proportions'!G8 -> 18506 | L5: ='Revenue Proportions'!H8 -> 685616684 | M5: ='Revenue Proportions'!I8 -> 0 | O5: 0.6898727759 | P5: 0.0002014453299 | Q5: =IF(ISERROR(H5/M5),0,H5/M5) -> 0
A6: GENERAL SERVICE 50 TO 499 kW | C6: ='Revenue Proportions'!P9 -> 0.02646280644 | D6: ='Revenue Proportions'!Q9 -> 0 | E6: ='Revenue Proportions'!R9 -> 0.2029087669 | F6: 54457.43193 | G6: 0 | H6: 417563.0572 | I6: 472020.4892 | K6: ='Revenue Proportions'!G9 -> 3735 | M6: ='Revenue Proportions'!I9 -> 5710412 | O6: 1.215025255 | P6: 0 | Q6: 0.07312310517
A7: GENERAL SERVICE 500 TO 4,999 kW | C7: ='Revenue Proportions'!P10 -> 0.07712292312 | D7: ='Revenue Proportions'!Q10 -> 0 | E7: ='Revenue Proportions'!R10 -> 0.08384747717 | F7: 158710.1635 | G7: 0 | H7: 172548.5273 | I7: 331258.6908 | K7: ='Revenue Proportions'!G10 -> 478 | L7: ='Revenue Proportions'!H10 -> 2037760513 | M7: ='Revenue Proportions'!I10 -> 4585777.203 | O7: 27.66913589 | P7: 0 | Q7: 0.03762688846
A8: LARGE USE | C8: ='Revenue Proportions'!P11 -> 0.01144927479 | D8: ='Revenue Proportions'!Q11 -> 0 | E8: ='Revenue Proportions'!R11 -> 0.03978723226 | F8: 23561.29929 | G8: 0 | H8: 81877.57777 | I8: 105438.8771 | K8: ='Revenue Proportions'!G11 -> 9 | L8: ='Revenue Proportions'!H11 -> 977049362 | M8: ='Revenue Proportions'!I11 -> 1753163 | O8: 218.1601787 | P8: 0 | Q8: 0.04670277536
A9: UNMETERED SCATTERED LOAD | C9: ='Revenue Proportions'!P12 -> 0.002582555959 | D9: ='Revenue Proportions'!Q12 -> 0.00143828703 | E9: ='Revenue Proportions'!R12 -> 0 | F9: 5314.605073 | G9: 2959.830365 | H9: 0 | I9: 8274.435438 | K9: ='Revenue Proportions'!G12 -> 3110 | L9: ='Revenue Proportions'!H12 -> 11437642 | M9: ='Revenue Proportions'!I12 -> 0 | O9: 0.1424063524 | P9: 0.0002587797699 | Q9: 0
A10: STREET LIGHTING | C10: ='Revenue Proportions'!P13 -> 0.007077214813 | D10: ='Revenue Proportions'!Q13 -> 0 | E10: ='Revenue Proportions'!R13 -> 0.003601970762 | F10: 14564.09942 | G10: 0 | H10: 7412.444255 | I10: 21976.54367 | K10: ='Revenue Proportions'!G13 -> 50859 | L10: ='Revenue Proportions'!H13 -> 13289944 | M10: ='Revenue Proportions'!I13 -> 40572 | O10: 0.02386352369 | P10: 0 | Q10: 0.1826985176
A11: Total | C11: =SUM(C4:C10) -> 0.6013016168 | D11: 0.06855293612 | E11: 0.3301454471 | F11: 1237410.021 | G11: 141074.1094 | H11: 679401.6066 | I11: 2057885.737 | K11: =SUM(K4:K10) -> 260230 | L11: =SUM(L4:L10) -> 5215686812 | M11: =SUM(M4:M10) -> 12089924.2
I12: ='M-factor RR Calculation_2024'!T67 -> 2057885.737
A14: Brampton Rate Class | C14: Service Charge % Revenue | D14: Distribution Volumetric Rate % Revenue kWh | E14: Distribution Volumetric Rate % Revenue kW | F14: Service Charge Revenue | G14: Distribution Volumetric Rate Revenue kWh | H14: Distribution Volumetric Rate Revenue kW | I14: Total Revenue by Rate Class | K14: Billed Customers or Connections | L14: Billed kWh | M14: Billed kW | O14: Service Charge Rate Rider | P14: Distribution Volumetric Rate kWh Rate Rider | Q14: Distribution Volumetric Rate kW Rate Rider
C15: From Sheet 8 | D15: From Sheet 8 | E15: From Sheet 8 | F15: Col C * Col Itotal | G15: Col D* Col Itotal | H15: Col E* Col Itotal | I15: Col Itotal | K15: From Sheet 4 | L15: From Sheet 4 | M15: From Sheet 4 | O15: Col F / Col K / 12 | P15: Col G / Col L | Q15: Col H / Col M
A16: RESIDENTIAL | C16: ='Revenue Proportions'!P20 -> 0.5765143424 | D16: ='Revenue Proportions'!Q20 -> 0 | E16: ='Revenue Proportions'!R20 -> 0 | F16: =C16*$I$27 -> 212094.9769 | G16: =D16*$I$27 -> 0 | H16: =E16*$I$27 -> 0 | I16: =SUM(F16:H16) -> 212094.9769 | K16: ='Revenue Proportions'!G20 -> 153261 | L16: ='Revenue Proportions'!H20 -> 1385125813 | M16: ='Revenue Proportions'!I20 -> 0 | O16: =F16/K16/12 -> 0.1153234117 | P16: =IF(ISERROR(G16/L16),0,G16/L16) -> 0 | Q16: 0
A17: GENERAL SERVICE LESS THAN 50 kW | C17: ='Revenue Proportions'!P21 -> 0.03757011295 | D17: ='Revenue Proportions'!Q21 -> 0.0760565388 | E17: ='Revenue Proportions'!R21 -> 0 | F17: =C17*$I$27 -> 13821.74154 | G17: 27980.58721 | H17: 0 | I17: =SUM(F17:H17) -> 41802.32875 | K17: ='Revenue Proportions'!G21 -> 9462 | L17: ='Revenue Proportions'!H21 -> 344785906.8 | M17: ='Revenue Proportions'!I21 -> 0 | O17: =F17/K17/12 -> 0.1217302679 | P17: 8.115351196e-05 | Q17: 0
A18: GENERAL SERVICE 50 TO 699 KW | C18: ='Revenue Proportions'!P22 -> 0.03151987402 | D18: ='Revenue Proportions'!Q22 -> 0 | E18: ='Revenue Proportions'!R22 -> 0.1188918616 | F18: 11595.90744 | G18: 0 | H18: 43739.35701 | I18: 55335.26445 | K18: ='Revenue Proportions'!G22 -> 1591 | L18: ='Revenue Proportions'!H22 -> 1131688196 | M18: ='Revenue Proportions'!I22 -> 3179603 | O18: =F18/K18/12 -> 0.6073699684 | P18: 0 | Q18: 0.01375623215
A19: GENERAL SERVICE 700 TO 4,999 KW | C19: ='Revenue Proportions'!P23 -> 0.01876870955 | D19: ='Revenue Proportions'!Q23 -> 0 | E19: ='Revenue Proportions'!R23 -> 0.08770726142 | F19: 6904.856869 | G19: 0 | H19: 32266.7941 | I19: 39171.65097 | K19: ='Revenue Proportions'!G23 -> 105 | L19: ='Revenue Proportions'!H23 -> 875091030.3 | M19: ='Revenue Proportions'!I23 -> 2020563.238 | O19: 5.480045134 | P19: 0 | Q19: 0.01596920774
A20: LARGE USE | C20: ='Revenue Proportions'!P24 -> 0.004462887364 | D20: ='Revenue Proportions'!Q24 -> 0 | E20: ='Revenue Proportions'!R24 -> 0.02161990293 | F20: 1641.860267 | G20: 0 | H20: 7953.787918 | I20: 9595.648185 | K20: ='Revenue Proportions'!G24 -> 6 | L20: ='Revenue Proportions'!H24 -> 350379704.8 | M20: ='Revenue Proportions'!I24 -> 657857.0874 | O20: 22.80361482 | P20: 0 | Q20: 0.01209044954
A21: UNMETERED SCATTERED LOAD | C21: ='Revenue Proportions'!P25 -> 0.000267365126 | D21: ='Revenue Proportions'!Q25 -> 0.001541244921 | E21: ='Revenue Proportions'!R25 -> 0 | F21: 98.36147348 | G21: 567.0115759 | H21: 0 | I21: 665.3730494 | K21: ='Revenue Proportions'!G25 -> 1556 | L21: ='Revenue Proportions'!H25 -> 5914654.047 | M21: ='Revenue Proportions'!I25 -> 0 | O21: 0.005267859548 | P21: 9.586555214e-05 | Q21: 0
A22: STREET LIGHTING | C22: ='Revenue Proportions'!P26 -> 0.007246154362 | D22: ='Revenue Proportions'!Q26 -> 0 | E22: ='Revenue Proportions'!R26 -> 0.01502320324 | F22: 2665.801748 | G22: 0 | H22: 5526.915305 | I22: 8192.717053 | K22: ='Revenue Proportions'!G26 -> 19919 | L22: ='Revenue Proportions'!H26 -> 34968321 | M22: ='Revenue Proportions'!I26 -> 98842 | O22: 0.01115267562 | P22: 0 | Q22: 0.05591666807
A23: EMBEDDED DISTRIBUTOR | C23: ='Revenue Proportions'!P27 -> 0.000657534988 | D23: ='Revenue Proportions'!Q27 -> 0 | E23: ='Revenue Proportions'!R27 -> 0 | F23: 241.9018189 | G23: 0 | H23: 0 | I23: 241.9018189 | K23: ='Revenue Proportions'!G27 -> 1 | L23: ='Revenue Proportions'!H27 -> 3402773 | M23: ='Revenue Proportions'!I27 -> 0 | O23: 20.15848491 | P23: 0 | Q23: 0
A24: DISTRIBUTED GENERATION [DGEN] | C24: ='Revenue Proportions'!P28 -> 0.0021530063 | D24: ='Revenue Proportions'!Q28 -> 0 | E24: ='Revenue Proportions'!R28 -> 0 | F24: 792.0736532 | G24: 0 | H24: 0 | I24: 792.0736532 | K24: ='Revenue Proportions'!G28 -> 131 | L24: ='Revenue Proportions'!H28 -> 277418 | M24: ='Revenue Proportions'!I28 -> 0 | O24: 0.503863647 | P24: 0 | Q24: 0
A25: STANDBY POWER | C25: ='Revenue Proportions'!P29 -> 0 | D25: ='Revenue Proportions'!Q29 -> 0 | E25: ='Revenue Proportions'!R29 -> 0 | F25: 0 | G25: 0 | H25: 0 | I25: 0 | K25: ='Revenue Proportions'!G29 -> 1 | L25: ='Revenue Proportions'!H29 -> 0 | M25: ='Revenue Proportions'!I29 -> 0 | O25: 0 | P25: 0 | Q25: 0
A26: Total | C26: =SUM(C16:C25) -> 0.679159987 | D26: 0.07759778372 | E26: 0.2432422292 | F26: 249857.4817 | G26: 28547.59879 | H26: 89486.85434 | I26: 367891.9348 | K26: =SUM(K16:K25) -> 186033 | L26: =SUM(L16:L25) -> 4131633817 | M26: =SUM(M16:M25) -> 5956865.325
I27: ='M-factor RR Calculation_2024'!J67 -> 367891.9348
A29: Horizon Rate Class | C29: Service Charge % Revenue | D29: Distribution Volumetric Rate % Revenue kWh | E29: Distribution Volumetric Rate % Revenue kW | F29: Service Charge Revenue | G29: Distribution Volumetric Rate Revenue kWh | H29: Distribution Volumetric Rate Revenue kW | I29: Total Revenue by Rate Class | K29: Billed Customers or Connections | L29: Billed kWh | M29: Billed kW | O29: Service Charge Rate Rider | P29: Distribution Volumetric Rate kWh Rate Rider | Q29: Distribution Volumetric Rate kW Rate Rider
C30: From Sheet 8 | D30: From Sheet 8 | E30: From Sheet 8 | F30: Col C * Col Itotal | G30: Col D* Col Itotal | H30: Col E* Col Itotal | I30: Col Itotal | K30: From Sheet 4 | L30: From Sheet 4 | M30: From Sheet 4 | O30: Col F / Col K / 12 | P30: Col G / Col L | Q30: Col H / Col M
A31: RESIDENTIAL | C31: =+'Revenue Proportions'!P36 -> 0.6135452637 | D31: =+'Revenue Proportions'!Q36 -> 0 | E31: =+'Revenue Proportions'!R36 -> 0 | F31: =C31*$I$40 -> 608676.8528 | G31: =D31*$I$40 -> 0 | H31: =E31*$I$40 -> 0 | I31: =SUM(F31:H31) -> 608676.8528 | K31: ='Revenue Proportions'!G36 -> 227762 | L31: ='Revenue Proportions'!H36 -> 1652719193 | M31: ='Revenue Proportions'!I36 -> 0 | O31: =F31/K31/12 -> 0.2227020797 | P31: =IF(ISERROR(G31/L31),0,G31/L31) -> 0 | Q31: 0
A32: GENERAL SERVICE LESS THAN 50 kW | C32: =+'Revenue Proportions'!P37 -> 0.07982562709 | D32: =+'Revenue Proportions'!Q37 -> 0.05447927355 | E32: =+'Revenue Proportions'!R37 -> 0 | F32: =C32*$I$40 -> 79192.21995 | G32: 54046.9868 | H32: 0 | I32: 133239.2067 | K32: ='Revenue Proportions'!G37 -> 18709 | L32: ='Revenue Proportions'!H37 -> 594472784.8 | M32: ='Revenue Proportions'!I37 -> 0 | O32: 0.3527367397 | P32: 9.091583027e-05 | Q32: 0
A33: GENERAL SERVICE 50 TO 4,999 KW | C33: =+'Revenue Proportions'!P38 -> 0.09098893484 | D33: =+'Revenue Proportions'!Q38 -> 0 | E33: =+'Revenue Proportions'!R38 -> 0.111389565 | F33: 90266.94814 | G33: 0 | H33: 110505.7016 | I33: 200772.6498 | K33: ='Revenue Proportions'!G38 -> 2316 | L33: ='Revenue Proportions'!H38 -> 1840510488 | M33: ='Revenue Proportions'!I38 -> 5066405.912 | O33: 3.247947184 | P33: 0 | Q33: 0.02181145836
A34: LARGE USE | C34: =+'Revenue Proportions'!P39 -> 0.01469741489 | D34: =+'Revenue Proportions'!Q39 -> 0 | E34: =+'Revenue Proportions'!R39 -> 0.006859247021 | F34: 14580.7926 | G34: 0 | H34: 6804.819687 | I34: 21385.61228 | K34: ='Revenue Proportions'!G39 -> 6 | L34: ='Revenue Proportions'!H39 -> 242051739 | M34: ='Revenue Proportions'!I39 -> 569520 | O34: 202.5110083 | P34: 0 | Q34: 0.01194834191
A35: LARGE USE WITH DEDICATED ASSETS | C35: =+'Revenue Proportions'!P40 -> 0.002903578357 | D35: =+'Revenue Proportions'!Q40 -> 0 | E35: =+'Revenue Proportions'!R40 -> 0.006101481257 | F35: 2880.538798 | G35: 0 | H35: 6053.066707 | I35: 8933.605505 | K35: ='Revenue Proportions'!G40 -> 5 | L35: ='Revenue Proportions'!H40 -> 403775839 | M35: ='Revenue Proportions'!I40 -> 2136952 | O35: 48.00897997 | P35: 0 | Q35: 0.002832570272
A36: UNMETERED SCATTERED LOAD | C36: =+'Revenue Proportions'!P41 -> 0.002617302083 | D36: =+'Revenue Proportions'!Q41 -> 0.00118344063 | E36: =+'Revenue Proportions'!R41 -> 0 | F36: 2596.534093 | G36: 1174.050166 | H36: 0 | I36: 3770.584258 | K36: ='Revenue Proportions'!G41 -> 3006 | L36: ='Revenue Proportions'!H41 -> 10504341.79 | M36: ='Revenue Proportions'!I41 -> 0 | O36: 0.07198198305 | P36: 0.0001117680849 | Q36: 0
A37: SENTINEL LIGHTING | C37: =+'Revenue Proportions'!P42 -> 0.0002147109895 | D37: =+'Revenue Proportions'!Q42 -> 0 | E37: =+'Revenue Proportions'!R42 -> 0.0001337218437 | F37: 213.0072826 | G37: 0 | H37: 132.6607763 | I37: =SUM(F37:H37) -> 345.6680589 | K37: ='Revenue Proportions'!G42 -> 378 | L37: ='Revenue Proportions'!H42 -> 363731 | M37: ='Revenue Proportions'!I42 -> 1030 | O37: 0.04695927747 | P37: 0 | Q37: 0.1287968702
A38: STREET LIGHTING | C38: =+'Revenue Proportions'!P43 -> 0.01028409585 | D38: =+'Revenue Proportions'!Q43 -> 0 | E38: =+'Revenue Proportions'!R43 -> 0.004776342969 | F38: 10202.49273 | G38: 0 | H38: 4738.443239 | I38: 14940.93597 | K38: ='Revenue Proportions'!G43 -> 52273 | L38: ='Revenue Proportions'!H43 -> 39610412.93 | M38: ='Revenue Proportions'!I43 -> 109773 | O38: 0.01626475863 | P38: 0 | Q38: 0.04316583531
A39: Total | C39: =SUM(C31:C38) -> 0.8150769278 | D39: 0.05566271418 | E39: 0.129260358 | F39: 808609.3864 | G39: 55221.03697 | H39: 128234.692 | I39: 992065.1154 | K39: =SUM(K31:K38) -> 304455 | L39: =SUM(L31:L38) -> 4784008529 | M39: =SUM(M31:M38) -> 7883680.912
I40: ='M-factor RR Calculation_2024'!E67 -> 992065.1154
A42: PowerStream Rate Class | C42: Service Charge % Revenue | D42: Distribution Volumetric Rate % Revenue kWh | E42: Distribution Volumetric Rate % Revenue kW | F42: Service Charge Revenue | G42: Distribution Volumetric Rate Revenue kWh | H42: Distribution Volumetric Rate Revenue kW | I42: Total Revenue by Rate Class | K42: Billed Customers or Connections | L42: Billed kWh | M42: Billed kW | O42: Service Charge Rate Rider | P42: Distribution Volumetric Rate kWh Rate Rider | Q42: Distribution Volumetric Rate kW Rate Rider
C43: From Sheet 8 | D43: From Sheet 8 | E43: From Sheet 8 | F43: Col C * Col Itotal | G43: Col D* Col Itotal | H43: Col E* Col Itotal | I43: Col Itotal | K43: From Sheet 4 | L43: From Sheet 4 | M43: From Sheet 4 | O43: Col F / Col K / 12 | P43: Col G / Col L | Q43: Col H / Col M
A44: RESIDENTIAL | C44: ='Revenue Proportions'!P50 -> 0.4804828615 | D44: ='Revenue Proportions'!Q50 -> 0.06016245838 | E44: ='Revenue Proportions'!R50 -> 0 | F44: =C44*$I$52 -> 888332.927 | G44: =D44*$I$52 -> 111230.3831 | H44: =E44*$I$52 -> 0 | I44: =SUM(F44:H44) -> 999563.3101 | K44: ='Revenue Proportions'!G50 -> 334683 | L44: ='Revenue Proportions'!H50 -> 2783708695 | M44: ='Revenue Proportions'!I50 -> 0 | O44: =(F44+G44)/K44/12 -> 0.2488830999 | P44: =IF(ISERROR(G44/L44),0,G44/L44) -> 3.995762318e-05 | Q44: 0
A45: GENERAL SERVICE LESS THAN 50 kW | C45: ='Revenue Proportions'!P51 -> 0.05518433769 | D45: ='Revenue Proportions'!Q51 -> 0.09426732524 | E45: ='Revenue Proportions'!R51 -> 0 | F45: =C45*$I$52 -> 102026.6656 | G45: 174284.6117 | H45: 0 | I45: 276311.2773 | K45: ='Revenue Proportions'!G51 -> 32624 | L45: ='Revenue Proportions'!H51 -> 1049615664 | M45: ='Revenue Proportions'!I51 -> 0 | O45: =F45/K45/12 -> 0.2606124979 | P45: 0.000166046123 | Q45: 0
A46: GENERAL SERVICE 50 TO 4,999 KW | C46: ='Revenue Proportions'!P52 -> 0.04319860947 | D46: ='Revenue Proportions'!Q52 -> 0 | E46: ='Revenue Proportions'!R52 -> 0.2513596733 | F46: 79867.04681 | G46: 0 | H46: 464722.2455 | I46: 544589.2923 | K46: ='Revenue Proportions'!G52 -> 5207 | L46: ='Revenue Proportions'!H52 -> 4679965944 | M46: ='Revenue Proportions'!I52 -> 12192875.59 | O46: =F46/K46/12 -> 1.278199968 | P46: 0 | Q46: 0.03811424483
A47: LARGE USE | C47: ='Revenue Proportions'!P53 -> 0.0007148647377 | D47: ='Revenue Proportions'!Q53 -> 0 | E47: ='Revenue Proportions'!R53 -> 0.001131111182 | F47: 1321.666048 | G47: 0 | H47: 2091.23652 | I47: 3412.902568 | K47: ='Revenue Proportions'!G53 -> 2 | L47: ='Revenue Proportions'!H53 -> 53218181 | M47: ='Revenue Proportions'!I53 -> 102871.3272 | O47: 55.06941868 | P47: 0 | Q47: 0.02032866278
A48: UNMETERED SCATTERED LOAD | C48: ='Revenue Proportions'!P54 -> 0.001559544139 | D48: ='Revenue Proportions'!Q54 -> 0.001321871603 | E48: ='Revenue Proportions'!R54 -> 0 | F48: 2883.337827 | G48: 2443.920823 | H48: 0 | I48: 5327.25865 | K48: ='Revenue Proportions'!G54 -> 3082 | L48: ='Revenue Proportions'!H54 -> 13830787.93 | M48: ='Revenue Proportions'!I54 -> 0 | O48: 0.07796176256 | P48: 0.0001767014892 | Q48: 0
A49: SENTINEL LIGHTING | C49: ='Revenue Proportions'!P55 -> 4.242704029e-05 | D49: ='Revenue Proportions'!Q55 -> 0 | E49: ='Revenue Proportions'!R55 -> 3.85268736e-05 | F49: 78.44054368 | G49: 0 | H49: 71.2297839 | I49: 149.6703276 | K49: ='Revenue Proportions'!G55 -> 172 | L49: ='Revenue Proportions'!H55 -> 286385 | M49: ='Revenue Proportions'!I55 -> 796 | O49: 0.03800413938 | P49: 0 | Q49: 0.08948465314
A50: STREET LIGHTING | C50: ='Revenue Proportions'!P56 -> 0.006377061486 | D50: ='Revenue Proportions'!Q56 -> 0 | E50: ='Revenue Proportions'!R56 -> 0.004159327344 | F50: 11790.12645 | G50: 0 | H50: 7689.904739 | I50: 19480.03119 | K50: ='Revenue Proportions'!G56 -> 91446 | L50: ='Revenue Proportions'!H56 -> 48883953 | M50: ='Revenue Proportions'!I56 -> 134152.0192 | O50: 0.0107441609 | P50: 0 | Q50: 0.05732231827
A51: Total | C51: =SUM(C44:C50) -> 0.5875597061 | D51: 0.1557516552 | E51: 0.2566886387 | F51: 1086300.21 | G51: 287958.9156 | H51: 474574.6165 | I51: 1848833.742 | K51: =SUM(K44:K50) -> 467216 | L51: =SUM(L44:L50) -> 8629509610 | M51: =SUM(M44:M50) -> 12430694.94
I52: ='M-factor RR Calculation_2024'!O67 -> 1848833.742
A54: Guelph Rate Class | C54: Service Charge % Revenue | D54: Distribution Volumetric Rate % Revenue kWh | E54: Distribution Volumetric Rate % Revenue kW | F54: Service Charge Revenue | G54: Distribution Volumetric Rate Revenue kWh | H54: Distribution Volumetric Rate Revenue kW | I54: Total Revenue by Rate Class | K54: Billed Customers or Connections | L54: Billed kWh | M54: Billed kW | O54: Service Charge Rate Rider | P54: Distribution Volumetric Rate kWh Rate Rider | Q54: Distribution Volumetric Rate kW Rate Rider
C55: From Sheet 8 | D55: From Sheet 8 | E55: From Sheet 8 | F55: Col C * Col Itotal | G55: Col D* Col Itotal | H55: Col E* Col Itotal | K55: From Sheet 4 | L55: From Sheet 4 | M55: From Sheet 4 | O55: Col F / Col K / 12 | P55: Col G / Col L | Q55: Col H / Col M
A56: RESIDENTIAL | C56: ='Revenue Proportions'!P63 -> 0.5840465345 | D56: ='Revenue Proportions'!Q63 -> 0 | E56: ='Revenue Proportions'!R63 -> 0 | F56: =C56*$I$65 -> 50962.89523 | G56: =D56*$I$65 -> 0 | H56: =E56*$I$65 -> 0 | I56: =SUM(F56:H56) -> 50962.89523 | K56: ='Revenue Proportions'!G63 -> 50914 | L56: ='Revenue Proportions'!H63 -> 384041745 | M56: ='Revenue Proportions'!I63 -> 0 | O56: =(F56+G56)/K56/12 -> 0.08341336245 | P56: =IF(ISERROR(G56/L56),0,G56/L56) -> 0 | Q56: 0
A57: GENERAL SERVICE LESS THAN 50 KW | C57: ='Revenue Proportions'!P64 -> 0.02749247886 | D57: ='Revenue Proportions'!Q64 -> 0.06606393443 | E57: ='Revenue Proportions'!R64 -> 0 | F57: =C57*$I$65 -> 2398.94638 | G57: 5764.625197 | H57: 0 | I57: 8163.571577 | K57: ='Revenue Proportions'!G64 -> 4134 | L57: ='Revenue Proportions'!H64 -> 142209076 | M57: ='Revenue Proportions'!I64 -> 0 | O57: =F57/K57/12 -> 0.04835805476 | P57: 4.053626786e-05 | Q57: 0
A58: GENERAL SERVICE 50 TO 999 KW | C58: ='Revenue Proportions'!P65 -> 0.04167469594 | D58: ='Revenue Proportions'!Q65 -> 0 | E58: ='Revenue Proportions'!R65 -> 0.1004689031 | F58: 3636.46223 | G58: 0 | H58: 8766.743543 | I58: 12403.20577 | K58: ='Revenue Proportions'!G65 -> 578 | L58: ='Revenue Proportions'!H65 -> 402350218 | M58: ='Revenue Proportions'!I65 -> 1097499 | O58: 0.5242880954 | P58: 0 | Q58: 0.007987928502
A59: GENERAL SERVICE 1,000 TO 4,999 KW | C59: ='Revenue Proportions'!P66 -> 0.009807361508 | D59: ='Revenue Proportions'!Q66 -> 0 | E59: ='Revenue Proportions'!R66 -> 0.1153853375 | F59: 855.7734829 | G59: 0 | H59: 10068.32592 | I59: 10924.09941 | K59: ='Revenue Proportions'!G66 -> 43 | L59: ='Revenue Proportions'!H66 -> 540417878 | M59: ='Revenue Proportions'!I66 -> 1135425 | O59: 1.658475742 | P59: 0 | Q59: 0.008867451328
A60: LARGE USE | C60: ='Revenue Proportions'!P67 -> 0.00175378796 | D60: ='Revenue Proportions'!Q67 -> 0 | E60: ='Revenue Proportions'!R67 -> 0.03863693115 | F60: 153.0325184 | G60: 0 | H60: 3371.392103 | I60: 3524.424621 | K60: ='Revenue Proportions'!G67 -> 4 | L60: ='Revenue Proportions'!H67 -> 197428962 | M60: ='Revenue Proportions'!I67 -> 423180 | O60: 3.188177467 | P60: 0 | Q60: 0.007966803968
A61: UNMETERED SCATTERED LOAD | C61: ='Revenue Proportions'!P68 -> 0.00108848765 | D61: ='Revenue Proportions'!Q68 -> 0.001338746781 | E61: ='Revenue Proportions'!R68 -> 0 | F61: 94.97955863 | G61: 116.8167396 | H61: 0 | I61: 211.7962982 | K61: ='Revenue Proportions'!G68 -> 559 | L61: ='Revenue Proportions'!H68 -> 1810678 | M61: ='Revenue Proportions'!I68 -> 0 | O61: 0.01415914708 | P61: 6.451546857e-05 | Q61: 0
A62: SENTINEL LIGHTING | C62: ='Revenue Proportions'!P69 -> 0.0001053885501 | D62: ='Revenue Proportions'!Q69 -> 0 | E62: ='Revenue Proportions'!R69 -> 1.416416029e-05 | F62: 9.196023471 | G62: 0 | H62: 1.235940245 | I62: 10.43196372 | K62: ='Revenue Proportions'!G69 -> 35 | L62: ='Revenue Proportions'!H69 -> 18189 | M62: ='Revenue Proportions'!I69 -> 51 | O62: 0.02189529398 | P62: 0 | Q62: 0.02423412245
A63: STREET LIGHTING | C63: ='Revenue Proportions'!P70 -> 0.002444558968 | D63: ='Revenue Proportions'!Q70 -> 0 | E63: ='Revenue Proportions'!R70 -> 0.009678688939 | F63: 213.3080076 | G63: 0 | H63: 844.5457361 | I63: 1057.853744 | K63: ='Revenue Proportions'!G70 -> 14152 | L63: ='Revenue Proportions'!H70 -> 10182750 | M63: ='Revenue Proportions'!I70 -> 28425 | O63: 0.00125605337 | P63: 0 | Q63: 0.02971137154
A64: Total | C64: =SUM(C56:C63) -> 0.6684132939 | D64: 0.06740268121 | E64: 0.2641840248 | F64: 58324.59343 | G64: 5881.441936 | H64: 23052.24325 | I64: 87258.27862 | K64: =SUM(K56:K63) -> 70419 | L64: =SUM(L56:L63) -> 1678459496 | M64: =SUM(M56:M63) -> 2684580
I65: ='M-factor RR Calculation_2024'!Y67 -> 87258.27862

Sheet Revenue Proportions
H1: Back to Index
A2: Current Revenue from Rates
A3: This sheet is used to determine the applicant's most current allocation of revenues (after the most recent revenue to cost ratio adjustment, if applicable) to appropriately allocate the incremental revenue requirement to the classes.
C4: Current OEB-Approved Base Rates | G4: 2018 Actual Distribution Demand
A5: Enersource Rate Class | C5: Monthly Service Charge | D5: Distribution Volumetric Rate kWh | E5: Distribution Volumetric Rate kW | G5: Re-based Billed Customers or Connections | H5: Re-based Billed kWh | I5: Re-based Billed kW | K5: Current Base Service Charge Revenue | L5: Current Base Distribution Volumetric Rate kWh Revenue | M5: Current Base Distribution Volumetric Rate kW Revenue | N5: Total Current Base Revenue | P5: Service Charge % Total Revenue | Q5: Distribution Volumetric Rate % Total Revenue | R5: Distribution Volumetric Rate % Total Revenue | S5: Total % Revenue
A6: Total | C6: A | D6: B | E6: C | G6: D | H6: E | I6: F | K6: G = A * D *12 | L6: H = B * E | M6: I = C * F | N6: J = G + H + I | P6: L = G / Jtotal | Q6: M = H / Jtotal | R6: N = I / Jtotal | S6: O = J / Jtotal
A7: RESIDENTIAL | C7: 24.25 | D7: 0 | E7: 0 | G7: 183533 | H7: 1490532667 | I7: 0 | K7: =G7*C7*12 -> 53408103 | L7: =H7*D7 -> 0 | M7: 0 | N7: =SUM(K7,L7,M7) -> 53408103 | P7: =IF(ISERROR(K7/N14),0,K7/N14) -> 0.4021608098 | Q7: =IF(ISERROR(L7/N14),0,L7/N14) -> 0 | R7: =IF(ISERROR(M7/N14),0,M7/N14) -> 0 | S7: =N7/N14 -> 0.4021608098
A8: GENERAL SERVICE LESS THAN 50 kW | C8: 44.52 | D8: 0.013 | E8: 0 | G8: 18506 | H8: 685616684 | I8: 0 | K8: 9886645.44 | L8: 8913016.892 | M8: 0 | N8: 18799662.33 | P8: =IF(ISERROR(K8/N14),0,K8/N14) -> 0.07444603184 | Q8: =IF(ISERROR(L8/N14),0,L8/N14) -> 0.06711464909 | R8: =IF(ISERROR(M8/N14),0,M8/N14) -> 0 | S8: =N8/N14 -> 0.1415606809
A9: GENERAL SERVICE 50 TO 499 kW | C9: 78.41 | D9: 0 | E9: 4.7189 | G9: 3735 | H9: 2051428808 | I9: 5710412 | K9: 3514336.2 | L9: 0 | M9: 26946863.19 | N9: 30461199.39 | P9: =IF(ISERROR(K9/N14),0,K9/N14) -> 0.02646280644 | Q9: =IF(ISERROR(L9/N14),0,L9/N14) -> 0 | R9: =IF(ISERROR(M9/N14),0,M9/N14) -> 0.2029087669 | S9: =N9/N14 -> 0.2293715733
A10: GENERAL SERVICE 500 TO 4,999 kW | C10: 1785.59 | D10: 0 | E10: 2.4282 | G10: 478 | H10: 2037760513 | I10: 4585777.203 | K10: 10242144.24 | L10: 0 | M10: 11135184.2 | N10: 21377328.44 | P10: =IF(ISERROR(K10/N14),0,K10/N14) -> 0.07712292312 | Q10: =IF(ISERROR(L10/N14),0,L10/N14) -> 0 | R10: =IF(ISERROR(M10/N14),0,M10/N14) -> 0.08384747717 | S10: =N10/N14 -> 0.1609704003
A11: LARGE USE | C11: 14078.67 | D11: 0 | E11: 3.0139 | G11: 9 | H11: 977049362 | I11: 1753163 | K11: 1520496.36 | L11: 0 | M11: 5283857.966 | N11: 6804354.326 | P11: =IF(ISERROR(K11/N14),0,K11/N14) -> 0.01144927479 | Q11: =IF(ISERROR(L11/N14),0,L11/N14) -> 0 | R11: =IF(ISERROR(M11/N14),0,M11/N14) -> 0.03978723226 | S11: =N11/N14 -> 0.05123650705
A12: UNMETERED SCATTERED LOAD | C12: 9.19 | D12: 0.0167 | E12: 0 | G12: 3110 | H12: 11437642 | I12: 0 | K12: 342970.8 | L12: 191008.6214 | M12: 0 | N12: 533979.4214 | P12: =IF(ISERROR(K12/N14),0,K12/N14) -> 0.002582555959 | Q12: =IF(ISERROR(L12/N14),0,L12/N14) -> 0.00143828703 | R12: =IF(ISERROR(M12/N14),0,M12/N14) -> 0 | S12: =N12/N14 -> 0.00402084299
A13: STREET LIGHTING | C13: 1.54 | D13: 0 | E13: 11.7902 | G13: 50859 | H13: 13289944 | I13: 40572 | K13: 939874.32 | L13: 0 | M13: 478351.9944 | N13: 1418226.314 | P13: =IF(ISERROR(K13/N14),0,K13/N14) -> 0.007077214813 | Q13: =IF(ISERROR(L13/N14),0,L13/N14) -> 0 | R13: =IF(ISERROR(M13/N14),0,M13/N14) -> 0.003601970762 | S13: =N13/N14 -> 0.01067918557
A14: Total | K14: =SUM(K7:K13) -> 79854570.36 | L14: =SUM(L7:L13) -> 9104025.513 | M14: =SUM(M7:M13) -> 43844257.35 | N14: =SUM(N7:N13) -> 132802853.2 | S14: =SUM(S7:S13) -> 1
C17: Current OEB-Approved Base Rates | G17: 2018 Actual Distribution Demand
A18: Brampton Rate Class | C18: Monthly Service Charge | D18: Distribution Volumetric Rate kWh | E18: Distribution Volumetric Rate kW | G18: Re-based Billed Customers or Connections | H18: Re-based Billed kWh | I18: Re-based Billed kW | K18: Current Base Service Charge Revenue | L18: Current Base Distribution Volumetric Rate kWh Revenue | M18: Current Base Distribution Volumetric Rate kW Revenue | N18: Total Current Base Revenue | P18: Service Charge % Total Revenue | Q18: Distribution Volumetric Rate % Total Revenue | R18: Distribution Volumetric Rate % Total Revenue | S18: Total % Revenue
A19: Total | C19: A | D19: B | E19: C | G19: D | H19: E | I19: F | K19: G = A * D *12 | L19: H = B * E | M19: I = C * F | N19: J = G + H + I | P19: L = G / Jtotal | Q19: M = H / Jtotal | R19: N = I / Jtotal | S19: O = J / Jtotal
A20: RESIDENTIAL | C20: 24.3 | D20: 0 | E20: 0 | G20: 153261 | H20: 1385125813 | I20: 0 | K20: =G20*C20*12 -> 44690907.6 | L20: =H20*D20 -> 0 | M20: =I20*E20 -> 0 | N20: =SUM(K20,L20,M20) -> 44690907.6 | P20: =IF(ISERROR(K20/N30),0,K20/N30) -> 0.5765143424 | Q20: =IF(ISERROR(L20/N30),0,L20/N30) -> 0 | R20: =IF(ISERROR(M20/N30),0,M20/N30) -> 0 | S20: =N20/N30 -> 0.5765143424
A21: GENERAL SERVICE LESS THAN 50 kW | C21: 25.65 | D21: 0.0171 | E21: 0 | G21: 9462 | H21: 344785906.8 | I21: 0 | K21: 2912403.6 | L21: 5895839.007 | M21: 0 | N21: 8808242.607 | P21: =IF(ISERROR(K21/N30),0,K21/N30) -> 0.03757011295 | Q21: =IF(ISERROR(L21/N30),0,L21/N30) -> 0.0760565388 | R21: =IF(ISERROR(M21/N30),0,M21/N30) -> 0 | S21: =N21/N30 -> 0.1136266517
A22: GENERAL SERVICE 50 TO 699 KW | C22: 127.98 | D22: 0 | E22: 2.8986 | G22: 1591 | H22: 1131688196 | I22: 3179603 | K22: 2443394.16 | L22: 0 | M22: 9216397.256 | N22: 11659791.42 | P22: =IF(ISERROR(K22/N30),0,K22/N30) -> 0.03151987402 | Q22: =IF(ISERROR(L22/N30),0,L22/N30) -> 0 | R22: =IF(ISERROR(M22/N30),0,M22/N30) -> 0.1188918616 | S22: =N22/N30 -> 0.1504117357
A23: GENERAL SERVICE 700 TO 4,999 KW | C23: 1154.71 | D23: 0 | E23: 3.3649 | G23: 105 | H23: 875091030.3 | I23: 2020563.238 | K23: 1454934.6 | L23: 0 | M23: 6798993.239 | N23: 8253927.839 | P23: =IF(ISERROR(K23/N30),0,K23/N30) -> 0.01876870955 | Q23: =IF(ISERROR(L23/N30),0,L23/N30) -> 0 | R23: =IF(ISERROR(M23/N30),0,M23/N30) -> 0.08770726142 | S23: =N23/N30 -> 0.106475971
A24: LARGE USE | C24: 4804.99 | D24: 0 | E24: 2.5476 | G24: 6 | H24: 350379704.8 | I24: 657857.0874 | K24: 345959.28 | L24: 0 | M24: 1675956.716 | N24: 2021915.996 | P24: =IF(ISERROR(K24/N30),0,K24/N30) -> 0.004462887364 | Q24: =IF(ISERROR(L24/N30),0,L24/N30) -> 0 | R24: =IF(ISERROR(M24/N30),0,M24/N30) -> 0.02161990293 | S24: =N24/N30 -> 0.02608279029
A25: UNMETERED SCATTERED LOAD | C25: 1.11 | D25: 0.0202 | E25: 0 | G25: 1556 | H25: 5914654.047 | I25: 0 | K25: 20725.92 | L25: 119476.0117 | M25: 0 | N25: 140201.9317 | P25: =IF(ISERROR(K25/N30),0,K25/N30) -> 0.000267365126 | Q25: =IF(ISERROR(L25/N30),0,L25/N30) -> 0.001541244921 | R25: =IF(ISERROR(M25/N30),0,M25/N30) -> 0 | S25: =N25/N30 -> 0.001808610047
A26: STREET LIGHTING | C26: 2.35 | D26: 0 | E26: 11.7823 | G26: 19919 | H26: 34968321 | I26: 98842 | K26: 561715.8 | L26: 0 | M26: 1164586.097 | N26: 1726301.897 | P26: =IF(ISERROR(K26/N30),0,K26/N30) -> 0.007246154362 | Q26: =IF(ISERROR(L26/N30),0,L26/N30) -> 0 | R26: =IF(ISERROR(M26/N30),0,M26/N30) -> 0.01502320324 | S26: =N26/N30 -> 0.0222693576
A27: EMBEDDED DISTRIBUTOR | C27: 4247.63 | D27: 0 | E27: 0 | G27: 1 | H27: 3402773 | I27: 0 | K27: 50971.56 | L27: 0 | M27: 0 | N27: 50971.56 | P27: =IF(ISERROR(K27/N30),0,K27/N30) -> 0.000657534988 | Q27: =IF(ISERROR(L27/N30),0,L27/N30) -> 0 | R27: =IF(ISERROR(M27/N30),0,M27/N30) -> 0 | S27: =N27/N30 -> 0.000657534988
A28: DISTRIBUTED GENERATION [DGEN] | C28: 106.17 | D28: 0 | E28: 0 | G28: 131 | H28: 277418 | I28: 0 | K28: 166899.24 | L28: 0 | M28: 0 | N28: 166899.24 | P28: =IF(ISERROR(K28/N30),0,K28/N30) -> 0.0021530063 | Q28: =IF(ISERROR(L28/N30),0,L28/N30) -> 0 | R28: =IF(ISERROR(M28/N30),0,M28/N30) -> 0 | S28: =N28/N30 -> 0.0021530063
A29: STANDBY POWER | C29: 0 | D29: 0 | E29: 1.7134 | G29: 1 | H29: 0 | I29: 0 | K29: 0 | L29: 0 | M29: 0 | N29: 0 | P29: =IF(ISERROR(K29/N30),0,K29/N30) -> 0 | Q29: =IF(ISERROR(L29/N30),0,L29/N30) -> 0 | R29: =IF(ISERROR(M29/N30),0,M29/N30) -> 0 | S29: =N29/N30 -> 0
A30: Total | K30: =SUM(K20:K29) -> 52647911.76 | L30: =SUM(L20:L29) -> 6015315.018 | M30: =SUM(M20:M29) -> 18855933.31 | N30: =SUM(N20:N29) -> 77519160.09 | S30: =SUM(S20:S29) -> 1
C33: Current OEB-Approved Base Rates | G33: 2019 Board-Approved Distribution Demand
A34: Horizon Rate Class | C34: Monthly Service Charge | D34: Distribution Volumetric Rate kWh | E34: Distribution Volumetric Rate kW | G34: Re-based Billed Customers or Connections | H34: Re-based Billed kWh | I34: Re-based Billed kW | K34: Current Base Service Charge Revenue | L34: Current Base Distribution Volumetric Rate kWh Revenue | M34: Current Base Distribution Volumetric Rate kW Revenue | N34: Total Current Base Revenue | P34: Service Charge % Total Revenue | Q34: Distribution Volumetric Rate % Total Revenue | R34: Distribution Volumetric Rate % Total Revenue | S34: Total % Revenue
A35: Total | C35: A | D35: B | E35: C | G35: D | H35: E | I35: F | K35: G = A * D *12 | L35: H = B * E | M35: I = C * F | N35: J = G + H + I | P35: L = G / Jtotal | Q35: M = H / Jtotal | R35: N = I / Jtotal | S35: O = J / Jtotal
A36: RESIDENTIAL | C36: 26.7 | D36: 0 | E36: 0 | G36: 227762 | H36: 1652719193 | I36: 0 | K36: =G36*C36*12 -> 72974944.8 | L36: =H36*D36 -> 0 | M36: 0 | N36: =SUM(K36,L36,M36) -> 72974944.8 | P36: =IF(ISERROR(K36/N44),0,K36/N44) -> 0.6135452637 | Q36: =IF(ISERROR(L36/N44),0,L36/N44) -> 0 | R36: =IF(ISERROR(M36/N44),0,M36/N44) -> 0 | S36: =N36/N44 -> 0.6135452637
A37: GENERAL SERVICE LESS THAN 50 kW | C37: 42.29 | D37: 0.0109 | E37: 0 | G37: 18709 | H37: 594472784.8 | I37: 0 | K37: 9494443.32 | L37: 6479753.354 | M37: 0 | N37: 15974196.67 | P37: =IF(ISERROR(K37/N44),0,K37/N44) -> 0.07982562709 | Q37: =IF(ISERROR(L37/N44),0,L37/N44) -> 0.05447927355 | R37: =IF(ISERROR(M37/N44),0,M37/N44) -> 0 | S37: =N37/N44 -> 0.1343049006
A38: GENERAL SERVICE 50 TO 4,999 KW | C38: 389.4 | D38: 0 | E38: 2.615 | G38: 2316 | H38: 1840510488 | I38: 5066405.912 | K38: 10822204.8 | L38: 0 | M38: 13248651.46 | N38: 24070856.26 | P38: =IF(ISERROR(K38/N44),0,K38/N44) -> 0.09098893484 | Q38: =IF(ISERROR(L38/N44),0,L38/N44) -> 0 | R38: =IF(ISERROR(M38/N44),0,M38/N44) -> 0.111389565 | S38: =N38/N44 -> 0.2023784998
A39: LARGE USE | C39: 24279.27 | D39: 0 | E39: 1.4325 | G39: 6 | H39: 242051739 | I39: 569520 | K39: 1748107.44 | L39: 0 | M39: 815837.4 | N39: 2563944.84 | P39: =IF(ISERROR(K39/N44),0,K39/N44) -> 0.01469741489 | Q39: =IF(ISERROR(L39/N44),0,L39/N44) -> 0 | R39: =IF(ISERROR(M39/N44),0,M39/N44) -> 0.006859247021 | S39: =N39/N44 -> 0.02155666191
A40: LARGE USE WITH DEDICATED ASSETS | C40: 5755.85 | D40: 0 | E40: 0.3396 | G40: 5 | H40: 403775839 | I40: 2136952 | K40: 345351 | L40: 0 | M40: 725708.8992 | N40: 1071059.899 | P40: =IF(ISERROR(K40/N44),0,K40/N44) -> 0.002903578357 | Q40: =IF(ISERROR(L40/N44),0,L40/N44) -> 0 | R40: =IF(ISERROR(M40/N44),0,M40/N44) -> 0.006101481257 | S40: =N40/N44 -> 0.009005059614
A41: UNMETERED SCATTERED LOAD | C41: 8.63 | D41: 0.0134 | E41: 0 | G41: 3006 | H41: 10504341.79 | I41: 0 | K41: 311301.36 | L41: 140758.18 | M41: 0 | N41: 452059.54 | P41: =IF(ISERROR(K41/N44),0,K41/N44) -> 0.002617302083 | Q41: =IF(ISERROR(L41/N44),0,L41/N44) -> 0.00118344063 | R41: =IF(ISERROR(M41/N44),0,M41/N44) -> 0 | S41: =N41/N44 -> 0.003800742713
A42: SENTINEL LIGHTING | C42: 5.63 | D42: 0 | E42: 15.4416 | G42: 378 | H42: 363731 | I42: 1030 | K42: 25537.68 | L42: 0 | M42: 15904.848 | N42: 41442.528 | P42: =IF(ISERROR(K42/N44),0,K42/N44) -> 0.0002147109895 | Q42: =IF(ISERROR(L42/N44),0,L42/N44) -> 0 | R42: =IF(ISERROR(M42/N44),0,M42/N44) -> 0.0001337218437 | S42: =N42/N44 -> 0.0003484328332
A43: STREET LIGHTING | C43: 1.95 | D43: 0 | E43: 5.1752 | G43: 52273 | H43: 39610412.93 | I43: 109773 | K43: 1223188.2 | L43: 0 | M43: 568097.2296 | N43: 1791285.43 | P43: =IF(ISERROR(K43/N44),0,K43/N44) -> 0.01028409585 | Q43: =IF(ISERROR(L43/N44),0,L43/N44) -> 0 | R43: =IF(ISERROR(M43/N44),0,M43/N44) -> 0.004776342969 | S43: =N43/N44 -> 0.01506043882
A44: Total | K44: =SUM(K36:K43) -> 96945078.6 | L44: =SUM(L36:L43) -> 6620511.534 | M44: =SUM(M36:M43) -> 15374199.84 | N44: =SUM(N36:N43) -> 118939790 | S44: =SUM(S36:S43) -> 1
C47: Current OEB-Approved Base Rates | G47: 2018 Actual Distribution Demand
A48: PowerStream Rate Class | C48: Monthly Service Charge | D48: Distribution Volumetric Rate kWh | E48: Distribution Volumetric Rate kW | G48: Re-based Billed Customers or Connections | H48: Re-based Billed kWh | I48: Re-based Billed kW | K48: Current Base Service Charge Revenue | L48: Current Base Distribution Volumetric Rate kWh Revenue | M48: Current Base Distribution Volumetric Rate kW Revenue | N48: Total Current Base Revenue | P48: Service Charge % Total Revenue | Q48: Distribution Volumetric Rate % Total Revenue | R48: Distribution Volumetric Rate % Total Revenue | S48: Total % Revenue
A49: Total | C49: A | D49: B | E49: C | G49: D | H49: E | I49: F | K49: G = A * D *12 | L49: H = B * E | M49: I = C * F | N49: J = G + H + I | P49: L = G / Jtotal | Q49: M = H / Jtotal | R49: N = I / Jtotal | S49: O = J / Jtotal
A50: RESIDENTIAL | C50: 24.91 | D50: 0.0045 | E50: 0 | G50: 334683 | H50: 2783708695 | I50: 0 | K50: =G50*C50*12 -> 100043442.4 | L50: =H50*D50 -> 12526689.13 | M50: 0 | N50: =SUM(K50,L50,M50) -> 112570131.5 | P50: =IF(ISERROR(K50/N57),0,K50/N57) -> 0.4804828615 | Q50: =IF(ISERROR(L50/N57),0,L50/N57) -> 0.06016245838 | R50: =IF(ISERROR(M50/N57),0,M50/N57) -> 0 | S50: =N50/N57 -> 0.5406453199
A51: GENERAL SERVICE LESS THAN 50 kW | C51: 29.35 | D51: 0.0187 | E51: 0 | G51: 32624 | H51: 1049615664 | I51: 0 | K51: 11490172.8 | L51: 19627812.92 | M51: 0 | N51: 31117985.72 | P51: =IF(ISERROR(K51/N57),0,K51/N57) -> 0.05518433769 | Q51: =IF(ISERROR(L51/N57),0,L51/N57) -> 0.09426732524 | R51: =IF(ISERROR(M51/N57),0,M51/N57) -> 0 | S51: =N51/N57 -> 0.1494516629
A52: GENERAL SERVICE 50 TO 4,999 KW | C52: 143.95 | D52: 0 | E52: 4.2924 | G52: 5207 | H52: 4679965944 | I52: 12192875.59 | K52: 8994571.8 | L52: 0 | M52: 52336699.18 | N52: 61331270.98 | P52: =IF(ISERROR(K52/N57),0,K52/N57) -> 0.04319860947 | Q52: =IF(ISERROR(L52/N57),0,L52/N57) -> 0 | R52: =IF(ISERROR(M52/N57),0,M52/N57) -> 0.2513596733 | S52: =N52/N57 -> 0.2945582828
A53: LARGE USE | C53: 6201.88 | D53: 0 | E53: 2.2894 | G53: 2 | H53: 53218181 | I53: 102871.3272 | K53: 148845.12 | L53: 0 | M53: 235513.6164 | N53: 384358.7364 | P53: =IF(ISERROR(K53/N57),0,K53/N57) -> 0.0007148647377 | Q53: =IF(ISERROR(L53/N57),0,L53/N57) -> 0 | R53: =IF(ISERROR(M53/N57),0,M53/N57) -> 0.001131111182 | S53: =N53/N57 -> 0.00184597592
A54: UNMETERED SCATTERED LOAD | C54: 8.78 | D54: 0.0199 | E54: 0 | G54: 3082 | H54: 13830787.93 | I54: 0 | K54: 324719.52 | L54: 275232.6797 | M54: 0 | N54: 599952.1997 | P54: =IF(ISERROR(K54/N57),0,K54/N57) -> 0.001559544139 | Q54: =IF(ISERROR(L54/N57),0,L54/N57) -> 0.001321871603 | R54: =IF(ISERROR(M54/N57),0,M54/N57) -> 0 | S54: =N54/N57 -> 0.002881415742
A55: SENTINEL LIGHTING | C55: 4.28 | D55: 0 | E55: 10.0777 | G55: 172 | H55: 286385 | I55: 796 | K55: 8833.92 | L55: 0 | M55: 8021.8492 | N55: 16855.7692 | P55: =IF(ISERROR(K55/N57),0,K55/N57) -> 4.242704029e-05 | Q55: =IF(ISERROR(L55/N57),0,L55/N57) -> 0 | R55: =IF(ISERROR(M55/N57),0,M55/N57) -> 3.85268736e-05 | S55: =N55/N57 -> 8.095391389e-05
A56: STREET LIGHTING | C56: 1.21 | D56: 0 | E56: 6.4556 | G56: 91446 | H56: 48883953 | I56: 134152.0192 | K56: 1327795.92 | L56: 0 | M56: 866031.7749 | N56: 2193827.695 | P56: =IF(ISERROR(K56/N57),0,K56/N57) -> 0.006377061486 | Q56: =IF(ISERROR(L56/N57),0,L56/N57) -> 0 | R56: =IF(ISERROR(M56/N57),0,M56/N57) -> 0.004159327344 | S56: =N56/N57 -> 0.01053638883
A57: Total | K57: =SUM(K50:K56) -> 122338381.4 | L57: =SUM(L50:L56) -> 32429734.73 | M57: =SUM(M50:M56) -> 53446266.42 | N57: =SUM(N50:N56) -> 208214382.6 | S57: =SUM(S50:S56) -> 1
C60: Current OEB-Approved Base Rates | G60: 2018 Actual Distribution Demand
A61: Guelph Rate Class | C61: Monthly Service Charge | D61: Distribution Volumetric Rate kWh | E61: Distribution Volumetric Rate kW | G61: Re-based Billed Customers or Connections | H61: Re-based Billed kWh | I61: Re-based Billed kW | K61: Current Base Service Charge Revenue | L61: Current Base Distribution Volumetric Rate kWh Revenue | M61: Current Base Distribution Volumetric Rate kW Revenue | N61: Total Current Base Revenue | P61: Service Charge % Total Revenue | Q61: Distribution Volumetric Rate % Total Revenue | R61: Distribution Volumetric Rate % Total Revenue | S61: Total % Revenue
C62: A | D62: B | E62: C | G62: D | H62: E | I62: F | K62: G = A * D *12 | L62: H = B * E | M62: I = C * F | N62: J = G + H + I | P62: L = G / Jtotal | Q62: M = H / Jtotal | R62: N = I / Jtotal | S62: O = J / Jtotal
A63: RESIDENTIAL | C63: 29.22 | D63: 0 | E63: 0 | G63: 50914 | H63: 384041745 | I63: 0 | K63: =G63*C63*12 -> 17852484.96 | L63: =H63*D63 -> 0 | M63: 0 | N63: =SUM(K63,L63,M63) -> 17852484.96 | P63: =IF(ISERROR(K63/N71),0,K63/N71) -> 0.5840465345 | Q63: =IF(ISERROR(L63/N71),0,L63/N71) -> 0 | R63: =IF(ISERROR(M63/N71),0,M63/N71) -> 0 | S63: =N63/N71 -> 0.5840465345
A64: GENERAL SERVICE LESS THAN 50 KW | C64: 16.94 | D64: 0.0142 | E64: 0 | G64: 4134 | H64: 142209076 | I64: 0 | K64: 840359.52 | L64: 2019368.879 | M64: 0 | N64: 2859728.399 | P64: =IF(ISERROR(K64/N71),0,K64/N71) -> 0.02749247886 | Q64: =IF(ISERROR(L64/N71),0,L64/N71) -> 0.06606393443 | R64: =IF(ISERROR(M64/N71),0,M64/N71) -> 0 | S64: =N64/N71 -> 0.09355641329
A65: GENERAL SERVICE 50 TO 999 KW | C65: 183.66 | D65: 0 | E65: 2.7982 | G65: 578 | H65: 402350218 | I65: 1097499 | K65: 1273865.76 | L65: 0 | M65: 3071021.702 | N65: 4344887.462 | P65: =IF(ISERROR(K65/N71),0,K65/N71) -> 0.04167469594 | Q65: =IF(ISERROR(L65/N71),0,L65/N71) -> 0 | R65: =IF(ISERROR(M65/N71),0,M65/N71) -> 0.1004689031 | S65: =N65/N71 -> 0.1421435991
A66: GENERAL SERVICE 1,000 TO 4,999 KW | C66: 580.97 | D66: 0 | E66: 3.1063 | G66: 43 | H66: 540417878 | I66: 1135425 | K66: 299780.52 | L66: 0 | M66: 3526970.678 | N66: 3826751.198 | P66: =IF(ISERROR(K66/N71),0,K66/N71) -> 0.009807361508 | Q66: =IF(ISERROR(L66/N71),0,L66/N71) -> 0 | R66: =IF(ISERROR(M66/N71),0,M66/N71) -> 0.1153853375 | S66: =N66/N71 -> 0.125192699
A67: LARGE USE | C67: 1116.83 | D67: 0 | E67: 2.7908 | G67: 4 | H67: 197428962 | I67: 423180 | K67: 53607.84 | L67: 0 | M67: 1181010.744 | N67: 1234618.584 | P67: =IF(ISERROR(K67/N71),0,K67/N71) -> 0.00175378796 | Q67: =IF(ISERROR(L67/N71),0,L67/N71) -> 0 | R67: =IF(ISERROR(M67/N71),0,M67/N71) -> 0.03863693115 | S67: =N67/N71 -> 0.04039071911
A68: UNMETERED SCATTERED LOAD | C68: 4.96 | D68: 0.0226 | E68: 0 | G68: 559 | H68: 1810678 | I68: 0 | K68: 33271.68 | L68: 40921.3228 | M68: 0 | N68: 74193.0028 | P68: =IF(ISERROR(K68/N71),0,K68/N71) -> 0.00108848765 | Q68: =IF(ISERROR(L68/N71),0,L68/N71) -> 0.001338746781 | R68: =IF(ISERROR(M68/N71),0,M68/N71) -> 0 | S68: =N68/N71 -> 0.002427234431
A69: SENTINEL LIGHTING | C69: 7.67 | D69: 0 | E69: 8.4893 | G69: 35 | H69: 18189 | I69: 51 | K69: 3221.4 | L69: 0 | M69: 432.9543 | N69: 3654.3543 | P69: =IF(ISERROR(K69/N71),0,K69/N71) -> 0.0001053885501 | Q69: =IF(ISERROR(L69/N71),0,L69/N71) -> 0 | R69: =IF(ISERROR(M69/N71),0,M69/N71) -> 1.416416029e-05 | S69: =N69/N71 -> 0.0001195527104
A70: STREET LIGHTING | C70: 0.44 | D70: 0 | E70: 10.408 | G70: 14152 | H70: 10182750 | I70: 28425 | K70: 74722.56 | L70: 0 | M70: 295847.4 | N70: 370569.96 | P70: =IF(ISERROR(K70/N71),0,K70/N71) -> 0.002444558968 | Q70: =IF(ISERROR(L70/N71),0,L70/N71) -> 0 | R70: =IF(ISERROR(M70/N71),0,M70/N71) -> 0.009678688939 | S70: =N70/N71 -> 0.01212324791
A71: Total | K71: =SUM(K63:K70) -> 20431314.24 | L71: =SUM(L63:L70) -> 2060290.202 | M71: =SUM(M63:M70) -> 8075283.478 | N71: =SUM(N63:N70) -> 30566887.92 | S71: =SUM(S63:S70) -> 1

Sheet Weighted Averages
B1: Alectra Utilities Corporation | H1: Back to Index
B2: Weighted Average Rates
C4: HRZ | D4: BRZ | E4: PRZ | F4: ERZ | G4: GRZ | H4: Alectra
B5: OEB-Approved Rate Base ($)1,2,3,4,5 | C5: 555697.9505 | D5: 404618.5219 | E5: 1082805.162 | F5: 623497.8334 | G5: 151391.7299 | H5: =SUM(C5:G5) -> 2818011.197
B6: OEB-Approved Rate Base (%) | C6: =C5/$H$5 -> 0.1971950825 | D6: 0.1435830071 | E6: 0.3842444497 | F6: =F5/$H$5 -> 0.2212545621 | G6: =G5/$H$5 -> 0.05372289863 | H6: =SUM(C6:G6) -> 1
B8: Cost of Capital Parameters
B9: Long Term Debt Rate | C9: 0.03741875 | D9: 0.06072871046 | E9: 0.03882503715 | F9: 0.050914 | G9: 0.04914816867
B10: Short Term Debt Rate | C10: 0.0282 | D10: 0.0216 | E10: 0.0176 | F10: 0.0208 | G10: 0.0165
B11: Return on Equity | C11: 0.0898 | D11: 0.093 | E11: 0.0878 | F11: 0.0893 | G11: 0.0919
B13: Weighted Averages based on Approved Rate Base:
B14: Long Term Debt Rate | C14: =C6*C9 -> 0.007378793492 | D14: =D6*D9 -> 0.008719610868 | E14: =E6*E9 -> 0.01491830503 | F14: =F6*F9 -> 0.01126495477 | G14: =G6*G9 -> 0.002640382084 | H14: =SUM(C14:G14) -> 0.04492204625
B15: Short Term Debt Rate | C15: =C6*C10 -> 0.005560901326 | D15: =D6*D10 -> 0.003101392954 | E15: =E6*E10 -> 0.006762702314 | F15: =F6*F10 -> 0.004602094891 | G15: =G6*G10 -> 0.0008864278275 | H15: =SUM(C15:G15) -> 0.02091351931
B16: Return on Equity | C16: =C6*C11 -> 0.01770811841 | D16: =D6*D11 -> 0.01335321966 | E16: =E6*E11 -> 0.03373666268 | F16: =F6*F11 -> 0.01975803239 | G16: =G6*G11 -> 0.004937134385 | H16: =SUM(C16:G16) -> 0.08949316753
B18: Notes:
B19: 1. ERZ 2013 COS rate base per EB-2012-0033; 1. In EB-2016-0002, the OEB approved Enersource's proposal to address the expiration of its IFRS adjustment from its 2013 COS
B20: 2. BRZ 2015 COS rate base per EB-2014-0083
B21: 3. PRZ 2017 COS rate base per EB-2015-0003
B22: 4. HRZ CIR Update to 2019 rate base per EB-2018-0016
B23: 5. GRZ 2016 COS rate base per EB-2015-0073
B25: Working Capital Allowance | C25: 0.12 | D25: 0.13 | E25: 0.075 | F25: 0.135 | G25: 0.075
B26: Weighted | C26: =C25*C6 -> 0.0236634099 | D26: =D25*D6 -> 0.01866579093 | E26: 0.02881833373 | F26: 0.02986936588 | G26: 0.004029217398 | H26: =SUM(C26:G26) -> 0.1050461178

Sheet Threshold Test_ERZ
H1: Back to Index
A8: No Input Required.
C9: Final Threshold Calculation
C13: Cost of Service Rebasing Year | E13: 2013
C14: Year in which Applicant is applying | E14: 7
C16: Price Cap Index | E16: =1.5%-0.3% -> 0.012
C17: Growth Factor Calculation
C18: 2017 Actual Distribution Revenues | E18: 132834896 | G18: 2018
C19: 2013 Board-Approved Distribution Revenues | E19: 133185701.6 | G19: 2013
C20: Growth Factor | E20: =IF(ISERROR(E18/E19-1),0,(E18/E19-1)/(G18-G19)) -> -0.0005267915852
C21: Dead Band | E21: 0.1
C22: Average Net Fixed Assets
C23: Gross Fixed Assets Opening | E23: 541300088
C24: Add: CWIP Opening | E24: 4371726
C25: Capital Additions | E25: 46257875
C26: Capital Disposals | E26: -1026755
C27: Capital Retirements | E27: 0
C28: Deduct: CWIP Closing | E28: -4371726
C29: Gross Fixed Assets - Closing | E29: 586531208
C31: Average Gross Fixed Assets | E31: =(E23+E29)/2 -> 563915648
C33: Accumulated Depreciation - Opening | E33: 45750490
C34: Depreciation Expense | E34: 28721695
C35: Disposals | E35: 0
C36: Retirements | E36: -1026755
C37: Accumulated Depreciation - Closing | E37: 73445430
C39: Average Accumulated Depreciation | E39: =(E33+E37)/2 -> 59597960
C41: Average Net Fixed Assets | E41: =E31-E39 -> 504317688
C44: Working Capital Allowance
C45: Working Capital Allowance Base | E45: 786215891
C46: Working Capital Allowance Rate | E46: 0.135
C47: Working Capital Allowance | E47: =E45*E46 -> 106139145.3
C49: Rate Base | E49: =E41+E47 -> 610456833.3
C51: Depreciation | E51: =E34 -> 28721695
C53: Threshold Value (varies by Price Cap IR Year subsequent to CoS rebasing)
C54: Price Cap IR Year 2014 | E54: =IF(ISERROR(1+((RB/d)*(g+PCI*(1+g)))*((1+g)*(1+PCI))^(1-1) + E21), 0, 1+((RB/d)*(g+PCI*(1+g)))*((1+g)*(1+PCI))^(1-1) + E21) -> 1.343719581
C55: Price Cap IR Year 2015 | E55: =IF(ISERROR(1+((RB/d)*(g+PCI*(1+g)))*((1+g)*(1+PCI))^(2-1) + E21), 0, 1+((RB/d)*(g+PCI*(1+g)))*((1+g)*(1+PCI))^(2-1) + E21) -> 1.346514286
C56: Price Cap IR Year 2016 | E56: =IF(ISERROR(1+((RB/d)*(g+PCI*(1+g)))*((1+g)*(1+PCI))^(3-1) + E21), 0, 1+((RB/d)*(g+PCI*(1+g)))*((1+g)*(1+PCI))^(3-1) + E21) -> 1.349341037
C57: Price Cap IR Year 2017 | E57: =IF(ISERROR(1+((RB/d)*(g+PCI*(1+g)))*((1+g)*(1+PCI))^(4-1) + E21), 0, 1+((RB/d)*(g+PCI*(1+g)))*((1+g)*(1+PCI))^(4-1) + E21) -> 1.352200203
C58: Price Cap IR Year 2018 | E58: =IF(ISERROR(1+((RB/d)*(g+PCI*(1+g)))*((1+g)*(1+PCI))^(5-1) + E21), 0, 1+((RB/d)*(g+PCI*(1+g)))*((1+g)*(1+PCI))^(5-1) + E21) -> 1.355092154
C59: Price Cap IR Year 2019 | E59: =IF(ISERROR(1+((RB/d)*(g+PCI*(1+g)))*((1+g)*(1+PCI))^(6-1) + E21), 0, 1+((RB/d)*(g+PCI*(1+g)))*((1+g)*(1+PCI))^(6-1) + E21) -> 1.358017267
C60: Price Cap IR Year 2020 | E60: =IF(ISERROR(1+((RB/d)*(g+PCI*(1+g)))*((1+g)*(1+PCI))^(7-1) + E21), 0, 1+((RB/d)*(g+PCI*(1+g)))*((1+g)*(1+PCI))^(7-1) + E21) -> 1.360975922
C61: Price Cap IR Year 2021 | E61: =IF(ISERROR(1+((RB/d)*(g+PCI*(1+g)))*((1+g)*(1+PCI))^(8-1) + E21), 0, 1+((RB/d)*(g+PCI*(1+g)))*((1+g)*(1+PCI))^(8-1) + E21) -> 1.363968503
C62: Price Cap IR Year 2022 | E62: =IF(ISERROR(1+((RB/d)*(g+PCI*(1+g)))*((1+g)*(1+PCI))^(9-1) + E21), 0, 1+((RB/d)*(g+PCI*(1+g)))*((1+g)*(1+PCI))^(9-1) + E21) -> 1.3669954
C63: Price Cap IR Year 2023 | E63: =IF(ISERROR(1+((RB/d)*(g+PCI*(1+g)))*((1+g)*(1+PCI))^(10-1) + E21), 0, 1+((RB/d)*(g+PCI*(1+g)))*((1+g)*(1+PCI))^(10-1) + E21) -> 1.370057006
C64: Price Cap IR Year 2024 | E64: =IF(ISERROR(1+((RB/d)*(g+PCI*(1+g)))*((1+g)*(1+PCI))^(11-1) + E21), 0, 1+((RB/d)*(g+PCI*(1+g)))*((1+g)*(1+PCI))^(11-1) + E21) -> 1.373153719
C67: Threshold CAPEX
C68: =C54 -> Price Cap IR Year 2014 | E68: =IF(ISERROR(d*E54), "", d*E54) -> 38593903.97
C69: Price Cap IR Year 2015 | E69: 38674172.64
C70: Price Cap IR Year 2016 | E70: 38755361.73
C71: Price Cap IR Year 2017 | E71: 38837481.81
C72: Price Cap IR Year 2018 | E72: 38920543.55
C73: Price Cap IR Year 2019 | E73: 39004557.75
C74: Price Cap IR Year 2020 | E74: 39089535.33
C75: Price Cap IR Year 2021 | E75: 39175487.34
C76: Price Cap IR Year 2022 | E76: 39262424.95
C77: Price Cap IR Year 2023 | E77: 39350359.47
C78: Price Cap IR Year 2024 | E78: 39439302.32

Sheet Threshold Test_PRZ
H1: Back to Index
A8: No Input Required.
C9: Final Threshold Calculation
C13: Year | E13: 2017
C14: Year in which Applicant is applying | E14: 3
C16: Price Cap Index | E16: =1.5%-0.3% -> 0.012
C17: Growth Factor Calculation
C18: 2017 Actual Distribution Revenues | E18: 208214382.6 | G18: 2018
C19: 2013 Board-Approved Distribution Revenues | E19: 203517915.5 | G19: 2017
C20: Growth Factor | E20: =IF(ISERROR(E18/E19-1),0,(E18/E19-1)/(G18-G19)) -> 0.02307643078
C21: Dead Band | E21: 0.1
C22: Average Net Fixed Assets
C23: Gross Fixed Assets Opening | E23: 1183508943
C24: Add: CWIP Opening | E24: 57486861.79
C25: Capital Additions | E25: 114494288.9
C26: Capital Disposals | E26: -2734108.145
C27: Capital Retirements | E27: 0
C28: Deduct: CWIP Closing | E28: -39959632.13
C29: Gross Fixed Assets - Closing | E29: 1312796354
C31: Average Gross Fixed Assets | E31: =(E23+E29)/2 -> 1248152649
C33: Accumulated Depreciation - Opening | E33: 229378962
C34: Depreciation Expense | E34: 52272172.96
C35: Disposals | E35: -717703
C36: Retirements | E36: 0
C37: Accumulated Depreciation - Closing | E37: 280933431.9
C39: Average Accumulated Depreciation | E39: =(E33+E37)/2 -> 255156197
C41: Average Net Fixed Assets | E41: =E31-E39 -> 992996451.7
C44: Working Capital Allowance
C45: Working Capital Allowance Base | E45: 1197449515
C46: Working Capital Allowance Rate | E46: 0.075
C47: Working Capital Allowance | E47: =E45*E46 -> 89808713.6
C49: Rate Base | E49: =E41+E47 -> 1082805165
C51: Depreciation | E51: =E34 -> 52272172.96
C53: Threshold Value (varies by Price Cap IR Year subsequent to CoS rebasing)
C54: Price Cap IR Year 2018 | E54: =IF(ISERROR(1+((RB/d)*(g+PCI*(1+g)))*((1+g)*(1+PCI))^(1-1) + E21), 0, 1+((RB/d)*(g+PCI*(1+g)))*((1+g)*(1+PCI))^(1-1) + E21) -> 1.485586567
C55: Price Cap IR Year 2019 | E55: =IF(ISERROR(1+((RB/d)*(g+PCI*(1+g)))*((1+g)*(1+PCI))^(2-1) + E21), 0, 1+((RB/d)*(g+PCI*(1+g)))*((1+g)*(1+PCI))^(2-1) + E21) -> 1.492581747
C56: Price Cap IR Year 2020 | E56: =IF(ISERROR(1+((RB/d)*(g+PCI*(1+g)))*((1+g)*(1+PCI))^(3-1) + E21), 0, 1+((RB/d)*(g+PCI*(1+g)))*((1+g)*(1+PCI))^(3-1) + E21) -> 1.499703832
C57: Price Cap IR Year 2021 | E57: =IF(ISERROR(1+((RB/d)*(g+PCI*(1+g)))*((1+g)*(1+PCI))^(4-1) + E21), 0, 1+((RB/d)*(g+PCI*(1+g)))*((1+g)*(1+PCI))^(4-1) + E21) -> 1.506955122
C58: Price Cap IR Year 2022 | E58: =IF(ISERROR(1+((RB/d)*(g+PCI*(1+g)))*((1+g)*(1+PCI))^(5-1) + E21), 0, 1+((RB/d)*(g+PCI*(1+g)))*((1+g)*(1+PCI))^(5-1) + E21) -> 1.514337963
C59: Price Cap IR Year 2023 | E59: =IF(ISERROR(1+((RB/d)*(g+PCI*(1+g)))*((1+g)*(1+PCI))^(6-1) + E21), 0, 1+((RB/d)*(g+PCI*(1+g)))*((1+g)*(1+PCI))^(6-1) + E21) -> 1.521854742
C60: Price Cap IR Year 2024 | E60: =IF(ISERROR(1+((RB/d)*(g+PCI*(1+g)))*((1+g)*(1+PCI))^(7-1) + E21), 0, 1+((RB/d)*(g+PCI*(1+g)))*((1+g)*(1+PCI))^(7-1) + E21) -> 1.529507886
C63: Threshold CAPEX
C64: =C54 -> Price Cap IR Year 2018 | E64: =IF(ISERROR(d*E54), "", d*E54) -> 42668564.28
C65: Price Cap IR Year 2019 | E65: 42869477.71
C66: Price Cap IR Year 2020 | E66: 43074036.04
C67: Price Cap IR Year 2021 | E67: 43282305.4
C68: Price Cap IR Year 2022 | E68: 43494353.11
C69: Price Cap IR Year 2023 | E69: 43710247.72
C70: Price Cap IR Year 2024 | E70: 43930059.02

Sheet Threshold Test_BRZ
H1: Back to Index
A8: No Input Required.
C9: Final Threshold Calculation
C13: Year | E13: 2015
C14: Year in which Applicant is applying | E14: 5
C16: Price Cap Index | E16: =1.5%-0.3% -> 0.012
C17: Growth Factor Calculation
C18: 2017 Actual Distribution Revenues | E18: 77519160.09 | G18: 2018
C19: 2013 Board-Approved Distribution Revenues | E19: 73455692.62 | G19: 2015
C20: Growth Factor | E20: =IF(ISERROR(E18/E19-1),0,(E18/E19-1)/(G18-G19)) -> 0.01843953963
C21: Dead Band | E21: 0.1
C22: Average Net Fixed Assets
C23: Gross Fixed Assets Opening | E23: 627821483
C24: Add: CWIP Opening | E24: 0
C25: Capital Additions | E25: 32518047
C26: Capital Disposals | E26: -2963781
C27: Capital Retirements | E27: 0
C28: Deduct: CWIP Closing | E28: 0
C29: Gross Fixed Assets - Closing | E29: 657375749
C31: Average Gross Fixed Assets | E31: =(E23+E29)/2 -> 642598616
C33: Accumulated Depreciation - Opening | E33: 295604516
C34: Depreciation Expense | E34: 15227319
C35: Disposals | E35: -2191181
C36: Retirements | E36: 0
C37: Accumulated Depreciation - Closing | E37: 308640654
C39: Average Accumulated Depreciation | E39: =(E33+E37)/2 -> 302122585
C41: Average Net Fixed Assets | E41: =E31-E39 -> 340476031
C44: Working Capital Allowance
C45: Working Capital Allowance Base | E45: 493403770
C46: Working Capital Allowance Rate | E46: 0.13
C47: Working Capital Allowance | E47: =E45*E46 -> 64142490.1
C49: Rate Base | E49: =E41+E47 -> 404618521.1
C51: Depreciation | E51: =E34 -> 15227319
C53: Threshold Value (varies by Price Cap IR Year subsequent to CoS rebasing)
C54: Price Cap IR Year 2016 | E54: =IF(ISERROR(1+((RB/d)*(g+PCI*(1+g)))*((1+g)*(1+PCI))^(1-1) + E21), 0, 1+((RB/d)*(g+PCI*(1+g)))*((1+g)*(1+PCI))^(1-1) + E21) -> 1.914715529
C55: Price Cap IR Year 2017 | E55: =IF(ISERROR(1+((RB/d)*(g+PCI*(1+g)))*((1+g)*(1+PCI))^(2-1) + E21), 0, 1+((RB/d)*(g+PCI*(1+g)))*((1+g)*(1+PCI))^(2-1) + E21) -> 1.939695371
C56: Price Cap IR Year 2018 | E56: =IF(ISERROR(1+((RB/d)*(g+PCI*(1+g)))*((1+g)*(1+PCI))^(3-1) + E21), 0, 1+((RB/d)*(g+PCI*(1+g)))*((1+g)*(1+PCI))^(3-1) + E21) -> 1.965441114
C57: Price Cap IR Year 2019 | E57: =IF(ISERROR(1+((RB/d)*(g+PCI*(1+g)))*((1+g)*(1+PCI))^(4-1) + E21), 0, 1+((RB/d)*(g+PCI*(1+g)))*((1+g)*(1+PCI))^(4-1) + E21) -> 1.991976243
C58: Price Cap IR Year 2020 | E58: =IF(ISERROR(1+((RB/d)*(g+PCI*(1+g)))*((1+g)*(1+PCI))^(5-1) + E21), 0, 1+((RB/d)*(g+PCI*(1+g)))*((1+g)*(1+PCI))^(5-1) + E21) -> 2.019324961
C59: Price Cap IR Year 2021 | E59: =IF(ISERROR(1+((RB/d)*(g+PCI*(1+g)))*((1+g)*(1+PCI))^(6-1) + E21), 0, 1+((RB/d)*(g+PCI*(1+g)))*((1+g)*(1+PCI))^(6-1) + E21) -> 2.047512213
C60: Price Cap IR Year 2022 | E60: =IF(ISERROR(1+((RB/d)*(g+PCI*(1+g)))*((1+g)*(1+PCI))^(7-1) + E21), 0, 1+((RB/d)*(g+PCI*(1+g)))*((1+g)*(1+PCI))^(7-1) + E21) -> 2.076563709
C61: Price Cap IR Year 2023 | E61: =IF(ISERROR(1+((RB/d)*(g+PCI*(1+g)))*((1+g)*(1+PCI))^(8-1) + E21), 0, 1+((RB/d)*(g+PCI*(1+g)))*((1+g)*(1+PCI))^(8-1) + E21) -> 2.106505947
C62: Price Cap IR Year 2024 | E62: =IF(ISERROR(1+((RB/d)*(g+PCI*(1+g)))*((1+g)*(1+PCI))^(9-1) + E21), 0, 1+((RB/d)*(g+PCI*(1+g)))*((1+g)*(1+PCI))^(9-1) + E21) -> 2.137366239
C64: Threshold CAPEX
C65: =C54 -> Price Cap IR Year 2016 | E65: =IF(ISERROR(d*E54), "", d*E54) -> 29155984.16
C66: Price Cap IR Year 2017 | E66: 29536360.17
C67: Price Cap IR Year 2018 | E67: 29928398.82
C68: Price Cap IR Year 2019 | E68: 30332457.7
C69: Price Cap IR Year 2020 | E69: 30748905.35
C70: Price Cap IR Year 2021 | E70: 31178121.62
C71: Price Cap IR Year 2022 | E71: 31620498.02
C72: Price Cap IR Year 2023 | E72: 32076438.03
C73: Price Cap IR Year 2024 | E73: 32546357.54

Sheet Threshold Test_HRZ
H1: Back to Index
A8: No Input Required.
C9: Final Threshold Calculation
C13: Year | E13: 2019
C14: Year in which Applicant is applying | E14: 1
C16: Price Cap Index | E16: =1.5%-0.3% -> 0.012
C17: Growth Factor Calculation
C18: 2017 Actual Distribution Revenues | E18: 118939797.2 | G18: 2020
C19: 2013 Board-Approved Distribution Revenues | E19: 115426603 | G19: 2019
C20: Growth Factor | E20: =IF(ISERROR(E18/E19-1),0,(E18/E19-1)/(G18-G19)) -> 0.03043660695
C21: Dead Band | E21: 0.1
C22: Average Net Fixed Assets
C23: Gross Fixed Assets Opening | E23: 625029888.8
C24: Add: CWIP Opening | E24: 3164005.86
C25: Capital Additions | E25: 51272476.81
C26: Capital Disposals | E26: -4597817.627
C27: Capital Retirements | E27: 0
C28: Deduct: CWIP Closing | E28: -3164005.86
C29: Gross Fixed Assets - Closing | E29: 671704548
C31: Average Gross Fixed Assets | E31: =(E23+E29)/2 -> 648367218.4
C33: Accumulated Depreciation - Opening | E33: 160425474.9
C34: Depreciation Expense | E34: 23877061.2
C35: Disposals | E35: -1426748.38
C36: Retirements | E36: 0
C37: Accumulated Depreciation - Closing | E37: 182875787.7
C39: Average Accumulated Depreciation | E39: =(E33+E37)/2 -> 171650631.3
C41: Average Net Fixed Assets | E41: =E31-E39 -> 476716587.1
C44: Working Capital Allowance
C45: Working Capital Allowance Base | E45: 658178026.3
C46: Working Capital Allowance Rate | E46: 0.12
C47: Working Capital Allowance | E47: =E45*E46 -> 78981363.15
C49: Rate Base | E49: =E41+E47 -> 555697950.3
C51: Depreciation | E51: =E34 -> 23877061.2
C53: Threshold Value (varies by Price Cap IR Year subsequent to CoS rebasing)
C54: Price Cap IR Year 2020 | E54: =IF(ISERROR(1+((RB/d)*(g+PCI*(1+g)))*((1+g)*(1+PCI))^(1-1) + E21), 0, 1+((RB/d)*(g+PCI*(1+g)))*((1+g)*(1+PCI))^(1-1) + E21) -> 2.096140104
C55: Price Cap IR Year 2021 | E55: =IF(ISERROR(1+((RB/d)*(g+PCI*(1+g)))*((1+g)*(1+PCI))^(2-1) + E21), 0, 1+((RB/d)*(g+PCI*(1+g)))*((1+g)*(1+PCI))^(2-1) + E21) -> 2.138776739
C56: Price Cap IR Year 2022 | E56: =IF(ISERROR(1+((RB/d)*(g+PCI*(1+g)))*((1+g)*(1+PCI))^(3-1) + E21), 0, 1+((RB/d)*(g+PCI*(1+g)))*((1+g)*(1+PCI))^(3-1) + E21) -> 2.183238301
C57: Price Cap IR Year 2023 | E57: =IF(ISERROR(1+((RB/d)*(g+PCI*(1+g)))*((1+g)*(1+PCI))^(4-1) + E21), 0, 1+((RB/d)*(g+PCI*(1+g)))*((1+g)*(1+PCI))^(4-1) + E21) -> 2.229602901
C58: Price Cap IR Year 2024 | E58: =IF(ISERROR(1+((RB/d)*(g+PCI*(1+g)))*((1+g)*(1+PCI))^(5-1) + E21), 0, 1+((RB/d)*(g+PCI*(1+g)))*((1+g)*(1+PCI))^(5-1) + E21) -> 2.27795199
C60: Threshold CAPEX
C61: =C54 -> Price Cap IR Year 2020 | E61: =IF(ISERROR(d*E54), "", d*E54) -> 50049665.54
C62: =C55 -> Price Cap IR Year 2021 | E62: =IF(ISERROR(d*E55), "", d*E55) -> 51067703.09
C63: =C56 -> Price Cap IR Year 2022 | E63: =IF(ISERROR(d*E56), "", d*E56) -> 52129314.54
C64: =C57 -> Price Cap IR Year 2023 | E64: =IF(ISERROR(d*E57), "", d*E57) -> 53236364.91
C65: =C58 -> Price Cap IR Year 2024 | E65: =IF(ISERROR(d*E58), "", d*E58) -> 54390799.08

Sheet Threshold Test_GRZ
H1: Back to Index
A8: No Input Required.
C9: Final Threshold Calculation
C13: Year | E13: 2016
C14: Year in which Applicant is applying | E14: 4
C16: Price Cap Index | E16: =1.5%-0.3% -> 0.012
C17: Growth Factor Calculation
C18: 2017 Actual Distribution Revenues | E18: 30566887.92 | G18: 2018
C19: 2013 Board-Approved Distribution Revenues | E19: 29619525.42 | G19: 2016
C20: Growth Factor | E20: =IF(ISERROR(E18/E19-1),0,(E18/E19-1)/(G18-G19)) -> 0.01599219578
C21: Dead Band | E21: 0.1
C22: Average Net Fixed Assets
C23: Gross Fixed Assets Opening | E23: 163625735.1
C24: Add: CWIP Opening | E24: 0
C25: Capital Additions | E25: 11363000
C26: Capital Disposals | E26: 0
C27: Capital Retirements | E27: 0
C28: Deduct: CWIP Closing | E28: 0
C29: Gross Fixed Assets - Closing | E29: 174988735.1
C31: Average Gross Fixed Assets | E31: =(E23+E29)/2 -> 169307235.1
C33: Accumulated Depreciation - Opening | E33: 32529814
C34: Depreciation Expense | E34: 6295623.683
C35: Disposals | E35: 0
C36: Retirements | E36: 0
C37: Accumulated Depreciation - Closing | E37: 38825437.68
C39: Average Accumulated Depreciation | E39: =(E33+E37)/2 -> 35677625.84
C41: Average Net Fixed Assets | E41: =E31-E39 -> 133629609.3
C44: Working Capital Allowance
C45: Working Capital Allowance Base | E45: 236828274.8
C46: Working Capital Allowance Rate | E46: 0.075
C47: Working Capital Allowance | E47: =E45*E46 -> 17762120.61
C49: Rate Base | E49: =E41+E47 -> 151391729.9
C51: Depreciation | E51: =E34 -> 6295623.683
C53: Threshold Value (varies by Price Cap IR Year subsequent to CoS rebasing)
C54: Price Cap IR Year 2017 | E54: =IF(ISERROR(1+((RB/d)*(g+PCI*(1+g)))*((1+g)*(1+PCI))^(1-1) + E21), 0, 1+((RB/d)*(g+PCI*(1+g)))*((1+g)*(1+PCI))^(1-1) + E21) -> 1.777746986
C55: Price Cap IR Year 2018 | E55: =IF(ISERROR(1+((RB/d)*(g+PCI*(1+g)))*((1+g)*(1+PCI))^(2-1) + E21), 0, 1+((RB/d)*(g+PCI*(1+g)))*((1+g)*(1+PCI))^(2-1) + E21) -> 1.796848676
C56: Price Cap IR Year 2019 | E56: =IF(ISERROR(1+((RB/d)*(g+PCI*(1+g)))*((1+g)*(1+PCI))^(3-1) + E21), 0, 1+((RB/d)*(g+PCI*(1+g)))*((1+g)*(1+PCI))^(3-1) + E21) -> 1.816488731
C57: Price Cap IR Year 2020 | E57: =IF(ISERROR(1+((RB/d)*(g+PCI*(1+g)))*((1+g)*(1+PCI))^(4-1) + E21), 0, 1+((RB/d)*(g+PCI*(1+g)))*((1+g)*(1+PCI))^(4-1) + E21) -> 1.836682322
C58: Price Cap IR Year 2021 | E58: =IF(ISERROR(1+((RB/d)*(g+PCI*(1+g)))*((1+g)*(1+PCI))^(5-1) + E21), 0, 1+((RB/d)*(g+PCI*(1+g)))*((1+g)*(1+PCI))^(5-1) + E21) -> 1.857445052
C59: Price Cap IR Year 2022 | E59: =IF(ISERROR(1+((RB/d)*(g+PCI*(1+g)))*((1+g)*(1+PCI))^(6-1) + E21), 0, 1+((RB/d)*(g+PCI*(1+g)))*((1+g)*(1+PCI))^(6-1) + E21) -> 1.878792961
C60: Price Cap IR Year 2023 | E60: =IF(ISERROR(1+((RB/d)*(g+PCI*(1+g)))*((1+g)*(1+PCI))^(7-1) + E21), 0, 1+((RB/d)*(g+PCI*(1+g)))*((1+g)*(1+PCI))^(7-1) + E21) -> 1.900742541
C61: Price Cap IR Year 2024 | E61: =IF(ISERROR(1+((RB/d)*(g+PCI*(1+g)))*((1+g)*(1+PCI))^(8-1) + E21), 0, 1+((RB/d)*(g+PCI*(1+g)))*((1+g)*(1+PCI))^(8-1) + E21) -> 1.923310751
C63: Threshold CAPEX
C64: =C54 -> Price Cap IR Year 2017 | E64: =IF(ISERROR(d*E54), "", d*E54) -> 11192026.03
C65: Price Cap IR Year 2018 | E65: 11312283.08
C66: Price Cap IR Year 2019 | E66: 11435929.47
C67: Price Cap IR Year 2020 | E67: 11563060.73
C68: Price Cap IR Year 2021 | E68: 11693775.06
C69: Price Cap IR Year 2022 | E69: 11828173.46
C70: Price Cap IR Year 2023 | E70: 11966359.76
C71: Price Cap IR Year 2024 | E71: 12108440.71
